Workbook

Sheet ТРУБА
A1: z | K1: z | L1: z | M1: z | X1: z | Y1: z | Z1: z | AA1: z | AB1: z | AC1: z | AD1: z | AE1: z | AF1: z | AG1: z | AH1: z | AI1: z | AJ1: z | AK1: z | AL1: z | AM1: z | AN1: z | AO1: z | AP1: z
F2: Приложение № 2 к ЛЗК ___ | N2: =TODAY() -> 2023-07-27
H3: =CONCATENATE("НЕ СОВПАДЕНИЕ ",ROUND(M6-M7,3)," кг.") -> НЕ СОВПАДЕНИЕ 22,196 кг.
C4: (19137.022.20.9016) Кронштейн 240
C5: =CONCATENATE("Изделие из: ",IF(ТРУБА!M7>0,"ТРУБА, ",""),IF(ЛИСТ!L7>0,"ЛИСТ, ",""),IF(ПРОВОЛОКА!R83>0,"ПРОВОЛОКА, ",""),IF(ПВХ!I60>0,"ПВХ ","")) -> Изделие из: ТРУБА, ЛИСТ, ПРОВОЛОКА, ПВХ | L5: Коэфициент | M5: Маса
B6: См. Косые резы и выполнять согласно чертежа | I6: План / шт | J6: 110 | M6: =SUM(Таблица1[Столбец19]) -> 162.9144027 | N6: "дырки"
B7: № п/п | C7: Длина | D7: Ширина (условная расчет программы) | E7: Кол-во на изделие | F7: Вращение детали 1 - да 0 - нет | G7: Толщина | H7: Материал (профиль трубы) | I7: Наименование детали | J7: кол-во на план | K7: ГОСТ | L7: =SUM(J8:J57) -> 1430 | M7: =SUM(M8:M57) -> 140.71805 | S7: номерация
A8: =IF(E8=0,"z","") ->  | B8: =IF(J8=0,"",S8) -> 1 | C8: 425 | D8: 500 | E8: 2 | F8: 0 | G8: =IF(K8="","",VLOOKUP(K8,Таблица1[[#All],[ГОСТ]:[точка]],8,0)) -> 1 | H8: =IF(K8="","",VLOOKUP(K8,Таблица1[[#All],[ГОСТ]:[точка]],2,0)) -> Труба 10х10 | I8: перемычка | J8: =E8*$J$6 -> 220 | K8: Труба 10х10х1 | L8: =IF(K8="","",VLOOKUP(K8,Таблица1[[#All],[ГОСТ]:[коэф]],9,0)) -> 0.54 | M8: =IFERROR(C8*D8*J8*L8/1000000-IF(E8=0,0,N8),"") -> 25.245 | N8: 0 | S8: =IF(J8=0,0,1) -> 1
A9: =IF(E9=0,"z","") ->  | B9: 2 | C9: 280 | D9: 500 | E9: 2 | F9: 0 | G9: =IF(K9="","",VLOOKUP(K9,Таблица1[[#All],[ГОСТ]:[точка]],8,0)) -> 12 | H9: =IF(K9="","",VLOOKUP(K9,Таблица1[[#All],[ГОСТ]:[точка]],2,0)) -> Круг 12 | I9: основа | J9: =E9*$J$6 -> 220 | K9: Круг 12 | L9: =IF(K9="","",VLOOKUP(K9,Таблица1[[#All],[ГОСТ]:[коэф]],9,0)) -> 1.776 | M9: =IFERROR(C9*D9*J9*L9/1000000-IF(E9=0,0,N9),"") -> 54.7008 | N9: 0 | S9: =IF(J9=0,S8,S8+1) -> 2
B10: 3 | C10: 273 | D10: 500 | E10: 1 | F10: 0 | G10: =IF(K10="","",VLOOKUP(K10,Таблица1[[#All],[ГОСТ]:[точка]],8,0)) -> 1.2 | H10: =IF(K10="","",VLOOKUP(K10,Таблица1[[#All],[ГОСТ]:[точка]],2,0)) -> Труба 25х25 | I10: херня | J10: 110 | K10: Труба 25х25х1,2 | L10: =IF(K10="","",VLOOKUP(K10,Таблица1[[#All],[ГОСТ]:[коэф]],9,0)) -> 1.75 | M10: 26.27625 | S10: 3
A11: z | D11: 500 | F11: 0 | G11: =IF(K11="","",VLOOKUP(K11,Таблица1[[#All],[ГОСТ]:[точка]],8,0)) -> 1 | H11: =IF(K11="","",VLOOKUP(K11,Таблица1[[#All],[ГОСТ]:[точка]],2,0)) -> Труба 25х25 | J11: 0 | K11: Труба 25х25х1 | L11: =IF(K11="","",VLOOKUP(K11,Таблица1[[#All],[ГОСТ]:[коэф]],9,0)) -> 1.48 | M11: 0 | S11: 3
A12: z | D12: 500 | F12: 0 | G12: =IF(K12="","",VLOOKUP(K12,Таблица1[[#All],[ГОСТ]:[точка]],8,0)) ->  | H12: =IF(K12="","",VLOOKUP(K12,Таблица1[[#All],[ГОСТ]:[точка]],2,0)) ->  | J12: 0 | L12: =IF(K12="","",VLOOKUP(K12,Таблица1[[#All],[ГОСТ]:[коэф]],9,0)) ->  | S12: 3
A13: z | D13: 500 | F13: 0 | G13: =IF(K13="","",VLOOKUP(K13,Таблица1[[#All],[ГОСТ]:[точка]],8,0)) ->  | H13: =IF(K13="","",VLOOKUP(K13,Таблица1[[#All],[ГОСТ]:[точка]],2,0)) ->  | J13: 0 | L13: =IF(K13="","",VLOOKUP(K13,Таблица1[[#All],[ГОСТ]:[коэф]],9,0)) ->  | S13: 3
A14: =IF(E14=0,"z","") -> z | B14: =IF(J14=0,"",S14) ->  | D14: 500 | F14: 0 | G14: =IF(K14="","",VLOOKUP(K14,Таблица1[[#All],[ГОСТ]:[точка]],8,0)) ->  | H14: =IF(K14="","",VLOOKUP(K14,Таблица1[[#All],[ГОСТ]:[точка]],2,0)) ->  | J14: =E14*$J$6 -> 0 | L14: =IF(K14="","",VLOOKUP(K14,Таблица1[[#All],[ГОСТ]:[коэф]],9,0)) ->  | M14: =IFERROR(C14*D14*J14*L14/1000000-IF(E14=0,0,N14),"") ->  | S14: =IF(J14=0,S13,S13+1) -> 3
A15: z | D15: 500 | F15: 0 | G15: =IF(K15="","",VLOOKUP(K15,Таблица1[[#All],[ГОСТ]:[точка]],8,0)) ->  | H15: =IF(K15="","",VLOOKUP(K15,Таблица1[[#All],[ГОСТ]:[точка]],2,0)) ->  | J15: 0 | L15: =IF(K15="","",VLOOKUP(K15,Таблица1[[#All],[ГОСТ]:[коэф]],9,0)) ->  | S15: 3
A16: z | D16: 500 | F16: 0 | G16: =IF(K16="","",VLOOKUP(K16,Таблица1[[#All],[ГОСТ]:[точка]],8,0)) ->  | H16: =IF(K16="","",VLOOKUP(K16,Таблица1[[#All],[ГОСТ]:[точка]],2,0)) ->  | J16: 0 | L16: =IF(K16="","",VLOOKUP(K16,Таблица1[[#All],[ГОСТ]:[коэф]],9,0)) ->  | S16: 3
A17: z | D17: 500 | F17: 0 | G17: =IF(K17="","",VLOOKUP(K17,Таблица1[[#All],[ГОСТ]:[точка]],8,0)) ->  | H17: =IF(K17="","",VLOOKUP(K17,Таблица1[[#All],[ГОСТ]:[точка]],2,0)) ->  | J17: 0 | L17: =IF(K17="","",VLOOKUP(K17,Таблица1[[#All],[ГОСТ]:[коэф]],9,0)) ->  | S17: 3
A18: z | D18: 500 | F18: 0 | G18: =IF(K18="","",VLOOKUP(K18,Таблица1[[#All],[ГОСТ]:[точка]],8,0)) ->  | H18: =IF(K18="","",VLOOKUP(K18,Таблица1[[#All],[ГОСТ]:[точка]],2,0)) ->  | J18: 0 | L18: =IF(K18="","",VLOOKUP(K18,Таблица1[[#All],[ГОСТ]:[коэф]],9,0)) ->  | S18: 3
A19: z | D19: 500 | F19: 0 | G19: =IF(K19="","",VLOOKUP(K19,Таблица1[[#All],[ГОСТ]:[точка]],8,0)) ->  | H19: =IF(K19="","",VLOOKUP(K19,Таблица1[[#All],[ГОСТ]:[точка]],2,0)) ->  | J19: 0 | L19: =IF(K19="","",VLOOKUP(K19,Таблица1[[#All],[ГОСТ]:[коэф]],9,0)) ->  | S19: 3
A20: z | D20: 500 | F20: 0 | G20: =IF(K20="","",VLOOKUP(K20,Таблица1[[#All],[ГОСТ]:[точка]],8,0)) ->  | H20: =IF(K20="","",VLOOKUP(K20,Таблица1[[#All],[ГОСТ]:[точка]],2,0)) ->  | J20: 0 | L20: =IF(K20="","",VLOOKUP(K20,Таблица1[[#All],[ГОСТ]:[коэф]],9,0)) ->  | S20: 3
A21: z | D21: 500 | F21: 0 | G21: =IF(K21="","",VLOOKUP(K21,Таблица1[[#All],[ГОСТ]:[точка]],8,0)) ->  | H21: =IF(K21="","",VLOOKUP(K21,Таблица1[[#All],[ГОСТ]:[точка]],2,0)) ->  | J21: 0 | L21: =IF(K21="","",VLOOKUP(K21,Таблица1[[#All],[ГОСТ]:[коэф]],9,0)) ->  | S21: 3
A22: z | D22: 500 | F22: 0 | G22: =IF(K22="","",VLOOKUP(K22,Таблица1[[#All],[ГОСТ]:[точка]],8,0)) ->  | H22: =IF(K22="","",VLOOKUP(K22,Таблица1[[#All],[ГОСТ]:[точка]],2,0)) ->  | J22: 0 | L22: =IF(K22="","",VLOOKUP(K22,Таблица1[[#All],[ГОСТ]:[коэф]],9,0)) ->  | S22: 3
A23: z | D23: 500 | F23: 0 | G23: =IF(K23="","",VLOOKUP(K23,Таблица1[[#All],[ГОСТ]:[точка]],8,0)) ->  | H23: =IF(K23="","",VLOOKUP(K23,Таблица1[[#All],[ГОСТ]:[точка]],2,0)) ->  | J23: 0 | L23: =IF(K23="","",VLOOKUP(K23,Таблица1[[#All],[ГОСТ]:[коэф]],9,0)) ->  | S23: 3
A24: z | D24: 500 | F24: 0 | G24: =IF(K24="","",VLOOKUP(K24,Таблица1[[#All],[ГОСТ]:[точка]],8,0)) ->  | H24: =IF(K24="","",VLOOKUP(K24,Таблица1[[#All],[ГОСТ]:[точка]],2,0)) ->  | J24: 0 | L24: =IF(K24="","",VLOOKUP(K24,Таблица1[[#All],[ГОСТ]:[коэф]],9,0)) ->  | S24: 3
B25: 4 | C25: 56 | D25: 500 | E25: 8 | F25: 0 | G25: =IF(K25="","",VLOOKUP(K25,Таблица1[[#All],[ГОСТ]:[точка]],8,0)) -> 1.2 | H25: =IF(K25="","",VLOOKUP(K25,Таблица1[[#All],[ГОСТ]:[точка]],2,0)) -> Труба пл.ов. 30х15 | J25: 880 | K25: Труба пл.ов. 30х15х1,2 | L25: =IF(K25="","",VLOOKUP(K25,Таблица1[[#All],[ГОСТ]:[коэф]],9,0)) -> 1.4 | M25: 34.496 | S25: 4
A26: z | D26: 500 | F26: 0 | G26: =IF(K26="","",VLOOKUP(K26,Таблица1[[#All],[ГОСТ]:[точка]],8,0)) ->  | H26: =IF(K26="","",VLOOKUP(K26,Таблица1[[#All],[ГОСТ]:[точка]],2,0)) ->  | J26: 0 | L26: =IF(K26="","",VLOOKUP(K26,Таблица1[[#All],[ГОСТ]:[коэф]],9,0)) ->  | S26: 4
A27: z | D27: 500 | F27: 0 | G27: =IF(K27="","",VLOOKUP(K27,Таблица1[[#All],[ГОСТ]:[точка]],8,0)) ->  | H27: =IF(K27="","",VLOOKUP(K27,Таблица1[[#All],[ГОСТ]:[точка]],2,0)) ->  | J27: 0 | L27: =IF(K27="","",VLOOKUP(K27,Таблица1[[#All],[ГОСТ]:[коэф]],9,0)) ->  | S27: 4
A28: z | D28: 500 | F28: 0 | G28: =IF(K28="","",VLOOKUP(K28,Таблица1[[#All],[ГОСТ]:[точка]],8,0)) ->  | H28: =IF(K28="","",VLOOKUP(K28,Таблица1[[#All],[ГОСТ]:[точка]],2,0)) ->  | J28: 0 | L28: =IF(K28="","",VLOOKUP(K28,Таблица1[[#All],[ГОСТ]:[коэф]],9,0)) ->  | S28: 4
A29: z | D29: 500 | F29: 0 | G29: =IF(K29="","",VLOOKUP(K29,Таблица1[[#All],[ГОСТ]:[точка]],8,0)) ->  | H29: =IF(K29="","",VLOOKUP(K29,Таблица1[[#All],[ГОСТ]:[точка]],2,0)) ->  | J29: 0 | L29: =IF(K29="","",VLOOKUP(K29,Таблица1[[#All],[ГОСТ]:[коэф]],9,0)) ->  | S29: 4
A30: z | D30: 500 | F30: 0 | G30: =IF(K30="","",VLOOKUP(K30,Таблица1[[#All],[ГОСТ]:[точка]],8,0)) ->  | H30: =IF(K30="","",VLOOKUP(K30,Таблица1[[#All],[ГОСТ]:[точка]],2,0)) ->  | J30: 0 | L30: =IF(K30="","",VLOOKUP(K30,Таблица1[[#All],[ГОСТ]:[коэф]],9,0)) ->  | S30: 4
A31: z | D31: 500 | F31: 0 | G31: =IF(K31="","",VLOOKUP(K31,Таблица1[[#All],[ГОСТ]:[точка]],8,0)) ->  | H31: =IF(K31="","",VLOOKUP(K31,Таблица1[[#All],[ГОСТ]:[точка]],2,0)) ->  | J31: 0 | L31: =IF(K31="","",VLOOKUP(K31,Таблица1[[#All],[ГОСТ]:[коэф]],9,0)) ->  | S31: 4
A32: z | D32: 500 | F32: 0 | G32: =IF(K32="","",VLOOKUP(K32,Таблица1[[#All],[ГОСТ]:[точка]],8,0)) ->  | H32: =IF(K32="","",VLOOKUP(K32,Таблица1[[#All],[ГОСТ]:[точка]],2,0)) ->  | J32: 0 | L32: =IF(K32="","",VLOOKUP(K32,Таблица1[[#All],[ГОСТ]:[коэф]],9,0)) ->  | S32: 4
A33: =IF(E33=0,"z","") -> z | B33: =IF(J33=0,"",S33) ->  | D33: 500 | F33: 0 | G33: =IF(K33="","",VLOOKUP(K33,Таблица1[[#All],[ГОСТ]:[точка]],8,0)) ->  | H33: =IF(K33="","",VLOOKUP(K33,Таблица1[[#All],[ГОСТ]:[точка]],2,0)) ->  | J33: =E33*$J$6 -> 0 | L33: =IF(K33="","",VLOOKUP(K33,Таблица1[[#All],[ГОСТ]:[коэф]],9,0)) ->  | M33: =IFERROR(C33*D33*J33*L33/1000000-IF(E33=0,0,N33),"") ->  | S33: =IF(J33=0,S32,S32+1) -> 4
A34: z | D34: 500 | F34: 0 | G34: =IF(K34="","",VLOOKUP(K34,Таблица1[[#All],[ГОСТ]:[точка]],8,0)) ->  | H34: =IF(K34="","",VLOOKUP(K34,Таблица1[[#All],[ГОСТ]:[точка]],2,0)) ->  | J34: 0 | L34: =IF(K34="","",VLOOKUP(K34,Таблица1[[#All],[ГОСТ]:[коэф]],9,0)) ->  | S34: 4
A35: z | D35: 500 | F35: 0 | G35: =IF(K35="","",VLOOKUP(K35,Таблица1[[#All],[ГОСТ]:[точка]],8,0)) ->  | H35: =IF(K35="","",VLOOKUP(K35,Таблица1[[#All],[ГОСТ]:[точка]],2,0)) ->  | J35: 0 | L35: =IF(K35="","",VLOOKUP(K35,Таблица1[[#All],[ГОСТ]:[коэф]],9,0)) ->  | S35: 4
A36: z | D36: 500 | F36: 0 | G36: =IF(K36="","",VLOOKUP(K36,Таблица1[[#All],[ГОСТ]:[точка]],8,0)) ->  | H36: =IF(K36="","",VLOOKUP(K36,Таблица1[[#All],[ГОСТ]:[точка]],2,0)) ->  | J36: 0 | L36: =IF(K36="","",VLOOKUP(K36,Таблица1[[#All],[ГОСТ]:[коэф]],9,0)) ->  | S36: 4
A37: z | D37: 500 | F37: 0 | G37: =IF(K37="","",VLOOKUP(K37,Таблица1[[#All],[ГОСТ]:[точка]],8,0)) ->  | H37: =IF(K37="","",VLOOKUP(K37,Таблица1[[#All],[ГОСТ]:[точка]],2,0)) ->  | J37: 0 | L37: =IF(K37="","",VLOOKUP(K37,Таблица1[[#All],[ГОСТ]:[коэф]],9,0)) ->  | S37: 4
A38: z | D38: 500 | F38: 0 | G38: =IF(K38="","",VLOOKUP(K38,Таблица1[[#All],[ГОСТ]:[точка]],8,0)) -> 1 | H38: =IF(K38="","",VLOOKUP(K38,Таблица1[[#All],[ГОСТ]:[точка]],2,0)) -> Труба 20х20 | J38: 0 | K38: Труба 20х20х1 | L38: =IF(K38="","",VLOOKUP(K38,Таблица1[[#All],[ГОСТ]:[коэф]],9,0)) -> 1.248 | M38: 0 | S38: 4
A39: z | D39: 500 | F39: 0 | G39: =IF(K39="","",VLOOKUP(K39,Таблица1[[#All],[ГОСТ]:[точка]],8,0)) ->  | H39: =IF(K39="","",VLOOKUP(K39,Таблица1[[#All],[ГОСТ]:[точка]],2,0)) ->  | J39: 0 | L39: =IF(K39="","",VLOOKUP(K39,Таблица1[[#All],[ГОСТ]:[коэф]],9,0)) ->  | S39: 4
A40: z | D40: 500 | F40: 0 | G40: =IF(K40="","",VLOOKUP(K40,Таблица1[[#All],[ГОСТ]:[точка]],8,0)) ->  | H40: =IF(K40="","",VLOOKUP(K40,Таблица1[[#All],[ГОСТ]:[точка]],2,0)) ->  | J40: 0 | L40: =IF(K40="","",VLOOKUP(K40,Таблица1[[#All],[ГОСТ]:[коэф]],9,0)) ->  | S40: 4
A41: z | D41: 500 | F41: 0 | G41: =IF(K41="","",VLOOKUP(K41,Таблица1[[#All],[ГОСТ]:[точка]],8,0)) ->  | H41: =IF(K41="","",VLOOKUP(K41,Таблица1[[#All],[ГОСТ]:[точка]],2,0)) ->  | J41: 0 | L41: =IF(K41="","",VLOOKUP(K41,Таблица1[[#All],[ГОСТ]:[коэф]],9,0)) ->  | S41: 4
A42: z | D42: 500 | F42: 0 | G42: =IF(K42="","",VLOOKUP(K42,Таблица1[[#All],[ГОСТ]:[точка]],8,0)) ->  | H42: =IF(K42="","",VLOOKUP(K42,Таблица1[[#All],[ГОСТ]:[точка]],2,0)) ->  | J42: 0 | L42: =IF(K42="","",VLOOKUP(K42,Таблица1[[#All],[ГОСТ]:[коэф]],9,0)) ->  | S42: 4
A43: z | D43: 500 | F43: 0 | G43: =IF(K43="","",VLOOKUP(K43,Таблица1[[#All],[ГОСТ]:[точка]],8,0)) -> 1.2 | H43: =IF(K43="","",VLOOKUP(K43,Таблица1[[#All],[ГОСТ]:[точка]],2,0)) -> Труба 25х25 | J43: 0 | K43: Труба 25х25х1,2 | L43: =IF(K43="","",VLOOKUP(K43,Таблица1[[#All],[ГОСТ]:[коэф]],9,0)) -> 1.75 | M43: 0 | S43: 4
A44: z | D44: 500 | F44: 0 | G44: =IF(K44="","",VLOOKUP(K44,Таблица1[[#All],[ГОСТ]:[точка]],8,0)) ->  | H44: =IF(K44="","",VLOOKUP(K44,Таблица1[[#All],[ГОСТ]:[точка]],2,0)) ->  | J44: 0 | L44: =IF(K44="","",VLOOKUP(K44,Таблица1[[#All],[ГОСТ]:[коэф]],9,0)) ->  | S44: 4
A45: z | D45: 500 | F45: 0 | G45: =IF(K45="","",VLOOKUP(K45,Таблица1[[#All],[ГОСТ]:[точка]],8,0)) ->  | H45: =IF(K45="","",VLOOKUP(K45,Таблица1[[#All],[ГОСТ]:[точка]],2,0)) ->  | J45: 0 | L45: =IF(K45="","",VLOOKUP(K45,Таблица1[[#All],[ГОСТ]:[коэф]],9,0)) ->  | S45: 4
A46: z | D46: 500 | F46: 0 | G46: =IF(K46="","",VLOOKUP(K46,Таблица1[[#All],[ГОСТ]:[точка]],8,0)) ->  | H46: =IF(K46="","",VLOOKUP(K46,Таблица1[[#All],[ГОСТ]:[точка]],2,0)) ->  | J46: 0 | L46: =IF(K46="","",VLOOKUP(K46,Таблица1[[#All],[ГОСТ]:[коэф]],9,0)) ->  | S46: 4
A47: z | D47: 500 | F47: 0 | G47: =IF(K47="","",VLOOKUP(K47,Таблица1[[#All],[ГОСТ]:[точка]],8,0)) ->  | H47: =IF(K47="","",VLOOKUP(K47,Таблица1[[#All],[ГОСТ]:[точка]],2,0)) ->  | J47: 0 | L47: =IF(K47="","",VLOOKUP(K47,Таблица1[[#All],[ГОСТ]:[коэф]],9,0)) ->  | S47: 4
A48: z | D48: 500 | F48: 0 | G48: =IF(K48="","",VLOOKUP(K48,Таблица1[[#All],[ГОСТ]:[точка]],8,0)) ->  | H48: =IF(K48="","",VLOOKUP(K48,Таблица1[[#All],[ГОСТ]:[точка]],2,0)) ->  | J48: 0 | L48: =IF(K48="","",VLOOKUP(K48,Таблица1[[#All],[ГОСТ]:[коэф]],9,0)) ->  | S48: 4
A49: z | D49: 500 | F49: 0 | G49: =IF(K49="","",VLOOKUP(K49,Таблица1[[#All],[ГОСТ]:[точка]],8,0)) ->  | H49: =IF(K49="","",VLOOKUP(K49,Таблица1[[#All],[ГОСТ]:[точка]],2,0)) ->  | J49: 0 | L49: =IF(K49="","",VLOOKUP(K49,Таблица1[[#All],[ГОСТ]:[коэф]],9,0)) ->  | S49: 4
A50: z | D50: 500 | F50: 0 | G50: =IF(K50="","",VLOOKUP(K50,Таблица1[[#All],[ГОСТ]:[точка]],8,0)) ->  | H50: =IF(K50="","",VLOOKUP(K50,Таблица1[[#All],[ГОСТ]:[точка]],2,0)) ->  | J50: 0 | L50: =IF(K50="","",VLOOKUP(K50,Таблица1[[#All],[ГОСТ]:[коэф]],9,0)) ->  | S50: 4
A51: z | D51: 500 | F51: 0 | G51: =IF(K51="","",VLOOKUP(K51,Таблица1[[#All],[ГОСТ]:[точка]],8,0)) ->  | H51: =IF(K51="","",VLOOKUP(K51,Таблица1[[#All],[ГОСТ]:[точка]],2,0)) ->  | J51: 0 | L51: =IF(K51="","",VLOOKUP(K51,Таблица1[[#All],[ГОСТ]:[коэф]],9,0)) ->  | S51: 4
A52: z | D52: 500 | F52: 0 | G52: =IF(K52="","",VLOOKUP(K52,Таблица1[[#All],[ГОСТ]:[точка]],8,0)) ->  | H52: =IF(K52="","",VLOOKUP(K52,Таблица1[[#All],[ГОСТ]:[точка]],2,0)) ->  | J52: 0 | L52: =IF(K52="","",VLOOKUP(K52,Таблица1[[#All],[ГОСТ]:[коэф]],9,0)) ->  | S52: 4
A53: z | D53: 500 | F53: 0 | G53: =IF(K53="","",VLOOKUP(K53,Таблица1[[#All],[ГОСТ]:[точка]],8,0)) ->  | H53: =IF(K53="","",VLOOKUP(K53,Таблица1[[#All],[ГОСТ]:[точка]],2,0)) ->  | J53: 0 | L53: =IF(K53="","",VLOOKUP(K53,Таблица1[[#All],[ГОСТ]:[коэф]],9,0)) ->  | S53: 4
A54: z | D54: 500 | F54: 0 | G54: =IF(K54="","",VLOOKUP(K54,Таблица1[[#All],[ГОСТ]:[точка]],8,0)) ->  | H54: =IF(K54="","",VLOOKUP(K54,Таблица1[[#All],[ГОСТ]:[точка]],2,0)) ->  | J54: 0 | L54: =IF(K54="","",VLOOKUP(K54,Таблица1[[#All],[ГОСТ]:[коэф]],9,0)) ->  | S54: 4
A55: z | D55: 500 | F55: 0 | G55: =IF(K55="","",VLOOKUP(K55,Таблица1[[#All],[ГОСТ]:[точка]],8,0)) ->  | H55: =IF(K55="","",VLOOKUP(K55,Таблица1[[#All],[ГОСТ]:[точка]],2,0)) ->  | J55: 0 | L55: =IF(K55="","",VLOOKUP(K55,Таблица1[[#All],[ГОСТ]:[коэф]],9,0)) ->  | S55: 4
A56: z | D56: 500 | F56: 0 | G56: =IF(K56="","",VLOOKUP(K56,Таблица1[[#All],[ГОСТ]:[точка]],8,0)) ->  | H56: =IF(K56="","",VLOOKUP(K56,Таблица1[[#All],[ГОСТ]:[точка]],2,0)) ->  | J56: 0 | L56: =IF(K56="","",VLOOKUP(K56,Таблица1[[#All],[ГОСТ]:[коэф]],9,0)) ->  | S56: 4
A57: z | D57: 500 | F57: 0 | G57: =IF(K57="","",VLOOKUP(K57,Таблица1[[#All],[ГОСТ]:[точка]],8,0)) ->  | H57: =IF(K57="","",VLOOKUP(K57,Таблица1[[#All],[ГОСТ]:[точка]],2,0)) ->  | J57: 0 | L57: =IF(K57="","",VLOOKUP(K57,Таблица1[[#All],[ГОСТ]:[коэф]],9,0)) ->  | S57: 4
B59: Карта раскроя № | C59: Длина, мм | D59: Ширина, мм | E59: Толщина, мм | F59: Марка материала | G59: Кол-во | H59: Площадь остатков всего, кв.м | I59: Площадь деталей всего, кв.м | J59: Количество деталей | L59: Округление толщины | M59: Коэфициент | N59: Трубы/остатка со склада масса (кг) | P59: Получил | Q59: Деловой остаток на склад (кг) | S59: Получил кладовщик | T59: Масса деталей (кг) | V59: Количество деталей | W59: Получил | X59: Расход (кг) | Y59: ЛОМ (кг)
N60: теория | O60: факт | Q60: теория | R60: факт | T60: теория | U60: факт | AC60: z | AD60: z | AE60: z | AF60: z | AG60: z | AH60: z
A61: =IF(G61=0,"z","") ->  | B61: 1 | C61: 1495 | D61: 500 | E61: 1.2 | F61: Труба 30х20, 1.2 мм, тр3020 | G61: 1 | H61: 0 | I61: 0.7050000131 | J61: 4 | K61: 1 | L61: =ROUND(E61,2) -> 1.2 | M61: =IFERROR(VLOOKUP(F61,Таблица1[[#All],[АСТРА]:[коэф]],7,0),"0") -> 1.76 | N61: =C61*D61*G61*M61/1000000 -> 1.3156 | Q61: =H61*M61 -> 0 | T61: =I61*M61 -> 1.240800023 | X61: =N61-Q61 -> 1.3156 | Y61: =X61-T61 -> 0.07479997692 | AC61: =SUMIFS(J8:J57,H8:H57,"=Труба 15х15 чм, 1.0 мм") -> 0 | AD61: Труба 15х15х1 | AF61: 1 | AG61: 0.852 | AH61: 0.476
A62: =IF(G62=0,"z","") ->  | B62: 2 | C62: 6000 | D62: 500 | E62: 1.2 | F62: Труба 30х20, 1.2 мм, тр3020 | G62: 10 | H62: 0 | I62: 29.36500013 | J62: 21 | K62: 2 | L62: =ROUND(E62,2) -> 1.2 | M62: =IFERROR(VLOOKUP(F62,Таблица1[[#All],[АСТРА]:[коэф]],7,0),"0") -> 1.76 | N62: 52.8 | Q62: 0 | T62: 51.68240023 | X62: 52.8 | Y62: =X62-T62 -> 1.117599773 | AC62: =J8 -> 220 | AD62: Труба ø 16х1 | AF62: 1 | AG62: 0.74 | AH62: 0.37
B63: 3 | C63: 6000 | D63: 500 | E63: 1.2 | F63: Труба 30х20, 1.2 мм, тр3020 | G63: 1 | H63: 0 | I63: 2.926000014 | J63: 21 | K63: 3 | L63: 1.2 | M63: =IFERROR(VLOOKUP(F63,Таблица1[[#All],[АСТРА]:[коэф]],7,0),"0") -> 1.76 | N63: 5.28 | Q63: 0 | T63: 5.149760025 | X63: 5.28 | Y63: 0.1302399755 | AC63: =SUMIFS(J8:J57,H8:H57,"=Труба 17х17 чм, 2,0") -> 0 | AD63: Труба 17х17х2 | AF63: 2 | AG63: 1.88 | AH63: 0.94
B64: 4 | C64: 6000 | D64: 500 | E64: 1.2 | F64: Труба 30х20, 1.2 мм, тр3020 | G64: 1 | H64: 0 | I64: 2.902500078 | J64: 14 | K64: 4 | L64: 1.2 | M64: =IFERROR(VLOOKUP(F64,Таблица1[[#All],[АСТРА]:[коэф]],7,0),"0") -> 1.76 | N64: 5.28 | Q64: 0 | T64: 5.108400137 | X64: 5.28 | Y64: 0.1715998626 | AC64: =SUMIFS(J8:J57,H8:H57,"=Труба 20х20 чм, 0.8 мм") -> 0 | AD64: Труба 20х20х0,8 | AF64: 0.8 | AG64: 1.006 | AH64: 0.503
B65: 5 | C65: 6000 | D65: 500 | E65: 1.2 | F65: Труба 30х20, 1.2 мм, тр3020 | G65: 15 | H65: 0 | I65: 43.48500118 | J65: 14 | K65: 5 | L65: 1.2 | M65: =IFERROR(VLOOKUP(F65,Таблица1[[#All],[АСТРА]:[коэф]],7,0),"0") -> 1.76 | N65: 79.2 | Q65: 0 | T65: 76.53360207 | X65: 79.2 | Y65: 2.666397929 | AC65: =SUMIFS(J8:J57,H8:H57,"=Труба 20х20 чм, 1.0 мм") -> 0 | AD65: Труба 20х20 чм, 1.0 мм | AF65: 1 | AG65: 1.248 | AH65: 0.624
B66: 6 | C66: 6000 | D66: 500 | E66: 1.2 | F66: Труба 30х20, 1.2 мм, тр3020 | G66: 1 | H66: 0 | I66: 2.944000065 | J66: 16 | K66: 6 | L66: 1.2 | M66: =IFERROR(VLOOKUP(F66,Таблица1[[#All],[АСТРА]:[коэф]],7,0),"0") -> 1.76 | N66: 5.28 | Q66: 0 | T66: 5.181440115 | X66: 5.28 | Y66: 0.09855988503 | AC66: =SUMIFS(J8:J57,H8:H57,"=Труба 20х20 чм, 1.5 мм") -> 0 | AD66: Труба 20х20х1,5 | AF66: 1.5 | AG66: 1.872 | AH66: 0.936
B67: 7 | C67: 6000 | D67: 500 | E67: 1.2 | F67: Труба 30х20, 1.2 мм, тр3020 | G67: 3 | H67: 0 | I67: 8.59950006 | J67: 21 | K67: 7 | L67: 1.2 | M67: =IFERROR(VLOOKUP(F67,Таблица1[[#All],[АСТРА]:[коэф]],7,0),"0") -> 1.76 | N67: 15.84 | Q67: 0 | T67: 15.13512011 | X67: 15.84 | Y67: 0.7048798943 | AC67: =SUMIFS(J8:J57,H8:H57,"=Труба 20х20 чм, 2.0 мм") -> 0 | AD67: Труба 20х20х2 | AF67: 2 | AG67: 2.252 | AH67: 1.126
B68: 8 | C68: 6000 | D68: 500 | E68: 1.2 | F68: Труба 30х20, 1.2 мм, тр3020 | G68: 1 | H68: 1.332000017 | I68: 1.638000011 | J68: 12 | K68: 8 | L68: 1.2 | M68: =IFERROR(VLOOKUP(F68,Таблица1[[#All],[АСТРА]:[коэф]],7,0),"0") -> 1.76 | N68: 5.28 | Q68: 2.34432003 | T68: 2.88288002 | X68: 2.93567997 | Y68: 0.05279994965 | AC68: =SUMIFS(J8:J57,H8:H57,"=Труба 25х25 чм, 0.8 мм") -> 0 | AD68: Труба 25х25х0,8 | AF68: 0.8 | AG68: 1.2384 | AH68: 0.6192
A69: z | K69: 9 | L69: 0 | M69: =IFERROR(VLOOKUP(F69,Таблица1[[#All],[АСТРА]:[коэф]],7,0),"0") -> 0 | N69: 0 | Q69: 0 | T69: 0 | X69: 0 | Y69: 0 | AC69: =SUMIFS(J8:J57,H8:H57,"=Труба 25х25 чм, 1.0 мм") -> 0 | AD69: Труба 25х25х1 | AF69: 1 | AG69: 1.548 | AH69: 0.774
A70: z | K70: 10 | L70: 0 | M70: =IFERROR(VLOOKUP(F70,Таблица1[[#All],[АСТРА]:[коэф]],7,0),"0") -> 0 | N70: 0 | Q70: 0 | T70: 0 | X70: 0 | Y70: 0 | AC70: =SUMIFS(J8:J57,H8:H57,"=Труба 25х25 чм, 1.2 мм") -> 0 | AD70: Труба 25х25х1,2 | AF70: 1.2 | AG70: 1.8576 | AH70: 0.9288
A71: =IF(G71=0,"z","") -> z | K71: 11 | L71: =ROUND(E71,2) -> 0 | M71: =IFERROR(VLOOKUP(F71,Таблица1[[#All],[АСТРА]:[коэф]],7,0),"0") -> 0 | N71: =C71*D71*G71*M71/1000000 -> 0 | Q71: =H71*M71 -> 0 | T71: =I71*M71 -> 0 | X71: =N71-Q71 -> 0 | Y71: =X71-T71 -> 0
A72: z | K72: 12 | L72: 0 | M72: =IFERROR(VLOOKUP(F72,Таблица1[[#All],[АСТРА]:[коэф]],7,0),"0") -> 0 | N72: 0 | Q72: 0 | T72: 0 | X72: 0 | Y72: 0
A73: z | K73: 13 | L73: 0 | M73: =IFERROR(VLOOKUP(F73,Таблица1[[#All],[АСТРА]:[коэф]],7,0),"0") -> 0 | N73: 0 | Q73: 0 | T73: 0 | X73: 0 | Y73: 0
A74: z | K74: 14 | L74: 0 | M74: =IFERROR(VLOOKUP(F74,Таблица1[[#All],[АСТРА]:[коэф]],7,0),"0") -> 0 | N74: 0 | Q74: 0 | T74: 0 | X74: 0 | Y74: 0
A75: z | K75: 15 | L75: 0 | M75: =IFERROR(VLOOKUP(F75,Таблица1[[#All],[АСТРА]:[коэф]],7,0),"0") -> 0 | N75: 0 | Q75: 0 | T75: 0 | X75: 0 | Y75: 0
A76: z | K76: 16 | L76: 0 | M76: =IFERROR(VLOOKUP(F76,Таблица1[[#All],[АСТРА]:[коэф]],7,0),"0") -> 0 | N76: 0 | Q76: 0 | T76: 0 | X76: 0 | Y76: 0
A77: z | K77: 17 | L77: 0 | M77: =IFERROR(VLOOKUP(F77,Таблица1[[#All],[АСТРА]:[коэф]],7,0),"0") -> 0 | N77: 0 | Q77: 0 | T77: 0 | X77: 0 | Y77: 0
A78: z | K78: 18 | L78: 0 | M78: =IFERROR(VLOOKUP(F78,Таблица1[[#All],[АСТРА]:[коэф]],7,0),"0") -> 0 | N78: 0 | Q78: 0 | T78: 0 | X78: 0 | Y78: 0
A79: z | K79: 19 | L79: 0 | M79: =IFERROR(VLOOKUP(F79,Таблица1[[#All],[АСТРА]:[коэф]],7,0),"0") -> 0 | N79: 0 | Q79: 0 | T79: 0 | X79: 0 | Y79: 0
A80: z | K80: 20 | L80: 0 | M80: =IFERROR(VLOOKUP(F80,Таблица1[[#All],[АСТРА]:[коэф]],7,0),"0") -> 0 | N80: 0 | Q80: 0 | T80: 0 | X80: 0 | Y80: 0
A81: z | K81: 21 | L81: 0 | M81: =IFERROR(VLOOKUP(F81,Таблица1[[#All],[АСТРА]:[коэф]],7,0),"0") -> 0 | N81: 0 | Q81: 0 | T81: 0 | X81: 0 | Y81: 0
A82: z | K82: 22 | L82: 0 | M82: =IFERROR(VLOOKUP(F82,Таблица1[[#All],[АСТРА]:[коэф]],7,0),"0") -> 0 | N82: 0 | Q82: 0 | T82: 0 | X82: 0 | Y82: 0
A83: z | K83: 23 | L83: 0 | M83: =IFERROR(VLOOKUP(F83,Таблица1[[#All],[АСТРА]:[коэф]],7,0),"0") -> 0 | N83: 0 | Q83: 0 | T83: 0 | X83: 0 | Y83: 0
A84: z | K84: 24 | L84: 0 | M84: =IFERROR(VLOOKUP(F84,Таблица1[[#All],[АСТРА]:[коэф]],7,0),"0") -> 0 | N84: 0 | Q84: 0 | T84: 0 | X84: 0 | Y84: 0
A85: z | K85: 25 | L85: 0 | M85: =IFERROR(VLOOKUP(F85,Таблица1[[#All],[АСТРА]:[коэф]],7,0),"0") -> 0 | N85: 0 | Q85: 0 | T85: 0 | X85: 0 | Y85: 0
A86: z | K86: 26 | L86: 0 | M86: =IFERROR(VLOOKUP(F86,Таблица1[[#All],[АСТРА]:[коэф]],7,0),"0") -> 0 | N86: 0 | Q86: 0 | T86: 0 | X86: 0 | Y86: 0
A87: z | K87: 27 | L87: 0 | M87: =IFERROR(VLOOKUP(F87,Таблица1[[#All],[АСТРА]:[коэф]],7,0),"0") -> 0 | N87: 0 | Q87: 0 | T87: 0 | X87: 0 | Y87: 0
A88: z | K88: 28 | L88: 0 | M88: =IFERROR(VLOOKUP(F88,Таблица1[[#All],[АСТРА]:[коэф]],7,0),"0") -> 0 | N88: 0 | Q88: 0 | T88: 0 | X88: 0 | Y88: 0
A89: z | K89: 29 | L89: 0 | M89: =IFERROR(VLOOKUP(F89,Таблица1[[#All],[АСТРА]:[коэф]],7,0),"0") -> 0 | N89: 0 | Q89: 0 | T89: 0 | X89: 0 | Y89: 0
A90: z | K90: 30 | L90: 0 | M90: =IFERROR(VLOOKUP(F90,Таблица1[[#All],[АСТРА]:[коэф]],7,0),"0") -> 0 | N90: 0 | Q90: 0 | T90: 0 | X90: 0 | Y90: 0
A91: z | K91: 31 | L91: 0 | M91: =IFERROR(VLOOKUP(F91,Таблица1[[#All],[АСТРА]:[коэф]],7,0),"0") -> 0 | N91: 0 | Q91: 0 | T91: 0 | X91: 0 | Y91: 0
A92: z | K92: 32 | L92: 0 | M92: =IFERROR(VLOOKUP(F92,Таблица1[[#All],[АСТРА]:[коэф]],7,0),"0") -> 0 | N92: 0 | Q92: 0 | T92: 0 | X92: 0 | Y92: 0
A93: z | K93: 33 | L93: 0 | M93: =IFERROR(VLOOKUP(F93,Таблица1[[#All],[АСТРА]:[коэф]],7,0),"0") -> 0 | N93: 0 | Q93: 0 | T93: 0 | X93: 0 | Y93: 0
A94: z | K94: 34 | L94: 0 | M94: =IFERROR(VLOOKUP(F94,Таблица1[[#All],[АСТРА]:[коэф]],7,0),"0") -> 0 | N94: 0 | Q94: 0 | T94: 0 | X94: 0 | Y94: 0
A95: z | K95: 35 | L95: 0 | M95: =IFERROR(VLOOKUP(F95,Таблица1[[#All],[АСТРА]:[коэф]],7,0),"0") -> 0 | N95: 0 | Q95: 0 | T95: 0 | X95: 0 | Y95: 0 | AC95: =SUMIFS(J8:J57,H8:H57,"=Труба 25х25 чм, 1.5 мм") -> 0 | AD95: Труба 25х25х1,5 | AF95: 1.5 | AG95: 2.22 | AH95: 1.11
A96: z | K96: 36 | L96: 0 | M96: =IFERROR(VLOOKUP(F96,Таблица1[[#All],[АСТРА]:[коэф]],7,0),"0") -> 0 | N96: 0 | Q96: 0 | T96: 0 | X96: 0 | Y96: 0 | AC96: =SUMIFS(J8:J57,H8:H57,"=Труба 25х25 чм, 2.0 мм") -> 0 | AD96: Труба 25х25х2 | AF96: 2 | AG96: 3.096 | AH96: 1.548
A97: z | K97: 37 | L97: 0 | M97: =IFERROR(VLOOKUP(F97,Таблица1[[#All],[АСТРА]:[коэф]],7,0),"0") -> 0 | N97: 0 | Q97: 0 | T97: 0 | X97: 0 | Y97: 0 | AC97: =SUMIFS(J8:J57,H8:H57,"=Труба 25х28 чм, 1.5 мм") -> 0 | AD97: Труба 25х28х1,5 | AF97: 1.5 | AG97: 2.6 | AH97: 1.3
A98: z | K98: 38 | L98: 0 | M98: =IFERROR(VLOOKUP(F98,Таблица1[[#All],[АСТРА]:[коэф]],7,0),"0") -> 0 | N98: 0 | Q98: 0 | T98: 0 | X98: 0 | Y98: 0 | AC98: =SUMIFS(J8:J57,H8:H57,"=Труба 25х28 чм, 2.0 мм") -> 0 | AD98: Труба 25х28х2 | AF98: 2
A99: z | K99: 39 | L99: 0 | M99: =IFERROR(VLOOKUP(F99,Таблица1[[#All],[АСТРА]:[коэф]],7,0),"0") -> 0 | N99: 0 | Q99: 0 | T99: 0 | X99: 0 | Y99: 0 | AC99: =SUMIFS(J8:J57,H8:H57,"=Труба 25х50 чм, 1.2 мм") -> 0 | AD99: Труба 25х50х1,2 | AF99: 1.2 | AG99: 2.7 | AH99: 1.35
A100: z | K100: 40 | L100: 0 | M100: =IFERROR(VLOOKUP(F100,Таблица1[[#All],[АСТРА]:[коэф]],7,0),"0") -> 0 | N100: 0 | Q100: 0 | T100: 0 | X100: 0 | Y100: 0 | AC100: =SUMIFS(J8:J57,H8:H57,"=Труба 30х15 чм, 1.2 мм") -> 0 | AD100: Труба 30х15х1,2 | AF100: 1.2 | AG100: 1.566 | AH100: 0.783
A101: z | K101: 41 | L101: 0 | M101: =IFERROR(VLOOKUP(F101,Таблица1[[#All],[АСТРА]:[коэф]],7,0),"0") -> 0 | N101: 0 | Q101: 0 | T101: 0 | X101: 0 | Y101: 0 | AC101: =SUMIFS(J8:J57,H8:H57,"=Труба 30х20 чм, 1.0 мм") -> 0 | AD101: Труба 30х20х1 | AF101: 1 | AG101: 1.572 | AH101: 0.786
A102: z | K102: 42 | L102: 0 | M102: =IFERROR(VLOOKUP(F102,Таблица1[[#All],[АСТРА]:[коэф]],7,0),"0") -> 0 | N102: 0 | Q102: 0 | T102: 0 | X102: 0 | Y102: 0 | AC102: =SUMIFS(J8:J57,H8:H57,"=Труба 30х50 чм, 2.0 мм") -> 0 | AD102: Труба 30х50х2 | AF102: 2 | AG102: 4.89 | AH102: 2.449
A103: z | K103: 43 | L103: 0 | M103: =IFERROR(VLOOKUP(F103,Таблица1[[#All],[АСТРА]:[коэф]],7,0),"0") -> 0 | N103: 0 | Q103: 0 | T103: 0 | X103: 0 | Y103: 0 | AC103: =SUMIFS(J8:J57,H8:H57,"=Труба 40х20 чм, 1.0 мм") -> 0 | AD103: Труба 40х20х1 | AF103: 1 | AG103: 1.884 | AH103: 0.942
A104: z | K104: 44 | L104: 0 | M104: =IFERROR(VLOOKUP(F104,Таблица1[[#All],[АСТРА]:[коэф]],7,0),"0") -> 0 | N104: 0 | Q104: 0 | T104: 0 | X104: 0 | Y104: 0 | AC104: =SUMIFS(J8:J57,H8:H57,"=Труба 40х20 чм, 1.5 мм") -> 0 | AD104: Труба 40х20х1,5 | AF104: 1.5 | AG104: 2.88 | AH104: 1.44
A105: z | K105: 45 | L105: 0 | M105: =IFERROR(VLOOKUP(F105,Таблица1[[#All],[АСТРА]:[коэф]],7,0),"0") -> 0 | N105: 0 | Q105: 0 | T105: 0 | X105: 0 | Y105: 0 | AC105: =SUMIFS(J8:J57,H8:H57,"=Труба 40х20 чм, 2.0 мм") -> 0 | AD105: Труба 40х20х2 | AF105: 2 | AG105: 3.4 | AH105: 1.7
A106: z | K106: 46 | L106: 0 | M106: =IFERROR(VLOOKUP(F106,Таблица1[[#All],[АСТРА]:[коэф]],7,0),"0") -> 0 | N106: 0 | Q106: 0 | T106: 0 | X106: 0 | Y106: 0 | AC106: =SUMIFS(J8:J57,H8:H57,"=Труба 40х25 чм, 2.0 мм") -> 0 | AD106: Труба 40х25х | AF106: 2 | AG106: 4.08 | AH106: 2.04
A107: z | K107: 47 | L107: 0 | M107: =IFERROR(VLOOKUP(F107,Таблица1[[#All],[АСТРА]:[коэф]],7,0),"0") -> 0 | N107: 0 | Q107: 0 | T107: 0 | X107: 0 | Y107: 0 | AC107: =SUMIFS(J8:J57,H8:H57,"=Труба 40х40 чм, 2.0 мм") -> 0 | AD107: Труба 40х40х2 | AF107: 2 | AG107: 5.08 | AH107: 2.54
A108: z | K108: 48 | L108: 0 | M108: =IFERROR(VLOOKUP(F108,Таблица1[[#All],[АСТРА]:[коэф]],7,0),"0") -> 0 | N108: 0 | Q108: 0 | T108: 0 | X108: 0 | Y108: 0 | AC108: =SUMIFS(J8:J57,H8:H57,"=Труба 60х30 чм, 2.0 мм") -> 0 | AD108: Труба 60х30х2 | AF108: 2 | AG108: 5.3 | AH108: 2.65
A109: z | K109: 49 | L109: 0 | M109: =IFERROR(VLOOKUP(F109,Таблица1[[#All],[АСТРА]:[коэф]],7,0),"0") -> 0 | N109: 0 | Q109: 0 | T109: 0 | X109: 0 | Y109: 0 | AD109: Труба ø 32,5х3 | AF109: 3 | AG109: 4.316 | AH109: 2.158
A110: z | K110: 50 | L110: 0 | M110: =IFERROR(VLOOKUP(F110,Таблица1[[#All],[АСТРА]:[коэф]],7,0),"0") -> 0 | N110: 0 | Q110: 0 | T110: 0 | X110: 0 | Y110: 0 | AD110: Труба ø 30х15 | AF110: 1.5 | AG110: 1.918 | AH110: 0.959
A111: z | K111: 51 | L111: 0 | M111: =IFERROR(VLOOKUP(F111,Таблица1[[#All],[АСТРА]:[коэф]],7,0),"0") -> 0 | N111: 0 | Q111: 0 | T111: 0 | X111: 0 | Y111: 0 | AC111: =SUMIFS(J8:J57,H8:H57,"=Труба 20 чм, 1.0 мм") -> 0 | AD111: Труба ø 20х1 | AF111: 1 | AG111: 0.98 | AH111: 0.49
A112: z | K112: 52 | L112: 0 | M112: =IFERROR(VLOOKUP(F112,Таблица1[[#All],[АСТРА]:[коэф]],7,0),"0") -> 0 | N112: 0 | Q112: 0 | T112: 0 | X112: 0 | Y112: 0 | AC112: =SUMIFS(J8:J57,H8:H57,"=Труба 25 чм, 1.5 мм") -> 0 | AD112: Труба ø 25х1,5 | AF112: 1.5 | AG112: 1.86 | AH112: 0.93
A113: z | K113: 53 | L113: 0 | M113: =IFERROR(VLOOKUP(F113,Таблица1[[#All],[АСТРА]:[коэф]],7,0),"0") -> 0 | N113: 0 | Q113: 0 | T113: 0 | X113: 0 | Y113: 0 | AC113: =SUMIFS(J8:J57,H8:H57,"=Труба 50 чм, 1.2 мм") -> 0 | AD113: Труба ø50х1.2 | AF113: 1.2 | AG113: 2.88 | AH113: 1.44
A114: z | K114: 54 | L114: 0 | M114: =IFERROR(VLOOKUP(F114,Таблица1[[#All],[АСТРА]:[коэф]],7,0),"0") -> 0 | N114: 0 | Q114: 0 | T114: 0 | X114: 0 | Y114: 0 | AD114: Труба ДУ15 | AF114: 3 | AG114: 2.32 | AH114: 1.16
A115: z | K115: 55 | L115: 0 | M115: =IFERROR(VLOOKUP(F115,Таблица1[[#All],[АСТРА]:[коэф]],7,0),"0") -> 0 | N115: 0 | Q115: 0 | T115: 0 | X115: 0 | Y115: 0
N116: =SUM(N61:N115) -> 170.2756 | Q116: =SUM(Q61:Q115) -> 2.34432003 | T116: =SUM(T61:T115) -> 162.9144027 | X116: =SUM(X61:X115) -> 167.93128 | Y116: =SUM(Y61:Y115) -> 5.016877246
I118: получить | O118: остаток | S118: детали | Y118: расход | AB118: лом
B119: № п/п | D119: Длина целых мм | F119: Кол-во труб | G119: Толщина мм | H119: Марка материала | I119: Масса целых кг | J119: Масса деловых кг | M119: Резы | N119: Общая кг | O119: Деловой остаток с целых кг | P119: Деловой остаок с деловых кг | Q119: Общая кг | R119: ЛОМ кг | S119: Масса деталей целых кг | T119: Масса деталей деловых кг | U119: Общая кг | Y119: Расход целых кг | Z119: Расход деловых кг | AA119: Общий кг | AB119: ЛОМ дубль кг | AC119: отход на порезку | AD119: лом чистый целых | AE119: лом чистый деловых | AO119: коэф 2м
A120: z | F120: копия | G120: копия
A121: z | B121: Столбец1 | C121: Столбец2 | D121: Дл | E121: Столбец4 | F121: со.склада.шт. | G121: Толщ.копия | H121: Столбец5 | I121: Столбец8 | J121: Столбец9 | K121: Столбец10 | L121: Столбец6 | M121: резы | N121: Столбец12 | O121: Столбец13 | P121: Столбец14 | Q121: Столбец15 | R121: Столбец16 | S121: Столбец17 | T121: Столбец18 | U121: Столбец19 | V121: Столбец20 | W121: Столбец21 | X121: Столбец22 | Y121: Столбец23 | Z121: Столбец24 | AA121: Столбец25 | AB121: Столбец26 | AC121: Столбец27 | AD121: Столбец28 | AE121: Столбец29 | AF121: шир.рез | AG121: ГОСТ | AH121: Для.дано | AI121: АСТРА | AJ121: Столбец33 | AK121: Столбец34 | AL121: профиль | AM121: толщ | AN121: точка | AO121: коэф
A122: =IF(Таблица1[[#This Row],[Столбец19]]=0,"z","") -> z | D122: 3000 | F122: =SUMIFS($G$61:$G$115,$D$61:$D$115,500,$C$61:$C$115,Таблица1[[#This Row],[Дл]],$L$61:$L$115,Таблица1[[#This Row],[Толщ.копия]],$F$61:$F$115,Таблица1[[#This Row],[АСТРА]]) -> 0 | G122: =Таблица1[[#This Row],[толщ]] -> 12 | H122: =Таблица1[[#This Row],[ГОСТ]] -> Круг 12 | I122: =SUMIFS($N$61:$N$115,$C$61:$C$115,Таблица1[[#This Row],[Дл]],$D$61:$D$115,"=500",$L$61:$L$115,Таблица1[[#This Row],[Толщ.копия]],$F$61:$F$115,Таблица1[[#This Row],[АСТРА]]) -> 0 | J122: =SUMIFS($N$61:$N$115,$C$61:$C$115,"<"&Таблица1[[#This Row],[Дл]],$D$61:$D$115,"=500",$L$61:$L$115,Таблица1[[#This Row],[Толщ.копия]],$F$61:$F$115,Таблица1[[#This Row],[АСТРА]]) -> 0 | M122: =SUMIFS($J$8:$J$57,$K$8:$K$57,Таблица1[[#This Row],[Столбец5]]) -> 220 | N122: =Таблица1[[#This Row],[Столбец8]]+Таблица1[[#This Row],[Столбец9]] -> 0 | O122: =SUMIFS($Q$61:$Q$115,$C$61:$C$115,Таблица1[[#This Row],[Дл]],$D$61:$D$115,"=500",$L$61:$L$115,Таблица1[[#This Row],[Толщ.копия]],$F$61:$F$115,Таблица1[[#This Row],[АСТРА]]) -> 0 | P122: =SUMIFS($Q$61:$Q$115,$C$61:$C$115,"<"&Таблица1[[#This Row],[Дл]],$D$61:$D$115,"=500",$L$61:$L$115,Таблица1[[#This Row],[Толщ.копия]],$F$61:$F$115,Таблица1[[#This Row],[АСТРА]]) -> 0 | Q122: =Таблица1[[#This Row],[Столбец13]]+Таблица1[[#This Row],[Столбец14]] -> 0 | R122: =Таблица1[[#This Row],[Столбец28]]+Таблица1[[#This Row],[Столбец29]]-Таблица1[[#This Row],[Столбец27]] -> -0.9768 | S122: =SUMIFS($T$61:$T$115,$C$61:$C$115,Таблица1[[#This Row],[Дл]],$D$61:$D$115,"=500",$L$61:$L$115,Таблица1[[#This Row],[Толщ.копия]],$F$61:$F$115,Таблица1[[#This Row],[АСТРА]]) -> 0 | T122: =SUMIFS($T$61:$T$115,$C$61:$C$115,"<"&Таблица1[[#This Row],[Дл]],$D$61:$D$115,"=500",$L$61:$L$115,Таблица1[[#This Row],[Толщ.копия]],$F$61:$F$115,Таблица1[[#This Row],[АСТРА]]) -> 0 | U122: =Таблица1[[#This Row],[Столбец17]]+Таблица1[[#This Row],[Столбец18]] -> 0 | Y122: =SUMIFS($X$61:$X$115,$C$61:$C$115,Таблица1[[#This Row],[Дл]],$D$61:$D$115,"=500",$L$61:$L$115,Таблица1[[#This Row],[Толщ.копия]],$F$61:$F$115,Таблица1[[#This Row],[АСТРА]]) -> 0 | Z122: =SUMIFS($X$61:$X$115,$C$61:$C$115,"<"&Таблица1[[#This Row],[Дл]],$D$61:$D$115,"=500",$L$61:$L$115,Таблица1[[#This Row],[Толщ.копия]],$F$61:$F$115,Таблица1[[#This Row],[АСТРА]]) -> 0 | AA122: =Таблица1[[#This Row],[Столбец23]]+Таблица1[[#This Row],[Столбец24]] -> 0 | AB122: =Таблица1[[#This Row],[Столбец28]]+Таблица1[[#This Row],[Столбец29]]-Таблица1[[#This Row],[Столбец27]] -> -0.9768 | AC122: =Таблица1[[#This Row],[резы]]*Таблица1[[#This Row],[шир.рез]]/1000*Таблица1[[#This Row],[коэф]]/2 -> 0.9768 | AD122: =SUMIFS($Y$61:$Y$115,$C$61:$C$115,Таблица1[[#This Row],[Дл]],$D$61:$D$115,"=500",$L$61:$L$115,Таблица1[[#This Row],[Толщ.копия]],$F$61:$F$115,Таблица1[[#This Row],[АСТРА]]) -> 0 | AE122: =SUMIFS($Y$61:$Y$115,$C$61:$C$115,"<"&Таблица1[[#This Row],[Дл]],$D$61:$D$115,"=500",$L$61:$L$115,Таблица1[[#This Row],[Толщ.копия]],$F$61:$F$115,Таблица1[[#This Row],[АСТРА]]) -> 0 | AF122: 5 | AG122: =IF(Таблица1[[#This Row],[профиль]]=Таблица1[[#This Row],[толщ]],CONCATENATE(Таблица1[[#This Row],[Столбец33]]," ",Таблица1[[#This Row],[толщ]]),CONCATENATE(Таблица1[[#This Row],[Столбец33]]," ",Таблица1[[#This Row],[профиль]],"х",Таблица1[[#This Row],[толщ]])) -> Круг 12 | AH122: =CONCATENATE(Таблица1[[#This Row],[Столбец33]]," ",Таблица1[[#This Row],[профиль]]) -> Круг 12 | AI122: Круг 12 мм, 12.0 мм, кр12 | AJ122: Круг | AK122: =IF(Таблица1[[#This Row],[профиль]]=Таблица1[[#This Row],[толщ]],Таблица1[[#This Row],[толщ]],CONCATENATE(Таблица1[[#This Row],[профиль]],"х",Таблица1[[#This Row],[точка]])) -> 12 | AL122: 12 | AM122: 12 | AN122: =SUBSTITUTE(Таблица1[[#This Row],[толщ]],",",".") -> 12 | AO122: 1.776
A123: =IF(Таблица1[[#This Row],[Столбец19]]=0,"z","") -> z | D123: 6000 | F123: =SUMIFS($G$61:$G$115,$D$61:$D$115,500,$C$61:$C$115,Таблица1[[#This Row],[Дл]],$L$61:$L$115,Таблица1[[#This Row],[Толщ.копия]],$F$61:$F$115,Таблица1[[#This Row],[АСТРА]]) -> 0 | G123: =Таблица1[[#This Row],[толщ]] -> 1 | H123: =Таблица1[[#This Row],[ГОСТ]] -> Труба 10х10х1 | I123: =SUMIFS($N$61:$N$115,$C$61:$C$115,Таблица1[[#This Row],[Дл]],$D$61:$D$115,"=500",$L$61:$L$115,Таблица1[[#This Row],[Толщ.копия]],$F$61:$F$115,Таблица1[[#This Row],[АСТРА]]) -> 0 | J123: =SUMIFS($N$61:$N$115,$C$61:$C$115,"<"&Таблица1[[#This Row],[Дл]],$D$61:$D$115,"=500",$L$61:$L$115,Таблица1[[#This Row],[Толщ.копия]],$F$61:$F$115,Таблица1[[#This Row],[АСТРА]]) -> 0 | M123: =SUMIFS($J$8:$J$57,$K$8:$K$57,Таблица1[[#This Row],[Столбец5]]) -> 220 | N123: =Таблица1[[#This Row],[Столбец8]]+Таблица1[[#This Row],[Столбец9]] -> 0 | O123: =SUMIFS($Q$61:$Q$115,$C$61:$C$115,Таблица1[[#This Row],[Дл]],$D$61:$D$115,"=500",$L$61:$L$115,Таблица1[[#This Row],[Толщ.копия]],$F$61:$F$115,Таблица1[[#This Row],[АСТРА]]) -> 0 | P123: =SUMIFS($Q$61:$Q$115,$C$61:$C$115,"<"&Таблица1[[#This Row],[Дл]],$D$61:$D$115,"=500",$L$61:$L$115,Таблица1[[#This Row],[Толщ.копия]],$F$61:$F$115,Таблица1[[#This Row],[АСТРА]]) -> 0 | Q123: =Таблица1[[#This Row],[Столбец13]]+Таблица1[[#This Row],[Столбец14]] -> 0 | R123: =Таблица1[[#This Row],[Столбец28]]+Таблица1[[#This Row],[Столбец29]]-Таблица1[[#This Row],[Столбец27]] -> -0.297 | S123: =SUMIFS($T$61:$T$115,$C$61:$C$115,Таблица1[[#This Row],[Дл]],$D$61:$D$115,"=500",$L$61:$L$115,Таблица1[[#This Row],[Толщ.копия]],$F$61:$F$115,Таблица1[[#This Row],[АСТРА]]) -> 0 | T123: =SUMIFS($T$61:$T$115,$C$61:$C$115,"<"&Таблица1[[#This Row],[Дл]],$D$61:$D$115,"=500",$L$61:$L$115,Таблица1[[#This Row],[Толщ.копия]],$F$61:$F$115,Таблица1[[#This Row],[АСТРА]]) -> 0 | U123: =Таблица1[[#This Row],[Столбец17]]+Таблица1[[#This Row],[Столбец18]] -> 0 | Y123: =SUMIFS($X$61:$X$115,$C$61:$C$115,Таблица1[[#This Row],[Дл]],$D$61:$D$115,"=500",$L$61:$L$115,Таблица1[[#This Row],[Толщ.копия]],$F$61:$F$115,Таблица1[[#This Row],[АСТРА]]) -> 0 | Z123: =SUMIFS($X$61:$X$115,$C$61:$C$115,"<"&Таблица1[[#This Row],[Дл]],$D$61:$D$115,"=500",$L$61:$L$115,Таблица1[[#This Row],[Толщ.копия]],$F$61:$F$115,Таблица1[[#This Row],[АСТРА]]) -> 0 | AA123: =Таблица1[[#This Row],[Столбец23]]+Таблица1[[#This Row],[Столбец24]] -> 0 | AB123: =Таблица1[[#This Row],[Столбец28]]+Таблица1[[#This Row],[Столбец29]]-Таблица1[[#This Row],[Столбец27]] -> -0.297 | AC123: =Таблица1[[#This Row],[резы]]*Таблица1[[#This Row],[шир.рез]]/1000*Таблица1[[#This Row],[коэф]]/2 -> 0.297 | AD123: =SUMIFS($Y$61:$Y$115,$C$61:$C$115,Таблица1[[#This Row],[Дл]],$D$61:$D$115,"=500",$L$61:$L$115,Таблица1[[#This Row],[Толщ.копия]],$F$61:$F$115,Таблица1[[#This Row],[АСТРА]]) -> 0 | AE123: =SUMIFS($Y$61:$Y$115,$C$61:$C$115,"<"&Таблица1[[#This Row],[Дл]],$D$61:$D$115,"=500",$L$61:$L$115,Таблица1[[#This Row],[Толщ.копия]],$F$61:$F$115,Таблица1[[#This Row],[АСТРА]]) -> 0 | AF123: 5 | AG123: =IF(Таблица1[[#This Row],[профиль]]=Таблица1[[#This Row],[толщ]],CONCATENATE(Таблица1[[#This Row],[Столбец33]]," ",Таблица1[[#This Row],[толщ]]),CONCATENATE(Таблица1[[#This Row],[Столбец33]]," ",Таблица1[[#This Row],[профиль]],"х",Таблица1[[#This Row],[толщ]])) -> Труба 10х10х1 | AH123: =CONCATENATE(Таблица1[[#This Row],[Столбец33]]," ",Таблица1[[#This Row],[профиль]]) -> Труба 10х10 | AI123: Труба 10х10, 1.0 мм, тр1010 | AJ123: Труба | AK123: =IF(Таблица1[[#This Row],[профиль]]=Таблица1[[#This Row],[толщ]],Таблица1[[#This Row],[толщ]],CONCATENATE(Таблица1[[#This Row],[профиль]],"х",Таблица1[[#This Row],[точка]])) -> 10х10х1 | AL123: 10х10 | AM123: 1 | AN123: =SUBSTITUTE(Таблица1[[#This Row],[толщ]],",",".") -> 1 | AO123: 0.54
A124: =IF(Таблица1[[#This Row],[Столбец19]]=0,"z","") -> z | D124: 6000 | F124: =SUMIFS($G$61:$G$115,$D$61:$D$115,500,$C$61:$C$115,Таблица1[[#This Row],[Дл]],$L$61:$L$115,Таблица1[[#This Row],[Толщ.копия]],$F$61:$F$115,Таблица1[[#This Row],[АСТРА]]) -> 0 | G124: =Таблица1[[#This Row],[толщ]] -> 1 | H124: =Таблица1[[#This Row],[ГОСТ]] -> Труба 20х20х1 | I124: =SUMIFS($N$61:$N$115,$C$61:$C$115,Таблица1[[#This Row],[Дл]],$D$61:$D$115,"=500",$L$61:$L$115,Таблица1[[#This Row],[Толщ.копия]],$F$61:$F$115,Таблица1[[#This Row],[АСТРА]]) -> 0 | J124: =SUMIFS($N$61:$N$115,$C$61:$C$115,"<"&Таблица1[[#This Row],[Дл]],$D$61:$D$115,"=500",$L$61:$L$115,Таблица1[[#This Row],[Толщ.копия]],$F$61:$F$115,Таблица1[[#This Row],[АСТРА]]) -> 0 | M124: =SUMIFS($J$8:$J$57,$K$8:$K$57,Таблица1[[#This Row],[Столбец5]]) -> 0 | N124: =Таблица1[[#This Row],[Столбец8]]+Таблица1[[#This Row],[Столбец9]] -> 0 | O124: =SUMIFS($Q$61:$Q$115,$C$61:$C$115,Таблица1[[#This Row],[Дл]],$D$61:$D$115,"=500",$L$61:$L$115,Таблица1[[#This Row],[Толщ.копия]],$F$61:$F$115,Таблица1[[#This Row],[АСТРА]]) -> 0 | P124: =SUMIFS($Q$61:$Q$115,$C$61:$C$115,"<"&Таблица1[[#This Row],[Дл]],$D$61:$D$115,"=500",$L$61:$L$115,Таблица1[[#This Row],[Толщ.копия]],$F$61:$F$115,Таблица1[[#This Row],[АСТРА]]) -> 0 | Q124: =Таблица1[[#This Row],[Столбец13]]+Таблица1[[#This Row],[Столбец14]] -> 0 | R124: =Таблица1[[#This Row],[Столбец28]]+Таблица1[[#This Row],[Столбец29]]-Таблица1[[#This Row],[Столбец27]] -> 0 | S124: =SUMIFS($T$61:$T$115,$C$61:$C$115,Таблица1[[#This Row],[Дл]],$D$61:$D$115,"=500",$L$61:$L$115,Таблица1[[#This Row],[Толщ.копия]],$F$61:$F$115,Таблица1[[#This Row],[АСТРА]]) -> 0 | T124: =SUMIFS($T$61:$T$115,$C$61:$C$115,"<"&Таблица1[[#This Row],[Дл]],$D$61:$D$115,"=500",$L$61:$L$115,Таблица1[[#This Row],[Толщ.копия]],$F$61:$F$115,Таблица1[[#This Row],[АСТРА]]) -> 0 | U124: =Таблица1[[#This Row],[Столбец17]]+Таблица1[[#This Row],[Столбец18]] -> 0 | Y124: =SUMIFS($X$61:$X$115,$C$61:$C$115,Таблица1[[#This Row],[Дл]],$D$61:$D$115,"=500",$L$61:$L$115,Таблица1[[#This Row],[Толщ.копия]],$F$61:$F$115,Таблица1[[#This Row],[АСТРА]]) -> 0 | Z124: =SUMIFS($X$61:$X$115,$C$61:$C$115,"<"&Таблица1[[#This Row],[Дл]],$D$61:$D$115,"=500",$L$61:$L$115,Таблица1[[#This Row],[Толщ.копия]],$F$61:$F$115,Таблица1[[#This Row],[АСТРА]]) -> 0 | AA124: =Таблица1[[#This Row],[Столбец23]]+Таблица1[[#This Row],[Столбец24]] -> 0 | AB124: =Таблица1[[#This Row],[Столбец28]]+Таблица1[[#This Row],[Столбец29]]-Таблица1[[#This Row],[Столбец27]] -> 0 | AC124: =Таблица1[[#This Row],[резы]]*Таблица1[[#This Row],[шир.рез]]/1000*Таблица1[[#This Row],[коэф]]/2 -> 0 | AD124: =SUMIFS($Y$61:$Y$115,$C$61:$C$115,Таблица1[[#This Row],[Дл]],$D$61:$D$115,"=500",$L$61:$L$115,Таблица1[[#This Row],[Толщ.копия]],$F$61:$F$115,Таблица1[[#This Row],[АСТРА]]) -> 0 | AE124: =SUMIFS($Y$61:$Y$115,$C$61:$C$115,"<"&Таблица1[[#This Row],[Дл]],$D$61:$D$115,"=500",$L$61:$L$115,Таблица1[[#This Row],[Толщ.копия]],$F$61:$F$115,Таблица1[[#This Row],[АСТРА]]) -> 0 | AF124: 5 | AG124: =IF(Таблица1[[#This Row],[профиль]]=Таблица1[[#This Row],[толщ]],CONCATENATE(Таблица1[[#This Row],[Столбец33]]," ",Таблица1[[#This Row],[толщ]]),CONCATENATE(Таблица1[[#This Row],[Столбец33]]," ",Таблица1[[#This Row],[профиль]],"х",Таблица1[[#This Row],[толщ]])) -> Труба 20х20х1 | AH124: =CONCATENATE(Таблица1[[#This Row],[Столбец33]]," ",Таблица1[[#This Row],[профиль]]) -> Труба 20х20 | AI124: Труба 20х20 чм, 1.0 мм | AJ124: Труба | AK124: =IF(Таблица1[[#This Row],[профиль]]=Таблица1[[#This Row],[толщ]],Таблица1[[#This Row],[толщ]],CONCATENATE(Таблица1[[#This Row],[профиль]],"х",Таблица1[[#This Row],[точка]])) -> 20х20х1 | AL124: 20х20 | AM124: 1 | AN124: =SUBSTITUTE(Таблица1[[#This Row],[толщ]],",",".") -> 1 | AO124: 1.248
A125: =IF(Таблица1[[#This Row],[Столбец19]]=0,"z","") -> z | D125: 6000 | F125: =SUMIFS($G$61:$G$115,$D$61:$D$115,500,$C$61:$C$115,Таблица1[[#This Row],[Дл]],$L$61:$L$115,Таблица1[[#This Row],[Толщ.копия]],$F$61:$F$115,Таблица1[[#This Row],[АСТРА]]) -> 0 | G125: =Таблица1[[#This Row],[толщ]] -> 1.5 | H125: =Таблица1[[#This Row],[ГОСТ]] -> Труба 20х20х1,5 | I125: =SUMIFS($N$61:$N$115,$C$61:$C$115,Таблица1[[#This Row],[Дл]],$D$61:$D$115,"=500",$L$61:$L$115,Таблица1[[#This Row],[Толщ.копия]],$F$61:$F$115,Таблица1[[#This Row],[АСТРА]]) -> 0 | J125: =SUMIFS($N$61:$N$115,$C$61:$C$115,"<"&Таблица1[[#This Row],[Дл]],$D$61:$D$115,"=500",$L$61:$L$115,Таблица1[[#This Row],[Толщ.копия]],$F$61:$F$115,Таблица1[[#This Row],[АСТРА]]) -> 0 | M125: =SUMIFS($J$8:$J$57,$K$8:$K$57,Таблица1[[#This Row],[Столбец5]]) -> 0 | N125: =Таблица1[[#This Row],[Столбец8]]+Таблица1[[#This Row],[Столбец9]] -> 0 | O125: =SUMIFS($Q$61:$Q$115,$C$61:$C$115,Таблица1[[#This Row],[Дл]],$D$61:$D$115,"=500",$L$61:$L$115,Таблица1[[#This Row],[Толщ.копия]],$F$61:$F$115,Таблица1[[#This Row],[АСТРА]]) -> 0 | P125: =SUMIFS($Q$61:$Q$115,$C$61:$C$115,"<"&Таблица1[[#This Row],[Дл]],$D$61:$D$115,"=500",$L$61:$L$115,Таблица1[[#This Row],[Толщ.копия]],$F$61:$F$115,Таблица1[[#This Row],[АСТРА]]) -> 0 | Q125: =Таблица1[[#This Row],[Столбец13]]+Таблица1[[#This Row],[Столбец14]] -> 0 | R125: =Таблица1[[#This Row],[Столбец28]]+Таблица1[[#This Row],[Столбец29]]-Таблица1[[#This Row],[Столбец27]] -> 0 | S125: =SUMIFS($T$61:$T$115,$C$61:$C$115,Таблица1[[#This Row],[Дл]],$D$61:$D$115,"=500",$L$61:$L$115,Таблица1[[#This Row],[Толщ.копия]],$F$61:$F$115,Таблица1[[#This Row],[АСТРА]]) -> 0 | T125: =SUMIFS($T$61:$T$115,$C$61:$C$115,"<"&Таблица1[[#This Row],[Дл]],$D$61:$D$115,"=500",$L$61:$L$115,Таблица1[[#This Row],[Толщ.копия]],$F$61:$F$115,Таблица1[[#This Row],[АСТРА]]) -> 0 | U125: =Таблица1[[#This Row],[Столбец17]]+Таблица1[[#This Row],[Столбец18]] -> 0 | Y125: =SUMIFS($X$61:$X$115,$C$61:$C$115,Таблица1[[#This Row],[Дл]],$D$61:$D$115,"=500",$L$61:$L$115,Таблица1[[#This Row],[Толщ.копия]],$F$61:$F$115,Таблица1[[#This Row],[АСТРА]]) -> 0 | Z125: =SUMIFS($X$61:$X$115,$C$61:$C$115,"<"&Таблица1[[#This Row],[Дл]],$D$61:$D$115,"=500",$L$61:$L$115,Таблица1[[#This Row],[Толщ.копия]],$F$61:$F$115,Таблица1[[#This Row],[АСТРА]]) -> 0 | AA125: =Таблица1[[#This Row],[Столбец23]]+Таблица1[[#This Row],[Столбец24]] -> 0 | AB125: =Таблица1[[#This Row],[Столбец28]]+Таблица1[[#This Row],[Столбец29]]-Таблица1[[#This Row],[Столбец27]] -> 0 | AC125: =Таблица1[[#This Row],[резы]]*Таблица1[[#This Row],[шир.рез]]/1000*Таблица1[[#This Row],[коэф]]/2 -> 0 | AD125: =SUMIFS($Y$61:$Y$115,$C$61:$C$115,Таблица1[[#This Row],[Дл]],$D$61:$D$115,"=500",$L$61:$L$115,Таблица1[[#This Row],[Толщ.копия]],$F$61:$F$115,Таблица1[[#This Row],[АСТРА]]) -> 0 | AE125: =SUMIFS($Y$61:$Y$115,$C$61:$C$115,"<"&Таблица1[[#This Row],[Дл]],$D$61:$D$115,"=500",$L$61:$L$115,Таблица1[[#This Row],[Толщ.копия]],$F$61:$F$115,Таблица1[[#This Row],[АСТРА]]) -> 0 | AF125: 5 | AG125: =IF(Таблица1[[#This Row],[профиль]]=Таблица1[[#This Row],[толщ]],CONCATENATE(Таблица1[[#This Row],[Столбец33]]," ",Таблица1[[#This Row],[толщ]]),CONCATENATE(Таблица1[[#This Row],[Столбец33]]," ",Таблица1[[#This Row],[профиль]],"х",Таблица1[[#This Row],[толщ]])) -> Труба 20х20х1,5 | AH125: =CONCATENATE(Таблица1[[#This Row],[Столбец33]]," ",Таблица1[[#This Row],[профиль]]) -> Труба 20х20 | AI125: Труба 20х20, 1.5 мм, ТР2020 | AJ125: Труба | AK125: =IF(Таблица1[[#This Row],[профиль]]=Таблица1[[#This Row],[толщ]],Таблица1[[#This Row],[толщ]],CONCATENATE(Таблица1[[#This Row],[профиль]],"х",Таблица1[[#This Row],[точка]])) -> 20х20х1.5 | AL125: 20х20 | AM125: 1.5 | AN125: =SUBSTITUTE(Таблица1[[#This Row],[толщ]],",",".") -> 1.5 | AO125: 1.872
A126: =IF(Таблица1[[#This Row],[Столбец19]]=0,"z","") -> z | B126: 8 | D126: 6000 | F126: =SUMIFS($G$61:$G$115,$D$61:$D$115,500,$C$61:$C$115,Таблица1[[#This Row],[Дл]],$L$61:$L$115,Таблица1[[#This Row],[Толщ.копия]],$F$61:$F$115,Таблица1[[#This Row],[АСТРА]]) -> 0 | G126: =Таблица1[[#This Row],[толщ]] -> 1.5 | H126: =Таблица1[[#This Row],[ГОСТ]] -> Труба 25х1,5 | I126: =SUMIFS($N$61:$N$115,$C$61:$C$115,Таблица1[[#This Row],[Дл]],$D$61:$D$115,"=500",$L$61:$L$115,Таблица1[[#This Row],[Толщ.копия]],$F$61:$F$115,Таблица1[[#This Row],[АСТРА]]) -> 0 | J126: =SUMIFS($N$61:$N$115,$C$61:$C$115,"<"&Таблица1[[#This Row],[Дл]],$D$61:$D$115,"=500",$L$61:$L$115,Таблица1[[#This Row],[Толщ.копия]],$F$61:$F$115,Таблица1[[#This Row],[АСТРА]]) -> 0 | M126: =SUMIFS($J$8:$J$57,$K$8:$K$57,Таблица1[[#This Row],[Столбец5]]) -> 0 | N126: =Таблица1[[#This Row],[Столбец8]]+Таблица1[[#This Row],[Столбец9]] -> 0 | O126: =SUMIFS($Q$61:$Q$115,$C$61:$C$115,Таблица1[[#This Row],[Дл]],$D$61:$D$115,"=500",$L$61:$L$115,Таблица1[[#This Row],[Толщ.копия]],$F$61:$F$115,Таблица1[[#This Row],[АСТРА]]) -> 0 | P126: =SUMIFS($Q$61:$Q$115,$C$61:$C$115,"<"&Таблица1[[#This Row],[Дл]],$D$61:$D$115,"=500",$L$61:$L$115,Таблица1[[#This Row],[Толщ.копия]],$F$61:$F$115,Таблица1[[#This Row],[АСТРА]]) -> 0 | Q126: =Таблица1[[#This Row],[Столбец13]]+Таблица1[[#This Row],[Столбец14]] -> 0 | R126: =Таблица1[[#This Row],[Столбец28]]+Таблица1[[#This Row],[Столбец29]]-Таблица1[[#This Row],[Столбец27]] -> 0 | S126: =SUMIFS($T$61:$T$115,$C$61:$C$115,Таблица1[[#This Row],[Дл]],$D$61:$D$115,"=500",$L$61:$L$115,Таблица1[[#This Row],[Толщ.копия]],$F$61:$F$115,Таблица1[[#This Row],[АСТРА]]) -> 0 | T126: =SUMIFS($T$61:$T$115,$C$61:$C$115,"<"&Таблица1[[#This Row],[Дл]],$D$61:$D$115,"=500",$L$61:$L$115,Таблица1[[#This Row],[Толщ.копия]],$F$61:$F$115,Таблица1[[#This Row],[АСТРА]]) -> 0 | U126: =Таблица1[[#This Row],[Столбец17]]+Таблица1[[#This Row],[Столбец18]] -> 0 | Y126: =SUMIFS($X$61:$X$115,$C$61:$C$115,Таблица1[[#This Row],[Дл]],$D$61:$D$115,"=500",$L$61:$L$115,Таблица1[[#This Row],[Толщ.копия]],$F$61:$F$115,Таблица1[[#This Row],[АСТРА]]) -> 0 | Z126: =SUMIFS($X$61:$X$115,$C$61:$C$115,"<"&Таблица1[[#This Row],[Дл]],$D$61:$D$115,"=500",$L$61:$L$115,Таблица1[[#This Row],[Толщ.копия]],$F$61:$F$115,Таблица1[[#This Row],[АСТРА]]) -> 0 | AA126: =Таблица1[[#This Row],[Столбец23]]+Таблица1[[#This Row],[Столбец24]] -> 0 | AB126: =Таблица1[[#This Row],[Столбец28]]+Таблица1[[#This Row],[Столбец29]]-Таблица1[[#This Row],[Столбец27]] -> 0 | AC126: =Таблица1[[#This Row],[резы]]*Таблица1[[#This Row],[шир.рез]]/1000*Таблица1[[#This Row],[коэф]]/2 -> 0 | AD126: =SUMIFS($Y$61:$Y$115,$C$61:$C$115,Таблица1[[#This Row],[Дл]],$D$61:$D$115,"=500",$L$61:$L$115,Таблица1[[#This Row],[Толщ.копия]],$F$61:$F$115,Таблица1[[#This Row],[АСТРА]]) -> 0 | AE126: =SUMIFS($Y$61:$Y$115,$C$61:$C$115,"<"&Таблица1[[#This Row],[Дл]],$D$61:$D$115,"=500",$L$61:$L$115,Таблица1[[#This Row],[Толщ.копия]],$F$61:$F$115,Таблица1[[#This Row],[АСТРА]]) -> 0 | AF126: 5 | AG126: =IF(Таблица1[[#This Row],[профиль]]=Таблица1[[#This Row],[толщ]],CONCATENATE(Таблица1[[#This Row],[Столбец33]]," ",Таблица1[[#This Row],[толщ]]),CONCATENATE(Таблица1[[#This Row],[Столбец33]]," ",Таблица1[[#This Row],[профиль]],"х",Таблица1[[#This Row],[толщ]])) -> Труба 25х1,5 | AH126: =CONCATENATE(Таблица1[[#This Row],[Столбец33]]," ",Таблица1[[#This Row],[профиль]]) -> Труба 25 | AI126: Труба 25, 1.5 мм, тр25 | AJ126: Труба | AK126: =IF(Таблица1[[#This Row],[профиль]]=Таблица1[[#This Row],[толщ]],Таблица1[[#This Row],[толщ]],CONCATENATE(Таблица1[[#This Row],[профиль]],"х",Таблица1[[#This Row],[точка]])) -> 25х1.5 | AL126: 25 | AM126: 1.5 | AN126: =SUBSTITUTE(Таблица1[[#This Row],[толщ]],",",".") -> 1.5 | AO126: 1.74
A127: =IF(Таблица1[[#This Row],[Столбец19]]=0,"z","") -> z | B127: 1 | D127: 6000 | F127: =SUMIFS($G$61:$G$115,$D$61:$D$115,500,$C$61:$C$115,Таблица1[[#This Row],[Дл]],$L$61:$L$115,Таблица1[[#This Row],[Толщ.копия]],$F$61:$F$115,Таблица1[[#This Row],[АСТРА]]) -> 0 | G127: =Таблица1[[#This Row],[толщ]] -> 0.8 | H127: =Таблица1[[#This Row],[ГОСТ]] -> Труба 25х25х0,8 | I127: =SUMIFS($N$61:$N$115,$C$61:$C$115,Таблица1[[#This Row],[Дл]],$D$61:$D$115,"=500",$L$61:$L$115,Таблица1[[#This Row],[Толщ.копия]],$F$61:$F$115,Таблица1[[#This Row],[АСТРА]]) -> 0 | J127: =SUMIFS($N$61:$N$115,$C$61:$C$115,"<"&Таблица1[[#This Row],[Дл]],$D$61:$D$115,"=500",$L$61:$L$115,Таблица1[[#This Row],[Толщ.копия]],$F$61:$F$115,Таблица1[[#This Row],[АСТРА]]) -> 0 | M127: =SUMIFS($J$8:$J$57,$K$8:$K$57,Таблица1[[#This Row],[Столбец5]]) -> 0 | N127: =Таблица1[[#This Row],[Столбец8]]+Таблица1[[#This Row],[Столбец9]] -> 0 | O127: =SUMIFS($Q$61:$Q$115,$C$61:$C$115,Таблица1[[#This Row],[Дл]],$D$61:$D$115,"=500",$L$61:$L$115,Таблица1[[#This Row],[Толщ.копия]],$F$61:$F$115,Таблица1[[#This Row],[АСТРА]]) -> 0 | P127: =SUMIFS($Q$61:$Q$115,$C$61:$C$115,"<"&Таблица1[[#This Row],[Дл]],$D$61:$D$115,"=500",$L$61:$L$115,Таблица1[[#This Row],[Толщ.копия]],$F$61:$F$115,Таблица1[[#This Row],[АСТРА]]) -> 0 | Q127: =Таблица1[[#This Row],[Столбец13]]+Таблица1[[#This Row],[Столбец14]] -> 0 | R127: =Таблица1[[#This Row],[Столбец28]]+Таблица1[[#This Row],[Столбец29]]-Таблица1[[#This Row],[Столбец27]] -> 0 | S127: =SUMIFS($T$61:$T$115,$C$61:$C$115,Таблица1[[#This Row],[Дл]],$D$61:$D$115,"=500",$L$61:$L$115,Таблица1[[#This Row],[Толщ.копия]],$F$61:$F$115,Таблица1[[#This Row],[АСТРА]]) -> 0 | T127: =SUMIFS($T$61:$T$115,$C$61:$C$115,"<"&Таблица1[[#This Row],[Дл]],$D$61:$D$115,"=500",$L$61:$L$115,Таблица1[[#This Row],[Толщ.копия]],$F$61:$F$115,Таблица1[[#This Row],[АСТРА]]) -> 0 | U127: =Таблица1[[#This Row],[Столбец17]]+Таблица1[[#This Row],[Столбец18]] -> 0 | Y127: =SUMIFS($X$61:$X$115,$C$61:$C$115,Таблица1[[#This Row],[Дл]],$D$61:$D$115,"=500",$L$61:$L$115,Таблица1[[#This Row],[Толщ.копия]],$F$61:$F$115,Таблица1[[#This Row],[АСТРА]]) -> 0 | Z127: =SUMIFS($X$61:$X$115,$C$61:$C$115,"<"&Таблица1[[#This Row],[Дл]],$D$61:$D$115,"=500",$L$61:$L$115,Таблица1[[#This Row],[Толщ.копия]],$F$61:$F$115,Таблица1[[#This Row],[АСТРА]]) -> 0 | AA127: =Таблица1[[#This Row],[Столбец23]]+Таблица1[[#This Row],[Столбец24]] -> 0 | AB127: =Таблица1[[#This Row],[Столбец28]]+Таблица1[[#This Row],[Столбец29]]-Таблица1[[#This Row],[Столбец27]] -> 0 | AC127: =Таблица1[[#This Row],[резы]]*Таблица1[[#This Row],[шир.рез]]/1000*Таблица1[[#This Row],[коэф]]/2 -> 0 | AD127: =SUMIFS($Y$61:$Y$115,$C$61:$C$115,Таблица1[[#This Row],[Дл]],$D$61:$D$115,"=500",$L$61:$L$115,Таблица1[[#This Row],[Толщ.копия]],$F$61:$F$115,Таблица1[[#This Row],[АСТРА]]) -> 0 | AE127: =SUMIFS($Y$61:$Y$115,$C$61:$C$115,"<"&Таблица1[[#This Row],[Дл]],$D$61:$D$115,"=500",$L$61:$L$115,Таблица1[[#This Row],[Толщ.копия]],$F$61:$F$115,Таблица1[[#This Row],[АСТРА]]) -> 0 | AF127: 5 | AG127: =IF(Таблица1[[#This Row],[профиль]]=Таблица1[[#This Row],[толщ]],CONCATENATE(Таблица1[[#This Row],[Столбец33]]," ",Таблица1[[#This Row],[толщ]]),CONCATENATE(Таблица1[[#This Row],[Столбец33]]," ",Таблица1[[#This Row],[профиль]],"х",Таблица1[[#This Row],[толщ]])) -> Труба 25х25х0,8 | AH127: =CONCATENATE(Таблица1[[#This Row],[Столбец33]]," ",Таблица1[[#This Row],[профиль]]) -> Труба 25х25 | AI127: Труба 25х25 чм, 0.8 мм | AJ127: Труба | AK127: =IF(Таблица1[[#This Row],[профиль]]=Таблица1[[#This Row],[толщ]],Таблица1[[#This Row],[толщ]],CONCATENATE(Таблица1[[#This Row],[профиль]],"х",Таблица1[[#This Row],[точка]])) -> 25х25х0.8 | AL127: 25х25 | AM127: 0.8 | AN127: =SUBSTITUTE(Таблица1[[#This Row],[толщ]],",",".") -> 0.8 | AO127: 1.2
A128: =IF(Таблица1[[#This Row],[Столбец19]]=0,"z","") -> z | B128: 2 | D128: 6000 | F128: =SUMIFS($G$61:$G$115,$D$61:$D$115,500,$C$61:$C$115,Таблица1[[#This Row],[Дл]],$L$61:$L$115,Таблица1[[#This Row],[Толщ.копия]],$F$61:$F$115,Таблица1[[#This Row],[АСТРА]]) -> 0 | G128: =Таблица1[[#This Row],[толщ]] -> 1 | H128: =Таблица1[[#This Row],[ГОСТ]] -> Труба 25х25х1 | I128: =SUMIFS($N$61:$N$115,$C$61:$C$115,Таблица1[[#This Row],[Дл]],$D$61:$D$115,"=500",$L$61:$L$115,Таблица1[[#This Row],[Толщ.копия]],$F$61:$F$115,Таблица1[[#This Row],[АСТРА]]) -> 0 | J128: =SUMIFS($N$61:$N$115,$C$61:$C$115,"<"&Таблица1[[#This Row],[Дл]],$D$61:$D$115,"=500",$L$61:$L$115,Таблица1[[#This Row],[Толщ.копия]],$F$61:$F$115,Таблица1[[#This Row],[АСТРА]]) -> 0 | M128: =SUMIFS($J$8:$J$57,$K$8:$K$57,Таблица1[[#This Row],[Столбец5]]) -> 0 | N128: =Таблица1[[#This Row],[Столбец8]]+Таблица1[[#This Row],[Столбец9]] -> 0 | O128: =SUMIFS($Q$61:$Q$115,$C$61:$C$115,Таблица1[[#This Row],[Дл]],$D$61:$D$115,"=500",$L$61:$L$115,Таблица1[[#This Row],[Толщ.копия]],$F$61:$F$115,Таблица1[[#This Row],[АСТРА]]) -> 0 | P128: =SUMIFS($Q$61:$Q$115,$C$61:$C$115,"<"&Таблица1[[#This Row],[Дл]],$D$61:$D$115,"=500",$L$61:$L$115,Таблица1[[#This Row],[Толщ.копия]],$F$61:$F$115,Таблица1[[#This Row],[АСТРА]]) -> 0 | Q128: =Таблица1[[#This Row],[Столбец13]]+Таблица1[[#This Row],[Столбец14]] -> 0 | R128: =Таблица1[[#This Row],[Столбец28]]+Таблица1[[#This Row],[Столбец29]]-Таблица1[[#This Row],[Столбец27]] -> 0 | S128: =SUMIFS($T$61:$T$115,$C$61:$C$115,Таблица1[[#This Row],[Дл]],$D$61:$D$115,"=500",$L$61:$L$115,Таблица1[[#This Row],[Толщ.копия]],$F$61:$F$115,Таблица1[[#This Row],[АСТРА]]) -> 0 | T128: =SUMIFS($T$61:$T$115,$C$61:$C$115,"<"&Таблица1[[#This Row],[Дл]],$D$61:$D$115,"=500",$L$61:$L$115,Таблица1[[#This Row],[Толщ.копия]],$F$61:$F$115,Таблица1[[#This Row],[АСТРА]]) -> 0 | U128: =Таблица1[[#This Row],[Столбец17]]+Таблица1[[#This Row],[Столбец18]] -> 0 | Y128: =SUMIFS($X$61:$X$115,$C$61:$C$115,Таблица1[[#This Row],[Дл]],$D$61:$D$115,"=500",$L$61:$L$115,Таблица1[[#This Row],[Толщ.копия]],$F$61:$F$115,Таблица1[[#This Row],[АСТРА]]) -> 0 | Z128: =SUMIFS($X$61:$X$115,$C$61:$C$115,"<"&Таблица1[[#This Row],[Дл]],$D$61:$D$115,"=500",$L$61:$L$115,Таблица1[[#This Row],[Толщ.копия]],$F$61:$F$115,Таблица1[[#This Row],[АСТРА]]) -> 0 | AA128: =Таблица1[[#This Row],[Столбец23]]+Таблица1[[#This Row],[Столбец24]] -> 0 | AB128: =Таблица1[[#This Row],[Столбец28]]+Таблица1[[#This Row],[Столбец29]]-Таблица1[[#This Row],[Столбец27]] -> 0 | AC128: =Таблица1[[#This Row],[резы]]*Таблица1[[#This Row],[шир.рез]]/1000*Таблица1[[#This Row],[коэф]]/2 -> 0 | AD128: =SUMIFS($Y$61:$Y$115,$C$61:$C$115,Таблица1[[#This Row],[Дл]],$D$61:$D$115,"=500",$L$61:$L$115,Таблица1[[#This Row],[Толщ.копия]],$F$61:$F$115,Таблица1[[#This Row],[АСТРА]]) -> 0 | AE128: =SUMIFS($Y$61:$Y$115,$C$61:$C$115,"<"&Таблица1[[#This Row],[Дл]],$D$61:$D$115,"=500",$L$61:$L$115,Таблица1[[#This Row],[Толщ.копия]],$F$61:$F$115,Таблица1[[#This Row],[АСТРА]]) -> 0 | AF128: 5 | AG128: =IF(Таблица1[[#This Row],[профиль]]=Таблица1[[#This Row],[толщ]],CONCATENATE(Таблица1[[#This Row],[Столбец33]]," ",Таблица1[[#This Row],[толщ]]),CONCATENATE(Таблица1[[#This Row],[Столбец33]]," ",Таблица1[[#This Row],[профиль]],"х",Таблица1[[#This Row],[толщ]])) -> Труба 25х25х1 | AH128: =CONCATENATE(Таблица1[[#This Row],[Столбец33]]," ",Таблица1[[#This Row],[профиль]]) -> Труба 25х25 | AI128: Труба 25х25 чм, 1.0 мм | AJ128: Труба | AK128: =IF(Таблица1[[#This Row],[профиль]]=Таблица1[[#This Row],[толщ]],Таблица1[[#This Row],[толщ]],CONCATENATE(Таблица1[[#This Row],[профиль]],"х",Таблица1[[#This Row],[точка]])) -> 25х25х1 | AL128: 25х25 | AM128: 1 | AN128: =SUBSTITUTE(Таблица1[[#This Row],[толщ]],",",".") -> 1 | AO128: 1.48
A129: =IF(Таблица1[[#This Row],[Столбец19]]=0,"z","") -> z | B129: 3 | D129: 6000 | F129: =SUMIFS($G$61:$G$115,$D$61:$D$115,500,$C$61:$C$115,Таблица1[[#This Row],[Дл]],$L$61:$L$115,Таблица1[[#This Row],[Толщ.копия]],$F$61:$F$115,Таблица1[[#This Row],[АСТРА]]) -> 0 | G129: =Таблица1[[#This Row],[толщ]] -> 1.2 | H129: =Таблица1[[#This Row],[ГОСТ]] -> Труба 25х25х1,2 | I129: =SUMIFS($N$61:$N$115,$C$61:$C$115,Таблица1[[#This Row],[Дл]],$D$61:$D$115,"=500",$L$61:$L$115,Таблица1[[#This Row],[Толщ.копия]],$F$61:$F$115,Таблица1[[#This Row],[АСТРА]]) -> 0 | J129: =SUMIFS($N$61:$N$115,$C$61:$C$115,"<"&Таблица1[[#This Row],[Дл]],$D$61:$D$115,"=500",$L$61:$L$115,Таблица1[[#This Row],[Толщ.копия]],$F$61:$F$115,Таблица1[[#This Row],[АСТРА]]) -> 0 | M129: =SUMIFS($J$8:$J$57,$K$8:$K$57,Таблица1[[#This Row],[Столбец5]]) -> 110 | N129: =Таблица1[[#This Row],[Столбец8]]+Таблица1[[#This Row],[Столбец9]] -> 0 | O129: =SUMIFS($Q$61:$Q$115,$C$61:$C$115,Таблица1[[#This Row],[Дл]],$D$61:$D$115,"=500",$L$61:$L$115,Таблица1[[#This Row],[Толщ.копия]],$F$61:$F$115,Таблица1[[#This Row],[АСТРА]]) -> 0 | P129: =SUMIFS($Q$61:$Q$115,$C$61:$C$115,"<"&Таблица1[[#This Row],[Дл]],$D$61:$D$115,"=500",$L$61:$L$115,Таблица1[[#This Row],[Толщ.копия]],$F$61:$F$115,Таблица1[[#This Row],[АСТРА]]) -> 0 | Q129: =Таблица1[[#This Row],[Столбец13]]+Таблица1[[#This Row],[Столбец14]] -> 0 | R129: =Таблица1[[#This Row],[Столбец28]]+Таблица1[[#This Row],[Столбец29]]-Таблица1[[#This Row],[Столбец27]] -> -0.48125 | S129: =SUMIFS($T$61:$T$115,$C$61:$C$115,Таблица1[[#This Row],[Дл]],$D$61:$D$115,"=500",$L$61:$L$115,Таблица1[[#This Row],[Толщ.копия]],$F$61:$F$115,Таблица1[[#This Row],[АСТРА]]) -> 0 | T129: =SUMIFS($T$61:$T$115,$C$61:$C$115,"<"&Таблица1[[#This Row],[Дл]],$D$61:$D$115,"=500",$L$61:$L$115,Таблица1[[#This Row],[Толщ.копия]],$F$61:$F$115,Таблица1[[#This Row],[АСТРА]]) -> 0 | U129: =Таблица1[[#This Row],[Столбец17]]+Таблица1[[#This Row],[Столбец18]] -> 0 | Y129: =SUMIFS($X$61:$X$115,$C$61:$C$115,Таблица1[[#This Row],[Дл]],$D$61:$D$115,"=500",$L$61:$L$115,Таблица1[[#This Row],[Толщ.копия]],$F$61:$F$115,Таблица1[[#This Row],[АСТРА]]) -> 0 | Z129: =SUMIFS($X$61:$X$115,$C$61:$C$115,"<"&Таблица1[[#This Row],[Дл]],$D$61:$D$115,"=500",$L$61:$L$115,Таблица1[[#This Row],[Толщ.копия]],$F$61:$F$115,Таблица1[[#This Row],[АСТРА]]) -> 0 | AA129: =Таблица1[[#This Row],[Столбец23]]+Таблица1[[#This Row],[Столбец24]] -> 0 | AB129: =Таблица1[[#This Row],[Столбец28]]+Таблица1[[#This Row],[Столбец29]]-Таблица1[[#This Row],[Столбец27]] -> -0.48125 | AC129: =Таблица1[[#This Row],[резы]]*Таблица1[[#This Row],[шир.рез]]/1000*Таблица1[[#This Row],[коэф]]/2 -> 0.48125 | AD129: =SUMIFS($Y$61:$Y$115,$C$61:$C$115,Таблица1[[#This Row],[Дл]],$D$61:$D$115,"=500",$L$61:$L$115,Таблица1[[#This Row],[Толщ.копия]],$F$61:$F$115,Таблица1[[#This Row],[АСТРА]]) -> 0 | AE129: =SUMIFS($Y$61:$Y$115,$C$61:$C$115,"<"&Таблица1[[#This Row],[Дл]],$D$61:$D$115,"=500",$L$61:$L$115,Таблица1[[#This Row],[Толщ.копия]],$F$61:$F$115,Таблица1[[#This Row],[АСТРА]]) -> 0 | AF129: 5 | AG129: =IF(Таблица1[[#This Row],[профиль]]=Таблица1[[#This Row],[толщ]],CONCATENATE(Таблица1[[#This Row],[Столбец33]]," ",Таблица1[[#This Row],[толщ]]),CONCATENATE(Таблица1[[#This Row],[Столбец33]]," ",Таблица1[[#This Row],[профиль]],"х",Таблица1[[#This Row],[толщ]])) -> Труба 25х25х1,2 | AH129: =CONCATENATE(Таблица1[[#This Row],[Столбец33]]," ",Таблица1[[#This Row],[профиль]]) -> Труба 25х25 | AI129: Труба 25х25 чм, 1.2 мм | AJ129: Труба | AK129: =IF(Таблица1[[#This Row],[профиль]]=Таблица1[[#This Row],[толщ]],Таблица1[[#This Row],[толщ]],CONCATENATE(Таблица1[[#This Row],[профиль]],"х",Таблица1[[#This Row],[точка]])) -> 25х25х1.2 | AL129: 25х25 | AM129: 1.2 | AN129: =SUBSTITUTE(Таблица1[[#This Row],[толщ]],",",".") -> 1.2 | AO129: 1.75
A130: =IF(Таблица1[[#This Row],[Столбец19]]=0,"z","") -> z | D130: 6000 | F130: =SUMIFS($G$61:$G$115,$D$61:$D$115,500,$C$61:$C$115,Таблица1[[#This Row],[Дл]],$L$61:$L$115,Таблица1[[#This Row],[Толщ.копия]],$F$61:$F$115,Таблица1[[#This Row],[АСТРА]]) -> 0 | G130: =Таблица1[[#This Row],[толщ]] -> 1.5 | H130: =Таблица1[[#This Row],[ГОСТ]] -> Труба 30х15х1,5 | I130: =SUMIFS($N$61:$N$115,$C$61:$C$115,Таблица1[[#This Row],[Дл]],$D$61:$D$115,"=500",$L$61:$L$115,Таблица1[[#This Row],[Толщ.копия]],$F$61:$F$115,Таблица1[[#This Row],[АСТРА]]) -> 0 | J130: =SUMIFS($N$61:$N$115,$C$61:$C$115,"<"&Таблица1[[#This Row],[Дл]],$D$61:$D$115,"=500",$L$61:$L$115,Таблица1[[#This Row],[Толщ.копия]],$F$61:$F$115,Таблица1[[#This Row],[АСТРА]]) -> 0 | M130: =SUMIFS($J$8:$J$57,$K$8:$K$57,Таблица1[[#This Row],[Столбец5]]) -> 0 | N130: =Таблица1[[#This Row],[Столбец8]]+Таблица1[[#This Row],[Столбец9]] -> 0 | O130: =SUMIFS($Q$61:$Q$115,$C$61:$C$115,Таблица1[[#This Row],[Дл]],$D$61:$D$115,"=500",$L$61:$L$115,Таблица1[[#This Row],[Толщ.копия]],$F$61:$F$115,Таблица1[[#This Row],[АСТРА]]) -> 0 | P130: =SUMIFS($Q$61:$Q$115,$C$61:$C$115,"<"&Таблица1[[#This Row],[Дл]],$D$61:$D$115,"=500",$L$61:$L$115,Таблица1[[#This Row],[Толщ.копия]],$F$61:$F$115,Таблица1[[#This Row],[АСТРА]]) -> 0 | Q130: =Таблица1[[#This Row],[Столбец13]]+Таблица1[[#This Row],[Столбец14]] -> 0 | R130: =Таблица1[[#This Row],[Столбец28]]+Таблица1[[#This Row],[Столбец29]]-Таблица1[[#This Row],[Столбец27]] -> 0 | S130: =SUMIFS($T$61:$T$115,$C$61:$C$115,Таблица1[[#This Row],[Дл]],$D$61:$D$115,"=500",$L$61:$L$115,Таблица1[[#This Row],[Толщ.копия]],$F$61:$F$115,Таблица1[[#This Row],[АСТРА]]) -> 0 | T130: =SUMIFS($T$61:$T$115,$C$61:$C$115,"<"&Таблица1[[#This Row],[Дл]],$D$61:$D$115,"=500",$L$61:$L$115,Таблица1[[#This Row],[Толщ.копия]],$F$61:$F$115,Таблица1[[#This Row],[АСТРА]]) -> 0 | U130: =Таблица1[[#This Row],[Столбец17]]+Таблица1[[#This Row],[Столбец18]] -> 0 | Y130: =SUMIFS($X$61:$X$115,$C$61:$C$115,Таблица1[[#This Row],[Дл]],$D$61:$D$115,"=500",$L$61:$L$115,Таблица1[[#This Row],[Толщ.копия]],$F$61:$F$115,Таблица1[[#This Row],[АСТРА]]) -> 0 | Z130: =SUMIFS($X$61:$X$115,$C$61:$C$115,"<"&Таблица1[[#This Row],[Дл]],$D$61:$D$115,"=500",$L$61:$L$115,Таблица1[[#This Row],[Толщ.копия]],$F$61:$F$115,Таблица1[[#This Row],[АСТРА]]) -> 0 | AA130: =Таблица1[[#This Row],[Столбец23]]+Таблица1[[#This Row],[Столбец24]] -> 0 | AB130: =Таблица1[[#This Row],[Столбец28]]+Таблица1[[#This Row],[Столбец29]]-Таблица1[[#This Row],[Столбец27]] -> 0 | AC130: =Таблица1[[#This Row],[резы]]*Таблица1[[#This Row],[шир.рез]]/1000*Таблица1[[#This Row],[коэф]]/2 -> 0 | AD130: =SUMIFS($Y$61:$Y$115,$C$61:$C$115,Таблица1[[#This Row],[Дл]],$D$61:$D$115,"=500",$L$61:$L$115,Таблица1[[#This Row],[Толщ.копия]],$F$61:$F$115,Таблица1[[#This Row],[АСТРА]]) -> 0 | AE130: =SUMIFS($Y$61:$Y$115,$C$61:$C$115,"<"&Таблица1[[#This Row],[Дл]],$D$61:$D$115,"=500",$L$61:$L$115,Таблица1[[#This Row],[Толщ.копия]],$F$61:$F$115,Таблица1[[#This Row],[АСТРА]]) -> 0 | AF130: 5 | AG130: =IF(Таблица1[[#This Row],[профиль]]=Таблица1[[#This Row],[толщ]],CONCATENATE(Таблица1[[#This Row],[Столбец33]]," ",Таблица1[[#This Row],[толщ]]),CONCATENATE(Таблица1[[#This Row],[Столбец33]]," ",Таблица1[[#This Row],[профиль]],"х",Таблица1[[#This Row],[толщ]])) -> Труба 30х15х1,5 | AH130: =CONCATENATE(Таблица1[[#This Row],[Столбец33]]," ",Таблица1[[#This Row],[профиль]]) -> Труба 30х15 | AI130: Труба 30х15, 1.5 мм, тр3015 | AJ130: Труба | AK130: =IF(Таблица1[[#This Row],[профиль]]=Таблица1[[#This Row],[толщ]],Таблица1[[#This Row],[толщ]],CONCATENATE(Таблица1[[#This Row],[профиль]],"х",Таблица1[[#This Row],[точка]])) -> 30х15х1.5 | AL130: 30х15 | AM130: 1.5 | AN130: =SUBSTITUTE(Таблица1[[#This Row],[толщ]],",",".") -> 1.5 | AO130: 1.92
A131: =IF(Таблица1[[#This Row],[Столбец19]]=0,"z","") ->  | B131: 4 | D131: 6000 | F131: =SUMIFS($G$61:$G$115,$D$61:$D$115,500,$C$61:$C$115,Таблица1[[#This Row],[Дл]],$L$61:$L$115,Таблица1[[#This Row],[Толщ.копия]],$F$61:$F$115,Таблица1[[#This Row],[АСТРА]]) -> 32 | G131: =Таблица1[[#This Row],[толщ]] -> 1.2 | H131: =Таблица1[[#This Row],[ГОСТ]] -> Труба 30х20х1,2 | I131: =SUMIFS($N$61:$N$115,$C$61:$C$115,Таблица1[[#This Row],[Дл]],$D$61:$D$115,"=500",$L$61:$L$115,Таблица1[[#This Row],[Толщ.копия]],$F$61:$F$115,Таблица1[[#This Row],[АСТРА]]) -> 168.96 | J131: =SUMIFS($N$61:$N$115,$C$61:$C$115,"<"&Таблица1[[#This Row],[Дл]],$D$61:$D$115,"=500",$L$61:$L$115,Таблица1[[#This Row],[Толщ.копия]],$F$61:$F$115,Таблица1[[#This Row],[АСТРА]]) -> 1.3156 | M131: =SUMIFS($J$8:$J$57,$K$8:$K$57,Таблица1[[#This Row],[Столбец5]]) -> 0 | N131: =Таблица1[[#This Row],[Столбец8]]+Таблица1[[#This Row],[Столбец9]] -> 170.2756 | O131: =SUMIFS($Q$61:$Q$115,$C$61:$C$115,Таблица1[[#This Row],[Дл]],$D$61:$D$115,"=500",$L$61:$L$115,Таблица1[[#This Row],[Толщ.копия]],$F$61:$F$115,Таблица1[[#This Row],[АСТРА]]) -> 2.34432003 | P131: =SUMIFS($Q$61:$Q$115,$C$61:$C$115,"<"&Таблица1[[#This Row],[Дл]],$D$61:$D$115,"=500",$L$61:$L$115,Таблица1[[#This Row],[Толщ.копия]],$F$61:$F$115,Таблица1[[#This Row],[АСТРА]]) -> 0 | Q131: =Таблица1[[#This Row],[Столбец13]]+Таблица1[[#This Row],[Столбец14]] -> 2.34432003 | R131: =Таблица1[[#This Row],[Столбец28]]+Таблица1[[#This Row],[Столбец29]]-Таблица1[[#This Row],[Столбец27]] -> 5.016877246 | S131: =SUMIFS($T$61:$T$115,$C$61:$C$115,Таблица1[[#This Row],[Дл]],$D$61:$D$115,"=500",$L$61:$L$115,Таблица1[[#This Row],[Толщ.копия]],$F$61:$F$115,Таблица1[[#This Row],[АСТРА]]) -> 161.6736027 | T131: =SUMIFS($T$61:$T$115,$C$61:$C$115,"<"&Таблица1[[#This Row],[Дл]],$D$61:$D$115,"=500",$L$61:$L$115,Таблица1[[#This Row],[Толщ.копия]],$F$61:$F$115,Таблица1[[#This Row],[АСТРА]]) -> 1.240800023 | U131: =Таблица1[[#This Row],[Столбец17]]+Таблица1[[#This Row],[Столбец18]] -> 162.9144027 | Y131: =SUMIFS($X$61:$X$115,$C$61:$C$115,Таблица1[[#This Row],[Дл]],$D$61:$D$115,"=500",$L$61:$L$115,Таблица1[[#This Row],[Толщ.копия]],$F$61:$F$115,Таблица1[[#This Row],[АСТРА]]) -> 166.61568 | Z131: =SUMIFS($X$61:$X$115,$C$61:$C$115,"<"&Таблица1[[#This Row],[Дл]],$D$61:$D$115,"=500",$L$61:$L$115,Таблица1[[#This Row],[Толщ.копия]],$F$61:$F$115,Таблица1[[#This Row],[АСТРА]]) -> 1.3156 | AA131: =Таблица1[[#This Row],[Столбец23]]+Таблица1[[#This Row],[Столбец24]] -> 167.93128 | AB131: =Таблица1[[#This Row],[Столбец28]]+Таблица1[[#This Row],[Столбец29]]-Таблица1[[#This Row],[Столбец27]] -> 5.016877246 | AC131: =Таблица1[[#This Row],[резы]]*Таблица1[[#This Row],[шир.рез]]/1000*Таблица1[[#This Row],[коэф]]/2 -> 0 | AD131: =SUMIFS($Y$61:$Y$115,$C$61:$C$115,Таблица1[[#This Row],[Дл]],$D$61:$D$115,"=500",$L$61:$L$115,Таблица1[[#This Row],[Толщ.копия]],$F$61:$F$115,Таблица1[[#This Row],[АСТРА]]) -> 4.94207727 | AE131: =SUMIFS($Y$61:$Y$115,$C$61:$C$115,"<"&Таблица1[[#This Row],[Дл]],$D$61:$D$115,"=500",$L$61:$L$115,Таблица1[[#This Row],[Толщ.копия]],$F$61:$F$115,Таблица1[[#This Row],[АСТРА]]) -> 0.07479997692 | AF131: 5 | AG131: =IF(Таблица1[[#This Row],[профиль]]=Таблица1[[#This Row],[толщ]],CONCATENATE(Таблица1[[#This Row],[Столбец33]]," ",Таблица1[[#This Row],[толщ]]),CONCATENATE(Таблица1[[#This Row],[Столбец33]]," ",Таблица1[[#This Row],[профиль]],"х",Таблица1[[#This Row],[толщ]])) -> Труба 30х20х1,2 | AH131: =CONCATENATE(Таблица1[[#This Row],[Столбец33]]," ",Таблица1[[#This Row],[профиль]]) -> Труба 30х20 | AI131: Труба 30х20, 1.2 мм, тр3020 | AJ131: Труба | AK131: =IF(Таблица1[[#This Row],[профиль]]=Таблица1[[#This Row],[толщ]],Таблица1[[#This Row],[толщ]],CONCATENATE(Таблица1[[#This Row],[профиль]],"х",Таблица1[[#This Row],[точка]])) -> 30х20х1.2 | AL131: 30х20 | AM131: 1.2 | AN131: =SUBSTITUTE(Таблица1[[#This Row],[толщ]],",",".") -> 1.2 | AO131: 1.76
A132: =IF(Таблица1[[#This Row],[Столбец19]]=0,"z","") -> z | D132: 6000 | F132: =SUMIFS($G$61:$G$115,$D$61:$D$115,500,$C$61:$C$115,Таблица1[[#This Row],[Дл]],$L$61:$L$115,Таблица1[[#This Row],[Толщ.копия]],$F$61:$F$115,Таблица1[[#This Row],[АСТРА]]) -> 0 | G132: =Таблица1[[#This Row],[толщ]] -> 2 | H132: =Таблица1[[#This Row],[ГОСТ]] -> Труба 30х30х2 | I132: =SUMIFS($N$61:$N$115,$C$61:$C$115,Таблица1[[#This Row],[Дл]],$D$61:$D$115,"=500",$L$61:$L$115,Таблица1[[#This Row],[Толщ.копия]],$F$61:$F$115,Таблица1[[#This Row],[АСТРА]]) -> 0 | J132: =SUMIFS($N$61:$N$115,$C$61:$C$115,"<"&Таблица1[[#This Row],[Дл]],$D$61:$D$115,"=500",$L$61:$L$115,Таблица1[[#This Row],[Толщ.копия]],$F$61:$F$115,Таблица1[[#This Row],[АСТРА]]) -> 0 | M132: =SUMIFS($J$8:$J$57,$K$8:$K$57,Таблица1[[#This Row],[Столбец5]]) -> 0 | N132: =Таблица1[[#This Row],[Столбец8]]+Таблица1[[#This Row],[Столбец9]] -> 0 | O132: =SUMIFS($Q$61:$Q$115,$C$61:$C$115,Таблица1[[#This Row],[Дл]],$D$61:$D$115,"=500",$L$61:$L$115,Таблица1[[#This Row],[Толщ.копия]],$F$61:$F$115,Таблица1[[#This Row],[АСТРА]]) -> 0 | P132: =SUMIFS($Q$61:$Q$115,$C$61:$C$115,"<"&Таблица1[[#This Row],[Дл]],$D$61:$D$115,"=500",$L$61:$L$115,Таблица1[[#This Row],[Толщ.копия]],$F$61:$F$115,Таблица1[[#This Row],[АСТРА]]) -> 0 | Q132: =Таблица1[[#This Row],[Столбец13]]+Таблица1[[#This Row],[Столбец14]] -> 0 | R132: =Таблица1[[#This Row],[Столбец28]]+Таблица1[[#This Row],[Столбец29]]-Таблица1[[#This Row],[Столбец27]] -> 0 | S132: =SUMIFS($T$61:$T$115,$C$61:$C$115,Таблица1[[#This Row],[Дл]],$D$61:$D$115,"=500",$L$61:$L$115,Таблица1[[#This Row],[Толщ.копия]],$F$61:$F$115,Таблица1[[#This Row],[АСТРА]]) -> 0 | T132: =SUMIFS($T$61:$T$115,$C$61:$C$115,"<"&Таблица1[[#This Row],[Дл]],$D$61:$D$115,"=500",$L$61:$L$115,Таблица1[[#This Row],[Толщ.копия]],$F$61:$F$115,Таблица1[[#This Row],[АСТРА]]) -> 0 | U132: =Таблица1[[#This Row],[Столбец17]]+Таблица1[[#This Row],[Столбец18]] -> 0 | Y132: =SUMIFS($X$61:$X$115,$C$61:$C$115,Таблица1[[#This Row],[Дл]],$D$61:$D$115,"=500",$L$61:$L$115,Таблица1[[#This Row],[Толщ.копия]],$F$61:$F$115,Таблица1[[#This Row],[АСТРА]]) -> 0 | Z132: =SUMIFS($X$61:$X$115,$C$61:$C$115,"<"&Таблица1[[#This Row],[Дл]],$D$61:$D$115,"=500",$L$61:$L$115,Таблица1[[#This Row],[Толщ.копия]],$F$61:$F$115,Таблица1[[#This Row],[АСТРА]]) -> 0 | AA132: =Таблица1[[#This Row],[Столбец23]]+Таблица1[[#This Row],[Столбец24]] -> 0 | AB132: =Таблица1[[#This Row],[Столбец28]]+Таблица1[[#This Row],[Столбец29]]-Таблица1[[#This Row],[Столбец27]] -> 0 | AC132: =Таблица1[[#This Row],[резы]]*Таблица1[[#This Row],[шир.рез]]/1000*Таблица1[[#This Row],[коэф]]/2 -> 0 | AD132: =SUMIFS($Y$61:$Y$115,$C$61:$C$115,Таблица1[[#This Row],[Дл]],$D$61:$D$115,"=500",$L$61:$L$115,Таблица1[[#This Row],[Толщ.копия]],$F$61:$F$115,Таблица1[[#This Row],[АСТРА]]) -> 0 | AE132: =SUMIFS($Y$61:$Y$115,$C$61:$C$115,"<"&Таблица1[[#This Row],[Дл]],$D$61:$D$115,"=500",$L$61:$L$115,Таблица1[[#This Row],[Толщ.копия]],$F$61:$F$115,Таблица1[[#This Row],[АСТРА]]) -> 0 | AF132: 5 | AG132: =IF(Таблица1[[#This Row],[профиль]]=Таблица1[[#This Row],[толщ]],CONCATENATE(Таблица1[[#This Row],[Столбец33]]," ",Таблица1[[#This Row],[толщ]]),CONCATENATE(Таблица1[[#This Row],[Столбец33]]," ",Таблица1[[#This Row],[профиль]],"х",Таблица1[[#This Row],[толщ]])) -> Труба 30х30х2 | AH132: =CONCATENATE(Таблица1[[#This Row],[Столбец33]]," ",Таблица1[[#This Row],[профиль]]) -> Труба 30х30 | AI132: Труба 30х30, 2.0 мм, тр3030 | AJ132: Труба | AK132: =IF(Таблица1[[#This Row],[профиль]]=Таблица1[[#This Row],[толщ]],Таблица1[[#This Row],[толщ]],CONCATENATE(Таблица1[[#This Row],[профиль]],"х",Таблица1[[#This Row],[точка]])) -> 30х30х2 | AL132: 30х30 | AM132: 2 | AN132: =SUBSTITUTE(Таблица1[[#This Row],[толщ]],",",".") -> 2 | AO132: 3.4
A133: =IF(Таблица1[[#This Row],[Столбец19]]=0,"z","") -> z | B133: 7 | D133: 6000 | F133: =SUMIFS($G$61:$G$115,$D$61:$D$115,500,$C$61:$C$115,Таблица1[[#This Row],[Дл]],$L$61:$L$115,Таблица1[[#This Row],[Толщ.копия]],$F$61:$F$115,Таблица1[[#This Row],[АСТРА]]) -> 0 | G133: =Таблица1[[#This Row],[толщ]] -> 2 | H133: =Таблица1[[#This Row],[ГОСТ]] -> Труба 30х80х2 | I133: =SUMIFS($N$61:$N$115,$C$61:$C$115,Таблица1[[#This Row],[Дл]],$D$61:$D$115,"=500",$L$61:$L$115,Таблица1[[#This Row],[Толщ.копия]],$F$61:$F$115,Таблица1[[#This Row],[АСТРА]]) -> 0 | J133: =SUMIFS($N$61:$N$115,$C$61:$C$115,"<"&Таблица1[[#This Row],[Дл]],$D$61:$D$115,"=500",$L$61:$L$115,Таблица1[[#This Row],[Толщ.копия]],$F$61:$F$115,Таблица1[[#This Row],[АСТРА]]) -> 0 | M133: =SUMIFS($J$8:$J$57,$K$8:$K$57,Таблица1[[#This Row],[Столбец5]]) -> 0 | N133: =Таблица1[[#This Row],[Столбец8]]+Таблица1[[#This Row],[Столбец9]] -> 0 | O133: =SUMIFS($Q$61:$Q$115,$C$61:$C$115,Таблица1[[#This Row],[Дл]],$D$61:$D$115,"=500",$L$61:$L$115,Таблица1[[#This Row],[Толщ.копия]],$F$61:$F$115,Таблица1[[#This Row],[АСТРА]]) -> 0 | P133: =SUMIFS($Q$61:$Q$115,$C$61:$C$115,"<"&Таблица1[[#This Row],[Дл]],$D$61:$D$115,"=500",$L$61:$L$115,Таблица1[[#This Row],[Толщ.копия]],$F$61:$F$115,Таблица1[[#This Row],[АСТРА]]) -> 0 | Q133: =Таблица1[[#This Row],[Столбец13]]+Таблица1[[#This Row],[Столбец14]] -> 0 | R133: =Таблица1[[#This Row],[Столбец28]]+Таблица1[[#This Row],[Столбец29]]-Таблица1[[#This Row],[Столбец27]] -> 0 | S133: =SUMIFS($T$61:$T$115,$C$61:$C$115,Таблица1[[#This Row],[Дл]],$D$61:$D$115,"=500",$L$61:$L$115,Таблица1[[#This Row],[Толщ.копия]],$F$61:$F$115,Таблица1[[#This Row],[АСТРА]]) -> 0 | T133: =SUMIFS($T$61:$T$115,$C$61:$C$115,"<"&Таблица1[[#This Row],[Дл]],$D$61:$D$115,"=500",$L$61:$L$115,Таблица1[[#This Row],[Толщ.копия]],$F$61:$F$115,Таблица1[[#This Row],[АСТРА]]) -> 0 | U133: =Таблица1[[#This Row],[Столбец17]]+Таблица1[[#This Row],[Столбец18]] -> 0 | Y133: =SUMIFS($X$61:$X$115,$C$61:$C$115,Таблица1[[#This Row],[Дл]],$D$61:$D$115,"=500",$L$61:$L$115,Таблица1[[#This Row],[Толщ.копия]],$F$61:$F$115,Таблица1[[#This Row],[АСТРА]]) -> 0 | Z133: =SUMIFS($X$61:$X$115,$C$61:$C$115,"<"&Таблица1[[#This Row],[Дл]],$D$61:$D$115,"=500",$L$61:$L$115,Таблица1[[#This Row],[Толщ.копия]],$F$61:$F$115,Таблица1[[#This Row],[АСТРА]]) -> 0 | AA133: =Таблица1[[#This Row],[Столбец23]]+Таблица1[[#This Row],[Столбец24]] -> 0 | AB133: =Таблица1[[#This Row],[Столбец28]]+Таблица1[[#This Row],[Столбец29]]-Таблица1[[#This Row],[Столбец27]] -> 0 | AC133: =Таблица1[[#This Row],[резы]]*Таблица1[[#This Row],[шир.рез]]/1000*Таблица1[[#This Row],[коэф]]/2 -> 0 | AD133: =SUMIFS($Y$61:$Y$115,$C$61:$C$115,Таблица1[[#This Row],[Дл]],$D$61:$D$115,"=500",$L$61:$L$115,Таблица1[[#This Row],[Толщ.копия]],$F$61:$F$115,Таблица1[[#This Row],[АСТРА]]) -> 0 | AE133: =SUMIFS($Y$61:$Y$115,$C$61:$C$115,"<"&Таблица1[[#This Row],[Дл]],$D$61:$D$115,"=500",$L$61:$L$115,Таблица1[[#This Row],[Толщ.копия]],$F$61:$F$115,Таблица1[[#This Row],[АСТРА]]) -> 0 | AF133: 5 | AG133: =IF(Таблица1[[#This Row],[профиль]]=Таблица1[[#This Row],[толщ]],CONCATENATE(Таблица1[[#This Row],[Столбец33]]," ",Таблица1[[#This Row],[толщ]]),CONCATENATE(Таблица1[[#This Row],[Столбец33]]," ",Таблица1[[#This Row],[профиль]],"х",Таблица1[[#This Row],[толщ]])) -> Труба 30х80х2 | AH133: =CONCATENATE(Таблица1[[#This Row],[Столбец33]]," ",Таблица1[[#This Row],[профиль]]) -> Труба 30х80 | AI133: Труба 30х80, 2.0 мм, тр3080 | AJ133: Труба | AK133: =IF(Таблица1[[#This Row],[профиль]]=Таблица1[[#This Row],[толщ]],Таблица1[[#This Row],[толщ]],CONCATENATE(Таблица1[[#This Row],[профиль]],"х",Таблица1[[#This Row],[точка]])) -> 30х80х2 | AL133: 30х80 | AM133: 2 | AN133: =SUBSTITUTE(Таблица1[[#This Row],[толщ]],",",".") -> 2 | AO133: 6.54
A134: =IF(Таблица1[[#This Row],[Столбец19]]=0,"z","") -> z | D134: 6000 | F134: =SUMIFS($G$61:$G$115,$D$61:$D$115,500,$C$61:$C$115,Таблица1[[#This Row],[Дл]],$L$61:$L$115,Таблица1[[#This Row],[Толщ.копия]],$F$61:$F$115,Таблица1[[#This Row],[АСТРА]]) -> 0 | G134: =Таблица1[[#This Row],[толщ]] -> 3 | H134: =Таблица1[[#This Row],[ГОСТ]] -> Труба 32.5х3 | I134: =SUMIFS($N$61:$N$115,$C$61:$C$115,Таблица1[[#This Row],[Дл]],$D$61:$D$115,"=500",$L$61:$L$115,Таблица1[[#This Row],[Толщ.копия]],$F$61:$F$115,Таблица1[[#This Row],[АСТРА]]) -> 0 | J134: =SUMIFS($N$61:$N$115,$C$61:$C$115,"<"&Таблица1[[#This Row],[Дл]],$D$61:$D$115,"=500",$L$61:$L$115,Таблица1[[#This Row],[Толщ.копия]],$F$61:$F$115,Таблица1[[#This Row],[АСТРА]]) -> 0 | M134: =SUMIFS($J$8:$J$57,$K$8:$K$57,Таблица1[[#This Row],[Столбец5]]) -> 0 | N134: =Таблица1[[#This Row],[Столбец8]]+Таблица1[[#This Row],[Столбец9]] -> 0 | O134: =SUMIFS($Q$61:$Q$115,$C$61:$C$115,Таблица1[[#This Row],[Дл]],$D$61:$D$115,"=500",$L$61:$L$115,Таблица1[[#This Row],[Толщ.копия]],$F$61:$F$115,Таблица1[[#This Row],[АСТРА]]) -> 0 | P134: =SUMIFS($Q$61:$Q$115,$C$61:$C$115,"<"&Таблица1[[#This Row],[Дл]],$D$61:$D$115,"=500",$L$61:$L$115,Таблица1[[#This Row],[Толщ.копия]],$F$61:$F$115,Таблица1[[#This Row],[АСТРА]]) -> 0 | Q134: =Таблица1[[#This Row],[Столбец13]]+Таблица1[[#This Row],[Столбец14]] -> 0 | R134: =Таблица1[[#This Row],[Столбец28]]+Таблица1[[#This Row],[Столбец29]]-Таблица1[[#This Row],[Столбец27]] -> 0 | S134: =SUMIFS($T$61:$T$115,$C$61:$C$115,Таблица1[[#This Row],[Дл]],$D$61:$D$115,"=500",$L$61:$L$115,Таблица1[[#This Row],[Толщ.копия]],$F$61:$F$115,Таблица1[[#This Row],[АСТРА]]) -> 0 | T134: =SUMIFS($T$61:$T$115,$C$61:$C$115,"<"&Таблица1[[#This Row],[Дл]],$D$61:$D$115,"=500",$L$61:$L$115,Таблица1[[#This Row],[Толщ.копия]],$F$61:$F$115,Таблица1[[#This Row],[АСТРА]]) -> 0 | U134: =Таблица1[[#This Row],[Столбец17]]+Таблица1[[#This Row],[Столбец18]] -> 0 | Y134: =SUMIFS($X$61:$X$115,$C$61:$C$115,Таблица1[[#This Row],[Дл]],$D$61:$D$115,"=500",$L$61:$L$115,Таблица1[[#This Row],[Толщ.копия]],$F$61:$F$115,Таблица1[[#This Row],[АСТРА]]) -> 0 | Z134: =SUMIFS($X$61:$X$115,$C$61:$C$115,"<"&Таблица1[[#This Row],[Дл]],$D$61:$D$115,"=500",$L$61:$L$115,Таблица1[[#This Row],[Толщ.копия]],$F$61:$F$115,Таблица1[[#This Row],[АСТРА]]) -> 0 | AA134: =Таблица1[[#This Row],[Столбец23]]+Таблица1[[#This Row],[Столбец24]] -> 0 | AB134: =Таблица1[[#This Row],[Столбец28]]+Таблица1[[#This Row],[Столбец29]]-Таблица1[[#This Row],[Столбец27]] -> 0 | AC134: =Таблица1[[#This Row],[резы]]*Таблица1[[#This Row],[шир.рез]]/1000*Таблица1[[#This Row],[коэф]]/2 -> 0 | AD134: =SUMIFS($Y$61:$Y$115,$C$61:$C$115,Таблица1[[#This Row],[Дл]],$D$61:$D$115,"=500",$L$61:$L$115,Таблица1[[#This Row],[Толщ.копия]],$F$61:$F$115,Таблица1[[#This Row],[АСТРА]]) -> 0 | AE134: =SUMIFS($Y$61:$Y$115,$C$61:$C$115,"<"&Таблица1[[#This Row],[Дл]],$D$61:$D$115,"=500",$L$61:$L$115,Таблица1[[#This Row],[Толщ.копия]],$F$61:$F$115,Таблица1[[#This Row],[АСТРА]]) -> 0 | AF134: 5 | AG134: =IF(Таблица1[[#This Row],[профиль]]=Таблица1[[#This Row],[толщ]],CONCATENATE(Таблица1[[#This Row],[Столбец33]]," ",Таблица1[[#This Row],[толщ]]),CONCATENATE(Таблица1[[#This Row],[Столбец33]]," ",Таблица1[[#This Row],[профиль]],"х",Таблица1[[#This Row],[толщ]])) -> Труба 32.5х3 | AH134: =CONCATENATE(Таблица1[[#This Row],[Столбец33]]," ",Таблица1[[#This Row],[профиль]]) -> Труба 32.5 | AI134: Труба 32.5, 3.0 мм, тр32.5 | AJ134: Труба | AK134: =IF(Таблица1[[#This Row],[профиль]]=Таблица1[[#This Row],[толщ]],Таблица1[[#This Row],[толщ]],CONCATENATE(Таблица1[[#This Row],[профиль]],"х",Таблица1[[#This Row],[точка]])) -> 32.5х3 | AL134: 32.5 | AM134: 3 | AN134: =SUBSTITUTE(Таблица1[[#This Row],[толщ]],",",".") -> 3 | AO134: 4.316
A135: =IF(Таблица1[[#This Row],[Столбец19]]=0,"z","") -> z | B135: 9 | D135: 6000 | F135: =SUMIFS($G$61:$G$115,$D$61:$D$115,500,$C$61:$C$115,Таблица1[[#This Row],[Дл]],$L$61:$L$115,Таблица1[[#This Row],[Толщ.копия]],$F$61:$F$115,Таблица1[[#This Row],[АСТРА]]) -> 0 | G135: =Таблица1[[#This Row],[толщ]] -> 1 | H135: =Таблица1[[#This Row],[ГОСТ]] -> Труба 40х20х1 | I135: =SUMIFS($N$61:$N$115,$C$61:$C$115,Таблица1[[#This Row],[Дл]],$D$61:$D$115,"=500",$L$61:$L$115,Таблица1[[#This Row],[Толщ.копия]],$F$61:$F$115,Таблица1[[#This Row],[АСТРА]]) -> 0 | J135: =SUMIFS($N$61:$N$115,$C$61:$C$115,"<"&Таблица1[[#This Row],[Дл]],$D$61:$D$115,"=500",$L$61:$L$115,Таблица1[[#This Row],[Толщ.копия]],$F$61:$F$115,Таблица1[[#This Row],[АСТРА]]) -> 0 | M135: =SUMIFS($J$8:$J$57,$K$8:$K$57,Таблица1[[#This Row],[Столбец5]]) -> 0 | N135: =Таблица1[[#This Row],[Столбец8]]+Таблица1[[#This Row],[Столбец9]] -> 0 | O135: =SUMIFS($Q$61:$Q$115,$C$61:$C$115,Таблица1[[#This Row],[Дл]],$D$61:$D$115,"=500",$L$61:$L$115,Таблица1[[#This Row],[Толщ.копия]],$F$61:$F$115,Таблица1[[#This Row],[АСТРА]]) -> 0 | P135: =SUMIFS($Q$61:$Q$115,$C$61:$C$115,"<"&Таблица1[[#This Row],[Дл]],$D$61:$D$115,"=500",$L$61:$L$115,Таблица1[[#This Row],[Толщ.копия]],$F$61:$F$115,Таблица1[[#This Row],[АСТРА]]) -> 0 | Q135: =Таблица1[[#This Row],[Столбец13]]+Таблица1[[#This Row],[Столбец14]] -> 0 | R135: =Таблица1[[#This Row],[Столбец28]]+Таблица1[[#This Row],[Столбец29]]-Таблица1[[#This Row],[Столбец27]] -> 0 | S135: =SUMIFS($T$61:$T$115,$C$61:$C$115,Таблица1[[#This Row],[Дл]],$D$61:$D$115,"=500",$L$61:$L$115,Таблица1[[#This Row],[Толщ.копия]],$F$61:$F$115,Таблица1[[#This Row],[АСТРА]]) -> 0 | T135: =SUMIFS($T$61:$T$115,$C$61:$C$115,"<"&Таблица1[[#This Row],[Дл]],$D$61:$D$115,"=500",$L$61:$L$115,Таблица1[[#This Row],[Толщ.копия]],$F$61:$F$115,Таблица1[[#This Row],[АСТРА]]) -> 0 | U135: =Таблица1[[#This Row],[Столбец17]]+Таблица1[[#This Row],[Столбец18]] -> 0 | Y135: =SUMIFS($X$61:$X$115,$C$61:$C$115,Таблица1[[#This Row],[Дл]],$D$61:$D$115,"=500",$L$61:$L$115,Таблица1[[#This Row],[Толщ.копия]],$F$61:$F$115,Таблица1[[#This Row],[АСТРА]]) -> 0 | Z135: =SUMIFS($X$61:$X$115,$C$61:$C$115,"<"&Таблица1[[#This Row],[Дл]],$D$61:$D$115,"=500",$L$61:$L$115,Таблица1[[#This Row],[Толщ.копия]],$F$61:$F$115,Таблица1[[#This Row],[АСТРА]]) -> 0 | AA135: =Таблица1[[#This Row],[Столбец23]]+Таблица1[[#This Row],[Столбец24]] -> 0 | AB135: =Таблица1[[#This Row],[Столбец28]]+Таблица1[[#This Row],[Столбец29]]-Таблица1[[#This Row],[Столбец27]] -> 0 | AC135: =Таблица1[[#This Row],[резы]]*Таблица1[[#This Row],[шир.рез]]/1000*Таблица1[[#This Row],[коэф]]/2 -> 0 | AD135: =SUMIFS($Y$61:$Y$115,$C$61:$C$115,Таблица1[[#This Row],[Дл]],$D$61:$D$115,"=500",$L$61:$L$115,Таблица1[[#This Row],[Толщ.копия]],$F$61:$F$115,Таблица1[[#This Row],[АСТРА]]) -> 0 | AE135: =SUMIFS($Y$61:$Y$115,$C$61:$C$115,"<"&Таблица1[[#This Row],[Дл]],$D$61:$D$115,"=500",$L$61:$L$115,Таблица1[[#This Row],[Толщ.копия]],$F$61:$F$115,Таблица1[[#This Row],[АСТРА]]) -> 0 | AF135: 5 | AG135: =IF(Таблица1[[#This Row],[профиль]]=Таблица1[[#This Row],[толщ]],CONCATENATE(Таблица1[[#This Row],[Столбец33]]," ",Таблица1[[#This Row],[толщ]]),CONCATENATE(Таблица1[[#This Row],[Столбец33]]," ",Таблица1[[#This Row],[профиль]],"х",Таблица1[[#This Row],[толщ]])) -> Труба 40х20х1 | AH135: =CONCATENATE(Таблица1[[#This Row],[Столбец33]]," ",Таблица1[[#This Row],[профиль]]) -> Труба 40х20 | AI135: Труба 40х20, 1.0 мм, тр4020 | AJ135: Труба | AK135: =IF(Таблица1[[#This Row],[профиль]]=Таблица1[[#This Row],[толщ]],Таблица1[[#This Row],[толщ]],CONCATENATE(Таблица1[[#This Row],[профиль]],"х",Таблица1[[#This Row],[точка]])) -> 40х20х1 | AL135: 40х20 | AM135: 1 | AN135: =SUBSTITUTE(Таблица1[[#This Row],[толщ]],",",".") -> 1 | AO135: 1.884
A136: =IF(Таблица1[[#This Row],[Столбец19]]=0,"z","") -> z | B136: 5 | D136: 6000 | F136: =SUMIFS($G$61:$G$115,$D$61:$D$115,500,$C$61:$C$115,Таблица1[[#This Row],[Дл]],$L$61:$L$115,Таблица1[[#This Row],[Толщ.копия]],$F$61:$F$115,Таблица1[[#This Row],[АСТРА]]) -> 0 | G136: =Таблица1[[#This Row],[толщ]] -> 1.2 | H136: =Таблица1[[#This Row],[ГОСТ]] -> Труба 40х20х1,2 | I136: =SUMIFS($N$61:$N$115,$C$61:$C$115,Таблица1[[#This Row],[Дл]],$D$61:$D$115,"=500",$L$61:$L$115,Таблица1[[#This Row],[Толщ.копия]],$F$61:$F$115,Таблица1[[#This Row],[АСТРА]]) -> 0 | J136: =SUMIFS($N$61:$N$115,$C$61:$C$115,"<"&Таблица1[[#This Row],[Дл]],$D$61:$D$115,"=500",$L$61:$L$115,Таблица1[[#This Row],[Толщ.копия]],$F$61:$F$115,Таблица1[[#This Row],[АСТРА]]) -> 0 | M136: =SUMIFS($J$8:$J$57,$K$8:$K$57,Таблица1[[#This Row],[Столбец5]]) -> 0 | N136: =Таблица1[[#This Row],[Столбец8]]+Таблица1[[#This Row],[Столбец9]] -> 0 | O136: =SUMIFS($Q$61:$Q$115,$C$61:$C$115,Таблица1[[#This Row],[Дл]],$D$61:$D$115,"=500",$L$61:$L$115,Таблица1[[#This Row],[Толщ.копия]],$F$61:$F$115,Таблица1[[#This Row],[АСТРА]]) -> 0 | P136: =SUMIFS($Q$61:$Q$115,$C$61:$C$115,"<"&Таблица1[[#This Row],[Дл]],$D$61:$D$115,"=500",$L$61:$L$115,Таблица1[[#This Row],[Толщ.копия]],$F$61:$F$115,Таблица1[[#This Row],[АСТРА]]) -> 0 | Q136: =Таблица1[[#This Row],[Столбец13]]+Таблица1[[#This Row],[Столбец14]] -> 0 | R136: =Таблица1[[#This Row],[Столбец28]]+Таблица1[[#This Row],[Столбец29]]-Таблица1[[#This Row],[Столбец27]] -> 0 | S136: =SUMIFS($T$61:$T$115,$C$61:$C$115,Таблица1[[#This Row],[Дл]],$D$61:$D$115,"=500",$L$61:$L$115,Таблица1[[#This Row],[Толщ.копия]],$F$61:$F$115,Таблица1[[#This Row],[АСТРА]]) -> 0 | T136: =SUMIFS($T$61:$T$115,$C$61:$C$115,"<"&Таблица1[[#This Row],[Дл]],$D$61:$D$115,"=500",$L$61:$L$115,Таблица1[[#This Row],[Толщ.копия]],$F$61:$F$115,Таблица1[[#This Row],[АСТРА]]) -> 0 | U136: =Таблица1[[#This Row],[Столбец17]]+Таблица1[[#This Row],[Столбец18]] -> 0 | Y136: =SUMIFS($X$61:$X$115,$C$61:$C$115,Таблица1[[#This Row],[Дл]],$D$61:$D$115,"=500",$L$61:$L$115,Таблица1[[#This Row],[Толщ.копия]],$F$61:$F$115,Таблица1[[#This Row],[АСТРА]]) -> 0 | Z136: =SUMIFS($X$61:$X$115,$C$61:$C$115,"<"&Таблица1[[#This Row],[Дл]],$D$61:$D$115,"=500",$L$61:$L$115,Таблица1[[#This Row],[Толщ.копия]],$F$61:$F$115,Таблица1[[#This Row],[АСТРА]]) -> 0 | AA136: =Таблица1[[#This Row],[Столбец23]]+Таблица1[[#This Row],[Столбец24]] -> 0 | AB136: =Таблица1[[#This Row],[Столбец28]]+Таблица1[[#This Row],[Столбец29]]-Таблица1[[#This Row],[Столбец27]] -> 0 | AC136: =Таблица1[[#This Row],[резы]]*Таблица1[[#This Row],[шир.рез]]/1000*Таблица1[[#This Row],[коэф]]/2 -> 0 | AD136: =SUMIFS($Y$61:$Y$115,$C$61:$C$115,Таблица1[[#This Row],[Дл]],$D$61:$D$115,"=500",$L$61:$L$115,Таблица1[[#This Row],[Толщ.копия]],$F$61:$F$115,Таблица1[[#This Row],[АСТРА]]) -> 0 | AE136: =SUMIFS($Y$61:$Y$115,$C$61:$C$115,"<"&Таблица1[[#This Row],[Дл]],$D$61:$D$115,"=500",$L$61:$L$115,Таблица1[[#This Row],[Толщ.копия]],$F$61:$F$115,Таблица1[[#This Row],[АСТРА]]) -> 0 | AF136: 5 | AG136: =IF(Таблица1[[#This Row],[профиль]]=Таблица1[[#This Row],[толщ]],CONCATENATE(Таблица1[[#This Row],[Столбец33]]," ",Таблица1[[#This Row],[толщ]]),CONCATENATE(Таблица1[[#This Row],[Столбец33]]," ",Таблица1[[#This Row],[профиль]],"х",Таблица1[[#This Row],[толщ]])) -> Труба 40х20х1,2 | AH136: =CONCATENATE(Таблица1[[#This Row],[Столбец33]]," ",Таблица1[[#This Row],[профиль]]) -> Труба 40х20 | AI136: Труба 40х20, 1.2 мм, тр4020 | AJ136: Труба | AK136: =IF(Таблица1[[#This Row],[профиль]]=Таблица1[[#This Row],[толщ]],Таблица1[[#This Row],[толщ]],CONCATENATE(Таблица1[[#This Row],[профиль]],"х",Таблица1[[#This Row],[точка]])) -> 40х20х1.2 | AL136: 40х20 | AM136: 1.2 | AN136: =SUBSTITUTE(Таблица1[[#This Row],[толщ]],",",".") -> 1.2 | AO136: 2.14
A137: =IF(Таблица1[[#This Row],[Столбец19]]=0,"z","") -> z | D137: 6000 | F137: =SUMIFS($G$61:$G$115,$D$61:$D$115,500,$C$61:$C$115,Таблица1[[#This Row],[Дл]],$L$61:$L$115,Таблица1[[#This Row],[Толщ.копия]],$F$61:$F$115,Таблица1[[#This Row],[АСТРА]]) -> 0 | G137: =Таблица1[[#This Row],[толщ]] -> 2 | H137: =Таблица1[[#This Row],[ГОСТ]] -> Труба 60х30х2 | I137: =SUMIFS($N$61:$N$115,$C$61:$C$115,Таблица1[[#This Row],[Дл]],$D$61:$D$115,"=500",$L$61:$L$115,Таблица1[[#This Row],[Толщ.копия]],$F$61:$F$115,Таблица1[[#This Row],[АСТРА]]) -> 0 | J137: =SUMIFS($N$61:$N$115,$C$61:$C$115,"<"&Таблица1[[#This Row],[Дл]],$D$61:$D$115,"=500",$L$61:$L$115,Таблица1[[#This Row],[Толщ.копия]],$F$61:$F$115,Таблица1[[#This Row],[АСТРА]]) -> 0 | M137: =SUMIFS($J$8:$J$57,$K$8:$K$57,Таблица1[[#This Row],[Столбец5]]) -> 0 | N137: =Таблица1[[#This Row],[Столбец8]]+Таблица1[[#This Row],[Столбец9]] -> 0 | O137: =SUMIFS($Q$61:$Q$115,$C$61:$C$115,Таблица1[[#This Row],[Дл]],$D$61:$D$115,"=500",$L$61:$L$115,Таблица1[[#This Row],[Толщ.копия]],$F$61:$F$115,Таблица1[[#This Row],[АСТРА]]) -> 0 | P137: =SUMIFS($Q$61:$Q$115,$C$61:$C$115,"<"&Таблица1[[#This Row],[Дл]],$D$61:$D$115,"=500",$L$61:$L$115,Таблица1[[#This Row],[Толщ.копия]],$F$61:$F$115,Таблица1[[#This Row],[АСТРА]]) -> 0 | Q137: =Таблица1[[#This Row],[Столбец13]]+Таблица1[[#This Row],[Столбец14]] -> 0 | R137: =Таблица1[[#This Row],[Столбец28]]+Таблица1[[#This Row],[Столбец29]]-Таблица1[[#This Row],[Столбец27]] -> 0 | S137: =SUMIFS($T$61:$T$115,$C$61:$C$115,Таблица1[[#This Row],[Дл]],$D$61:$D$115,"=500",$L$61:$L$115,Таблица1[[#This Row],[Толщ.копия]],$F$61:$F$115,Таблица1[[#This Row],[АСТРА]]) -> 0 | T137: =SUMIFS($T$61:$T$115,$C$61:$C$115,"<"&Таблица1[[#This Row],[Дл]],$D$61:$D$115,"=500",$L$61:$L$115,Таблица1[[#This Row],[Толщ.копия]],$F$61:$F$115,Таблица1[[#This Row],[АСТРА]]) -> 0 | U137: =Таблица1[[#This Row],[Столбец17]]+Таблица1[[#This Row],[Столбец18]] -> 0 | Y137: =SUMIFS($X$61:$X$115,$C$61:$C$115,Таблица1[[#This Row],[Дл]],$D$61:$D$115,"=500",$L$61:$L$115,Таблица1[[#This Row],[Толщ.копия]],$F$61:$F$115,Таблица1[[#This Row],[АСТРА]]) -> 0 | Z137: =SUMIFS($X$61:$X$115,$C$61:$C$115,"<"&Таблица1[[#This Row],[Дл]],$D$61:$D$115,"=500",$L$61:$L$115,Таблица1[[#This Row],[Толщ.копия]],$F$61:$F$115,Таблица1[[#This Row],[АСТРА]]) -> 0 | AA137: =Таблица1[[#This Row],[Столбец23]]+Таблица1[[#This Row],[Столбец24]] -> 0 | AB137: =Таблица1[[#This Row],[Столбец28]]+Таблица1[[#This Row],[Столбец29]]-Таблица1[[#This Row],[Столбец27]] -> 0 | AC137: =Таблица1[[#This Row],[резы]]*Таблица1[[#This Row],[шир.рез]]/1000*Таблица1[[#This Row],[коэф]]/2 -> 0 | AD137: =SUMIFS($Y$61:$Y$115,$C$61:$C$115,Таблица1[[#This Row],[Дл]],$D$61:$D$115,"=500",$L$61:$L$115,Таблица1[[#This Row],[Толщ.копия]],$F$61:$F$115,Таблица1[[#This Row],[АСТРА]]) -> 0 | AE137: =SUMIFS($Y$61:$Y$115,$C$61:$C$115,"<"&Таблица1[[#This Row],[Дл]],$D$61:$D$115,"=500",$L$61:$L$115,Таблица1[[#This Row],[Толщ.копия]],$F$61:$F$115,Таблица1[[#This Row],[АСТРА]]) -> 0 | AF137: 5 | AG137: =IF(Таблица1[[#This Row],[профиль]]=Таблица1[[#This Row],[толщ]],CONCATENATE(Таблица1[[#This Row],[Столбец33]]," ",Таблица1[[#This Row],[толщ]]),CONCATENATE(Таблица1[[#This Row],[Столбец33]]," ",Таблица1[[#This Row],[профиль]],"х",Таблица1[[#This Row],[толщ]])) -> Труба 60х30х2 | AH137: =CONCATENATE(Таблица1[[#This Row],[Столбец33]]," ",Таблица1[[#This Row],[профиль]]) -> Труба 60х30 | AI137: Труба 60х30, 2.0 мм, тр6030 | AJ137: Труба | AK137: =IF(Таблица1[[#This Row],[профиль]]=Таблица1[[#This Row],[толщ]],Таблица1[[#This Row],[толщ]],CONCATENATE(Таблица1[[#This Row],[профиль]],"х",Таблица1[[#This Row],[точка]])) -> 60х30х2 | AL137: 60х30 | AM137: 2 | AN137: =SUBSTITUTE(Таблица1[[#This Row],[толщ]],",",".") -> 2 | AO137: 5.3
A138: =IF(Таблица1[[#This Row],[Столбец19]]=0,"z","") -> z | D138: 6000 | F138: =SUMIFS($G$61:$G$115,$D$61:$D$115,500,$C$61:$C$115,Таблица1[[#This Row],[Дл]],$L$61:$L$115,Таблица1[[#This Row],[Толщ.копия]],$F$61:$F$115,Таблица1[[#This Row],[АСТРА]]) -> 0 | G138: =Таблица1[[#This Row],[толщ]] -> 1.2 | H138: =Таблица1[[#This Row],[ГОСТ]] -> Труба пл.ов. 30х15х1,2 | I138: =SUMIFS($N$61:$N$115,$C$61:$C$115,Таблица1[[#This Row],[Дл]],$D$61:$D$115,"=500",$L$61:$L$115,Таблица1[[#This Row],[Толщ.копия]],$F$61:$F$115,Таблица1[[#This Row],[АСТРА]]) -> 0 | J138: =SUMIFS($N$61:$N$115,$C$61:$C$115,"<"&Таблица1[[#This Row],[Дл]],$D$61:$D$115,"=500",$L$61:$L$115,Таблица1[[#This Row],[Толщ.копия]],$F$61:$F$115,Таблица1[[#This Row],[АСТРА]]) -> 0 | M138: =SUMIFS($J$8:$J$57,$K$8:$K$57,Таблица1[[#This Row],[Столбец5]]) -> 880 | N138: =Таблица1[[#This Row],[Столбец8]]+Таблица1[[#This Row],[Столбец9]] -> 0 | O138: =SUMIFS($Q$61:$Q$115,$C$61:$C$115,Таблица1[[#This Row],[Дл]],$D$61:$D$115,"=500",$L$61:$L$115,Таблица1[[#This Row],[Толщ.копия]],$F$61:$F$115,Таблица1[[#This Row],[АСТРА]]) -> 0 | P138: =SUMIFS($Q$61:$Q$115,$C$61:$C$115,"<"&Таблица1[[#This Row],[Дл]],$D$61:$D$115,"=500",$L$61:$L$115,Таблица1[[#This Row],[Толщ.копия]],$F$61:$F$115,Таблица1[[#This Row],[АСТРА]]) -> 0 | Q138: =Таблица1[[#This Row],[Столбец13]]+Таблица1[[#This Row],[Столбец14]] -> 0 | R138: =Таблица1[[#This Row],[Столбец28]]+Таблица1[[#This Row],[Столбец29]]-Таблица1[[#This Row],[Столбец27]] -> -3.08 | S138: =SUMIFS($T$61:$T$115,$C$61:$C$115,Таблица1[[#This Row],[Дл]],$D$61:$D$115,"=500",$L$61:$L$115,Таблица1[[#This Row],[Толщ.копия]],$F$61:$F$115,Таблица1[[#This Row],[АСТРА]]) -> 0 | T138: =SUMIFS($T$61:$T$115,$C$61:$C$115,"<"&Таблица1[[#This Row],[Дл]],$D$61:$D$115,"=500",$L$61:$L$115,Таблица1[[#This Row],[Толщ.копия]],$F$61:$F$115,Таблица1[[#This Row],[АСТРА]]) -> 0 | U138: =Таблица1[[#This Row],[Столбец17]]+Таблица1[[#This Row],[Столбец18]] -> 0 | Y138: =SUMIFS($X$61:$X$115,$C$61:$C$115,Таблица1[[#This Row],[Дл]],$D$61:$D$115,"=500",$L$61:$L$115,Таблица1[[#This Row],[Толщ.копия]],$F$61:$F$115,Таблица1[[#This Row],[АСТРА]]) -> 0 | Z138: =SUMIFS($X$61:$X$115,$C$61:$C$115,"<"&Таблица1[[#This Row],[Дл]],$D$61:$D$115,"=500",$L$61:$L$115,Таблица1[[#This Row],[Толщ.копия]],$F$61:$F$115,Таблица1[[#This Row],[АСТРА]]) -> 0 | AA138: =Таблица1[[#This Row],[Столбец23]]+Таблица1[[#This Row],[Столбец24]] -> 0 | AB138: =Таблица1[[#This Row],[Столбец28]]+Таблица1[[#This Row],[Столбец29]]-Таблица1[[#This Row],[Столбец27]] -> -3.08 | AC138: =Таблица1[[#This Row],[резы]]*Таблица1[[#This Row],[шир.рез]]/1000*Таблица1[[#This Row],[коэф]]/2 -> 3.08 | AD138: =SUMIFS($Y$61:$Y$115,$C$61:$C$115,Таблица1[[#This Row],[Дл]],$D$61:$D$115,"=500",$L$61:$L$115,Таблица1[[#This Row],[Толщ.копия]],$F$61:$F$115,Таблица1[[#This Row],[АСТРА]]) -> 0 | AE138: =SUMIFS($Y$61:$Y$115,$C$61:$C$115,"<"&Таблица1[[#This Row],[Дл]],$D$61:$D$115,"=500",$L$61:$L$115,Таблица1[[#This Row],[Толщ.копия]],$F$61:$F$115,Таблица1[[#This Row],[АСТРА]]) -> 0 | AF138: 5 | AG138: =IF(Таблица1[[#This Row],[профиль]]=Таблица1[[#This Row],[толщ]],CONCATENATE(Таблица1[[#This Row],[Столбец33]]," ",Таблица1[[#This Row],[толщ]]),CONCATENATE(Таблица1[[#This Row],[Столбец33]]," ",Таблица1[[#This Row],[профиль]],"х",Таблица1[[#This Row],[толщ]])) -> Труба пл.ов. 30х15х1,2 | AH138: =CONCATENATE(Таблица1[[#This Row],[Столбец33]]," ",Таблица1[[#This Row],[профиль]]) -> Труба пл.ов. 30х15 | AI138: Труба плоскоовальная 30х15, 1.2 мм, трпл-ов3015 | AJ138: Труба пл.ов. | AK138: =IF(Таблица1[[#This Row],[профиль]]=Таблица1[[#This Row],[толщ]],Таблица1[[#This Row],[толщ]],CONCATENATE(Таблица1[[#This Row],[профиль]],"х",Таблица1[[#This Row],[точка]])) -> 30х15х1.2 | AL138: 30х15 | AM138: 1.2 | AN138: =SUBSTITUTE(Таблица1[[#This Row],[толщ]],",",".") -> 1.2 | AO138: 1.4
A139: =IF(Таблица1[[#This Row],[Столбец19]]=0,"z","") -> z | B139: 6 | D139: 6000 | F139: =SUMIFS($G$61:$G$115,$D$61:$D$115,500,$C$61:$C$115,Таблица1[[#This Row],[Дл]],$L$61:$L$115,Таблица1[[#This Row],[Толщ.копия]],$F$61:$F$115,Таблица1[[#This Row],[АСТРА]]) -> 0 | G139: =Таблица1[[#This Row],[толщ]] -> 1.5 | H139: =Таблица1[[#This Row],[ГОСТ]] -> Труба пл.ов. 30х15х1,5 | I139: =SUMIFS($N$61:$N$115,$C$61:$C$115,Таблица1[[#This Row],[Дл]],$D$61:$D$115,"=500",$L$61:$L$115,Таблица1[[#This Row],[Толщ.копия]],$F$61:$F$115,Таблица1[[#This Row],[АСТРА]]) -> 0 | J139: =SUMIFS($N$61:$N$115,$C$61:$C$115,"<"&Таблица1[[#This Row],[Дл]],$D$61:$D$115,"=500",$L$61:$L$115,Таблица1[[#This Row],[Толщ.копия]],$F$61:$F$115,Таблица1[[#This Row],[АСТРА]]) -> 0 | M139: =SUMIFS($J$8:$J$57,$K$8:$K$57,Таблица1[[#This Row],[Столбец5]]) -> 0 | N139: =Таблица1[[#This Row],[Столбец8]]+Таблица1[[#This Row],[Столбец9]] -> 0 | O139: =SUMIFS($Q$61:$Q$115,$C$61:$C$115,Таблица1[[#This Row],[Дл]],$D$61:$D$115,"=500",$L$61:$L$115,Таблица1[[#This Row],[Толщ.копия]],$F$61:$F$115,Таблица1[[#This Row],[АСТРА]]) -> 0 | P139: =SUMIFS($Q$61:$Q$115,$C$61:$C$115,"<"&Таблица1[[#This Row],[Дл]],$D$61:$D$115,"=500",$L$61:$L$115,Таблица1[[#This Row],[Толщ.копия]],$F$61:$F$115,Таблица1[[#This Row],[АСТРА]]) -> 0 | Q139: =Таблица1[[#This Row],[Столбец13]]+Таблица1[[#This Row],[Столбец14]] -> 0 | R139: =Таблица1[[#This Row],[Столбец28]]+Таблица1[[#This Row],[Столбец29]]-Таблица1[[#This Row],[Столбец27]] -> 0 | S139: =SUMIFS($T$61:$T$115,$C$61:$C$115,Таблица1[[#This Row],[Дл]],$D$61:$D$115,"=500",$L$61:$L$115,Таблица1[[#This Row],[Толщ.копия]],$F$61:$F$115,Таблица1[[#This Row],[АСТРА]]) -> 0 | T139: =SUMIFS($T$61:$T$115,$C$61:$C$115,"<"&Таблица1[[#This Row],[Дл]],$D$61:$D$115,"=500",$L$61:$L$115,Таблица1[[#This Row],[Толщ.копия]],$F$61:$F$115,Таблица1[[#This Row],[АСТРА]]) -> 0 | U139: =Таблица1[[#This Row],[Столбец17]]+Таблица1[[#This Row],[Столбец18]] -> 0 | Y139: =SUMIFS($X$61:$X$115,$C$61:$C$115,Таблица1[[#This Row],[Дл]],$D$61:$D$115,"=500",$L$61:$L$115,Таблица1[[#This Row],[Толщ.копия]],$F$61:$F$115,Таблица1[[#This Row],[АСТРА]]) -> 0 | Z139: =SUMIFS($X$61:$X$115,$C$61:$C$115,"<"&Таблица1[[#This Row],[Дл]],$D$61:$D$115,"=500",$L$61:$L$115,Таблица1[[#This Row],[Толщ.копия]],$F$61:$F$115,Таблица1[[#This Row],[АСТРА]]) -> 0 | AA139: =Таблица1[[#This Row],[Столбец23]]+Таблица1[[#This Row],[Столбец24]] -> 0 | AB139: =Таблица1[[#This Row],[Столбец28]]+Таблица1[[#This Row],[Столбец29]]-Таблица1[[#This Row],[Столбец27]] -> 0 | AC139: =Таблица1[[#This Row],[резы]]*Таблица1[[#This Row],[шир.рез]]/1000*Таблица1[[#This Row],[коэф]]/2 -> 0 | AD139: =SUMIFS($Y$61:$Y$115,$C$61:$C$115,Таблица1[[#This Row],[Дл]],$D$61:$D$115,"=500",$L$61:$L$115,Таблица1[[#This Row],[Толщ.копия]],$F$61:$F$115,Таблица1[[#This Row],[АСТРА]]) -> 0 | AE139: =SUMIFS($Y$61:$Y$115,$C$61:$C$115,"<"&Таблица1[[#This Row],[Дл]],$D$61:$D$115,"=500",$L$61:$L$115,Таблица1[[#This Row],[Толщ.копия]],$F$61:$F$115,Таблица1[[#This Row],[АСТРА]]) -> 0 | AF139: 5 | AG139: =IF(Таблица1[[#This Row],[профиль]]=Таблица1[[#This Row],[толщ]],CONCATENATE(Таблица1[[#This Row],[Столбец33]]," ",Таблица1[[#This Row],[толщ]]),CONCATENATE(Таблица1[[#This Row],[Столбец33]]," ",Таблица1[[#This Row],[профиль]],"х",Таблица1[[#This Row],[толщ]])) -> Труба пл.ов. 30х15х1,5 | AH139: =CONCATENATE(Таблица1[[#This Row],[Столбец33]]," ",Таблица1[[#This Row],[профиль]]) -> Труба пл.ов. 30х15 | AI139: Труба плоскоовальная 30х15, 1.5 мм, трпл-ов3015 | AJ139: Труба пл.ов. | AK139: =IF(Таблица1[[#This Row],[профиль]]=Таблица1[[#This Row],[толщ]],Таблица1[[#This Row],[толщ]],CONCATENATE(Таблица1[[#This Row],[профиль]],"х",Таблица1[[#This Row],[точка]])) -> 30х15х1.5 | AL139: 30х15 | AM139: 1.5 | AN139: =SUBSTITUTE(Таблица1[[#This Row],[толщ]],",",".") -> 1.5 | AO139: 1.918
B146: Подпись | F146: Инженер-технолог
B147: Подпись | F147: Нач техотдела
B148: Подпись | F148: Генеральный директор

Sheet ЛИСТ
A1: z | K1: z | L1: z | AA1: z | AB1: z | AC1: z | AD1: z | AE1: z | AF1: z | AG1: z | AH1: z | AI1: z
F2: Приложение № 1 к ЛЗК ___
H3: =CONCATENATE("НЕ СОВПАДЕНИЕ ",ROUND(L6-L7,3)," кг") -> НЕ СОВПАДЕНИЕ -17522,433 кг | L3: 0 | O3: =TODAY() -> 2023-07-27
D4: =ТРУБА!C4 -> (19137.022.20.9016) Кронштейн 240
D5: =CONCATENATE("Изделие из: ",IF(ТРУБА!M7>0,"ТРУБА, ",""),IF(ЛИСТ!L7>0,"ЛИСТ, ",""),IF(ПРОВОЛОКА!R83>0,"ПРОВОЛОКА, ",""),IF(ПВХ!I60>0,"ПВХ ","")) -> Изделие из: ТРУБА, ЛИСТ, ПРОВОЛОКА, ПВХ | O5: по картам | W5: Сумма
F6: План | H6: 80 | I6: шт | L6: =SUM(Таблица3[Столбец25]) -> 176.3443463 | O6: кол-во | P6: сумма | W6: =SUM(W8:W57) -> 43.21010214 | AA6: разница массы (рас-фак)
B7: № п/п | C7: Длина | D7: Ширина | E7: Кол-во на изделие | F7: Вращение детали 1 - да 0 - нет | G7: S тол-на | H7: материал | I7: Наименование детали | J7: Кол-во на план | K7: ГОСТ | L7: =SUM(L8:L57) -> 17698.77767 | M7: Площадь факт м2 | N7: Площадь расч м2 | P7: =SUM(P8:P57) -> 0.072107 | Q7: коэф массы | R7: толщина (запятая) | S7: номерация | U7: Длина реза мм | V7: Кол-во на план | W7: Угар/ план/ детали | X7: общая длина реза/м/п
A8: =IF(E8=0,"z","") ->  | B8: =IF(E8=0,"",S8) -> 1 | C8: 970 | D8: 520 | E8: 1 | F8: 1 | G8: =IF(K8="","",VLOOKUP(K8,Таблица3[[#All],[Столбец9]:[точка]],24,0)) -> 1.5 | H8: =IF(K8="","",VLOOKUP(K8,Таблица3[[#All],[Столбец9]:[точка]],21,0)) -> Лист лазер | I8: деталька | J8: =$H$6*E8 -> 80 | K8: Лист 1,5 | L8: =IFERROR(IF(M8=0,N8*J8*R8*Q8,M8*J8*R8*Q8),"") -> 448.2359539 | M8: 0.474384 | N8: =C8*D8/1000000 -> 0.5044 | O8: 0 | P8: =O8*N8 -> 0 | Q8: =IFERROR(VLOOKUP(H8,Таблица3[[#All],[Столбец28]:[Столбец30]],3,0),"0") -> 7.874 | R8: =IF(K8="","",VLOOKUP(K8,Таблица3[[#All],[Столбец9]:[точка]],3,0)) -> 1.5 | S8: =IF(J8=0,0,1) -> 1 | U8: =(C8+D8)*2 -> 2980 | V8: =U8*J8/1000 -> 238.4 | W8: =IF(R8="","",X8*0.15*R8*Q8/1000) -> 1.258636853 | X8: =U8*V8/1000 -> 710.432 | AA8: =IF(M8=0,0,(N8-M8)*J8*R8*Q8) -> 28.36151808
A9: =IF(E9=0,"z","") ->  | B9: 2 | C9: 303 | D9: 303 | E9: 5 | F9: 1 | G9: =IF(K9="","",VLOOKUP(K9,Таблица3[[#All],[Столбец9]:[точка]],24,0)) -> 2 | H9: =IF(K9="","",VLOOKUP(K9,Таблица3[[#All],[Столбец9]:[точка]],21,0)) -> Лист лазер | I9: штучка | J9: =$H$6*E9 -> 400 | K9: Лист 2 | L9: =IFERROR(IF(M9=0,N9*J9*R9*Q9,M9*J9*R9*Q9),"") -> 454.2164144 | M9: 0.072107 | N9: =C9*D9/1000000 -> 0.091809 | O9: 0 | P9: =IF(M9=0,O9*N9,M9) -> 0.072107 | Q9: =IFERROR(VLOOKUP(H9,Таблица3[[#All],[Столбец28]:[Столбец30]],3,0),"0") -> 7.874 | R9: =IF(K9="","",VLOOKUP(K9,Таблица3[[#All],[Столбец9]:[точка]],3,0)) -> 2 | S9: =IF(J9=0,S8,S8+1) -> 2 | U9: =(C9+D9)*2 -> 1212 | V9: =U9*J9/1000 -> 484.8 | W9: 1.387975807 | X9: =U9*V9/1000 -> 587.5776 | AA9: =IF(M9=0,0,(N9-M9)*J9*R9*Q9) -> 124.1068384
B10: 3 | C10: 654 | D10: 565 | E10: 72 | F10: 1 | G10: =IF(K10="","",VLOOKUP(K10,Таблица3[[#All],[Столбец9]:[точка]],24,0)) -> 1 | H10: =IF(K10="","",VLOOKUP(K10,Таблица3[[#All],[Столбец9]:[точка]],21,0)) -> листоц | J10: 5760 | K10: Лист ОЦ 1 | L10: 16790.53251 | N10: =C10*D10/1000000 -> 0.36951 | O10: 0 | P10: =IF(M10=0,O10*N10,M10) -> 0 | Q10: =IFERROR(VLOOKUP(H10,Таблица3[[#All],[Столбец28]:[Столбец30]],3,0),"0") -> 7.888888 | R10: =IF(K10="","",VLOOKUP(K10,Таблица3[[#All],[Столбец9]:[точка]],3,0)) -> 1 | S10: =IF(J10=0,S9,S9+1) -> 3 | U10: =(C10+D10)*2 -> 2438 | V10: =U10*J10/1000 -> 14042.88 | W10: =IF(R10="","",X10*0.15*R10*Q10/1000) -> 40.51323614 | X10: =U10*V10/1000 -> 34236.54144 | AA10: 0
A11: =IF(E11=0,"z","") ->  | B11: =IF(E11=0,"",S11) -> 4 | C11: 45 | D11: 557 | E11: 1 | F11: 1 | G11: =IF(K11="","",VLOOKUP(K11,Таблица3[[#All],[Столбец9]:[точка]],24,0)) -> 1 | H11: =IF(K11="","",VLOOKUP(K11,Таблица3[[#All],[Столбец9]:[точка]],21,0)) -> пвл1 | J11: =$H$6*E11 -> 80 | K11: Сетка ПВЛ 1 | L11: =IFERROR(IF(M11=0,N11*J11*R11*Q11,M11*J11*R11*Q11),"") -> 5.792798218 | N11: =C11*D11/1000000 -> 0.025065 | O11: 0 | P11: =IF(M11=0,O11*N11,M11) -> 0 | Q11: =IFERROR(VLOOKUP(H11,Таблица3[[#All],[Столбец28]:[Столбец30]],3,0),"0") -> 2.888888 | R11: =IF(K11="","",VLOOKUP(K11,Таблица3[[#All],[Столбец9]:[точка]],3,0)) -> 1 | S11: =IF(J11=0,S10,S10+1) -> 4 | U11: =(C11+D11)*2 -> 1204 | V11: =U11*J11/1000 -> 96.32 | W11: =IF(R11="","",X11*0.15*R11*Q11/1000) -> 0.0502533392 | X11: =U11*V11/1000 -> 115.96928 | AA11: =IF(M11=0,0,(N11-M11)*J11*R11*Q11) -> 0
A12: z | F12: 1 | G12: =IF(K12="","",VLOOKUP(K12,Таблица3[[#All],[Столбец9]:[точка]],24,0)) ->  | H12: =IF(K12="","",VLOOKUP(K12,Таблица3[[#All],[Столбец9]:[точка]],21,0)) ->  | J12: 0 | N12: 0 | O12: 0 | P12: 0 | Q12: =IFERROR(VLOOKUP(H12,Таблица3[[#All],[Столбец28]:[Столбец30]],3,0),"0") -> 0 | R12: =IF(K12="","",VLOOKUP(K12,Таблица3[[#All],[Столбец9]:[точка]],3,0)) ->  | S12: 4 | U12: 0 | V12: 0 | X12: 0 | AA12: 0
A13: z | F13: 1 | G13: =IF(K13="","",VLOOKUP(K13,Таблица3[[#All],[Столбец9]:[точка]],24,0)) -> 1 | H13: =IF(K13="","",VLOOKUP(K13,Таблица3[[#All],[Столбец9]:[точка]],21,0)) -> пвл1 | J13: 0 | K13: Сетка ПВЛ 1 | L13: 0 | N13: 0 | O13: 0 | P13: 0 | Q13: =IFERROR(VLOOKUP(H13,Таблица3[[#All],[Столбец28]:[Столбец30]],3,0),"0") -> 2.888888 | R13: =IF(K13="","",VLOOKUP(K13,Таблица3[[#All],[Столбец9]:[точка]],3,0)) -> 1 | S13: 4 | U13: 0 | V13: 0 | W13: 0 | X13: 0 | AA13: 0
A14: z | F14: 1 | G14: =IF(K14="","",VLOOKUP(K14,Таблица3[[#All],[Столбец9]:[точка]],24,0)) ->  | H14: =IF(K14="","",VLOOKUP(K14,Таблица3[[#All],[Столбец9]:[точка]],21,0)) ->  | J14: 0 | N14: 0 | O14: 0 | P14: 0 | Q14: =IFERROR(VLOOKUP(H14,Таблица3[[#All],[Столбец28]:[Столбец30]],3,0),"0") -> 0 | R14: =IF(K14="","",VLOOKUP(K14,Таблица3[[#All],[Столбец9]:[точка]],3,0)) ->  | S14: 4 | U14: 0 | V14: 0 | X14: 0 | AA14: 0
A15: z | F15: 1 | G15: =IF(K15="","",VLOOKUP(K15,Таблица3[[#All],[Столбец9]:[точка]],24,0)) ->  | H15: =IF(K15="","",VLOOKUP(K15,Таблица3[[#All],[Столбец9]:[точка]],21,0)) ->  | J15: 0 | N15: 0 | O15: 0 | P15: 0 | Q15: =IFERROR(VLOOKUP(H15,Таблица3[[#All],[Столбец28]:[Столбец30]],3,0),"0") -> 0 | R15: =IF(K15="","",VLOOKUP(K15,Таблица3[[#All],[Столбец9]:[точка]],3,0)) ->  | S15: 4 | U15: 0 | V15: 0 | X15: 0 | AA15: 0
A16: z | F16: 1 | G16: =IF(K16="","",VLOOKUP(K16,Таблица3[[#All],[Столбец9]:[точка]],24,0)) ->  | H16: =IF(K16="","",VLOOKUP(K16,Таблица3[[#All],[Столбец9]:[точка]],21,0)) ->  | J16: 0 | N16: 0 | O16: 0 | P16: 0 | Q16: =IFERROR(VLOOKUP(H16,Таблица3[[#All],[Столбец28]:[Столбец30]],3,0),"0") -> 0 | R16: =IF(K16="","",VLOOKUP(K16,Таблица3[[#All],[Столбец9]:[точка]],3,0)) ->  | S16: 4 | U16: 0 | V16: 0 | X16: 0 | AA16: 0
A17: z | F17: 1 | G17: =IF(K17="","",VLOOKUP(K17,Таблица3[[#All],[Столбец9]:[точка]],24,0)) ->  | H17: =IF(K17="","",VLOOKUP(K17,Таблица3[[#All],[Столбец9]:[точка]],21,0)) ->  | J17: 0 | N17: 0 | O17: 0 | P17: 0 | Q17: =IFERROR(VLOOKUP(H17,Таблица3[[#All],[Столбец28]:[Столбец30]],3,0),"0") -> 0 | R17: =IF(K17="","",VLOOKUP(K17,Таблица3[[#All],[Столбец9]:[точка]],3,0)) ->  | S17: 4 | U17: 0 | V17: 0 | X17: 0 | AA17: 0
A18: z | F18: 1 | G18: =IF(K18="","",VLOOKUP(K18,Таблица3[[#All],[Столбец9]:[точка]],24,0)) -> 1.5 | H18: =IF(K18="","",VLOOKUP(K18,Таблица3[[#All],[Столбец9]:[точка]],21,0)) -> Лист лазер | J18: 0 | K18: Лист 1,5 | L18: 0 | N18: 0 | O18: 0 | P18: 0 | Q18: =IFERROR(VLOOKUP(H18,Таблица3[[#All],[Столбец28]:[Столбец30]],3,0),"0") -> 7.874 | R18: =IF(K18="","",VLOOKUP(K18,Таблица3[[#All],[Столбец9]:[точка]],3,0)) -> 1.5 | S18: 4 | U18: 0 | V18: 0 | W18: 0 | X18: 0 | AA18: 0
A19: z | F19: 1 | G19: =IF(K19="","",VLOOKUP(K19,Таблица3[[#All],[Столбец9]:[точка]],24,0)) ->  | H19: =IF(K19="","",VLOOKUP(K19,Таблица3[[#All],[Столбец9]:[точка]],21,0)) ->  | J19: 0 | N19: 0 | O19: 0 | P19: 0 | Q19: =IFERROR(VLOOKUP(H19,Таблица3[[#All],[Столбец28]:[Столбец30]],3,0),"0") -> 0 | R19: =IF(K19="","",VLOOKUP(K19,Таблица3[[#All],[Столбец9]:[точка]],3,0)) ->  | S19: 4 | U19: 0 | V19: 0 | X19: 0 | AA19: 0
A20: =IF(E20=0,"z","") -> z | B20: =IF(E20=0,"",S20) ->  | F20: 1 | G20: =IF(K20="","",VLOOKUP(K20,Таблица3[[#All],[Столбец9]:[точка]],24,0)) ->  | H20: =IF(K20="","",VLOOKUP(K20,Таблица3[[#All],[Столбец9]:[точка]],21,0)) ->  | J20: =$H$6*E20 -> 0 | L20: =IFERROR(IF(M20=0,N20*J20*R20*Q20,M20*J20*R20*Q20),"") ->  | N20: =C20*D20/1000000 -> 0 | O20: 0 | P20: =IF(M20=0,O20*N20,M20) -> 0 | Q20: =IFERROR(VLOOKUP(H20,Таблица3[[#All],[Столбец28]:[Столбец30]],3,0),"0") -> 0 | R20: =IF(K20="","",VLOOKUP(K20,Таблица3[[#All],[Столбец9]:[точка]],3,0)) ->  | S20: 4 | U20: =(C20+D20)*2 -> 0 | V20: =U20*J20/1000 -> 0 | W20: =IF(R20="","",X20*0.15*R20*Q20/1000) ->  | X20: =U20*V20/1000 -> 0 | AA20: =IF(M20=0,0,(N20-M20)*J20*R20*Q20) -> 0
A21: z | F21: 1 | G21: =IF(K21="","",VLOOKUP(K21,Таблица3[[#All],[Столбец9]:[точка]],24,0)) ->  | H21: =IF(K21="","",VLOOKUP(K21,Таблица3[[#All],[Столбец9]:[точка]],21,0)) ->  | J21: 0 | N21: 0 | O21: 0 | P21: 0 | Q21: =IFERROR(VLOOKUP(H21,Таблица3[[#All],[Столбец28]:[Столбец30]],3,0),"0") -> 0 | R21: =IF(K21="","",VLOOKUP(K21,Таблица3[[#All],[Столбец9]:[точка]],3,0)) ->  | S21: 4 | U21: 0 | V21: 0 | X21: 0 | AA21: 0
A22: z | F22: 1 | G22: =IF(K22="","",VLOOKUP(K22,Таблица3[[#All],[Столбец9]:[точка]],24,0)) ->  | H22: =IF(K22="","",VLOOKUP(K22,Таблица3[[#All],[Столбец9]:[точка]],21,0)) ->  | J22: 0 | N22: 0 | O22: 0 | P22: 0 | Q22: =IFERROR(VLOOKUP(H22,Таблица3[[#All],[Столбец28]:[Столбец30]],3,0),"0") -> 0 | R22: =IF(K22="","",VLOOKUP(K22,Таблица3[[#All],[Столбец9]:[точка]],3,0)) ->  | S22: 4 | U22: 0 | V22: 0 | X22: 0 | AA22: 0
A23: z | F23: 1 | G23: =IF(K23="","",VLOOKUP(K23,Таблица3[[#All],[Столбец9]:[точка]],24,0)) ->  | H23: =IF(K23="","",VLOOKUP(K23,Таблица3[[#All],[Столбец9]:[точка]],21,0)) ->  | J23: 0 | N23: 0 | O23: 0 | P23: 0 | Q23: =IFERROR(VLOOKUP(H23,Таблица3[[#All],[Столбец28]:[Столбец30]],3,0),"0") -> 0 | R23: =IF(K23="","",VLOOKUP(K23,Таблица3[[#All],[Столбец9]:[точка]],3,0)) ->  | S23: 4 | U23: 0 | V23: 0 | X23: 0 | AA23: 0
A24: z | F24: 1 | G24: =IF(K24="","",VLOOKUP(K24,Таблица3[[#All],[Столбец9]:[точка]],24,0)) ->  | H24: =IF(K24="","",VLOOKUP(K24,Таблица3[[#All],[Столбец9]:[точка]],21,0)) ->  | J24: 0 | N24: 0 | O24: 0 | P24: 0 | Q24: =IFERROR(VLOOKUP(H24,Таблица3[[#All],[Столбец28]:[Столбец30]],3,0),"0") -> 0 | R24: =IF(K24="","",VLOOKUP(K24,Таблица3[[#All],[Столбец9]:[точка]],3,0)) ->  | S24: 4 | U24: 0 | V24: 0 | X24: 0 | AA24: 0
A25: z | F25: 1 | G25: =IF(K25="","",VLOOKUP(K25,Таблица3[[#All],[Столбец9]:[точка]],24,0)) ->  | H25: =IF(K25="","",VLOOKUP(K25,Таблица3[[#All],[Столбец9]:[точка]],21,0)) ->  | J25: 0 | N25: 0 | O25: 0 | P25: 0 | Q25: =IFERROR(VLOOKUP(H25,Таблица3[[#All],[Столбец28]:[Столбец30]],3,0),"0") -> 0 | R25: =IF(K25="","",VLOOKUP(K25,Таблица3[[#All],[Столбец9]:[точка]],3,0)) ->  | S25: 4 | U25: 0 | V25: 0 | X25: 0 | AA25: 0
A26: z | F26: 1 | G26: =IF(K26="","",VLOOKUP(K26,Таблица3[[#All],[Столбец9]:[точка]],24,0)) ->  | H26: =IF(K26="","",VLOOKUP(K26,Таблица3[[#All],[Столбец9]:[точка]],21,0)) ->  | J26: 0 | N26: 0 | O26: 0 | P26: 0 | Q26: =IFERROR(VLOOKUP(H26,Таблица3[[#All],[Столбец28]:[Столбец30]],3,0),"0") -> 0 | R26: =IF(K26="","",VLOOKUP(K26,Таблица3[[#All],[Столбец9]:[точка]],3,0)) ->  | S26: 4 | U26: 0 | V26: 0 | X26: 0 | AA26: 0
A27: z | F27: 1 | G27: =IF(K27="","",VLOOKUP(K27,Таблица3[[#All],[Столбец9]:[точка]],24,0)) ->  | H27: =IF(K27="","",VLOOKUP(K27,Таблица3[[#All],[Столбец9]:[точка]],21,0)) ->  | J27: 0 | N27: 0 | O27: 0 | P27: 0 | Q27: =IFERROR(VLOOKUP(H27,Таблица3[[#All],[Столбец28]:[Столбец30]],3,0),"0") -> 0 | R27: =IF(K27="","",VLOOKUP(K27,Таблица3[[#All],[Столбец9]:[точка]],3,0)) ->  | S27: 4 | U27: 0 | V27: 0 | X27: 0 | AA27: 0
A28: z | F28: 1 | G28: =IF(K28="","",VLOOKUP(K28,Таблица3[[#All],[Столбец9]:[точка]],24,0)) ->  | H28: =IF(K28="","",VLOOKUP(K28,Таблица3[[#All],[Столбец9]:[точка]],21,0)) ->  | J28: 0 | N28: 0 | O28: 0 | P28: 0 | Q28: =IFERROR(VLOOKUP(H28,Таблица3[[#All],[Столбец28]:[Столбец30]],3,0),"0") -> 0 | R28: =IF(K28="","",VLOOKUP(K28,Таблица3[[#All],[Столбец9]:[точка]],3,0)) ->  | S28: 4 | U28: 0 | V28: 0 | X28: 0 | AA28: 0
A29: z | F29: 1 | G29: =IF(K29="","",VLOOKUP(K29,Таблица3[[#All],[Столбец9]:[точка]],24,0)) ->  | H29: =IF(K29="","",VLOOKUP(K29,Таблица3[[#All],[Столбец9]:[точка]],21,0)) ->  | J29: 0 | N29: 0 | O29: 0 | P29: 0 | Q29: =IFERROR(VLOOKUP(H29,Таблица3[[#All],[Столбец28]:[Столбец30]],3,0),"0") -> 0 | R29: =IF(K29="","",VLOOKUP(K29,Таблица3[[#All],[Столбец9]:[точка]],3,0)) ->  | S29: 4 | U29: 0 | V29: 0 | X29: 0 | AA29: 0
A30: z | F30: 1 | G30: =IF(K30="","",VLOOKUP(K30,Таблица3[[#All],[Столбец9]:[точка]],24,0)) ->  | H30: =IF(K30="","",VLOOKUP(K30,Таблица3[[#All],[Столбец9]:[точка]],21,0)) ->  | J30: 0 | N30: 0 | O30: 0 | P30: 0 | Q30: =IFERROR(VLOOKUP(H30,Таблица3[[#All],[Столбец28]:[Столбец30]],3,0),"0") -> 0 | R30: =IF(K30="","",VLOOKUP(K30,Таблица3[[#All],[Столбец9]:[точка]],3,0)) ->  | S30: 4 | U30: 0 | V30: 0 | X30: 0 | AA30: 0
A31: =IF(E31=0,"z","") -> z | B31: =IF(E31=0,"",S31) ->  | F31: 1 | G31: =IF(K31="","",VLOOKUP(K31,Таблица3[[#All],[Столбец9]:[точка]],24,0)) ->  | H31: =IF(K31="","",VLOOKUP(K31,Таблица3[[#All],[Столбец9]:[точка]],21,0)) ->  | J31: =$H$6*E31 -> 0 | L31: =IFERROR(IF(M31=0,N31*J31*R31*Q31,M31*J31*R31*Q31),"") ->  | N31: =C31*D31/1000000 -> 0 | O31: 0 | P31: =IF(M31=0,O31*N31,M31) -> 0 | Q31: =IFERROR(VLOOKUP(H31,Таблица3[[#All],[Столбец28]:[Столбец30]],3,0),"0") -> 0 | R31: =IF(K31="","",VLOOKUP(K31,Таблица3[[#All],[Столбец9]:[точка]],3,0)) ->  | S31: =IF(J31=0,S30,S30+1) -> 4 | U31: =(C31+D31)*2 -> 0 | V31: =U31*J31/1000 -> 0 | W31: =IF(R31="","",X31*0.15*R31*Q31/1000) ->  | X31: =U31*V31/1000 -> 0 | AA31: =IF(M31=0,0,(N31-M31)*J31*R31*Q31) -> 0
A32: z | F32: 1 | G32: =IF(K32="","",VLOOKUP(K32,Таблица3[[#All],[Столбец9]:[точка]],24,0)) ->  | H32: =IF(K32="","",VLOOKUP(K32,Таблица3[[#All],[Столбец9]:[точка]],21,0)) ->  | J32: 0 | N32: 0 | O32: 0 | P32: 0 | Q32: =IFERROR(VLOOKUP(H32,Таблица3[[#All],[Столбец28]:[Столбец30]],3,0),"0") -> 0 | R32: =IF(K32="","",VLOOKUP(K32,Таблица3[[#All],[Столбец9]:[точка]],3,0)) ->  | S32: 4 | U32: 0 | V32: 0 | X32: 0 | AA32: 0
A33: z | F33: 1 | G33: =IF(K33="","",VLOOKUP(K33,Таблица3[[#All],[Столбец9]:[точка]],24,0)) ->  | H33: =IF(K33="","",VLOOKUP(K33,Таблица3[[#All],[Столбец9]:[точка]],21,0)) ->  | J33: 0 | N33: 0 | O33: 0 | P33: 0 | Q33: =IFERROR(VLOOKUP(H33,Таблица3[[#All],[Столбец28]:[Столбец30]],3,0),"0") -> 0 | R33: =IF(K33="","",VLOOKUP(K33,Таблица3[[#All],[Столбец9]:[точка]],3,0)) ->  | S33: 4 | U33: 0 | V33: 0 | X33: 0 | AA33: 0
A34: z | F34: 1 | G34: =IF(K34="","",VLOOKUP(K34,Таблица3[[#All],[Столбец9]:[точка]],24,0)) ->  | H34: =IF(K34="","",VLOOKUP(K34,Таблица3[[#All],[Столбец9]:[точка]],21,0)) ->  | J34: 0 | N34: 0 | O34: 0 | P34: 0 | Q34: =IFERROR(VLOOKUP(H34,Таблица3[[#All],[Столбец28]:[Столбец30]],3,0),"0") -> 0 | R34: =IF(K34="","",VLOOKUP(K34,Таблица3[[#All],[Столбец9]:[точка]],3,0)) ->  | S34: 4 | U34: 0 | V34: 0 | X34: 0 | AA34: 0
A35: z | F35: 1 | G35: =IF(K35="","",VLOOKUP(K35,Таблица3[[#All],[Столбец9]:[точка]],24,0)) ->  | H35: =IF(K35="","",VLOOKUP(K35,Таблица3[[#All],[Столбец9]:[точка]],21,0)) ->  | J35: 0 | N35: 0 | O35: 0 | P35: 0 | Q35: =IFERROR(VLOOKUP(H35,Таблица3[[#All],[Столбец28]:[Столбец30]],3,0),"0") -> 0 | R35: =IF(K35="","",VLOOKUP(K35,Таблица3[[#All],[Столбец9]:[точка]],3,0)) ->  | S35: 4 | U35: 0 | V35: 0 | X35: 0 | AA35: 0
A36: z | F36: 1 | G36: =IF(K36="","",VLOOKUP(K36,Таблица3[[#All],[Столбец9]:[точка]],24,0)) ->  | H36: =IF(K36="","",VLOOKUP(K36,Таблица3[[#All],[Столбец9]:[точка]],21,0)) ->  | J36: 0 | N36: 0 | O36: 0 | P36: 0 | Q36: =IFERROR(VLOOKUP(H36,Таблица3[[#All],[Столбец28]:[Столбец30]],3,0),"0") -> 0 | R36: =IF(K36="","",VLOOKUP(K36,Таблица3[[#All],[Столбец9]:[точка]],3,0)) ->  | S36: 4 | U36: 0 | V36: 0 | X36: 0 | AA36: 0
A37: z | F37: 1 | G37: =IF(K37="","",VLOOKUP(K37,Таблица3[[#All],[Столбец9]:[точка]],24,0)) ->  | H37: =IF(K37="","",VLOOKUP(K37,Таблица3[[#All],[Столбец9]:[точка]],21,0)) ->  | J37: 0 | N37: 0 | O37: 0 | P37: 0 | Q37: =IFERROR(VLOOKUP(H37,Таблица3[[#All],[Столбец28]:[Столбец30]],3,0),"0") -> 0 | R37: =IF(K37="","",VLOOKUP(K37,Таблица3[[#All],[Столбец9]:[точка]],3,0)) ->  | S37: 4 | U37: 0 | V37: 0 | X37: 0 | AA37: 0
A38: z | F38: 1 | G38: =IF(K38="","",VLOOKUP(K38,Таблица3[[#All],[Столбец9]:[точка]],24,0)) ->  | H38: =IF(K38="","",VLOOKUP(K38,Таблица3[[#All],[Столбец9]:[точка]],21,0)) ->  | J38: 0 | N38: 0 | O38: 0 | P38: 0 | Q38: =IFERROR(VLOOKUP(H38,Таблица3[[#All],[Столбец28]:[Столбец30]],3,0),"0") -> 0 | R38: =IF(K38="","",VLOOKUP(K38,Таблица3[[#All],[Столбец9]:[точка]],3,0)) ->  | S38: 4 | U38: 0 | V38: 0 | X38: 0 | AA38: 0
A39: z | F39: 1 | G39: =IF(K39="","",VLOOKUP(K39,Таблица3[[#All],[Столбец9]:[точка]],24,0)) ->  | H39: =IF(K39="","",VLOOKUP(K39,Таблица3[[#All],[Столбец9]:[точка]],21,0)) ->  | J39: 0 | N39: 0 | O39: 0 | P39: 0 | Q39: =IFERROR(VLOOKUP(H39,Таблица3[[#All],[Столбец28]:[Столбец30]],3,0),"0") -> 0 | R39: =IF(K39="","",VLOOKUP(K39,Таблица3[[#All],[Столбец9]:[точка]],3,0)) ->  | S39: 4 | U39: 0 | V39: 0 | X39: 0 | AA39: 0
A40: z | F40: 1 | G40: =IF(K40="","",VLOOKUP(K40,Таблица3[[#All],[Столбец9]:[точка]],24,0)) ->  | H40: =IF(K40="","",VLOOKUP(K40,Таблица3[[#All],[Столбец9]:[точка]],21,0)) ->  | J40: 0 | N40: 0 | O40: 0 | P40: 0 | Q40: =IFERROR(VLOOKUP(H40,Таблица3[[#All],[Столбец28]:[Столбец30]],3,0),"0") -> 0 | R40: =IF(K40="","",VLOOKUP(K40,Таблица3[[#All],[Столбец9]:[точка]],3,0)) ->  | S40: 4 | U40: 0 | V40: 0 | X40: 0 | AA40: 0
A41: z | F41: 1 | G41: =IF(K41="","",VLOOKUP(K41,Таблица3[[#All],[Столбец9]:[точка]],24,0)) ->  | H41: =IF(K41="","",VLOOKUP(K41,Таблица3[[#All],[Столбец9]:[точка]],21,0)) ->  | J41: 0 | N41: 0 | O41: 0 | P41: 0 | Q41: =IFERROR(VLOOKUP(H41,Таблица3[[#All],[Столбец28]:[Столбец30]],3,0),"0") -> 0 | R41: =IF(K41="","",VLOOKUP(K41,Таблица3[[#All],[Столбец9]:[точка]],3,0)) ->  | S41: 4 | U41: 0 | V41: 0 | X41: 0 | AA41: 0
A42: z | F42: 1 | G42: =IF(K42="","",VLOOKUP(K42,Таблица3[[#All],[Столбец9]:[точка]],24,0)) ->  | H42: =IF(K42="","",VLOOKUP(K42,Таблица3[[#All],[Столбец9]:[точка]],21,0)) ->  | J42: 0 | N42: 0 | O42: 0 | P42: 0 | Q42: =IFERROR(VLOOKUP(H42,Таблица3[[#All],[Столбец28]:[Столбец30]],3,0),"0") -> 0 | R42: =IF(K42="","",VLOOKUP(K42,Таблица3[[#All],[Столбец9]:[точка]],3,0)) ->  | S42: 4 | U42: 0 | V42: 0 | X42: 0 | AA42: 0
A43: z | F43: 1 | G43: =IF(K43="","",VLOOKUP(K43,Таблица3[[#All],[Столбец9]:[точка]],24,0)) ->  | H43: =IF(K43="","",VLOOKUP(K43,Таблица3[[#All],[Столбец9]:[точка]],21,0)) ->  | J43: 0 | N43: 0 | O43: 0 | P43: 0 | Q43: =IFERROR(VLOOKUP(H43,Таблица3[[#All],[Столбец28]:[Столбец30]],3,0),"0") -> 0 | R43: =IF(K43="","",VLOOKUP(K43,Таблица3[[#All],[Столбец9]:[точка]],3,0)) ->  | S43: 4 | U43: 0 | V43: 0 | X43: 0 | AA43: 0
A44: z | F44: 1 | G44: =IF(K44="","",VLOOKUP(K44,Таблица3[[#All],[Столбец9]:[точка]],24,0)) ->  | H44: =IF(K44="","",VLOOKUP(K44,Таблица3[[#All],[Столбец9]:[точка]],21,0)) ->  | J44: 0 | N44: 0 | O44: 0 | P44: 0 | Q44: =IFERROR(VLOOKUP(H44,Таблица3[[#All],[Столбец28]:[Столбец30]],3,0),"0") -> 0 | R44: =IF(K44="","",VLOOKUP(K44,Таблица3[[#All],[Столбец9]:[точка]],3,0)) ->  | S44: 4 | U44: 0 | V44: 0 | X44: 0 | AA44: 0
A45: z | F45: 1 | G45: =IF(K45="","",VLOOKUP(K45,Таблица3[[#All],[Столбец9]:[точка]],24,0)) ->  | H45: =IF(K45="","",VLOOKUP(K45,Таблица3[[#All],[Столбец9]:[точка]],21,0)) ->  | J45: 0 | N45: 0 | O45: 0 | P45: 0 | Q45: =IFERROR(VLOOKUP(H45,Таблица3[[#All],[Столбец28]:[Столбец30]],3,0),"0") -> 0 | R45: =IF(K45="","",VLOOKUP(K45,Таблица3[[#All],[Столбец9]:[точка]],3,0)) ->  | S45: 4 | U45: 0 | V45: 0 | X45: 0 | AA45: 0
A46: z | F46: 1 | G46: =IF(K46="","",VLOOKUP(K46,Таблица3[[#All],[Столбец9]:[точка]],24,0)) ->  | H46: =IF(K46="","",VLOOKUP(K46,Таблица3[[#All],[Столбец9]:[точка]],21,0)) ->  | J46: 0 | N46: 0 | O46: 0 | P46: 0 | Q46: =IFERROR(VLOOKUP(H46,Таблица3[[#All],[Столбец28]:[Столбец30]],3,0),"0") -> 0 | R46: =IF(K46="","",VLOOKUP(K46,Таблица3[[#All],[Столбец9]:[точка]],3,0)) ->  | S46: 4 | U46: 0 | V46: 0 | X46: 0 | AA46: 0
A47: z | F47: 1 | G47: =IF(K47="","",VLOOKUP(K47,Таблица3[[#All],[Столбец9]:[точка]],24,0)) ->  | H47: =IF(K47="","",VLOOKUP(K47,Таблица3[[#All],[Столбец9]:[точка]],21,0)) ->  | J47: 0 | N47: 0 | O47: 0 | P47: 0 | Q47: =IFERROR(VLOOKUP(H47,Таблица3[[#All],[Столбец28]:[Столбец30]],3,0),"0") -> 0 | R47: =IF(K47="","",VLOOKUP(K47,Таблица3[[#All],[Столбец9]:[точка]],3,0)) ->  | S47: 4 | U47: 0 | V47: 0 | X47: 0 | AA47: 0
A48: z | F48: 1 | G48: =IF(K48="","",VLOOKUP(K48,Таблица3[[#All],[Столбец9]:[точка]],24,0)) ->  | H48: =IF(K48="","",VLOOKUP(K48,Таблица3[[#All],[Столбец9]:[точка]],21,0)) ->  | J48: 0 | N48: 0 | O48: 0 | P48: 0 | Q48: =IFERROR(VLOOKUP(H48,Таблица3[[#All],[Столбец28]:[Столбец30]],3,0),"0") -> 0 | R48: =IF(K48="","",VLOOKUP(K48,Таблица3[[#All],[Столбец9]:[точка]],3,0)) ->  | S48: 4 | U48: 0 | V48: 0 | X48: 0 | AA48: 0
A49: z | F49: 1 | G49: =IF(K49="","",VLOOKUP(K49,Таблица3[[#All],[Столбец9]:[точка]],24,0)) ->  | H49: =IF(K49="","",VLOOKUP(K49,Таблица3[[#All],[Столбец9]:[точка]],21,0)) ->  | J49: 0 | N49: 0 | O49: 0 | P49: 0 | Q49: =IFERROR(VLOOKUP(H49,Таблица3[[#All],[Столбец28]:[Столбец30]],3,0),"0") -> 0 | R49: =IF(K49="","",VLOOKUP(K49,Таблица3[[#All],[Столбец9]:[точка]],3,0)) ->  | S49: 4 | U49: 0 | V49: 0 | X49: 0 | AA49: 0
A50: z | F50: 1 | G50: =IF(K50="","",VLOOKUP(K50,Таблица3[[#All],[Столбец9]:[точка]],24,0)) ->  | H50: =IF(K50="","",VLOOKUP(K50,Таблица3[[#All],[Столбец9]:[точка]],21,0)) ->  | J50: 0 | N50: 0 | O50: 0 | P50: 0 | Q50: =IFERROR(VLOOKUP(H50,Таблица3[[#All],[Столбец28]:[Столбец30]],3,0),"0") -> 0 | R50: =IF(K50="","",VLOOKUP(K50,Таблица3[[#All],[Столбец9]:[точка]],3,0)) ->  | S50: 4 | U50: 0 | V50: 0 | X50: 0 | AA50: 0
A51: z | F51: 1 | G51: =IF(K51="","",VLOOKUP(K51,Таблица3[[#All],[Столбец9]:[точка]],24,0)) ->  | H51: =IF(K51="","",VLOOKUP(K51,Таблица3[[#All],[Столбец9]:[точка]],21,0)) ->  | J51: 0 | N51: 0 | O51: 0 | P51: 0 | Q51: =IFERROR(VLOOKUP(H51,Таблица3[[#All],[Столбец28]:[Столбец30]],3,0),"0") -> 0 | R51: =IF(K51="","",VLOOKUP(K51,Таблица3[[#All],[Столбец9]:[точка]],3,0)) ->  | S51: 4 | U51: 0 | V51: 0 | X51: 0 | AA51: 0
A52: z | F52: 1 | G52: =IF(K52="","",VLOOKUP(K52,Таблица3[[#All],[Столбец9]:[точка]],24,0)) ->  | H52: =IF(K52="","",VLOOKUP(K52,Таблица3[[#All],[Столбец9]:[точка]],21,0)) ->  | J52: 0 | N52: 0 | O52: 0 | P52: 0 | Q52: =IFERROR(VLOOKUP(H52,Таблица3[[#All],[Столбец28]:[Столбец30]],3,0),"0") -> 0 | R52: =IF(K52="","",VLOOKUP(K52,Таблица3[[#All],[Столбец9]:[точка]],3,0)) ->  | S52: 4 | U52: 0 | V52: 0 | X52: 0 | AA52: 0
A53: z | F53: 1 | G53: =IF(K53="","",VLOOKUP(K53,Таблица3[[#All],[Столбец9]:[точка]],24,0)) ->  | H53: =IF(K53="","",VLOOKUP(K53,Таблица3[[#All],[Столбец9]:[точка]],21,0)) ->  | J53: 0 | N53: 0 | O53: 0 | P53: 0 | Q53: =IFERROR(VLOOKUP(H53,Таблица3[[#All],[Столбец28]:[Столбец30]],3,0),"0") -> 0 | R53: =IF(K53="","",VLOOKUP(K53,Таблица3[[#All],[Столбец9]:[точка]],3,0)) ->  | S53: 4 | U53: 0 | V53: 0 | X53: 0 | AA53: 0
A54: z | F54: 1 | G54: =IF(K54="","",VLOOKUP(K54,Таблица3[[#All],[Столбец9]:[точка]],24,0)) ->  | H54: =IF(K54="","",VLOOKUP(K54,Таблица3[[#All],[Столбец9]:[точка]],21,0)) ->  | J54: 0 | N54: 0 | O54: 0 | P54: 0 | Q54: =IFERROR(VLOOKUP(H54,Таблица3[[#All],[Столбец28]:[Столбец30]],3,0),"0") -> 0 | R54: =IF(K54="","",VLOOKUP(K54,Таблица3[[#All],[Столбец9]:[точка]],3,0)) ->  | S54: 4 | U54: 0 | V54: 0 | X54: 0 | AA54: 0
A55: z | F55: 1 | G55: =IF(K55="","",VLOOKUP(K55,Таблица3[[#All],[Столбец9]:[точка]],24,0)) ->  | H55: =IF(K55="","",VLOOKUP(K55,Таблица3[[#All],[Столбец9]:[точка]],21,0)) ->  | J55: 0 | N55: 0 | O55: 0 | P55: 0 | Q55: =IFERROR(VLOOKUP(H55,Таблица3[[#All],[Столбец28]:[Столбец30]],3,0),"0") -> 0 | R55: =IF(K55="","",VLOOKUP(K55,Таблица3[[#All],[Столбец9]:[точка]],3,0)) ->  | S55: 4 | U55: 0 | V55: 0 | X55: 0 | AA55: 0
A56: z | F56: 1 | G56: =IF(K56="","",VLOOKUP(K56,Таблица3[[#All],[Столбец9]:[точка]],24,0)) ->  | H56: =IF(K56="","",VLOOKUP(K56,Таблица3[[#All],[Столбец9]:[точка]],21,0)) ->  | J56: 0 | N56: 0 | O56: 0 | P56: 0 | Q56: =IFERROR(VLOOKUP(H56,Таблица3[[#All],[Столбец28]:[Столбец30]],3,0),"0") -> 0 | R56: =IF(K56="","",VLOOKUP(K56,Таблица3[[#All],[Столбец9]:[точка]],3,0)) ->  | S56: 4 | U56: 0 | V56: 0 | X56: 0 | AA56: 0
A57: z | F57: 1 | G57: =IF(K57="","",VLOOKUP(K57,Таблица3[[#All],[Столбец9]:[точка]],24,0)) ->  | H57: =IF(K57="","",VLOOKUP(K57,Таблица3[[#All],[Столбец9]:[точка]],21,0)) ->  | J57: 0 | N57: 0 | O57: 0 | P57: 0 | Q57: =IFERROR(VLOOKUP(H57,Таблица3[[#All],[Столбец28]:[Столбец30]],3,0),"0") -> 0 | R57: =IF(K57="","",VLOOKUP(K57,Таблица3[[#All],[Столбец9]:[точка]],3,0)) ->  | S57: 4 | U57: 0 | V57: 0 | X57: 0 | AA57: 0
I58: Всего | J58: =SUM(J8:J57) -> 6320
AC59: ОКРУГЛЕНИЕ
B60: Карта раскроя № | C60: Ширина, мм | D60: Длина, мм | E60: Толщина, мм | F60: Марка материала | G60: Кол-во | H60: Площадь остатков всего, кв.м | I60: Площадь деталей всего, кв.м | J60: Кол-во деталей | L60: Плот-ность | M60: Лист / деловые остатка со склада (кг) | O60: Получил | P60: Деловой остаток на склад (кг) | R60: Получил кладовщик | S60: ЛОМ (кг) | U60: Получил кладовщик | V60: Масса деталей (кг) | X60: Количество деталей | Y60: Получил | AA60: Расход (кг) | AB60: ЛОМ (кг) дубль | AC60: Толщина, мм | AD60: Факт масса
M61: теория | N61: факт | P61: теория | Q61: факт | S61: теория | T61: факт | V61: теория | W61: факт | AB61: теория
A62: =IF(G62=0,"z","") ->  | B62: 1 | C62: 622 | D62: 622 | E62: 0.8 | F62: Лист лазер, 0.8 мм, лт | G62: 20 | H62: 0 | I62: 7.344719768 | J62: 4 | K62: 1 | L62: =IFERROR(VLOOKUP(F62,Таблица3[[#All],[Астра]:[Столбец30]],4,0),"0") -> 7.874 | M62: =C62*D62*E62*L62*G62/1000000 -> 48.74119386 | P62: =E62*H62*L62 -> 0 | S62: =AA62-V62 -> 2.475335096 | V62: =E62*I62*L62 -> 46.26585876 | AA62: =M62-P62 -> 48.74119386 | AB62: =AA62-V62 -> 2.475335096 | AC62: =ROUND(E62,2) -> 0.8
A63: =IF(G63=0,"z","") ->  | B63: 2 | C63: 1250 | D63: 622 | E63: 0.8 | F63: Лист лазер, 0.8 мм, лт | G63: 1 | H63: 0.2635479942 | I63: 0.5044000149 | J63: 1 | K63: 2 | L63: =IFERROR(VLOOKUP(F63,Таблица3[[#All],[Астра]:[Столбец30]],4,0),"0") -> 7.874 | M63: =C63*D63*E63*L63*G63/1000000 -> 4.897628 | P63: =E63*H63*L63 -> 1.660141525 | S63: 0.06016990124 | V63: =E63*I63*L63 -> 3.177316574 | AA63: 3.237486475 | AB63: 0.06016990124 | AC63: =ROUND(E63,2) -> 0.8
B64: 3 | C64: 1250 | D64: 2500 | E64: 0.8 | F64: Лист лазер, 0.8 мм, лт | G64: 19 | H64: 20.47915027 | I64: 38.33440113 | J64: 4 | K64: 3 | L64: =IFERROR(VLOOKUP(F64,Таблица3[[#All],[Астра]:[Столбец30]],4,0),"0") -> 7.874 | M64: 374.015 | P64: 129.0022634 | S64: 3.536677045 | V64: 241.4760596 | AA64: 245.0127366 | AB64: 3.536677045 | AC64: 0.8
B65: 4 | C65: 1250 | D65: 2500 | E65: 0.8 | F65: Лист лазер, 0.8 мм, лт | G65: 1 | H65: 1.58908397 | I65: 1.513200045 | J65: 3 | K65: 4 | L65: =IFERROR(VLOOKUP(F65,Таблица3[[#All],[Астра]:[Столбец30]],4,0),"0") -> 7.874 | M65: 19.685 | P65: 10.00995774 | S65: 0.1430925376 | V65: 9.531949721 | AA65: 9.675042259 | AB65: 0.1430925376 | AC65: 0.8
A66: =IF(G66=0,"z","") -> z | K66: 5 | L66: =IFERROR(VLOOKUP(F66,Таблица3[[#All],[Астра]:[Столбец30]],4,0),"0") -> 0 | M66: =C66*D66*E66*L66*G66/1000000 -> 0 | P66: =E66*H66*L66 -> 0 | S66: =AA66-V66 -> 0 | V66: =E66*I66*L66 -> 0 | AA66: =M66-P66 -> 0 | AB66: =AA66-V66 -> 0 | AC66: =ROUND(E66,2) -> 0
A67: z | K67: 6 | L67: =IFERROR(VLOOKUP(F67,Таблица3[[#All],[Астра]:[Столбец30]],4,0),"0") -> 0 | M67: 0 | P67: 0 | S67: 0 | V67: 0 | AA67: 0 | AB67: 0 | AC67: 0
A68: z | K68: 7 | L68: =IFERROR(VLOOKUP(F68,Таблица3[[#All],[Астра]:[Столбец30]],4,0),"0") -> 0 | M68: 0 | P68: 0 | S68: 0 | V68: 0 | AA68: 0 | AB68: 0 | AC68: 0
A69: z | K69: 8 | L69: =IFERROR(VLOOKUP(F69,Таблица3[[#All],[Астра]:[Столбец30]],4,0),"0") -> 0 | M69: 0 | P69: 0 | S69: 0 | V69: 0 | AA69: 0 | AB69: 0 | AC69: 0
A70: z | K70: 9 | L70: =IFERROR(VLOOKUP(F70,Таблица3[[#All],[Астра]:[Столбец30]],4,0),"0") -> 0 | M70: 0 | P70: 0 | S70: 0 | V70: 0 | AA70: 0 | AB70: 0 | AC70: 0
A71: z | K71: 10 | L71: =IFERROR(VLOOKUP(F71,Таблица3[[#All],[Астра]:[Столбец30]],4,0),"0") -> 0 | M71: 0 | P71: 0 | S71: 0 | V71: 0 | AA71: 0 | AB71: 0 | AC71: 0
A72: z | K72: 11 | L72: =IFERROR(VLOOKUP(F72,Таблица3[[#All],[Астра]:[Столбец30]],4,0),"0") -> 0 | M72: 0 | P72: 0 | S72: 0 | V72: 0 | AA72: 0 | AB72: 0 | AC72: 0
A73: z | K73: 12 | L73: =IFERROR(VLOOKUP(F73,Таблица3[[#All],[Астра]:[Столбец30]],4,0),"0") -> 0 | M73: 0 | P73: 0 | S73: 0 | V73: 0 | AA73: 0 | AB73: 0 | AC73: 0
A74: z | K74: 13 | L74: =IFERROR(VLOOKUP(F74,Таблица3[[#All],[Астра]:[Столбец30]],4,0),"0") -> 0 | M74: 0 | P74: 0 | S74: 0 | V74: 0 | AA74: 0 | AB74: 0 | AC74: 0
A75: z | K75: 14 | L75: =IFERROR(VLOOKUP(F75,Таблица3[[#All],[Астра]:[Столбец30]],4,0),"0") -> 0 | M75: 0 | P75: 0 | S75: 0 | V75: 0 | AA75: 0 | AB75: 0 | AC75: 0
A76: z | K76: 15 | L76: =IFERROR(VLOOKUP(F76,Таблица3[[#All],[Астра]:[Столбец30]],4,0),"0") -> 0 | M76: 0 | P76: 0 | S76: 0 | V76: 0 | AA76: 0 | AB76: 0 | AC76: 0
A77: z | K77: 16 | L77: =IFERROR(VLOOKUP(F77,Таблица3[[#All],[Астра]:[Столбец30]],4,0),"0") -> 0 | M77: 0 | P77: 0 | S77: 0 | V77: 0 | AA77: 0 | AB77: 0 | AC77: 0
A78: z | K78: 17 | L78: =IFERROR(VLOOKUP(F78,Таблица3[[#All],[Астра]:[Столбец30]],4,0),"0") -> 0 | M78: 0 | P78: 0 | S78: 0 | V78: 0 | AA78: 0 | AB78: 0 | AC78: 0
A79: z | K79: 18 | L79: =IFERROR(VLOOKUP(F79,Таблица3[[#All],[Астра]:[Столбец30]],4,0),"0") -> 0 | M79: 0 | P79: 0 | S79: 0 | V79: 0 | AA79: 0 | AB79: 0 | AC79: 0
A80: z | K80: 19 | L80: =IFERROR(VLOOKUP(F80,Таблица3[[#All],[Астра]:[Столбец30]],4,0),"0") -> 0 | M80: 0 | P80: 0 | S80: 0 | V80: 0 | AA80: 0 | AB80: 0 | AC80: 0
A81: z | K81: 20 | L81: =IFERROR(VLOOKUP(F81,Таблица3[[#All],[Астра]:[Столбец30]],4,0),"0") -> 0 | M81: 0 | P81: 0 | S81: 0 | V81: 0 | AA81: 0 | AB81: 0 | AC81: 0
A82: z | K82: 21 | L82: =IFERROR(VLOOKUP(F82,Таблица3[[#All],[Астра]:[Столбец30]],4,0),"0") -> 0 | M82: 0 | P82: 0 | S82: 0 | V82: 0 | AA82: 0 | AB82: 0 | AC82: 0
A83: z | K83: 22 | L83: =IFERROR(VLOOKUP(F83,Таблица3[[#All],[Астра]:[Столбец30]],4,0),"0") -> 0 | M83: 0 | P83: 0 | S83: 0 | V83: 0 | AA83: 0 | AB83: 0 | AC83: 0
A84: z | K84: 23 | L84: =IFERROR(VLOOKUP(F84,Таблица3[[#All],[Астра]:[Столбец30]],4,0),"0") -> 0 | M84: 0 | P84: 0 | S84: 0 | V84: 0 | AA84: 0 | AB84: 0 | AC84: 0
A85: z | K85: 24 | L85: =IFERROR(VLOOKUP(F85,Таблица3[[#All],[Астра]:[Столбец30]],4,0),"0") -> 0 | M85: 0 | P85: 0 | S85: 0 | V85: 0 | AA85: 0 | AB85: 0 | AC85: 0
A86: z | K86: 25 | L86: =IFERROR(VLOOKUP(F86,Таблица3[[#All],[Астра]:[Столбец30]],4,0),"0") -> 0 | M86: 0 | P86: 0 | S86: 0 | V86: 0 | AA86: 0 | AB86: 0 | AC86: 0
A87: z | K87: 26 | L87: =IFERROR(VLOOKUP(F87,Таблица3[[#All],[Астра]:[Столбец30]],4,0),"0") -> 0 | M87: 0 | P87: 0 | S87: 0 | V87: 0 | AA87: 0 | AB87: 0 | AC87: 0
A88: z | K88: 27 | L88: =IFERROR(VLOOKUP(F88,Таблица3[[#All],[Астра]:[Столбец30]],4,0),"0") -> 0 | M88: 0 | P88: 0 | S88: 0 | V88: 0 | AA88: 0 | AB88: 0 | AC88: 0
A89: z | K89: 28 | L89: =IFERROR(VLOOKUP(F89,Таблица3[[#All],[Астра]:[Столбец30]],4,0),"0") -> 0 | M89: 0 | P89: 0 | S89: 0 | V89: 0 | AA89: 0 | AB89: 0 | AC89: 0
A90: z | K90: 29 | L90: =IFERROR(VLOOKUP(F90,Таблица3[[#All],[Астра]:[Столбец30]],4,0),"0") -> 0 | M90: 0 | P90: 0 | S90: 0 | V90: 0 | AA90: 0 | AB90: 0 | AC90: 0
A91: z | K91: 30 | L91: =IFERROR(VLOOKUP(F91,Таблица3[[#All],[Астра]:[Столбец30]],4,0),"0") -> 0 | M91: 0 | P91: 0 | S91: 0 | V91: 0 | AA91: 0 | AB91: 0 | AC91: 0
A92: z | K92: 31 | L92: =IFERROR(VLOOKUP(F92,Таблица3[[#All],[Астра]:[Столбец30]],4,0),"0") -> 0 | M92: 0 | P92: 0 | S92: 0 | V92: 0 | AA92: 0 | AB92: 0 | AC92: 0
A93: z | K93: 32 | L93: =IFERROR(VLOOKUP(F93,Таблица3[[#All],[Астра]:[Столбец30]],4,0),"0") -> 0 | M93: 0 | P93: 0 | S93: 0 | V93: 0 | AA93: 0 | AB93: 0 | AC93: 0
A94: z | K94: 33 | L94: =IFERROR(VLOOKUP(F94,Таблица3[[#All],[Астра]:[Столбец30]],4,0),"0") -> 0 | M94: 0 | P94: 0 | S94: 0 | V94: 0 | AA94: 0 | AB94: 0 | AC94: 0
A95: z | K95: 34 | L95: =IFERROR(VLOOKUP(F95,Таблица3[[#All],[Астра]:[Столбец30]],4,0),"0") -> 0 | M95: =C95*D95*E95*L95*G95/1000000 -> 0 | P95: =E95*H95*L95 -> 0 | S95: 0 | V95: =E95*I95*L95 -> 0 | AA95: 0 | AB95: 0 | AC95: 0
A96: z | K96: 35 | L96: =IFERROR(VLOOKUP(F96,Таблица3[[#All],[Астра]:[Столбец30]],4,0),"0") -> 0 | M96: 0 | P96: 0 | S96: 0 | V96: =E96*I96*L96 -> 0 | AA96: 0 | AB96: 0 | AC96: 0
A97: z | K97: 36 | L97: =IFERROR(VLOOKUP(F97,Таблица3[[#All],[Астра]:[Столбец30]],4,0),"0") -> 0 | M97: 0 | P97: 0 | S97: 0 | V97: 0 | AA97: 0 | AB97: 0 | AC97: 0
A98: z | K98: 37 | L98: =IFERROR(VLOOKUP(F98,Таблица3[[#All],[Астра]:[Столбец30]],4,0),"0") -> 0 | M98: 0 | P98: 0 | S98: 0 | V98: 0 | AA98: 0 | AB98: 0 | AC98: 0
A99: z | K99: 38 | L99: =IFERROR(VLOOKUP(F99,Таблица3[[#All],[Астра]:[Столбец30]],4,0),"0") -> 0 | M99: 0 | P99: 0 | S99: 0 | V99: 0 | AA99: 0 | AB99: 0 | AC99: 0
A100: z | K100: 39 | L100: =IFERROR(VLOOKUP(F100,Таблица3[[#All],[Астра]:[Столбец30]],4,0),"0") -> 0 | M100: 0 | P100: 0 | S100: 0 | V100: 0 | AA100: 0 | AB100: 0 | AC100: 0
A101: z | K101: 40 | L101: =IFERROR(VLOOKUP(F101,Таблица3[[#All],[Астра]:[Столбец30]],4,0),"0") -> 0 | M101: 0 | P101: 0 | S101: 0 | V101: 0 | AA101: 0 | AB101: 0 | AC101: 0
A102: z | K102: 41 | L102: =IFERROR(VLOOKUP(F102,Таблица3[[#All],[Астра]:[Столбец30]],4,0),"0") -> 0 | M102: 0 | P102: 0 | S102: 0 | V102: 0 | AA102: 0 | AB102: 0 | AC102: 0
A103: z | K103: 42 | L103: =IFERROR(VLOOKUP(F103,Таблица3[[#All],[Астра]:[Столбец30]],4,0),"0") -> 0 | M103: 0 | P103: 0 | S103: 0 | V103: 0 | AA103: 0 | AB103: 0 | AC103: 0
A104: z | K104: 43 | L104: =IFERROR(VLOOKUP(F104,Таблица3[[#All],[Астра]:[Столбец30]],4,0),"0") -> 0 | M104: 0 | P104: 0 | S104: 0 | V104: 0 | AA104: 0 | AB104: 0 | AC104: 0
A105: z | K105: 44 | L105: =IFERROR(VLOOKUP(F105,Таблица3[[#All],[Астра]:[Столбец30]],4,0),"0") -> 0 | M105: 0 | P105: 0 | S105: 0 | V105: 0 | AA105: 0 | AB105: 0 | AC105: 0
A106: z | K106: 45 | L106: =IFERROR(VLOOKUP(F106,Таблица3[[#All],[Астра]:[Столбец30]],4,0),"0") -> 0 | M106: 0 | P106: 0 | S106: 0 | V106: 0 | AA106: 0 | AB106: 0 | AC106: 0
A107: z | K107: 46 | L107: =IFERROR(VLOOKUP(F107,Таблица3[[#All],[Астра]:[Столбец30]],4,0),"0") -> 0 | M107: 0 | P107: 0 | S107: 0 | V107: 0 | AA107: 0 | AB107: 0 | AC107: 0
A108: z | K108: 47 | L108: =IFERROR(VLOOKUP(F108,Таблица3[[#All],[Астра]:[Столбец30]],4,0),"0") -> 0 | M108: 0 | P108: 0 | S108: 0 | V108: 0 | AA108: 0 | AB108: 0 | AC108: 0
A109: z | K109: 48 | L109: =IFERROR(VLOOKUP(F109,Таблица3[[#All],[Астра]:[Столбец30]],4,0),"0") -> 0 | M109: 0 | P109: 0 | S109: 0 | V109: 0 | AA109: 0 | AB109: 0 | AC109: 0
A110: z | K110: 49 | L110: =IFERROR(VLOOKUP(F110,Таблица3[[#All],[Астра]:[Столбец30]],4,0),"0") -> 0 | M110: 0 | P110: 0 | S110: 0 | V110: 0 | AA110: 0 | AB110: 0 | AC110: 0
A111: z | K111: 50 | L111: =IFERROR(VLOOKUP(F111,Таблица3[[#All],[Астра]:[Столбец30]],4,0),"0") -> 0 | M111: 0 | P111: 0 | S111: 0 | V111: 0 | AA111: 0 | AB111: 0 | AC111: 0
A112: z | K112: 51 | L112: =IFERROR(VLOOKUP(F112,Таблица3[[#All],[Астра]:[Столбец30]],4,0),"0") -> 0 | M112: 0 | P112: 0 | S112: 0 | V112: 0 | AA112: 0 | AB112: 0 | AC112: 0
A113: z | K113: 52 | L113: =IFERROR(VLOOKUP(F113,Таблица3[[#All],[Астра]:[Столбец30]],4,0),"0") -> 0 | M113: 0 | P113: 0 | S113: 0 | V113: 0 | AA113: 0 | AB113: 0 | AC113: 0
A114: z | K114: 53 | L114: =IFERROR(VLOOKUP(F114,Таблица3[[#All],[Астра]:[Столбец30]],4,0),"0") -> 0 | M114: 0 | P114: 0 | S114: 0 | V114: 0 | AA114: 0 | AB114: 0 | AC114: 0
A115: z | K115: 54 | L115: =IFERROR(VLOOKUP(F115,Таблица3[[#All],[Астра]:[Столбец30]],4,0),"0") -> 0 | M115: 0 | P115: 0 | S115: 0 | V115: 0 | AA115: 0 | AB115: 0 | AC115: 0
A116: =IF(G116=0,"z","") -> z | K116: 55 | L116: =IFERROR(VLOOKUP(F116,Таблица3[[#All],[Астра]:[Столбец30]],4,0),"0") -> 0 | M116: 0 | P116: 0 | S116: 0 | V116: 0 | AA116: 0 | AB116: 0 | AC116: 0
B117: Данные раскроя АСТРА (без уточнения масс) | M117: =SUM(M62:M116) -> 447.3388219 | P117: =SUM(P62:P116) -> 140.6723626 | S117: =SUM(S62:S116) -> 6.21527458 | V117: =SUM(V62:V116) -> 300.4511847 | AA117: =SUM(AA62:AA116) -> 306.6664592 | AB117: =SUM(AB62:AB116) -> 6.21527458
P119: Угар суммарный в составе лома в колличестве, кг | V119: =W6 -> 43.21010214
C120: Стандартный р-р | M120: Получить со склада | P120: Остаток на склад | S120: ЛОМ | V120: Точная масса ЛОМА кг | W120: Детали | Z120: Точная масса деталей кг
B121: № п/п | C121: Ширина мм | D121: Длина мм | E121: Толщина мм | G121: Целых листов | I121: Название | M121: Масса целых кг | N121: Масса деловых кг | O121: Общая кг | P121: Деловой остаток с целых кг | Q121: Деловой остаок с деловых кг | R121: Общая кг | S121: Лом целых кг | T121: Лом деловых кг | U121: Общая кг | W121: Масса деталей целых кг | X121: Масса деталей деловых кг | Y121: Общая кг | AB121: АСТРА | AC121: Для ДАНО АСТРА | AD121: название листа для Д | AE121: коэф | AG121: разница массы кг
A122: z
A123: z | B123: Столбец2 | C123: Шир | D123: Дл | E123: Толщ | F123: Ст6 | G123: Ст7 | H123: Ст8 | I123: Столбец9 | J123: Столбец22 | K123: Столбец222 | L123: Столбец23 | M123: Ст10 | N123: Ст11 | O123: Ст12 | P123: Ст13 | Q123: Ст14 | R123: Ст15 | S123: Ст16 | T123: Ст17 | U123: Ст18 | V123: Столбец24 | W123: Ст19 | X123: Ст20 | Y123: Ст21 | Z123: Столбец25 | AA123: Столбец26 | AB123: Астра | AC123: Столбец28 | AD123: Столбец29 | AE123: Столбец30 | AF123: точка | AG123: Столбец32 | AH123: Столбец33 | AI123: Столбец34
A124: =IF(Таблица3[[#All],[Ст21]]=0,"z","") -> z | C124: 1250 | D124: 2500 | E124: 0.6 | G124: =SUMIFS($G$62:$G$116,$D$62:$D$116,Таблица3[[#This Row],[Дл]],$C$62:$C$116,Таблица3[[#This Row],[Шир]],$AC$62:$AC$116,Таблица3[[#This Row],[Толщ]],$F$62:$F$116,Таблица3[[#This Row],[Астра]]) -> 0 | I124: =CONCATENATE(Таблица3[[#This Row],[Столбец29]]," ",Таблица3[[#This Row],[Толщ]]) -> Лист 0,6 | K124: =Таблица3[[#This Row],[Толщ]] -> 0.6 | M124: =SUMIFS($M$62:$M$116,$C$62:$C$116,Таблица3[[#This Row],[Шир]],$D$62:$D$116,Таблица3[[#This Row],[Дл]],$AC$62:$AC$116,Таблица3[[#This Row],[Толщ]],$F$62:$F$116,Таблица3[[#This Row],[Астра]]) -> 0 | N124: =SUMIFS($M$62:$M$116,$AC$62:$AC$116,Таблица3[[#This Row],[Толщ]],$C$62:$C$116,"<"&Таблица3[[#This Row],[Шир]],$D$62:$D$116,Таблица3[[#This Row],[Дл]],$F$62:$F$116,Таблица3[[#This Row],[Астра]])+SUMIFS($M$62:$M$116,$AC$62:$AC$116,Таблица3[[#This Row],[Толщ]],$C$62:$C$116,Таблица3[[#This Row],[Шир]],$D$62:$D$116,"<"&Таблица3[[#This Row],[Дл]],$F$62:$F$116,Таблица3[[#This Row],[Астра]])+SUMIFS($M$62:$M$116,$AC$62:$AC$116,Таблица3[[#This Row],[Толщ]],$C$62:$C$116,"<"&Таблица3[[#This Row],[Шир]],$D$62:$D$116,"<"&Таблица3[[#This Row],[Дл]],$F$62:$F$116,Таблица3[[#This Row],[Астра]]) -> 0 | O124: =Таблица3[[#This Row],[Ст10]]+Таблица3[[#This Row],[Ст11]] -> 0 | P124: =SUMIFS($P$62:$P$116,$C$62:$C$116,Таблица3[[#This Row],[Шир]],$D$62:$D$116,Таблица3[[#This Row],[Дл]],$AC$62:$AC$116,Таблица3[[#This Row],[Толщ]],$F$62:$F$116,Таблица3[[#This Row],[Астра]]) -> 0 | Q124: =SUMIFS($P$62:$P$116,$AC$62:$AC$116,Таблица3[[#This Row],[Толщ]],$C$62:$C$116,"<"&Таблица3[[#This Row],[Шир]],$D$62:$D$116,Таблица3[[#This Row],[Дл]],$F$62:$F$116,Таблица3[[#This Row],[Астра]])+SUMIFS($P$62:$P$116,$AC$62:$AC$116,Таблица3[[#This Row],[Толщ]],$C$62:$C$116,Таблица3[[#This Row],[Шир]],$D$62:$D$116,"<"&Таблица3[[#This Row],[Дл]],$F$62:$F$116,Таблица3[[#This Row],[Астра]])+SUMIFS($P$62:$P$116,$AC$62:$AC$116,Таблица3[[#This Row],[Толщ]],$C$62:$C$116,"<"&Таблица3[[#This Row],[Шир]],$D$62:$D$116,"<"&Таблица3[[#This Row],[Дл]],$F$62:$F$116,Таблица3[[#This Row],[Астра]]) -> 0 | R124: =Таблица3[[#This Row],[Ст13]]+Таблица3[[#This Row],[Ст14]] -> 0 | S124: =SUMIFS($S$62:$S$116,$C$62:$C$116,Таблица3[[#This Row],[Шир]],$D$62:$D$116,Таблица3[[#This Row],[Дл]],$AC$62:$AC$116,Таблица3[[#This Row],[Толщ]],$F$62:$F$116,Таблица3[[#This Row],[Астра]]) -> 0 | T124: =SUMIFS($S$62:$S$116,$AC$62:$AC$116,Таблица3[[#This Row],[Толщ]],$C$62:$C$116,"<"&Таблица3[[#This Row],[Шир]],$D$62:$D$116,Таблица3[[#This Row],[Дл]],$F$62:$F$116,Таблица3[[#This Row],[Астра]])+SUMIFS($S$62:$S$116,$AC$62:$AC$116,Таблица3[[#This Row],[Толщ]],$C$62:$C$116,Таблица3[[#This Row],[Шир]],$D$62:$D$116,"<"&Таблица3[[#This Row],[Дл]],$F$62:$F$116,Таблица3[[#This Row],[Астра]])+SUMIFS($S$62:$S$116,$AC$62:$AC$116,Таблица3[[#This Row],[Толщ]],$C$62:$C$116,"<"&Таблица3[[#This Row],[Шир]],$D$62:$D$116,"<"&Таблица3[[#This Row],[Дл]],$F$62:$F$116,Таблица3[[#This Row],[Астра]]) -> 0 | U124: =Таблица3[[#This Row],[Ст16]]+Таблица3[[#This Row],[Ст17]] -> 0 | V124: =Таблица3[[#This Row],[Ст18]]+Таблица3[[#This Row],[Столбец32]] -> 0 | W124: =SUMIFS($V$62:$V$116,$C$62:$C$116,Таблица3[[#This Row],[Шир]],$D$62:$D$116,Таблица3[[#This Row],[Дл]],$AC$62:$AC$116,Таблица3[[#This Row],[Толщ]],$F$62:$F$116,Таблица3[[#This Row],[Астра]]) -> 0 | X124: =SUMIFS($V$62:$V$116,$AC$62:$AC$116,Таблица3[[#This Row],[Толщ]],$C$62:$C$116,"<"&Таблица3[[#This Row],[Шир]],$D$62:$D$116,Таблица3[[#This Row],[Дл]],$F$62:$F$116,Таблица3[[#This Row],[Астра]])+SUMIFS($V$62:$V$116,$AC$62:$AC$116,Таблица3[[#This Row],[Толщ]],$C$62:$C$116,Таблица3[[#This Row],[Шир]],$D$62:$D$116,"<"&Таблица3[[#This Row],[Дл]],$F$62:$F$116,Таблица3[[#This Row],[Астра]])+SUMIFS($V$62:$V$116,$AC$62:$AC$116,Таблица3[[#This Row],[Толщ]],$C$62:$C$116,"<"&Таблица3[[#This Row],[Шир]],$D$62:$D$116,"<"&Таблица3[[#This Row],[Дл]],$F$62:$F$116,Таблица3[[#This Row],[Астра]]) -> 0 | Y124: =Таблица3[[#This Row],[Ст19]]+Таблица3[[#This Row],[Ст20]] -> 0 | Z124: =Таблица3[[#This Row],[Ст21]]-Таблица3[[#This Row],[Столбец32]] -> 0 | AB124: Лист лазер, 0.6 мм, лт | AC124: Лист лазер | AD124: Лист | AE124: 7.874 | AF124: =SUBSTITUTE(Таблица3[[#This Row],[Толщ]],",",".") -> 0.6 | AG124: =SUMIFS($AA$8:$AA$57,$H$8:$H$57,Таблица3[[#This Row],[Столбец28]],$G$8:$G$57,Таблица3[[#This Row],[Толщ]]) -> 0
A125: =IF(Таблица3[[#All],[Ст21]]=0,"z","") -> z | C125: 1250 | D125: 2500 | E125: 0.7 | G125: =SUMIFS($G$62:$G$116,$D$62:$D$116,Таблица3[[#This Row],[Дл]],$C$62:$C$116,Таблица3[[#This Row],[Шир]],$AC$62:$AC$116,Таблица3[[#This Row],[Толщ]],$F$62:$F$116,Таблица3[[#This Row],[Астра]]) -> 0 | I125: =CONCATENATE(Таблица3[[#This Row],[Столбец29]]," ",Таблица3[[#This Row],[Толщ]]) -> Лист 0,7 | K125: =Таблица3[[#This Row],[Толщ]] -> 0.7 | M125: =SUMIFS($M$62:$M$116,$C$62:$C$116,Таблица3[[#This Row],[Шир]],$D$62:$D$116,Таблица3[[#This Row],[Дл]],$AC$62:$AC$116,Таблица3[[#This Row],[Толщ]],$F$62:$F$116,Таблица3[[#This Row],[Астра]]) -> 0 | N125: =SUMIFS($M$62:$M$116,$AC$62:$AC$116,Таблица3[[#This Row],[Толщ]],$C$62:$C$116,"<"&Таблица3[[#This Row],[Шир]],$D$62:$D$116,Таблица3[[#This Row],[Дл]],$F$62:$F$116,Таблица3[[#This Row],[Астра]])+SUMIFS($M$62:$M$116,$AC$62:$AC$116,Таблица3[[#This Row],[Толщ]],$C$62:$C$116,Таблица3[[#This Row],[Шир]],$D$62:$D$116,"<"&Таблица3[[#This Row],[Дл]],$F$62:$F$116,Таблица3[[#This Row],[Астра]])+SUMIFS($M$62:$M$116,$AC$62:$AC$116,Таблица3[[#This Row],[Толщ]],$C$62:$C$116,"<"&Таблица3[[#This Row],[Шир]],$D$62:$D$116,"<"&Таблица3[[#This Row],[Дл]],$F$62:$F$116,Таблица3[[#This Row],[Астра]]) -> 0 | O125: =Таблица3[[#This Row],[Ст10]]+Таблица3[[#This Row],[Ст11]] -> 0 | P125: =SUMIFS($P$62:$P$116,$C$62:$C$116,Таблица3[[#This Row],[Шир]],$D$62:$D$116,Таблица3[[#This Row],[Дл]],$AC$62:$AC$116,Таблица3[[#This Row],[Толщ]],$F$62:$F$116,Таблица3[[#This Row],[Астра]]) -> 0 | Q125: =SUMIFS($P$62:$P$116,$AC$62:$AC$116,Таблица3[[#This Row],[Толщ]],$C$62:$C$116,"<"&Таблица3[[#This Row],[Шир]],$D$62:$D$116,Таблица3[[#This Row],[Дл]],$F$62:$F$116,Таблица3[[#This Row],[Астра]])+SUMIFS($P$62:$P$116,$AC$62:$AC$116,Таблица3[[#This Row],[Толщ]],$C$62:$C$116,Таблица3[[#This Row],[Шир]],$D$62:$D$116,"<"&Таблица3[[#This Row],[Дл]],$F$62:$F$116,Таблица3[[#This Row],[Астра]])+SUMIFS($P$62:$P$116,$AC$62:$AC$116,Таблица3[[#This Row],[Толщ]],$C$62:$C$116,"<"&Таблица3[[#This Row],[Шир]],$D$62:$D$116,"<"&Таблица3[[#This Row],[Дл]],$F$62:$F$116,Таблица3[[#This Row],[Астра]]) -> 0 | R125: =Таблица3[[#This Row],[Ст13]]+Таблица3[[#This Row],[Ст14]] -> 0 | S125: =SUMIFS($S$62:$S$116,$C$62:$C$116,Таблица3[[#This Row],[Шир]],$D$62:$D$116,Таблица3[[#This Row],[Дл]],$AC$62:$AC$116,Таблица3[[#This Row],[Толщ]],$F$62:$F$116,Таблица3[[#This Row],[Астра]]) -> 0 | T125: =SUMIFS($S$62:$S$116,$AC$62:$AC$116,Таблица3[[#This Row],[Толщ]],$C$62:$C$116,"<"&Таблица3[[#This Row],[Шир]],$D$62:$D$116,Таблица3[[#This Row],[Дл]],$F$62:$F$116,Таблица3[[#This Row],[Астра]])+SUMIFS($S$62:$S$116,$AC$62:$AC$116,Таблица3[[#This Row],[Толщ]],$C$62:$C$116,Таблица3[[#This Row],[Шир]],$D$62:$D$116,"<"&Таблица3[[#This Row],[Дл]],$F$62:$F$116,Таблица3[[#This Row],[Астра]])+SUMIFS($S$62:$S$116,$AC$62:$AC$116,Таблица3[[#This Row],[Толщ]],$C$62:$C$116,"<"&Таблица3[[#This Row],[Шир]],$D$62:$D$116,"<"&Таблица3[[#This Row],[Дл]],$F$62:$F$116,Таблица3[[#This Row],[Астра]]) -> 0 | U125: =Таблица3[[#This Row],[Ст16]]+Таблица3[[#This Row],[Ст17]] -> 0 | V125: =Таблица3[[#This Row],[Ст18]]+Таблица3[[#This Row],[Столбец32]] -> 0 | W125: =SUMIFS($V$62:$V$116,$C$62:$C$116,Таблица3[[#This Row],[Шир]],$D$62:$D$116,Таблица3[[#This Row],[Дл]],$AC$62:$AC$116,Таблица3[[#This Row],[Толщ]],$F$62:$F$116,Таблица3[[#This Row],[Астра]]) -> 0 | X125: =SUMIFS($V$62:$V$116,$AC$62:$AC$116,Таблица3[[#This Row],[Толщ]],$C$62:$C$116,"<"&Таблица3[[#This Row],[Шир]],$D$62:$D$116,Таблица3[[#This Row],[Дл]],$F$62:$F$116,Таблица3[[#This Row],[Астра]])+SUMIFS($V$62:$V$116,$AC$62:$AC$116,Таблица3[[#This Row],[Толщ]],$C$62:$C$116,Таблица3[[#This Row],[Шир]],$D$62:$D$116,"<"&Таблица3[[#This Row],[Дл]],$F$62:$F$116,Таблица3[[#This Row],[Астра]])+SUMIFS($V$62:$V$116,$AC$62:$AC$116,Таблица3[[#This Row],[Толщ]],$C$62:$C$116,"<"&Таблица3[[#This Row],[Шир]],$D$62:$D$116,"<"&Таблица3[[#This Row],[Дл]],$F$62:$F$116,Таблица3[[#This Row],[Астра]]) -> 0 | Y125: =Таблица3[[#This Row],[Ст19]]+Таблица3[[#This Row],[Ст20]] -> 0 | Z125: =Таблица3[[#This Row],[Ст21]]-Таблица3[[#This Row],[Столбец32]] -> 0 | AB125: Лист лазер, 0.7 мм, лт | AC125: Лист лазер | AD125: Лист | AE125: 7.874 | AF125: =SUBSTITUTE(Таблица3[[#This Row],[Толщ]],",",".") -> 0.7 | AG125: =SUMIFS($AA$8:$AA$57,$H$8:$H$57,Таблица3[[#This Row],[Столбец28]],$G$8:$G$57,Таблица3[[#This Row],[Толщ]]) -> 0
A126: =IF(Таблица3[[#All],[Ст21]]=0,"z","") ->  | C126: 1250 | D126: 2500 | E126: 0.8 | G126: =SUMIFS($G$62:$G$116,$D$62:$D$116,Таблица3[[#This Row],[Дл]],$C$62:$C$116,Таблица3[[#This Row],[Шир]],$AC$62:$AC$116,Таблица3[[#This Row],[Толщ]],$F$62:$F$116,Таблица3[[#This Row],[Астра]]) -> 20 | I126: =CONCATENATE(Таблица3[[#This Row],[Столбец29]]," ",Таблица3[[#This Row],[Толщ]]) -> Лист 0,8 | K126: =Таблица3[[#This Row],[Толщ]] -> 0.8 | M126: =SUMIFS($M$62:$M$116,$C$62:$C$116,Таблица3[[#This Row],[Шир]],$D$62:$D$116,Таблица3[[#This Row],[Дл]],$AC$62:$AC$116,Таблица3[[#This Row],[Толщ]],$F$62:$F$116,Таблица3[[#This Row],[Астра]]) -> 393.7 | N126: =SUMIFS($M$62:$M$116,$AC$62:$AC$116,Таблица3[[#This Row],[Толщ]],$C$62:$C$116,"<"&Таблица3[[#This Row],[Шир]],$D$62:$D$116,Таблица3[[#This Row],[Дл]],$F$62:$F$116,Таблица3[[#This Row],[Астра]])+SUMIFS($M$62:$M$116,$AC$62:$AC$116,Таблица3[[#This Row],[Толщ]],$C$62:$C$116,Таблица3[[#This Row],[Шир]],$D$62:$D$116,"<"&Таблица3[[#This Row],[Дл]],$F$62:$F$116,Таблица3[[#This Row],[Астра]])+SUMIFS($M$62:$M$116,$AC$62:$AC$116,Таблица3[[#This Row],[Толщ]],$C$62:$C$116,"<"&Таблица3[[#This Row],[Шир]],$D$62:$D$116,"<"&Таблица3[[#This Row],[Дл]],$F$62:$F$116,Таблица3[[#This Row],[Астра]]) -> 53.63882186 | O126: =Таблица3[[#This Row],[Ст10]]+Таблица3[[#This Row],[Ст11]] -> 447.3388219 | P126: =SUMIFS($P$62:$P$116,$C$62:$C$116,Таблица3[[#This Row],[Шир]],$D$62:$D$116,Таблица3[[#This Row],[Дл]],$AC$62:$AC$116,Таблица3[[#This Row],[Толщ]],$F$62:$F$116,Таблица3[[#This Row],[Астра]]) -> 139.0122211 | Q126: =SUMIFS($P$62:$P$116,$AC$62:$AC$116,Таблица3[[#This Row],[Толщ]],$C$62:$C$116,"<"&Таблица3[[#This Row],[Шир]],$D$62:$D$116,Таблица3[[#This Row],[Дл]],$F$62:$F$116,Таблица3[[#This Row],[Астра]])+SUMIFS($P$62:$P$116,$AC$62:$AC$116,Таблица3[[#This Row],[Толщ]],$C$62:$C$116,Таблица3[[#This Row],[Шир]],$D$62:$D$116,"<"&Таблица3[[#This Row],[Дл]],$F$62:$F$116,Таблица3[[#This Row],[Астра]])+SUMIFS($P$62:$P$116,$AC$62:$AC$116,Таблица3[[#This Row],[Толщ]],$C$62:$C$116,"<"&Таблица3[[#This Row],[Шир]],$D$62:$D$116,"<"&Таблица3[[#This Row],[Дл]],$F$62:$F$116,Таблица3[[#This Row],[Астра]]) -> 1.660141525 | R126: =Таблица3[[#This Row],[Ст13]]+Таблица3[[#This Row],[Ст14]] -> 140.6723626 | S126: =SUMIFS($S$62:$S$116,$C$62:$C$116,Таблица3[[#This Row],[Шир]],$D$62:$D$116,Таблица3[[#This Row],[Дл]],$AC$62:$AC$116,Таблица3[[#This Row],[Толщ]],$F$62:$F$116,Таблица3[[#This Row],[Астра]]) -> 3.679769583 | T126: =SUMIFS($S$62:$S$116,$AC$62:$AC$116,Таблица3[[#This Row],[Толщ]],$C$62:$C$116,"<"&Таблица3[[#This Row],[Шир]],$D$62:$D$116,Таблица3[[#This Row],[Дл]],$F$62:$F$116,Таблица3[[#This Row],[Астра]])+SUMIFS($S$62:$S$116,$AC$62:$AC$116,Таблица3[[#This Row],[Толщ]],$C$62:$C$116,Таблица3[[#This Row],[Шир]],$D$62:$D$116,"<"&Таблица3[[#This Row],[Дл]],$F$62:$F$116,Таблица3[[#This Row],[Астра]])+SUMIFS($S$62:$S$116,$AC$62:$AC$116,Таблица3[[#This Row],[Толщ]],$C$62:$C$116,"<"&Таблица3[[#This Row],[Шир]],$D$62:$D$116,"<"&Таблица3[[#This Row],[Дл]],$F$62:$F$116,Таблица3[[#This Row],[Астра]]) -> 2.535504997 | U126: =Таблица3[[#This Row],[Ст16]]+Таблица3[[#This Row],[Ст17]] -> 6.21527458 | V126: =Таблица3[[#This Row],[Ст18]]+Таблица3[[#This Row],[Столбец32]] -> 6.21527458 | W126: =SUMIFS($V$62:$V$116,$C$62:$C$116,Таблица3[[#This Row],[Шир]],$D$62:$D$116,Таблица3[[#This Row],[Дл]],$AC$62:$AC$116,Таблица3[[#This Row],[Толщ]],$F$62:$F$116,Таблица3[[#This Row],[Астра]]) -> 251.0080093 | X126: =SUMIFS($V$62:$V$116,$AC$62:$AC$116,Таблица3[[#This Row],[Толщ]],$C$62:$C$116,"<"&Таблица3[[#This Row],[Шир]],$D$62:$D$116,Таблица3[[#This Row],[Дл]],$F$62:$F$116,Таблица3[[#This Row],[Астра]])+SUMIFS($V$62:$V$116,$AC$62:$AC$116,Таблица3[[#This Row],[Толщ]],$C$62:$C$116,Таблица3[[#This Row],[Шир]],$D$62:$D$116,"<"&Таблица3[[#This Row],[Дл]],$F$62:$F$116,Таблица3[[#This Row],[Астра]])+SUMIFS($V$62:$V$116,$AC$62:$AC$116,Таблица3[[#This Row],[Толщ]],$C$62:$C$116,"<"&Таблица3[[#This Row],[Шир]],$D$62:$D$116,"<"&Таблица3[[#This Row],[Дл]],$F$62:$F$116,Таблица3[[#This Row],[Астра]]) -> 49.44317533 | Y126: =Таблица3[[#This Row],[Ст19]]+Таблица3[[#This Row],[Ст20]] -> 300.4511847 | Z126: =Таблица3[[#This Row],[Ст21]]-Таблица3[[#This Row],[Столбец32]] -> 300.4511847 | AB126: Лист лазер, 0.8 мм, лт | AC126: Лист лазер | AD126: Лист | AE126: 7.874 | AF126: =SUBSTITUTE(Таблица3[[#This Row],[Толщ]],",",".") -> 0.8 | AG126: =SUMIFS($AA$8:$AA$57,$H$8:$H$57,Таблица3[[#This Row],[Столбец28]],$G$8:$G$57,Таблица3[[#This Row],[Толщ]]) -> 0
A127: =IF(Таблица3[[#All],[Ст21]]=0,"z","") -> z | C127: 1250 | D127: 2500 | E127: 1 | G127: =SUMIFS($G$62:$G$116,$D$62:$D$116,Таблица3[[#This Row],[Дл]],$C$62:$C$116,Таблица3[[#This Row],[Шир]],$AC$62:$AC$116,Таблица3[[#This Row],[Толщ]],$F$62:$F$116,Таблица3[[#This Row],[Астра]]) -> 0 | I127: =CONCATENATE(Таблица3[[#This Row],[Столбец29]]," ",Таблица3[[#This Row],[Толщ]]) -> Лист 1 | K127: =Таблица3[[#This Row],[Толщ]] -> 1 | M127: =SUMIFS($M$62:$M$116,$C$62:$C$116,Таблица3[[#This Row],[Шир]],$D$62:$D$116,Таблица3[[#This Row],[Дл]],$AC$62:$AC$116,Таблица3[[#This Row],[Толщ]],$F$62:$F$116,Таблица3[[#This Row],[Астра]]) -> 0 | N127: =SUMIFS($M$62:$M$116,$AC$62:$AC$116,Таблица3[[#This Row],[Толщ]],$C$62:$C$116,"<"&Таблица3[[#This Row],[Шир]],$D$62:$D$116,Таблица3[[#This Row],[Дл]],$F$62:$F$116,Таблица3[[#This Row],[Астра]])+SUMIFS($M$62:$M$116,$AC$62:$AC$116,Таблица3[[#This Row],[Толщ]],$C$62:$C$116,Таблица3[[#This Row],[Шир]],$D$62:$D$116,"<"&Таблица3[[#This Row],[Дл]],$F$62:$F$116,Таблица3[[#This Row],[Астра]])+SUMIFS($M$62:$M$116,$AC$62:$AC$116,Таблица3[[#This Row],[Толщ]],$C$62:$C$116,"<"&Таблица3[[#This Row],[Шир]],$D$62:$D$116,"<"&Таблица3[[#This Row],[Дл]],$F$62:$F$116,Таблица3[[#This Row],[Астра]]) -> 0 | O127: =Таблица3[[#This Row],[Ст10]]+Таблица3[[#This Row],[Ст11]] -> 0 | P127: =SUMIFS($P$62:$P$116,$C$62:$C$116,Таблица3[[#This Row],[Шир]],$D$62:$D$116,Таблица3[[#This Row],[Дл]],$AC$62:$AC$116,Таблица3[[#This Row],[Толщ]],$F$62:$F$116,Таблица3[[#This Row],[Астра]]) -> 0 | Q127: =SUMIFS($P$62:$P$116,$AC$62:$AC$116,Таблица3[[#This Row],[Толщ]],$C$62:$C$116,"<"&Таблица3[[#This Row],[Шир]],$D$62:$D$116,Таблица3[[#This Row],[Дл]],$F$62:$F$116,Таблица3[[#This Row],[Астра]])+SUMIFS($P$62:$P$116,$AC$62:$AC$116,Таблица3[[#This Row],[Толщ]],$C$62:$C$116,Таблица3[[#This Row],[Шир]],$D$62:$D$116,"<"&Таблица3[[#This Row],[Дл]],$F$62:$F$116,Таблица3[[#This Row],[Астра]])+SUMIFS($P$62:$P$116,$AC$62:$AC$116,Таблица3[[#This Row],[Толщ]],$C$62:$C$116,"<"&Таблица3[[#This Row],[Шир]],$D$62:$D$116,"<"&Таблица3[[#This Row],[Дл]],$F$62:$F$116,Таблица3[[#This Row],[Астра]]) -> 0 | R127: =Таблица3[[#This Row],[Ст13]]+Таблица3[[#This Row],[Ст14]] -> 0 | S127: =SUMIFS($S$62:$S$116,$C$62:$C$116,Таблица3[[#This Row],[Шир]],$D$62:$D$116,Таблица3[[#This Row],[Дл]],$AC$62:$AC$116,Таблица3[[#This Row],[Толщ]],$F$62:$F$116,Таблица3[[#This Row],[Астра]]) -> 0 | T127: =SUMIFS($S$62:$S$116,$AC$62:$AC$116,Таблица3[[#This Row],[Толщ]],$C$62:$C$116,"<"&Таблица3[[#This Row],[Шир]],$D$62:$D$116,Таблица3[[#This Row],[Дл]],$F$62:$F$116,Таблица3[[#This Row],[Астра]])+SUMIFS($S$62:$S$116,$AC$62:$AC$116,Таблица3[[#This Row],[Толщ]],$C$62:$C$116,Таблица3[[#This Row],[Шир]],$D$62:$D$116,"<"&Таблица3[[#This Row],[Дл]],$F$62:$F$116,Таблица3[[#This Row],[Астра]])+SUMIFS($S$62:$S$116,$AC$62:$AC$116,Таблица3[[#This Row],[Толщ]],$C$62:$C$116,"<"&Таблица3[[#This Row],[Шир]],$D$62:$D$116,"<"&Таблица3[[#This Row],[Дл]],$F$62:$F$116,Таблица3[[#This Row],[Астра]]) -> 0 | U127: =Таблица3[[#This Row],[Ст16]]+Таблица3[[#This Row],[Ст17]] -> 0 | V127: =Таблица3[[#This Row],[Ст18]]+Таблица3[[#This Row],[Столбец32]] -> 0 | W127: =SUMIFS($V$62:$V$116,$C$62:$C$116,Таблица3[[#This Row],[Шир]],$D$62:$D$116,Таблица3[[#This Row],[Дл]],$AC$62:$AC$116,Таблица3[[#This Row],[Толщ]],$F$62:$F$116,Таблица3[[#This Row],[Астра]]) -> 0 | X127: =SUMIFS($V$62:$V$116,$AC$62:$AC$116,Таблица3[[#This Row],[Толщ]],$C$62:$C$116,"<"&Таблица3[[#This Row],[Шир]],$D$62:$D$116,Таблица3[[#This Row],[Дл]],$F$62:$F$116,Таблица3[[#This Row],[Астра]])+SUMIFS($V$62:$V$116,$AC$62:$AC$116,Таблица3[[#This Row],[Толщ]],$C$62:$C$116,Таблица3[[#This Row],[Шир]],$D$62:$D$116,"<"&Таблица3[[#This Row],[Дл]],$F$62:$F$116,Таблица3[[#This Row],[Астра]])+SUMIFS($V$62:$V$116,$AC$62:$AC$116,Таблица3[[#This Row],[Толщ]],$C$62:$C$116,"<"&Таблица3[[#This Row],[Шир]],$D$62:$D$116,"<"&Таблица3[[#This Row],[Дл]],$F$62:$F$116,Таблица3[[#This Row],[Астра]]) -> 0 | Y127: =Таблица3[[#This Row],[Ст19]]+Таблица3[[#This Row],[Ст20]] -> 0 | Z127: =Таблица3[[#This Row],[Ст21]]-Таблица3[[#This Row],[Столбец32]] -> 0 | AB127: Лист лазер, 1.0 мм, лт | AC127: Лист лазер | AD127: Лист | AE127: 7.874 | AF127: =SUBSTITUTE(Таблица3[[#This Row],[Толщ]],",",".") -> 1 | AG127: =SUMIFS($AA$8:$AA$57,$H$8:$H$57,Таблица3[[#This Row],[Столбец28]],$G$8:$G$57,Таблица3[[#This Row],[Толщ]]) -> 0
A128: =IF(Таблица3[[#All],[Ст21]]=0,"z","") -> z | C128: 1250 | D128: 2500 | E128: 1.2 | G128: =SUMIFS($G$62:$G$116,$D$62:$D$116,Таблица3[[#This Row],[Дл]],$C$62:$C$116,Таблица3[[#This Row],[Шир]],$AC$62:$AC$116,Таблица3[[#This Row],[Толщ]],$F$62:$F$116,Таблица3[[#This Row],[Астра]]) -> 0 | I128: =CONCATENATE(Таблица3[[#This Row],[Столбец29]]," ",Таблица3[[#This Row],[Толщ]]) -> Лист 1,2 | K128: =Таблица3[[#This Row],[Толщ]] -> 1.2 | M128: =SUMIFS($M$62:$M$116,$C$62:$C$116,Таблица3[[#This Row],[Шир]],$D$62:$D$116,Таблица3[[#This Row],[Дл]],$AC$62:$AC$116,Таблица3[[#This Row],[Толщ]],$F$62:$F$116,Таблица3[[#This Row],[Астра]]) -> 0 | N128: =SUMIFS($M$62:$M$116,$AC$62:$AC$116,Таблица3[[#This Row],[Толщ]],$C$62:$C$116,"<"&Таблица3[[#This Row],[Шир]],$D$62:$D$116,Таблица3[[#This Row],[Дл]],$F$62:$F$116,Таблица3[[#This Row],[Астра]])+SUMIFS($M$62:$M$116,$AC$62:$AC$116,Таблица3[[#This Row],[Толщ]],$C$62:$C$116,Таблица3[[#This Row],[Шир]],$D$62:$D$116,"<"&Таблица3[[#This Row],[Дл]],$F$62:$F$116,Таблица3[[#This Row],[Астра]])+SUMIFS($M$62:$M$116,$AC$62:$AC$116,Таблица3[[#This Row],[Толщ]],$C$62:$C$116,"<"&Таблица3[[#This Row],[Шир]],$D$62:$D$116,"<"&Таблица3[[#This Row],[Дл]],$F$62:$F$116,Таблица3[[#This Row],[Астра]]) -> 0 | O128: =Таблица3[[#This Row],[Ст10]]+Таблица3[[#This Row],[Ст11]] -> 0 | P128: =SUMIFS($P$62:$P$116,$C$62:$C$116,Таблица3[[#This Row],[Шир]],$D$62:$D$116,Таблица3[[#This Row],[Дл]],$AC$62:$AC$116,Таблица3[[#This Row],[Толщ]],$F$62:$F$116,Таблица3[[#This Row],[Астра]]) -> 0 | Q128: =SUMIFS($P$62:$P$116,$AC$62:$AC$116,Таблица3[[#This Row],[Толщ]],$C$62:$C$116,"<"&Таблица3[[#This Row],[Шир]],$D$62:$D$116,Таблица3[[#This Row],[Дл]],$F$62:$F$116,Таблица3[[#This Row],[Астра]])+SUMIFS($P$62:$P$116,$AC$62:$AC$116,Таблица3[[#This Row],[Толщ]],$C$62:$C$116,Таблица3[[#This Row],[Шир]],$D$62:$D$116,"<"&Таблица3[[#This Row],[Дл]],$F$62:$F$116,Таблица3[[#This Row],[Астра]])+SUMIFS($P$62:$P$116,$AC$62:$AC$116,Таблица3[[#This Row],[Толщ]],$C$62:$C$116,"<"&Таблица3[[#This Row],[Шир]],$D$62:$D$116,"<"&Таблица3[[#This Row],[Дл]],$F$62:$F$116,Таблица3[[#This Row],[Астра]]) -> 0 | R128: =Таблица3[[#This Row],[Ст13]]+Таблица3[[#This Row],[Ст14]] -> 0 | S128: =SUMIFS($S$62:$S$116,$C$62:$C$116,Таблица3[[#This Row],[Шир]],$D$62:$D$116,Таблица3[[#This Row],[Дл]],$AC$62:$AC$116,Таблица3[[#This Row],[Толщ]],$F$62:$F$116,Таблица3[[#This Row],[Астра]]) -> 0 | T128: =SUMIFS($S$62:$S$116,$AC$62:$AC$116,Таблица3[[#This Row],[Толщ]],$C$62:$C$116,"<"&Таблица3[[#This Row],[Шир]],$D$62:$D$116,Таблица3[[#This Row],[Дл]],$F$62:$F$116,Таблица3[[#This Row],[Астра]])+SUMIFS($S$62:$S$116,$AC$62:$AC$116,Таблица3[[#This Row],[Толщ]],$C$62:$C$116,Таблица3[[#This Row],[Шир]],$D$62:$D$116,"<"&Таблица3[[#This Row],[Дл]],$F$62:$F$116,Таблица3[[#This Row],[Астра]])+SUMIFS($S$62:$S$116,$AC$62:$AC$116,Таблица3[[#This Row],[Толщ]],$C$62:$C$116,"<"&Таблица3[[#This Row],[Шир]],$D$62:$D$116,"<"&Таблица3[[#This Row],[Дл]],$F$62:$F$116,Таблица3[[#This Row],[Астра]]) -> 0 | U128: =Таблица3[[#This Row],[Ст16]]+Таблица3[[#This Row],[Ст17]] -> 0 | V128: =Таблица3[[#This Row],[Ст18]]+Таблица3[[#This Row],[Столбец32]] -> 0 | W128: =SUMIFS($V$62:$V$116,$C$62:$C$116,Таблица3[[#This Row],[Шир]],$D$62:$D$116,Таблица3[[#This Row],[Дл]],$AC$62:$AC$116,Таблица3[[#This Row],[Толщ]],$F$62:$F$116,Таблица3[[#This Row],[Астра]]) -> 0 | X128: =SUMIFS($V$62:$V$116,$AC$62:$AC$116,Таблица3[[#This Row],[Толщ]],$C$62:$C$116,"<"&Таблица3[[#This Row],[Шир]],$D$62:$D$116,Таблица3[[#This Row],[Дл]],$F$62:$F$116,Таблица3[[#This Row],[Астра]])+SUMIFS($V$62:$V$116,$AC$62:$AC$116,Таблица3[[#This Row],[Толщ]],$C$62:$C$116,Таблица3[[#This Row],[Шир]],$D$62:$D$116,"<"&Таблица3[[#This Row],[Дл]],$F$62:$F$116,Таблица3[[#This Row],[Астра]])+SUMIFS($V$62:$V$116,$AC$62:$AC$116,Таблица3[[#This Row],[Толщ]],$C$62:$C$116,"<"&Таблица3[[#This Row],[Шир]],$D$62:$D$116,"<"&Таблица3[[#This Row],[Дл]],$F$62:$F$116,Таблица3[[#This Row],[Астра]]) -> 0 | Y128: =Таблица3[[#This Row],[Ст19]]+Таблица3[[#This Row],[Ст20]] -> 0 | Z128: =Таблица3[[#This Row],[Ст21]]-Таблица3[[#This Row],[Столбец32]] -> 0 | AB128: Лист лазер, 1.2 мм, лт | AC128: Лист лазер | AD128: Лист | AE128: 7.874 | AF128: =SUBSTITUTE(Таблица3[[#This Row],[Толщ]],",",".") -> 1.2 | AG128: =SUMIFS($AA$8:$AA$57,$H$8:$H$57,Таблица3[[#This Row],[Столбец28]],$G$8:$G$57,Таблица3[[#This Row],[Толщ]]) -> 0
A129: =IF(Таблица3[[#All],[Ст21]]=0,"z","") -> z | C129: 1250 | D129: 2500 | E129: 1.5 | G129: =SUMIFS($G$62:$G$116,$D$62:$D$116,Таблица3[[#This Row],[Дл]],$C$62:$C$116,Таблица3[[#This Row],[Шир]],$AC$62:$AC$116,Таблица3[[#This Row],[Толщ]],$F$62:$F$116,Таблица3[[#This Row],[Астра]]) -> 0 | I129: =CONCATENATE(Таблица3[[#This Row],[Столбец29]]," ",Таблица3[[#This Row],[Толщ]]) -> Лист 1,5 | K129: =Таблица3[[#This Row],[Толщ]] -> 1.5 | M129: =SUMIFS($M$62:$M$116,$C$62:$C$116,Таблица3[[#This Row],[Шир]],$D$62:$D$116,Таблица3[[#This Row],[Дл]],$AC$62:$AC$116,Таблица3[[#This Row],[Толщ]],$F$62:$F$116,Таблица3[[#This Row],[Астра]]) -> 0 | N129: =SUMIFS($M$62:$M$116,$AC$62:$AC$116,Таблица3[[#This Row],[Толщ]],$C$62:$C$116,"<"&Таблица3[[#This Row],[Шир]],$D$62:$D$116,Таблица3[[#This Row],[Дл]],$F$62:$F$116,Таблица3[[#This Row],[Астра]])+SUMIFS($M$62:$M$116,$AC$62:$AC$116,Таблица3[[#This Row],[Толщ]],$C$62:$C$116,Таблица3[[#This Row],[Шир]],$D$62:$D$116,"<"&Таблица3[[#This Row],[Дл]],$F$62:$F$116,Таблица3[[#This Row],[Астра]])+SUMIFS($M$62:$M$116,$AC$62:$AC$116,Таблица3[[#This Row],[Толщ]],$C$62:$C$116,"<"&Таблица3[[#This Row],[Шир]],$D$62:$D$116,"<"&Таблица3[[#This Row],[Дл]],$F$62:$F$116,Таблица3[[#This Row],[Астра]]) -> 0 | O129: =Таблица3[[#This Row],[Ст10]]+Таблица3[[#This Row],[Ст11]] -> 0 | P129: =SUMIFS($P$62:$P$116,$C$62:$C$116,Таблица3[[#This Row],[Шир]],$D$62:$D$116,Таблица3[[#This Row],[Дл]],$AC$62:$AC$116,Таблица3[[#This Row],[Толщ]],$F$62:$F$116,Таблица3[[#This Row],[Астра]]) -> 0 | Q129: =SUMIFS($P$62:$P$116,$AC$62:$AC$116,Таблица3[[#This Row],[Толщ]],$C$62:$C$116,"<"&Таблица3[[#This Row],[Шир]],$D$62:$D$116,Таблица3[[#This Row],[Дл]],$F$62:$F$116,Таблица3[[#This Row],[Астра]])+SUMIFS($P$62:$P$116,$AC$62:$AC$116,Таблица3[[#This Row],[Толщ]],$C$62:$C$116,Таблица3[[#This Row],[Шир]],$D$62:$D$116,"<"&Таблица3[[#This Row],[Дл]],$F$62:$F$116,Таблица3[[#This Row],[Астра]])+SUMIFS($P$62:$P$116,$AC$62:$AC$116,Таблица3[[#This Row],[Толщ]],$C$62:$C$116,"<"&Таблица3[[#This Row],[Шир]],$D$62:$D$116,"<"&Таблица3[[#This Row],[Дл]],$F$62:$F$116,Таблица3[[#This Row],[Астра]]) -> 0 | R129: =Таблица3[[#This Row],[Ст13]]+Таблица3[[#This Row],[Ст14]] -> 0 | S129: =SUMIFS($S$62:$S$116,$C$62:$C$116,Таблица3[[#This Row],[Шир]],$D$62:$D$116,Таблица3[[#This Row],[Дл]],$AC$62:$AC$116,Таблица3[[#This Row],[Толщ]],$F$62:$F$116,Таблица3[[#This Row],[Астра]]) -> 0 | T129: =SUMIFS($S$62:$S$116,$AC$62:$AC$116,Таблица3[[#This Row],[Толщ]],$C$62:$C$116,"<"&Таблица3[[#This Row],[Шир]],$D$62:$D$116,Таблица3[[#This Row],[Дл]],$F$62:$F$116,Таблица3[[#This Row],[Астра]])+SUMIFS($S$62:$S$116,$AC$62:$AC$116,Таблица3[[#This Row],[Толщ]],$C$62:$C$116,Таблица3[[#This Row],[Шир]],$D$62:$D$116,"<"&Таблица3[[#This Row],[Дл]],$F$62:$F$116,Таблица3[[#This Row],[Астра]])+SUMIFS($S$62:$S$116,$AC$62:$AC$116,Таблица3[[#This Row],[Толщ]],$C$62:$C$116,"<"&Таблица3[[#This Row],[Шир]],$D$62:$D$116,"<"&Таблица3[[#This Row],[Дл]],$F$62:$F$116,Таблица3[[#This Row],[Астра]]) -> 0 | U129: =Таблица3[[#This Row],[Ст16]]+Таблица3[[#This Row],[Ст17]] -> 0 | V129: =Таблица3[[#This Row],[Ст18]]+Таблица3[[#This Row],[Столбец32]] -> 0 | W129: =SUMIFS($V$62:$V$116,$C$62:$C$116,Таблица3[[#This Row],[Шир]],$D$62:$D$116,Таблица3[[#This Row],[Дл]],$AC$62:$AC$116,Таблица3[[#This Row],[Толщ]],$F$62:$F$116,Таблица3[[#This Row],[Астра]]) -> 0 | X129: =SUMIFS($V$62:$V$116,$AC$62:$AC$116,Таблица3[[#This Row],[Толщ]],$C$62:$C$116,"<"&Таблица3[[#This Row],[Шир]],$D$62:$D$116,Таблица3[[#This Row],[Дл]],$F$62:$F$116,Таблица3[[#This Row],[Астра]])+SUMIFS($V$62:$V$116,$AC$62:$AC$116,Таблица3[[#This Row],[Толщ]],$C$62:$C$116,Таблица3[[#This Row],[Шир]],$D$62:$D$116,"<"&Таблица3[[#This Row],[Дл]],$F$62:$F$116,Таблица3[[#This Row],[Астра]])+SUMIFS($V$62:$V$116,$AC$62:$AC$116,Таблица3[[#This Row],[Толщ]],$C$62:$C$116,"<"&Таблица3[[#This Row],[Шир]],$D$62:$D$116,"<"&Таблица3[[#This Row],[Дл]],$F$62:$F$116,Таблица3[[#This Row],[Астра]]) -> 0 | Y129: =Таблица3[[#This Row],[Ст19]]+Таблица3[[#This Row],[Ст20]] -> 0 | Z129: =Таблица3[[#This Row],[Ст21]]-Таблица3[[#This Row],[Столбец32]] -> 0 | AB129: Лист лазер, 1.5 мм, лт | AC129: Лист лазер | AD129: Лист | AE129: 7.874 | AF129: =SUBSTITUTE(Таблица3[[#This Row],[Толщ]],",",".") -> 1.5 | AG129: =SUMIFS($AA$8:$AA$57,$H$8:$H$57,Таблица3[[#This Row],[Столбец28]],$G$8:$G$57,Таблица3[[#This Row],[Толщ]]) -> 0
A130: =IF(Таблица3[[#All],[Ст21]]=0,"z","") -> z | C130: 1250 | D130: 2500 | E130: 10 | G130: =SUMIFS($G$62:$G$116,$D$62:$D$116,Таблица3[[#This Row],[Дл]],$C$62:$C$116,Таблица3[[#This Row],[Шир]],$AC$62:$AC$116,Таблица3[[#This Row],[Толщ]],$F$62:$F$116,Таблица3[[#This Row],[Астра]]) -> 0 | I130: =CONCATENATE(Таблица3[[#This Row],[Столбец29]]," ",Таблица3[[#This Row],[Толщ]]) -> Лист 10 | K130: =Таблица3[[#This Row],[Толщ]] -> 10 | M130: =SUMIFS($M$62:$M$116,$C$62:$C$116,Таблица3[[#This Row],[Шир]],$D$62:$D$116,Таблица3[[#This Row],[Дл]],$AC$62:$AC$116,Таблица3[[#This Row],[Толщ]],$F$62:$F$116,Таблица3[[#This Row],[Астра]]) -> 0 | N130: =SUMIFS($M$62:$M$116,$AC$62:$AC$116,Таблица3[[#This Row],[Толщ]],$C$62:$C$116,"<"&Таблица3[[#This Row],[Шир]],$D$62:$D$116,Таблица3[[#This Row],[Дл]],$F$62:$F$116,Таблица3[[#This Row],[Астра]])+SUMIFS($M$62:$M$116,$AC$62:$AC$116,Таблица3[[#This Row],[Толщ]],$C$62:$C$116,Таблица3[[#This Row],[Шир]],$D$62:$D$116,"<"&Таблица3[[#This Row],[Дл]],$F$62:$F$116,Таблица3[[#This Row],[Астра]])+SUMIFS($M$62:$M$116,$AC$62:$AC$116,Таблица3[[#This Row],[Толщ]],$C$62:$C$116,"<"&Таблица3[[#This Row],[Шир]],$D$62:$D$116,"<"&Таблица3[[#This Row],[Дл]],$F$62:$F$116,Таблица3[[#This Row],[Астра]]) -> 0 | O130: =Таблица3[[#This Row],[Ст10]]+Таблица3[[#This Row],[Ст11]] -> 0 | P130: =SUMIFS($P$62:$P$116,$C$62:$C$116,Таблица3[[#This Row],[Шир]],$D$62:$D$116,Таблица3[[#This Row],[Дл]],$AC$62:$AC$116,Таблица3[[#This Row],[Толщ]],$F$62:$F$116,Таблица3[[#This Row],[Астра]]) -> 0 | Q130: =SUMIFS($P$62:$P$116,$AC$62:$AC$116,Таблица3[[#This Row],[Толщ]],$C$62:$C$116,"<"&Таблица3[[#This Row],[Шир]],$D$62:$D$116,Таблица3[[#This Row],[Дл]],$F$62:$F$116,Таблица3[[#This Row],[Астра]])+SUMIFS($P$62:$P$116,$AC$62:$AC$116,Таблица3[[#This Row],[Толщ]],$C$62:$C$116,Таблица3[[#This Row],[Шир]],$D$62:$D$116,"<"&Таблица3[[#This Row],[Дл]],$F$62:$F$116,Таблица3[[#This Row],[Астра]])+SUMIFS($P$62:$P$116,$AC$62:$AC$116,Таблица3[[#This Row],[Толщ]],$C$62:$C$116,"<"&Таблица3[[#This Row],[Шир]],$D$62:$D$116,"<"&Таблица3[[#This Row],[Дл]],$F$62:$F$116,Таблица3[[#This Row],[Астра]]) -> 0 | R130: =Таблица3[[#This Row],[Ст13]]+Таблица3[[#This Row],[Ст14]] -> 0 | S130: =SUMIFS($S$62:$S$116,$C$62:$C$116,Таблица3[[#This Row],[Шир]],$D$62:$D$116,Таблица3[[#This Row],[Дл]],$AC$62:$AC$116,Таблица3[[#This Row],[Толщ]],$F$62:$F$116,Таблица3[[#This Row],[Астра]]) -> 0 | T130: =SUMIFS($S$62:$S$116,$AC$62:$AC$116,Таблица3[[#This Row],[Толщ]],$C$62:$C$116,"<"&Таблица3[[#This Row],[Шир]],$D$62:$D$116,Таблица3[[#This Row],[Дл]],$F$62:$F$116,Таблица3[[#This Row],[Астра]])+SUMIFS($S$62:$S$116,$AC$62:$AC$116,Таблица3[[#This Row],[Толщ]],$C$62:$C$116,Таблица3[[#This Row],[Шир]],$D$62:$D$116,"<"&Таблица3[[#This Row],[Дл]],$F$62:$F$116,Таблица3[[#This Row],[Астра]])+SUMIFS($S$62:$S$116,$AC$62:$AC$116,Таблица3[[#This Row],[Толщ]],$C$62:$C$116,"<"&Таблица3[[#This Row],[Шир]],$D$62:$D$116,"<"&Таблица3[[#This Row],[Дл]],$F$62:$F$116,Таблица3[[#This Row],[Астра]]) -> 0 | U130: =Таблица3[[#This Row],[Ст16]]+Таблица3[[#This Row],[Ст17]] -> 0 | V130: =Таблица3[[#This Row],[Ст18]]+Таблица3[[#This Row],[Столбец32]] -> 0 | W130: =SUMIFS($V$62:$V$116,$C$62:$C$116,Таблица3[[#This Row],[Шир]],$D$62:$D$116,Таблица3[[#This Row],[Дл]],$AC$62:$AC$116,Таблица3[[#This Row],[Толщ]],$F$62:$F$116,Таблица3[[#This Row],[Астра]]) -> 0 | X130: =SUMIFS($V$62:$V$116,$AC$62:$AC$116,Таблица3[[#This Row],[Толщ]],$C$62:$C$116,"<"&Таблица3[[#This Row],[Шир]],$D$62:$D$116,Таблица3[[#This Row],[Дл]],$F$62:$F$116,Таблица3[[#This Row],[Астра]])+SUMIFS($V$62:$V$116,$AC$62:$AC$116,Таблица3[[#This Row],[Толщ]],$C$62:$C$116,Таблица3[[#This Row],[Шир]],$D$62:$D$116,"<"&Таблица3[[#This Row],[Дл]],$F$62:$F$116,Таблица3[[#This Row],[Астра]])+SUMIFS($V$62:$V$116,$AC$62:$AC$116,Таблица3[[#This Row],[Толщ]],$C$62:$C$116,"<"&Таблица3[[#This Row],[Шир]],$D$62:$D$116,"<"&Таблица3[[#This Row],[Дл]],$F$62:$F$116,Таблица3[[#This Row],[Астра]]) -> 0 | Y130: =Таблица3[[#This Row],[Ст19]]+Таблица3[[#This Row],[Ст20]] -> 0 | Z130: =Таблица3[[#This Row],[Ст21]]-Таблица3[[#This Row],[Столбец32]] -> 0 | AB130: Лист лазер, 10.0 мм, лт | AC130: Лист лазер | AD130: Лист | AE130: 7.874 | AF130: =SUBSTITUTE(Таблица3[[#This Row],[Толщ]],",",".") -> 10 | AG130: =SUMIFS($AA$8:$AA$57,$H$8:$H$57,Таблица3[[#This Row],[Столбец28]],$G$8:$G$57,Таблица3[[#This Row],[Толщ]]) -> 0
A131: =IF(Таблица3[[#All],[Ст21]]=0,"z","") -> z | C131: 1250 | D131: 2500 | E131: 2 | G131: =SUMIFS($G$62:$G$116,$D$62:$D$116,Таблица3[[#This Row],[Дл]],$C$62:$C$116,Таблица3[[#This Row],[Шир]],$AC$62:$AC$116,Таблица3[[#This Row],[Толщ]],$F$62:$F$116,Таблица3[[#This Row],[Астра]]) -> 0 | I131: =CONCATENATE(Таблица3[[#This Row],[Столбец29]]," ",Таблица3[[#This Row],[Толщ]]) -> Лист 2 | K131: =Таблица3[[#This Row],[Толщ]] -> 2 | M131: =SUMIFS($M$62:$M$116,$C$62:$C$116,Таблица3[[#This Row],[Шир]],$D$62:$D$116,Таблица3[[#This Row],[Дл]],$AC$62:$AC$116,Таблица3[[#This Row],[Толщ]],$F$62:$F$116,Таблица3[[#This Row],[Астра]]) -> 0 | N131: =SUMIFS($M$62:$M$116,$AC$62:$AC$116,Таблица3[[#This Row],[Толщ]],$C$62:$C$116,"<"&Таблица3[[#This Row],[Шир]],$D$62:$D$116,Таблица3[[#This Row],[Дл]],$F$62:$F$116,Таблица3[[#This Row],[Астра]])+SUMIFS($M$62:$M$116,$AC$62:$AC$116,Таблица3[[#This Row],[Толщ]],$C$62:$C$116,Таблица3[[#This Row],[Шир]],$D$62:$D$116,"<"&Таблица3[[#This Row],[Дл]],$F$62:$F$116,Таблица3[[#This Row],[Астра]])+SUMIFS($M$62:$M$116,$AC$62:$AC$116,Таблица3[[#This Row],[Толщ]],$C$62:$C$116,"<"&Таблица3[[#This Row],[Шир]],$D$62:$D$116,"<"&Таблица3[[#This Row],[Дл]],$F$62:$F$116,Таблица3[[#This Row],[Астра]]) -> 0 | O131: =Таблица3[[#This Row],[Ст10]]+Таблица3[[#This Row],[Ст11]] -> 0 | P131: =SUMIFS($P$62:$P$116,$C$62:$C$116,Таблица3[[#This Row],[Шир]],$D$62:$D$116,Таблица3[[#This Row],[Дл]],$AC$62:$AC$116,Таблица3[[#This Row],[Толщ]],$F$62:$F$116,Таблица3[[#This Row],[Астра]]) -> 0 | Q131: =SUMIFS($P$62:$P$116,$AC$62:$AC$116,Таблица3[[#This Row],[Толщ]],$C$62:$C$116,"<"&Таблица3[[#This Row],[Шир]],$D$62:$D$116,Таблица3[[#This Row],[Дл]],$F$62:$F$116,Таблица3[[#This Row],[Астра]])+SUMIFS($P$62:$P$116,$AC$62:$AC$116,Таблица3[[#This Row],[Толщ]],$C$62:$C$116,Таблица3[[#This Row],[Шир]],$D$62:$D$116,"<"&Таблица3[[#This Row],[Дл]],$F$62:$F$116,Таблица3[[#This Row],[Астра]])+SUMIFS($P$62:$P$116,$AC$62:$AC$116,Таблица3[[#This Row],[Толщ]],$C$62:$C$116,"<"&Таблица3[[#This Row],[Шир]],$D$62:$D$116,"<"&Таблица3[[#This Row],[Дл]],$F$62:$F$116,Таблица3[[#This Row],[Астра]]) -> 0 | R131: =Таблица3[[#This Row],[Ст13]]+Таблица3[[#This Row],[Ст14]] -> 0 | S131: =SUMIFS($S$62:$S$116,$C$62:$C$116,Таблица3[[#This Row],[Шир]],$D$62:$D$116,Таблица3[[#This Row],[Дл]],$AC$62:$AC$116,Таблица3[[#This Row],[Толщ]],$F$62:$F$116,Таблица3[[#This Row],[Астра]]) -> 0 | T131: =SUMIFS($S$62:$S$116,$AC$62:$AC$116,Таблица3[[#This Row],[Толщ]],$C$62:$C$116,"<"&Таблица3[[#This Row],[Шир]],$D$62:$D$116,Таблица3[[#This Row],[Дл]],$F$62:$F$116,Таблица3[[#This Row],[Астра]])+SUMIFS($S$62:$S$116,$AC$62:$AC$116,Таблица3[[#This Row],[Толщ]],$C$62:$C$116,Таблица3[[#This Row],[Шир]],$D$62:$D$116,"<"&Таблица3[[#This Row],[Дл]],$F$62:$F$116,Таблица3[[#This Row],[Астра]])+SUMIFS($S$62:$S$116,$AC$62:$AC$116,Таблица3[[#This Row],[Толщ]],$C$62:$C$116,"<"&Таблица3[[#This Row],[Шир]],$D$62:$D$116,"<"&Таблица3[[#This Row],[Дл]],$F$62:$F$116,Таблица3[[#This Row],[Астра]]) -> 0 | U131: =Таблица3[[#This Row],[Ст16]]+Таблица3[[#This Row],[Ст17]] -> 0 | V131: =Таблица3[[#This Row],[Ст18]]+Таблица3[[#This Row],[Столбец32]] -> 124.1068384 | W131: =SUMIFS($V$62:$V$116,$C$62:$C$116,Таблица3[[#This Row],[Шир]],$D$62:$D$116,Таблица3[[#This Row],[Дл]],$AC$62:$AC$116,Таблица3[[#This Row],[Толщ]],$F$62:$F$116,Таблица3[[#This Row],[Астра]]) -> 0 | X131: =SUMIFS($V$62:$V$116,$AC$62:$AC$116,Таблица3[[#This Row],[Толщ]],$C$62:$C$116,"<"&Таблица3[[#This Row],[Шир]],$D$62:$D$116,Таблица3[[#This Row],[Дл]],$F$62:$F$116,Таблица3[[#This Row],[Астра]])+SUMIFS($V$62:$V$116,$AC$62:$AC$116,Таблица3[[#This Row],[Толщ]],$C$62:$C$116,Таблица3[[#This Row],[Шир]],$D$62:$D$116,"<"&Таблица3[[#This Row],[Дл]],$F$62:$F$116,Таблица3[[#This Row],[Астра]])+SUMIFS($V$62:$V$116,$AC$62:$AC$116,Таблица3[[#This Row],[Толщ]],$C$62:$C$116,"<"&Таблица3[[#This Row],[Шир]],$D$62:$D$116,"<"&Таблица3[[#This Row],[Дл]],$F$62:$F$116,Таблица3[[#This Row],[Астра]]) -> 0 | Y131: =Таблица3[[#This Row],[Ст19]]+Таблица3[[#This Row],[Ст20]] -> 0 | Z131: =Таблица3[[#This Row],[Ст21]]-Таблица3[[#This Row],[Столбец32]] -> -124.1068384 | AB131: Лист лазер, 2.0 мм, лт | AC131: Лист лазер | AD131: Лист | AE131: 7.874 | AF131: =SUBSTITUTE(Таблица3[[#This Row],[Толщ]],",",".") -> 2 | AG131: =SUMIFS($AA$8:$AA$57,$H$8:$H$57,Таблица3[[#This Row],[Столбец28]],$G$8:$G$57,Таблица3[[#This Row],[Толщ]]) -> 124.1068384
A132: =IF(Таблица3[[#All],[Ст21]]=0,"z","") -> z | C132: 1250 | D132: 2500 | E132: 2.5 | G132: =SUMIFS($G$62:$G$116,$D$62:$D$116,Таблица3[[#This Row],[Дл]],$C$62:$C$116,Таблица3[[#This Row],[Шир]],$AC$62:$AC$116,Таблица3[[#This Row],[Толщ]],$F$62:$F$116,Таблица3[[#This Row],[Астра]]) -> 0 | I132: =CONCATENATE(Таблица3[[#This Row],[Столбец29]]," ",Таблица3[[#This Row],[Толщ]]) -> Лист 2,5 | K132: =Таблица3[[#This Row],[Толщ]] -> 2.5 | M132: =SUMIFS($M$62:$M$116,$C$62:$C$116,Таблица3[[#This Row],[Шир]],$D$62:$D$116,Таблица3[[#This Row],[Дл]],$AC$62:$AC$116,Таблица3[[#This Row],[Толщ]],$F$62:$F$116,Таблица3[[#This Row],[Астра]]) -> 0 | N132: =SUMIFS($M$62:$M$116,$AC$62:$AC$116,Таблица3[[#This Row],[Толщ]],$C$62:$C$116,"<"&Таблица3[[#This Row],[Шир]],$D$62:$D$116,Таблица3[[#This Row],[Дл]],$F$62:$F$116,Таблица3[[#This Row],[Астра]])+SUMIFS($M$62:$M$116,$AC$62:$AC$116,Таблица3[[#This Row],[Толщ]],$C$62:$C$116,Таблица3[[#This Row],[Шир]],$D$62:$D$116,"<"&Таблица3[[#This Row],[Дл]],$F$62:$F$116,Таблица3[[#This Row],[Астра]])+SUMIFS($M$62:$M$116,$AC$62:$AC$116,Таблица3[[#This Row],[Толщ]],$C$62:$C$116,"<"&Таблица3[[#This Row],[Шир]],$D$62:$D$116,"<"&Таблица3[[#This Row],[Дл]],$F$62:$F$116,Таблица3[[#This Row],[Астра]]) -> 0 | O132: =Таблица3[[#This Row],[Ст10]]+Таблица3[[#This Row],[Ст11]] -> 0 | P132: =SUMIFS($P$62:$P$116,$C$62:$C$116,Таблица3[[#This Row],[Шир]],$D$62:$D$116,Таблица3[[#This Row],[Дл]],$AC$62:$AC$116,Таблица3[[#This Row],[Толщ]],$F$62:$F$116,Таблица3[[#This Row],[Астра]]) -> 0 | Q132: =SUMIFS($P$62:$P$116,$AC$62:$AC$116,Таблица3[[#This Row],[Толщ]],$C$62:$C$116,"<"&Таблица3[[#This Row],[Шир]],$D$62:$D$116,Таблица3[[#This Row],[Дл]],$F$62:$F$116,Таблица3[[#This Row],[Астра]])+SUMIFS($P$62:$P$116,$AC$62:$AC$116,Таблица3[[#This Row],[Толщ]],$C$62:$C$116,Таблица3[[#This Row],[Шир]],$D$62:$D$116,"<"&Таблица3[[#This Row],[Дл]],$F$62:$F$116,Таблица3[[#This Row],[Астра]])+SUMIFS($P$62:$P$116,$AC$62:$AC$116,Таблица3[[#This Row],[Толщ]],$C$62:$C$116,"<"&Таблица3[[#This Row],[Шир]],$D$62:$D$116,"<"&Таблица3[[#This Row],[Дл]],$F$62:$F$116,Таблица3[[#This Row],[Астра]]) -> 0 | R132: =Таблица3[[#This Row],[Ст13]]+Таблица3[[#This Row],[Ст14]] -> 0 | S132: =SUMIFS($S$62:$S$116,$C$62:$C$116,Таблица3[[#This Row],[Шир]],$D$62:$D$116,Таблица3[[#This Row],[Дл]],$AC$62:$AC$116,Таблица3[[#This Row],[Толщ]],$F$62:$F$116,Таблица3[[#This Row],[Астра]]) -> 0 | T132: =SUMIFS($S$62:$S$116,$AC$62:$AC$116,Таблица3[[#This Row],[Толщ]],$C$62:$C$116,"<"&Таблица3[[#This Row],[Шир]],$D$62:$D$116,Таблица3[[#This Row],[Дл]],$F$62:$F$116,Таблица3[[#This Row],[Астра]])+SUMIFS($S$62:$S$116,$AC$62:$AC$116,Таблица3[[#This Row],[Толщ]],$C$62:$C$116,Таблица3[[#This Row],[Шир]],$D$62:$D$116,"<"&Таблица3[[#This Row],[Дл]],$F$62:$F$116,Таблица3[[#This Row],[Астра]])+SUMIFS($S$62:$S$116,$AC$62:$AC$116,Таблица3[[#This Row],[Толщ]],$C$62:$C$116,"<"&Таблица3[[#This Row],[Шир]],$D$62:$D$116,"<"&Таблица3[[#This Row],[Дл]],$F$62:$F$116,Таблица3[[#This Row],[Астра]]) -> 0 | U132: =Таблица3[[#This Row],[Ст16]]+Таблица3[[#This Row],[Ст17]] -> 0 | V132: =Таблица3[[#This Row],[Ст18]]+Таблица3[[#This Row],[Столбец32]] -> 0 | W132: =SUMIFS($V$62:$V$116,$C$62:$C$116,Таблица3[[#This Row],[Шир]],$D$62:$D$116,Таблица3[[#This Row],[Дл]],$AC$62:$AC$116,Таблица3[[#This Row],[Толщ]],$F$62:$F$116,Таблица3[[#This Row],[Астра]]) -> 0 | X132: =SUMIFS($V$62:$V$116,$AC$62:$AC$116,Таблица3[[#This Row],[Толщ]],$C$62:$C$116,"<"&Таблица3[[#This Row],[Шир]],$D$62:$D$116,Таблица3[[#This Row],[Дл]],$F$62:$F$116,Таблица3[[#This Row],[Астра]])+SUMIFS($V$62:$V$116,$AC$62:$AC$116,Таблица3[[#This Row],[Толщ]],$C$62:$C$116,Таблица3[[#This Row],[Шир]],$D$62:$D$116,"<"&Таблица3[[#This Row],[Дл]],$F$62:$F$116,Таблица3[[#This Row],[Астра]])+SUMIFS($V$62:$V$116,$AC$62:$AC$116,Таблица3[[#This Row],[Толщ]],$C$62:$C$116,"<"&Таблица3[[#This Row],[Шир]],$D$62:$D$116,"<"&Таблица3[[#This Row],[Дл]],$F$62:$F$116,Таблица3[[#This Row],[Астра]]) -> 0 | Y132: =Таблица3[[#This Row],[Ст19]]+Таблица3[[#This Row],[Ст20]] -> 0 | Z132: =Таблица3[[#This Row],[Ст21]]-Таблица3[[#This Row],[Столбец32]] -> 0 | AB132: Лист лазер, 2.5 мм, лт | AC132: Лист лазер | AD132: Лист | AE132: 7.874 | AF132: =SUBSTITUTE(Таблица3[[#This Row],[Толщ]],",",".") -> 2.5 | AG132: =SUMIFS($AA$8:$AA$57,$H$8:$H$57,Таблица3[[#This Row],[Столбец28]],$G$8:$G$57,Таблица3[[#This Row],[Толщ]]) -> 0
A133: =IF(Таблица3[[#All],[Ст21]]=0,"z","") -> z | C133: 1250 | D133: 2500 | E133: 3 | G133: =SUMIFS($G$62:$G$116,$D$62:$D$116,Таблица3[[#This Row],[Дл]],$C$62:$C$116,Таблица3[[#This Row],[Шир]],$AC$62:$AC$116,Таблица3[[#This Row],[Толщ]],$F$62:$F$116,Таблица3[[#This Row],[Астра]]) -> 0 | I133: =CONCATENATE(Таблица3[[#This Row],[Столбец29]]," ",Таблица3[[#This Row],[Толщ]]) -> Лист 3 | K133: =Таблица3[[#This Row],[Толщ]] -> 3 | M133: =SUMIFS($M$62:$M$116,$C$62:$C$116,Таблица3[[#This Row],[Шир]],$D$62:$D$116,Таблица3[[#This Row],[Дл]],$AC$62:$AC$116,Таблица3[[#This Row],[Толщ]],$F$62:$F$116,Таблица3[[#This Row],[Астра]]) -> 0 | N133: =SUMIFS($M$62:$M$116,$AC$62:$AC$116,Таблица3[[#This Row],[Толщ]],$C$62:$C$116,"<"&Таблица3[[#This Row],[Шир]],$D$62:$D$116,Таблица3[[#This Row],[Дл]],$F$62:$F$116,Таблица3[[#This Row],[Астра]])+SUMIFS($M$62:$M$116,$AC$62:$AC$116,Таблица3[[#This Row],[Толщ]],$C$62:$C$116,Таблица3[[#This Row],[Шир]],$D$62:$D$116,"<"&Таблица3[[#This Row],[Дл]],$F$62:$F$116,Таблица3[[#This Row],[Астра]])+SUMIFS($M$62:$M$116,$AC$62:$AC$116,Таблица3[[#This Row],[Толщ]],$C$62:$C$116,"<"&Таблица3[[#This Row],[Шир]],$D$62:$D$116,"<"&Таблица3[[#This Row],[Дл]],$F$62:$F$116,Таблица3[[#This Row],[Астра]]) -> 0 | O133: =Таблица3[[#This Row],[Ст10]]+Таблица3[[#This Row],[Ст11]] -> 0 | P133: =SUMIFS($P$62:$P$116,$C$62:$C$116,Таблица3[[#This Row],[Шир]],$D$62:$D$116,Таблица3[[#This Row],[Дл]],$AC$62:$AC$116,Таблица3[[#This Row],[Толщ]],$F$62:$F$116,Таблица3[[#This Row],[Астра]]) -> 0 | Q133: =SUMIFS($P$62:$P$116,$AC$62:$AC$116,Таблица3[[#This Row],[Толщ]],$C$62:$C$116,"<"&Таблица3[[#This Row],[Шир]],$D$62:$D$116,Таблица3[[#This Row],[Дл]],$F$62:$F$116,Таблица3[[#This Row],[Астра]])+SUMIFS($P$62:$P$116,$AC$62:$AC$116,Таблица3[[#This Row],[Толщ]],$C$62:$C$116,Таблица3[[#This Row],[Шир]],$D$62:$D$116,"<"&Таблица3[[#This Row],[Дл]],$F$62:$F$116,Таблица3[[#This Row],[Астра]])+SUMIFS($P$62:$P$116,$AC$62:$AC$116,Таблица3[[#This Row],[Толщ]],$C$62:$C$116,"<"&Таблица3[[#This Row],[Шир]],$D$62:$D$116,"<"&Таблица3[[#This Row],[Дл]],$F$62:$F$116,Таблица3[[#This Row],[Астра]]) -> 0 | R133: =Таблица3[[#This Row],[Ст13]]+Таблица3[[#This Row],[Ст14]] -> 0 | S133: =SUMIFS($S$62:$S$116,$C$62:$C$116,Таблица3[[#This Row],[Шир]],$D$62:$D$116,Таблица3[[#This Row],[Дл]],$AC$62:$AC$116,Таблица3[[#This Row],[Толщ]],$F$62:$F$116,Таблица3[[#This Row],[Астра]]) -> 0 | T133: =SUMIFS($S$62:$S$116,$AC$62:$AC$116,Таблица3[[#This Row],[Толщ]],$C$62:$C$116,"<"&Таблица3[[#This Row],[Шир]],$D$62:$D$116,Таблица3[[#This Row],[Дл]],$F$62:$F$116,Таблица3[[#This Row],[Астра]])+SUMIFS($S$62:$S$116,$AC$62:$AC$116,Таблица3[[#This Row],[Толщ]],$C$62:$C$116,Таблица3[[#This Row],[Шир]],$D$62:$D$116,"<"&Таблица3[[#This Row],[Дл]],$F$62:$F$116,Таблица3[[#This Row],[Астра]])+SUMIFS($S$62:$S$116,$AC$62:$AC$116,Таблица3[[#This Row],[Толщ]],$C$62:$C$116,"<"&Таблица3[[#This Row],[Шир]],$D$62:$D$116,"<"&Таблица3[[#This Row],[Дл]],$F$62:$F$116,Таблица3[[#This Row],[Астра]]) -> 0 | U133: =Таблица3[[#This Row],[Ст16]]+Таблица3[[#This Row],[Ст17]] -> 0 | V133: =Таблица3[[#This Row],[Ст18]]+Таблица3[[#This Row],[Столбец32]] -> 0 | W133: =SUMIFS($V$62:$V$116,$C$62:$C$116,Таблица3[[#This Row],[Шир]],$D$62:$D$116,Таблица3[[#This Row],[Дл]],$AC$62:$AC$116,Таблица3[[#This Row],[Толщ]],$F$62:$F$116,Таблица3[[#This Row],[Астра]]) -> 0 | X133: =SUMIFS($V$62:$V$116,$AC$62:$AC$116,Таблица3[[#This Row],[Толщ]],$C$62:$C$116,"<"&Таблица3[[#This Row],[Шир]],$D$62:$D$116,Таблица3[[#This Row],[Дл]],$F$62:$F$116,Таблица3[[#This Row],[Астра]])+SUMIFS($V$62:$V$116,$AC$62:$AC$116,Таблица3[[#This Row],[Толщ]],$C$62:$C$116,Таблица3[[#This Row],[Шир]],$D$62:$D$116,"<"&Таблица3[[#This Row],[Дл]],$F$62:$F$116,Таблица3[[#This Row],[Астра]])+SUMIFS($V$62:$V$116,$AC$62:$AC$116,Таблица3[[#This Row],[Толщ]],$C$62:$C$116,"<"&Таблица3[[#This Row],[Шир]],$D$62:$D$116,"<"&Таблица3[[#This Row],[Дл]],$F$62:$F$116,Таблица3[[#This Row],[Астра]]) -> 0 | Y133: =Таблица3[[#This Row],[Ст19]]+Таблица3[[#This Row],[Ст20]] -> 0 | Z133: =Таблица3[[#This Row],[Ст21]]-Таблица3[[#This Row],[Столбец32]] -> 0 | AB133: Лист лазер, 3.0 мм, лт | AC133: Лист лазер | AD133: Лист | AE133: 7.874 | AF133: =SUBSTITUTE(Таблица3[[#This Row],[Толщ]],",",".") -> 3 | AG133: =SUMIFS($AA$8:$AA$57,$H$8:$H$57,Таблица3[[#This Row],[Столбец28]],$G$8:$G$57,Таблица3[[#This Row],[Толщ]]) -> 0
A134: =IF(Таблица3[[#All],[Ст21]]=0,"z","") -> z | C134: 1250 | D134: 2500 | E134: 4 | G134: =SUMIFS($G$62:$G$116,$D$62:$D$116,Таблица3[[#This Row],[Дл]],$C$62:$C$116,Таблица3[[#This Row],[Шир]],$AC$62:$AC$116,Таблица3[[#This Row],[Толщ]],$F$62:$F$116,Таблица3[[#This Row],[Астра]]) -> 0 | I134: =CONCATENATE(Таблица3[[#This Row],[Столбец29]]," ",Таблица3[[#This Row],[Толщ]]) -> Лист 4 | K134: =Таблица3[[#This Row],[Толщ]] -> 4 | M134: =SUMIFS($M$62:$M$116,$C$62:$C$116,Таблица3[[#This Row],[Шир]],$D$62:$D$116,Таблица3[[#This Row],[Дл]],$AC$62:$AC$116,Таблица3[[#This Row],[Толщ]],$F$62:$F$116,Таблица3[[#This Row],[Астра]]) -> 0 | N134: =SUMIFS($M$62:$M$116,$AC$62:$AC$116,Таблица3[[#This Row],[Толщ]],$C$62:$C$116,"<"&Таблица3[[#This Row],[Шир]],$D$62:$D$116,Таблица3[[#This Row],[Дл]],$F$62:$F$116,Таблица3[[#This Row],[Астра]])+SUMIFS($M$62:$M$116,$AC$62:$AC$116,Таблица3[[#This Row],[Толщ]],$C$62:$C$116,Таблица3[[#This Row],[Шир]],$D$62:$D$116,"<"&Таблица3[[#This Row],[Дл]],$F$62:$F$116,Таблица3[[#This Row],[Астра]])+SUMIFS($M$62:$M$116,$AC$62:$AC$116,Таблица3[[#This Row],[Толщ]],$C$62:$C$116,"<"&Таблица3[[#This Row],[Шир]],$D$62:$D$116,"<"&Таблица3[[#This Row],[Дл]],$F$62:$F$116,Таблица3[[#This Row],[Астра]]) -> 0 | O134: =Таблица3[[#This Row],[Ст10]]+Таблица3[[#This Row],[Ст11]] -> 0 | P134: =SUMIFS($P$62:$P$116,$C$62:$C$116,Таблица3[[#This Row],[Шир]],$D$62:$D$116,Таблица3[[#This Row],[Дл]],$AC$62:$AC$116,Таблица3[[#This Row],[Толщ]],$F$62:$F$116,Таблица3[[#This Row],[Астра]]) -> 0 | Q134: =SUMIFS($P$62:$P$116,$AC$62:$AC$116,Таблица3[[#This Row],[Толщ]],$C$62:$C$116,"<"&Таблица3[[#This Row],[Шир]],$D$62:$D$116,Таблица3[[#This Row],[Дл]],$F$62:$F$116,Таблица3[[#This Row],[Астра]])+SUMIFS($P$62:$P$116,$AC$62:$AC$116,Таблица3[[#This Row],[Толщ]],$C$62:$C$116,Таблица3[[#This Row],[Шир]],$D$62:$D$116,"<"&Таблица3[[#This Row],[Дл]],$F$62:$F$116,Таблица3[[#This Row],[Астра]])+SUMIFS($P$62:$P$116,$AC$62:$AC$116,Таблица3[[#This Row],[Толщ]],$C$62:$C$116,"<"&Таблица3[[#This Row],[Шир]],$D$62:$D$116,"<"&Таблица3[[#This Row],[Дл]],$F$62:$F$116,Таблица3[[#This Row],[Астра]]) -> 0 | R134: =Таблица3[[#This Row],[Ст13]]+Таблица3[[#This Row],[Ст14]] -> 0 | S134: =SUMIFS($S$62:$S$116,$C$62:$C$116,Таблица3[[#This Row],[Шир]],$D$62:$D$116,Таблица3[[#This Row],[Дл]],$AC$62:$AC$116,Таблица3[[#This Row],[Толщ]],$F$62:$F$116,Таблица3[[#This Row],[Астра]]) -> 0 | T134: =SUMIFS($S$62:$S$116,$AC$62:$AC$116,Таблица3[[#This Row],[Толщ]],$C$62:$C$116,"<"&Таблица3[[#This Row],[Шир]],$D$62:$D$116,Таблица3[[#This Row],[Дл]],$F$62:$F$116,Таблица3[[#This Row],[Астра]])+SUMIFS($S$62:$S$116,$AC$62:$AC$116,Таблица3[[#This Row],[Толщ]],$C$62:$C$116,Таблица3[[#This Row],[Шир]],$D$62:$D$116,"<"&Таблица3[[#This Row],[Дл]],$F$62:$F$116,Таблица3[[#This Row],[Астра]])+SUMIFS($S$62:$S$116,$AC$62:$AC$116,Таблица3[[#This Row],[Толщ]],$C$62:$C$116,"<"&Таблица3[[#This Row],[Шир]],$D$62:$D$116,"<"&Таблица3[[#This Row],[Дл]],$F$62:$F$116,Таблица3[[#This Row],[Астра]]) -> 0 | U134: =Таблица3[[#This Row],[Ст16]]+Таблица3[[#This Row],[Ст17]] -> 0 | V134: =Таблица3[[#This Row],[Ст18]]+Таблица3[[#This Row],[Столбец32]] -> 0 | W134: =SUMIFS($V$62:$V$116,$C$62:$C$116,Таблица3[[#This Row],[Шир]],$D$62:$D$116,Таблица3[[#This Row],[Дл]],$AC$62:$AC$116,Таблица3[[#This Row],[Толщ]],$F$62:$F$116,Таблица3[[#This Row],[Астра]]) -> 0 | X134: =SUMIFS($V$62:$V$116,$AC$62:$AC$116,Таблица3[[#This Row],[Толщ]],$C$62:$C$116,"<"&Таблица3[[#This Row],[Шир]],$D$62:$D$116,Таблица3[[#This Row],[Дл]],$F$62:$F$116,Таблица3[[#This Row],[Астра]])+SUMIFS($V$62:$V$116,$AC$62:$AC$116,Таблица3[[#This Row],[Толщ]],$C$62:$C$116,Таблица3[[#This Row],[Шир]],$D$62:$D$116,"<"&Таблица3[[#This Row],[Дл]],$F$62:$F$116,Таблица3[[#This Row],[Астра]])+SUMIFS($V$62:$V$116,$AC$62:$AC$116,Таблица3[[#This Row],[Толщ]],$C$62:$C$116,"<"&Таблица3[[#This Row],[Шир]],$D$62:$D$116,"<"&Таблица3[[#This Row],[Дл]],$F$62:$F$116,Таблица3[[#This Row],[Астра]]) -> 0 | Y134: =Таблица3[[#This Row],[Ст19]]+Таблица3[[#This Row],[Ст20]] -> 0 | Z134: =Таблица3[[#This Row],[Ст21]]-Таблица3[[#This Row],[Столбец32]] -> 0 | AB134: Лист лазер, 4.0 мм, лт | AC134: Лист лазер | AD134: Лист | AE134: 7.874 | AF134: =SUBSTITUTE(Таблица3[[#This Row],[Толщ]],",",".") -> 4 | AG134: =SUMIFS($AA$8:$AA$57,$H$8:$H$57,Таблица3[[#This Row],[Столбец28]],$G$8:$G$57,Таблица3[[#This Row],[Толщ]]) -> 0
A135: =IF(Таблица3[[#All],[Ст21]]=0,"z","") -> z | C135: 1250 | D135: 2500 | E135: 5 | G135: =SUMIFS($G$62:$G$116,$D$62:$D$116,Таблица3[[#This Row],[Дл]],$C$62:$C$116,Таблица3[[#This Row],[Шир]],$AC$62:$AC$116,Таблица3[[#This Row],[Толщ]],$F$62:$F$116,Таблица3[[#This Row],[Астра]]) -> 0 | I135: =CONCATENATE(Таблица3[[#This Row],[Столбец29]]," ",Таблица3[[#This Row],[Толщ]]) -> Лист 5 | K135: =Таблица3[[#This Row],[Толщ]] -> 5 | M135: =SUMIFS($M$62:$M$116,$C$62:$C$116,Таблица3[[#This Row],[Шир]],$D$62:$D$116,Таблица3[[#This Row],[Дл]],$AC$62:$AC$116,Таблица3[[#This Row],[Толщ]],$F$62:$F$116,Таблица3[[#This Row],[Астра]]) -> 0 | N135: =SUMIFS($M$62:$M$116,$AC$62:$AC$116,Таблица3[[#This Row],[Толщ]],$C$62:$C$116,"<"&Таблица3[[#This Row],[Шир]],$D$62:$D$116,Таблица3[[#This Row],[Дл]],$F$62:$F$116,Таблица3[[#This Row],[Астра]])+SUMIFS($M$62:$M$116,$AC$62:$AC$116,Таблица3[[#This Row],[Толщ]],$C$62:$C$116,Таблица3[[#This Row],[Шир]],$D$62:$D$116,"<"&Таблица3[[#This Row],[Дл]],$F$62:$F$116,Таблица3[[#This Row],[Астра]])+SUMIFS($M$62:$M$116,$AC$62:$AC$116,Таблица3[[#This Row],[Толщ]],$C$62:$C$116,"<"&Таблица3[[#This Row],[Шир]],$D$62:$D$116,"<"&Таблица3[[#This Row],[Дл]],$F$62:$F$116,Таблица3[[#This Row],[Астра]]) -> 0 | O135: =Таблица3[[#This Row],[Ст10]]+Таблица3[[#This Row],[Ст11]] -> 0 | P135: =SUMIFS($P$62:$P$116,$C$62:$C$116,Таблица3[[#This Row],[Шир]],$D$62:$D$116,Таблица3[[#This Row],[Дл]],$AC$62:$AC$116,Таблица3[[#This Row],[Толщ]],$F$62:$F$116,Таблица3[[#This Row],[Астра]]) -> 0 | Q135: =SUMIFS($P$62:$P$116,$AC$62:$AC$116,Таблица3[[#This Row],[Толщ]],$C$62:$C$116,"<"&Таблица3[[#This Row],[Шир]],$D$62:$D$116,Таблица3[[#This Row],[Дл]],$F$62:$F$116,Таблица3[[#This Row],[Астра]])+SUMIFS($P$62:$P$116,$AC$62:$AC$116,Таблица3[[#This Row],[Толщ]],$C$62:$C$116,Таблица3[[#This Row],[Шир]],$D$62:$D$116,"<"&Таблица3[[#This Row],[Дл]],$F$62:$F$116,Таблица3[[#This Row],[Астра]])+SUMIFS($P$62:$P$116,$AC$62:$AC$116,Таблица3[[#This Row],[Толщ]],$C$62:$C$116,"<"&Таблица3[[#This Row],[Шир]],$D$62:$D$116,"<"&Таблица3[[#This Row],[Дл]],$F$62:$F$116,Таблица3[[#This Row],[Астра]]) -> 0 | R135: =Таблица3[[#This Row],[Ст13]]+Таблица3[[#This Row],[Ст14]] -> 0 | S135: =SUMIFS($S$62:$S$116,$C$62:$C$116,Таблица3[[#This Row],[Шир]],$D$62:$D$116,Таблица3[[#This Row],[Дл]],$AC$62:$AC$116,Таблица3[[#This Row],[Толщ]],$F$62:$F$116,Таблица3[[#This Row],[Астра]]) -> 0 | T135: =SUMIFS($S$62:$S$116,$AC$62:$AC$116,Таблица3[[#This Row],[Толщ]],$C$62:$C$116,"<"&Таблица3[[#This Row],[Шир]],$D$62:$D$116,Таблица3[[#This Row],[Дл]],$F$62:$F$116,Таблица3[[#This Row],[Астра]])+SUMIFS($S$62:$S$116,$AC$62:$AC$116,Таблица3[[#This Row],[Толщ]],$C$62:$C$116,Таблица3[[#This Row],[Шир]],$D$62:$D$116,"<"&Таблица3[[#This Row],[Дл]],$F$62:$F$116,Таблица3[[#This Row],[Астра]])+SUMIFS($S$62:$S$116,$AC$62:$AC$116,Таблица3[[#This Row],[Толщ]],$C$62:$C$116,"<"&Таблица3[[#This Row],[Шир]],$D$62:$D$116,"<"&Таблица3[[#This Row],[Дл]],$F$62:$F$116,Таблица3[[#This Row],[Астра]]) -> 0 | U135: =Таблица3[[#This Row],[Ст16]]+Таблица3[[#This Row],[Ст17]] -> 0 | V135: =Таблица3[[#This Row],[Ст18]]+Таблица3[[#This Row],[Столбец32]] -> 0 | W135: =SUMIFS($V$62:$V$116,$C$62:$C$116,Таблица3[[#This Row],[Шир]],$D$62:$D$116,Таблица3[[#This Row],[Дл]],$AC$62:$AC$116,Таблица3[[#This Row],[Толщ]],$F$62:$F$116,Таблица3[[#This Row],[Астра]]) -> 0 | X135: =SUMIFS($V$62:$V$116,$AC$62:$AC$116,Таблица3[[#This Row],[Толщ]],$C$62:$C$116,"<"&Таблица3[[#This Row],[Шир]],$D$62:$D$116,Таблица3[[#This Row],[Дл]],$F$62:$F$116,Таблица3[[#This Row],[Астра]])+SUMIFS($V$62:$V$116,$AC$62:$AC$116,Таблица3[[#This Row],[Толщ]],$C$62:$C$116,Таблица3[[#This Row],[Шир]],$D$62:$D$116,"<"&Таблица3[[#This Row],[Дл]],$F$62:$F$116,Таблица3[[#This Row],[Астра]])+SUMIFS($V$62:$V$116,$AC$62:$AC$116,Таблица3[[#This Row],[Толщ]],$C$62:$C$116,"<"&Таблица3[[#This Row],[Шир]],$D$62:$D$116,"<"&Таблица3[[#This Row],[Дл]],$F$62:$F$116,Таблица3[[#This Row],[Астра]]) -> 0 | Y135: =Таблица3[[#This Row],[Ст19]]+Таблица3[[#This Row],[Ст20]] -> 0 | Z135: =Таблица3[[#This Row],[Ст21]]-Таблица3[[#This Row],[Столбец32]] -> 0 | AB135: Лист лазер, 5.0 мм, лт | AC135: Лист лазер | AD135: Лист | AE135: 7.874 | AF135: =SUBSTITUTE(Таблица3[[#This Row],[Толщ]],",",".") -> 5 | AG135: =SUMIFS($AA$8:$AA$57,$H$8:$H$57,Таблица3[[#This Row],[Столбец28]],$G$8:$G$57,Таблица3[[#This Row],[Толщ]]) -> 0
A136: =IF(Таблица3[[#All],[Ст21]]=0,"z","") -> z | C136: 1250 | D136: 2500 | E136: 6 | G136: =SUMIFS($G$62:$G$116,$D$62:$D$116,Таблица3[[#This Row],[Дл]],$C$62:$C$116,Таблица3[[#This Row],[Шир]],$AC$62:$AC$116,Таблица3[[#This Row],[Толщ]],$F$62:$F$116,Таблица3[[#This Row],[Астра]]) -> 0 | I136: =CONCATENATE(Таблица3[[#This Row],[Столбец29]]," ",Таблица3[[#This Row],[Толщ]]) -> Лист 6 | K136: =Таблица3[[#This Row],[Толщ]] -> 6 | M136: =SUMIFS($M$62:$M$116,$C$62:$C$116,Таблица3[[#This Row],[Шир]],$D$62:$D$116,Таблица3[[#This Row],[Дл]],$AC$62:$AC$116,Таблица3[[#This Row],[Толщ]],$F$62:$F$116,Таблица3[[#This Row],[Астра]]) -> 0 | N136: =SUMIFS($M$62:$M$116,$AC$62:$AC$116,Таблица3[[#This Row],[Толщ]],$C$62:$C$116,"<"&Таблица3[[#This Row],[Шир]],$D$62:$D$116,Таблица3[[#This Row],[Дл]],$F$62:$F$116,Таблица3[[#This Row],[Астра]])+SUMIFS($M$62:$M$116,$AC$62:$AC$116,Таблица3[[#This Row],[Толщ]],$C$62:$C$116,Таблица3[[#This Row],[Шир]],$D$62:$D$116,"<"&Таблица3[[#This Row],[Дл]],$F$62:$F$116,Таблица3[[#This Row],[Астра]])+SUMIFS($M$62:$M$116,$AC$62:$AC$116,Таблица3[[#This Row],[Толщ]],$C$62:$C$116,"<"&Таблица3[[#This Row],[Шир]],$D$62:$D$116,"<"&Таблица3[[#This Row],[Дл]],$F$62:$F$116,Таблица3[[#This Row],[Астра]]) -> 0 | O136: =Таблица3[[#This Row],[Ст10]]+Таблица3[[#This Row],[Ст11]] -> 0 | P136: =SUMIFS($P$62:$P$116,$C$62:$C$116,Таблица3[[#This Row],[Шир]],$D$62:$D$116,Таблица3[[#This Row],[Дл]],$AC$62:$AC$116,Таблица3[[#This Row],[Толщ]],$F$62:$F$116,Таблица3[[#This Row],[Астра]]) -> 0 | Q136: =SUMIFS($P$62:$P$116,$AC$62:$AC$116,Таблица3[[#This Row],[Толщ]],$C$62:$C$116,"<"&Таблица3[[#This Row],[Шир]],$D$62:$D$116,Таблица3[[#This Row],[Дл]],$F$62:$F$116,Таблица3[[#This Row],[Астра]])+SUMIFS($P$62:$P$116,$AC$62:$AC$116,Таблица3[[#This Row],[Толщ]],$C$62:$C$116,Таблица3[[#This Row],[Шир]],$D$62:$D$116,"<"&Таблица3[[#This Row],[Дл]],$F$62:$F$116,Таблица3[[#This Row],[Астра]])+SUMIFS($P$62:$P$116,$AC$62:$AC$116,Таблица3[[#This Row],[Толщ]],$C$62:$C$116,"<"&Таблица3[[#This Row],[Шир]],$D$62:$D$116,"<"&Таблица3[[#This Row],[Дл]],$F$62:$F$116,Таблица3[[#This Row],[Астра]]) -> 0 | R136: =Таблица3[[#This Row],[Ст13]]+Таблица3[[#This Row],[Ст14]] -> 0 | S136: =SUMIFS($S$62:$S$116,$C$62:$C$116,Таблица3[[#This Row],[Шир]],$D$62:$D$116,Таблица3[[#This Row],[Дл]],$AC$62:$AC$116,Таблица3[[#This Row],[Толщ]],$F$62:$F$116,Таблица3[[#This Row],[Астра]]) -> 0 | T136: =SUMIFS($S$62:$S$116,$AC$62:$AC$116,Таблица3[[#This Row],[Толщ]],$C$62:$C$116,"<"&Таблица3[[#This Row],[Шир]],$D$62:$D$116,Таблица3[[#This Row],[Дл]],$F$62:$F$116,Таблица3[[#This Row],[Астра]])+SUMIFS($S$62:$S$116,$AC$62:$AC$116,Таблица3[[#This Row],[Толщ]],$C$62:$C$116,Таблица3[[#This Row],[Шир]],$D$62:$D$116,"<"&Таблица3[[#This Row],[Дл]],$F$62:$F$116,Таблица3[[#This Row],[Астра]])+SUMIFS($S$62:$S$116,$AC$62:$AC$116,Таблица3[[#This Row],[Толщ]],$C$62:$C$116,"<"&Таблица3[[#This Row],[Шир]],$D$62:$D$116,"<"&Таблица3[[#This Row],[Дл]],$F$62:$F$116,Таблица3[[#This Row],[Астра]]) -> 0 | U136: =Таблица3[[#This Row],[Ст16]]+Таблица3[[#This Row],[Ст17]] -> 0 | V136: =Таблица3[[#This Row],[Ст18]]+Таблица3[[#This Row],[Столбец32]] -> 0 | W136: =SUMIFS($V$62:$V$116,$C$62:$C$116,Таблица3[[#This Row],[Шир]],$D$62:$D$116,Таблица3[[#This Row],[Дл]],$AC$62:$AC$116,Таблица3[[#This Row],[Толщ]],$F$62:$F$116,Таблица3[[#This Row],[Астра]]) -> 0 | X136: =SUMIFS($V$62:$V$116,$AC$62:$AC$116,Таблица3[[#This Row],[Толщ]],$C$62:$C$116,"<"&Таблица3[[#This Row],[Шир]],$D$62:$D$116,Таблица3[[#This Row],[Дл]],$F$62:$F$116,Таблица3[[#This Row],[Астра]])+SUMIFS($V$62:$V$116,$AC$62:$AC$116,Таблица3[[#This Row],[Толщ]],$C$62:$C$116,Таблица3[[#This Row],[Шир]],$D$62:$D$116,"<"&Таблица3[[#This Row],[Дл]],$F$62:$F$116,Таблица3[[#This Row],[Астра]])+SUMIFS($V$62:$V$116,$AC$62:$AC$116,Таблица3[[#This Row],[Толщ]],$C$62:$C$116,"<"&Таблица3[[#This Row],[Шир]],$D$62:$D$116,"<"&Таблица3[[#This Row],[Дл]],$F$62:$F$116,Таблица3[[#This Row],[Астра]]) -> 0 | Y136: =Таблица3[[#This Row],[Ст19]]+Таблица3[[#This Row],[Ст20]] -> 0 | Z136: =Таблица3[[#This Row],[Ст21]]-Таблица3[[#This Row],[Столбец32]] -> 0 | AB136: Лист лазер, 6.0 мм, лт | AC136: Лист лазер | AD136: Лист | AE136: 7.874 | AF136: =SUBSTITUTE(Таблица3[[#This Row],[Толщ]],",",".") -> 6 | AG136: =SUMIFS($AA$8:$AA$57,$H$8:$H$57,Таблица3[[#This Row],[Столбец28]],$G$8:$G$57,Таблица3[[#This Row],[Толщ]]) -> 0
A137: =IF(Таблица3[[#All],[Ст21]]=0,"z","") -> z | C137: 1250 | D137: 2500 | E137: 7 | G137: =SUMIFS($G$62:$G$116,$D$62:$D$116,Таблица3[[#This Row],[Дл]],$C$62:$C$116,Таблица3[[#This Row],[Шир]],$AC$62:$AC$116,Таблица3[[#This Row],[Толщ]],$F$62:$F$116,Таблица3[[#This Row],[Астра]]) -> 0 | I137: =CONCATENATE(Таблица3[[#This Row],[Столбец29]]," ",Таблица3[[#This Row],[Толщ]]) -> Лист 7 | K137: =Таблица3[[#This Row],[Толщ]] -> 7 | M137: =SUMIFS($M$62:$M$116,$C$62:$C$116,Таблица3[[#This Row],[Шир]],$D$62:$D$116,Таблица3[[#This Row],[Дл]],$AC$62:$AC$116,Таблица3[[#This Row],[Толщ]],$F$62:$F$116,Таблица3[[#This Row],[Астра]]) -> 0 | N137: =SUMIFS($M$62:$M$116,$AC$62:$AC$116,Таблица3[[#This Row],[Толщ]],$C$62:$C$116,"<"&Таблица3[[#This Row],[Шир]],$D$62:$D$116,Таблица3[[#This Row],[Дл]],$F$62:$F$116,Таблица3[[#This Row],[Астра]])+SUMIFS($M$62:$M$116,$AC$62:$AC$116,Таблица3[[#This Row],[Толщ]],$C$62:$C$116,Таблица3[[#This Row],[Шир]],$D$62:$D$116,"<"&Таблица3[[#This Row],[Дл]],$F$62:$F$116,Таблица3[[#This Row],[Астра]])+SUMIFS($M$62:$M$116,$AC$62:$AC$116,Таблица3[[#This Row],[Толщ]],$C$62:$C$116,"<"&Таблица3[[#This Row],[Шир]],$D$62:$D$116,"<"&Таблица3[[#This Row],[Дл]],$F$62:$F$116,Таблица3[[#This Row],[Астра]]) -> 0 | O137: =Таблица3[[#This Row],[Ст10]]+Таблица3[[#This Row],[Ст11]] -> 0 | P137: =SUMIFS($P$62:$P$116,$C$62:$C$116,Таблица3[[#This Row],[Шир]],$D$62:$D$116,Таблица3[[#This Row],[Дл]],$AC$62:$AC$116,Таблица3[[#This Row],[Толщ]],$F$62:$F$116,Таблица3[[#This Row],[Астра]]) -> 0 | Q137: =SUMIFS($P$62:$P$116,$AC$62:$AC$116,Таблица3[[#This Row],[Толщ]],$C$62:$C$116,"<"&Таблица3[[#This Row],[Шир]],$D$62:$D$116,Таблица3[[#This Row],[Дл]],$F$62:$F$116,Таблица3[[#This Row],[Астра]])+SUMIFS($P$62:$P$116,$AC$62:$AC$116,Таблица3[[#This Row],[Толщ]],$C$62:$C$116,Таблица3[[#This Row],[Шир]],$D$62:$D$116,"<"&Таблица3[[#This Row],[Дл]],$F$62:$F$116,Таблица3[[#This Row],[Астра]])+SUMIFS($P$62:$P$116,$AC$62:$AC$116,Таблица3[[#This Row],[Толщ]],$C$62:$C$116,"<"&Таблица3[[#This Row],[Шир]],$D$62:$D$116,"<"&Таблица3[[#This Row],[Дл]],$F$62:$F$116,Таблица3[[#This Row],[Астра]]) -> 0 | R137: =Таблица3[[#This Row],[Ст13]]+Таблица3[[#This Row],[Ст14]] -> 0 | S137: =SUMIFS($S$62:$S$116,$C$62:$C$116,Таблица3[[#This Row],[Шир]],$D$62:$D$116,Таблица3[[#This Row],[Дл]],$AC$62:$AC$116,Таблица3[[#This Row],[Толщ]],$F$62:$F$116,Таблица3[[#This Row],[Астра]]) -> 0 | T137: =SUMIFS($S$62:$S$116,$AC$62:$AC$116,Таблица3[[#This Row],[Толщ]],$C$62:$C$116,"<"&Таблица3[[#This Row],[Шир]],$D$62:$D$116,Таблица3[[#This Row],[Дл]],$F$62:$F$116,Таблица3[[#This Row],[Астра]])+SUMIFS($S$62:$S$116,$AC$62:$AC$116,Таблица3[[#This Row],[Толщ]],$C$62:$C$116,Таблица3[[#This Row],[Шир]],$D$62:$D$116,"<"&Таблица3[[#This Row],[Дл]],$F$62:$F$116,Таблица3[[#This Row],[Астра]])+SUMIFS($S$62:$S$116,$AC$62:$AC$116,Таблица3[[#This Row],[Толщ]],$C$62:$C$116,"<"&Таблица3[[#This Row],[Шир]],$D$62:$D$116,"<"&Таблица3[[#This Row],[Дл]],$F$62:$F$116,Таблица3[[#This Row],[Астра]]) -> 0 | U137: =Таблица3[[#This Row],[Ст16]]+Таблица3[[#This Row],[Ст17]] -> 0 | V137: =Таблица3[[#This Row],[Ст18]]+Таблица3[[#This Row],[Столбец32]] -> 0 | W137: =SUMIFS($V$62:$V$116,$C$62:$C$116,Таблица3[[#This Row],[Шир]],$D$62:$D$116,Таблица3[[#This Row],[Дл]],$AC$62:$AC$116,Таблица3[[#This Row],[Толщ]],$F$62:$F$116,Таблица3[[#This Row],[Астра]]) -> 0 | X137: =SUMIFS($V$62:$V$116,$AC$62:$AC$116,Таблица3[[#This Row],[Толщ]],$C$62:$C$116,"<"&Таблица3[[#This Row],[Шир]],$D$62:$D$116,Таблица3[[#This Row],[Дл]],$F$62:$F$116,Таблица3[[#This Row],[Астра]])+SUMIFS($V$62:$V$116,$AC$62:$AC$116,Таблица3[[#This Row],[Толщ]],$C$62:$C$116,Таблица3[[#This Row],[Шир]],$D$62:$D$116,"<"&Таблица3[[#This Row],[Дл]],$F$62:$F$116,Таблица3[[#This Row],[Астра]])+SUMIFS($V$62:$V$116,$AC$62:$AC$116,Таблица3[[#This Row],[Толщ]],$C$62:$C$116,"<"&Таблица3[[#This Row],[Шир]],$D$62:$D$116,"<"&Таблица3[[#This Row],[Дл]],$F$62:$F$116,Таблица3[[#This Row],[Астра]]) -> 0 | Y137: =Таблица3[[#This Row],[Ст19]]+Таблица3[[#This Row],[Ст20]] -> 0 | Z137: =Таблица3[[#This Row],[Ст21]]-Таблица3[[#This Row],[Столбец32]] -> 0 | AB137: Лист лазер, 7.0 мм, лт | AC137: Лист лазер | AD137: Лист | AE137: 7.874 | AF137: =SUBSTITUTE(Таблица3[[#This Row],[Толщ]],",",".") -> 7 | AG137: =SUMIFS($AA$8:$AA$57,$H$8:$H$57,Таблица3[[#This Row],[Столбец28]],$G$8:$G$57,Таблица3[[#This Row],[Толщ]]) -> 0
A138: =IF(Таблица3[[#All],[Ст21]]=0,"z","") -> z | C138: 1250 | D138: 2500 | E138: 8 | G138: =SUMIFS($G$62:$G$116,$D$62:$D$116,Таблица3[[#This Row],[Дл]],$C$62:$C$116,Таблица3[[#This Row],[Шир]],$AC$62:$AC$116,Таблица3[[#This Row],[Толщ]],$F$62:$F$116,Таблица3[[#This Row],[Астра]]) -> 0 | I138: =CONCATENATE(Таблица3[[#This Row],[Столбец29]]," ",Таблица3[[#This Row],[Толщ]]) -> Лист 8 | K138: =Таблица3[[#This Row],[Толщ]] -> 8 | M138: =SUMIFS($M$62:$M$116,$C$62:$C$116,Таблица3[[#This Row],[Шир]],$D$62:$D$116,Таблица3[[#This Row],[Дл]],$AC$62:$AC$116,Таблица3[[#This Row],[Толщ]],$F$62:$F$116,Таблица3[[#This Row],[Астра]]) -> 0 | N138: =SUMIFS($M$62:$M$116,$AC$62:$AC$116,Таблица3[[#This Row],[Толщ]],$C$62:$C$116,"<"&Таблица3[[#This Row],[Шир]],$D$62:$D$116,Таблица3[[#This Row],[Дл]],$F$62:$F$116,Таблица3[[#This Row],[Астра]])+SUMIFS($M$62:$M$116,$AC$62:$AC$116,Таблица3[[#This Row],[Толщ]],$C$62:$C$116,Таблица3[[#This Row],[Шир]],$D$62:$D$116,"<"&Таблица3[[#This Row],[Дл]],$F$62:$F$116,Таблица3[[#This Row],[Астра]])+SUMIFS($M$62:$M$116,$AC$62:$AC$116,Таблица3[[#This Row],[Толщ]],$C$62:$C$116,"<"&Таблица3[[#This Row],[Шир]],$D$62:$D$116,"<"&Таблица3[[#This Row],[Дл]],$F$62:$F$116,Таблица3[[#This Row],[Астра]]) -> 0 | O138: =Таблица3[[#This Row],[Ст10]]+Таблица3[[#This Row],[Ст11]] -> 0 | P138: =SUMIFS($P$62:$P$116,$C$62:$C$116,Таблица3[[#This Row],[Шир]],$D$62:$D$116,Таблица3[[#This Row],[Дл]],$AC$62:$AC$116,Таблица3[[#This Row],[Толщ]],$F$62:$F$116,Таблица3[[#This Row],[Астра]]) -> 0 | Q138: =SUMIFS($P$62:$P$116,$AC$62:$AC$116,Таблица3[[#This Row],[Толщ]],$C$62:$C$116,"<"&Таблица3[[#This Row],[Шир]],$D$62:$D$116,Таблица3[[#This Row],[Дл]],$F$62:$F$116,Таблица3[[#This Row],[Астра]])+SUMIFS($P$62:$P$116,$AC$62:$AC$116,Таблица3[[#This Row],[Толщ]],$C$62:$C$116,Таблица3[[#This Row],[Шир]],$D$62:$D$116,"<"&Таблица3[[#This Row],[Дл]],$F$62:$F$116,Таблица3[[#This Row],[Астра]])+SUMIFS($P$62:$P$116,$AC$62:$AC$116,Таблица3[[#This Row],[Толщ]],$C$62:$C$116,"<"&Таблица3[[#This Row],[Шир]],$D$62:$D$116,"<"&Таблица3[[#This Row],[Дл]],$F$62:$F$116,Таблица3[[#This Row],[Астра]]) -> 0 | R138: =Таблица3[[#This Row],[Ст13]]+Таблица3[[#This Row],[Ст14]] -> 0 | S138: =SUMIFS($S$62:$S$116,$C$62:$C$116,Таблица3[[#This Row],[Шир]],$D$62:$D$116,Таблица3[[#This Row],[Дл]],$AC$62:$AC$116,Таблица3[[#This Row],[Толщ]],$F$62:$F$116,Таблица3[[#This Row],[Астра]]) -> 0 | T138: =SUMIFS($S$62:$S$116,$AC$62:$AC$116,Таблица3[[#This Row],[Толщ]],$C$62:$C$116,"<"&Таблица3[[#This Row],[Шир]],$D$62:$D$116,Таблица3[[#This Row],[Дл]],$F$62:$F$116,Таблица3[[#This Row],[Астра]])+SUMIFS($S$62:$S$116,$AC$62:$AC$116,Таблица3[[#This Row],[Толщ]],$C$62:$C$116,Таблица3[[#This Row],[Шир]],$D$62:$D$116,"<"&Таблица3[[#This Row],[Дл]],$F$62:$F$116,Таблица3[[#This Row],[Астра]])+SUMIFS($S$62:$S$116,$AC$62:$AC$116,Таблица3[[#This Row],[Толщ]],$C$62:$C$116,"<"&Таблица3[[#This Row],[Шир]],$D$62:$D$116,"<"&Таблица3[[#This Row],[Дл]],$F$62:$F$116,Таблица3[[#This Row],[Астра]]) -> 0 | U138: =Таблица3[[#This Row],[Ст16]]+Таблица3[[#This Row],[Ст17]] -> 0 | V138: =Таблица3[[#This Row],[Ст18]]+Таблица3[[#This Row],[Столбец32]] -> 0 | W138: =SUMIFS($V$62:$V$116,$C$62:$C$116,Таблица3[[#This Row],[Шир]],$D$62:$D$116,Таблица3[[#This Row],[Дл]],$AC$62:$AC$116,Таблица3[[#This Row],[Толщ]],$F$62:$F$116,Таблица3[[#This Row],[Астра]]) -> 0 | X138: =SUMIFS($V$62:$V$116,$AC$62:$AC$116,Таблица3[[#This Row],[Толщ]],$C$62:$C$116,"<"&Таблица3[[#This Row],[Шир]],$D$62:$D$116,Таблица3[[#This Row],[Дл]],$F$62:$F$116,Таблица3[[#This Row],[Астра]])+SUMIFS($V$62:$V$116,$AC$62:$AC$116,Таблица3[[#This Row],[Толщ]],$C$62:$C$116,Таблица3[[#This Row],[Шир]],$D$62:$D$116,"<"&Таблица3[[#This Row],[Дл]],$F$62:$F$116,Таблица3[[#This Row],[Астра]])+SUMIFS($V$62:$V$116,$AC$62:$AC$116,Таблица3[[#This Row],[Толщ]],$C$62:$C$116,"<"&Таблица3[[#This Row],[Шир]],$D$62:$D$116,"<"&Таблица3[[#This Row],[Дл]],$F$62:$F$116,Таблица3[[#This Row],[Астра]]) -> 0 | Y138: =Таблица3[[#This Row],[Ст19]]+Таблица3[[#This Row],[Ст20]] -> 0 | Z138: =Таблица3[[#This Row],[Ст21]]-Таблица3[[#This Row],[Столбец32]] -> 0 | AB138: Лист лазер, 8.0 мм, лт | AC138: Лист лазер | AD138: Лист | AE138: 7.874 | AF138: =SUBSTITUTE(Таблица3[[#This Row],[Толщ]],",",".") -> 8 | AG138: =SUMIFS($AA$8:$AA$57,$H$8:$H$57,Таблица3[[#This Row],[Столбец28]],$G$8:$G$57,Таблица3[[#This Row],[Толщ]]) -> 0
A139: =IF(Таблица3[[#All],[Ст21]]=0,"z","") -> z | C139: 1250 | D139: 2500 | E139: 1 | G139: =SUMIFS($G$62:$G$116,$D$62:$D$116,Таблица3[[#This Row],[Дл]],$C$62:$C$116,Таблица3[[#This Row],[Шир]],$AC$62:$AC$116,Таблица3[[#This Row],[Толщ]],$F$62:$F$116,Таблица3[[#This Row],[Астра]]) -> 0 | I139: =CONCATENATE(Таблица3[[#This Row],[Столбец29]]," ",Таблица3[[#This Row],[Толщ]]) -> Лист ОЦ 1 | K139: =Таблица3[[#This Row],[Толщ]] -> 1 | M139: =SUMIFS($M$62:$M$116,$C$62:$C$116,Таблица3[[#This Row],[Шир]],$D$62:$D$116,Таблица3[[#This Row],[Дл]],$AC$62:$AC$116,Таблица3[[#This Row],[Толщ]],$F$62:$F$116,Таблица3[[#This Row],[Астра]]) -> 0 | N139: =SUMIFS($M$62:$M$116,$AC$62:$AC$116,Таблица3[[#This Row],[Толщ]],$C$62:$C$116,"<"&Таблица3[[#This Row],[Шир]],$D$62:$D$116,Таблица3[[#This Row],[Дл]],$F$62:$F$116,Таблица3[[#This Row],[Астра]])+SUMIFS($M$62:$M$116,$AC$62:$AC$116,Таблица3[[#This Row],[Толщ]],$C$62:$C$116,Таблица3[[#This Row],[Шир]],$D$62:$D$116,"<"&Таблица3[[#This Row],[Дл]],$F$62:$F$116,Таблица3[[#This Row],[Астра]])+SUMIFS($M$62:$M$116,$AC$62:$AC$116,Таблица3[[#This Row],[Толщ]],$C$62:$C$116,"<"&Таблица3[[#This Row],[Шир]],$D$62:$D$116,"<"&Таблица3[[#This Row],[Дл]],$F$62:$F$116,Таблица3[[#This Row],[Астра]]) -> 0 | O139: =Таблица3[[#This Row],[Ст10]]+Таблица3[[#This Row],[Ст11]] -> 0 | P139: =SUMIFS($P$62:$P$116,$C$62:$C$116,Таблица3[[#This Row],[Шир]],$D$62:$D$116,Таблица3[[#This Row],[Дл]],$AC$62:$AC$116,Таблица3[[#This Row],[Толщ]],$F$62:$F$116,Таблица3[[#This Row],[Астра]]) -> 0 | Q139: =SUMIFS($P$62:$P$116,$AC$62:$AC$116,Таблица3[[#This Row],[Толщ]],$C$62:$C$116,"<"&Таблица3[[#This Row],[Шир]],$D$62:$D$116,Таблица3[[#This Row],[Дл]],$F$62:$F$116,Таблица3[[#This Row],[Астра]])+SUMIFS($P$62:$P$116,$AC$62:$AC$116,Таблица3[[#This Row],[Толщ]],$C$62:$C$116,Таблица3[[#This Row],[Шир]],$D$62:$D$116,"<"&Таблица3[[#This Row],[Дл]],$F$62:$F$116,Таблица3[[#This Row],[Астра]])+SUMIFS($P$62:$P$116,$AC$62:$AC$116,Таблица3[[#This Row],[Толщ]],$C$62:$C$116,"<"&Таблица3[[#This Row],[Шир]],$D$62:$D$116,"<"&Таблица3[[#This Row],[Дл]],$F$62:$F$116,Таблица3[[#This Row],[Астра]]) -> 0 | R139: =Таблица3[[#This Row],[Ст13]]+Таблица3[[#This Row],[Ст14]] -> 0 | S139: =SUMIFS($S$62:$S$116,$C$62:$C$116,Таблица3[[#This Row],[Шир]],$D$62:$D$116,Таблица3[[#This Row],[Дл]],$AC$62:$AC$116,Таблица3[[#This Row],[Толщ]],$F$62:$F$116,Таблица3[[#This Row],[Астра]]) -> 0 | T139: =SUMIFS($S$62:$S$116,$AC$62:$AC$116,Таблица3[[#This Row],[Толщ]],$C$62:$C$116,"<"&Таблица3[[#This Row],[Шир]],$D$62:$D$116,Таблица3[[#This Row],[Дл]],$F$62:$F$116,Таблица3[[#This Row],[Астра]])+SUMIFS($S$62:$S$116,$AC$62:$AC$116,Таблица3[[#This Row],[Толщ]],$C$62:$C$116,Таблица3[[#This Row],[Шир]],$D$62:$D$116,"<"&Таблица3[[#This Row],[Дл]],$F$62:$F$116,Таблица3[[#This Row],[Астра]])+SUMIFS($S$62:$S$116,$AC$62:$AC$116,Таблица3[[#This Row],[Толщ]],$C$62:$C$116,"<"&Таблица3[[#This Row],[Шир]],$D$62:$D$116,"<"&Таблица3[[#This Row],[Дл]],$F$62:$F$116,Таблица3[[#This Row],[Астра]]) -> 0 | U139: =Таблица3[[#This Row],[Ст16]]+Таблица3[[#This Row],[Ст17]] -> 0 | V139: =Таблица3[[#This Row],[Ст18]]+Таблица3[[#This Row],[Столбец32]] -> 0 | W139: =SUMIFS($V$62:$V$116,$C$62:$C$116,Таблица3[[#This Row],[Шир]],$D$62:$D$116,Таблица3[[#This Row],[Дл]],$AC$62:$AC$116,Таблица3[[#This Row],[Толщ]],$F$62:$F$116,Таблица3[[#This Row],[Астра]]) -> 0 | X139: =SUMIFS($V$62:$V$116,$AC$62:$AC$116,Таблица3[[#This Row],[Толщ]],$C$62:$C$116,"<"&Таблица3[[#This Row],[Шир]],$D$62:$D$116,Таблица3[[#This Row],[Дл]],$F$62:$F$116,Таблица3[[#This Row],[Астра]])+SUMIFS($V$62:$V$116,$AC$62:$AC$116,Таблица3[[#This Row],[Толщ]],$C$62:$C$116,Таблица3[[#This Row],[Шир]],$D$62:$D$116,"<"&Таблица3[[#This Row],[Дл]],$F$62:$F$116,Таблица3[[#This Row],[Астра]])+SUMIFS($V$62:$V$116,$AC$62:$AC$116,Таблица3[[#This Row],[Толщ]],$C$62:$C$116,"<"&Таблица3[[#This Row],[Шир]],$D$62:$D$116,"<"&Таблица3[[#This Row],[Дл]],$F$62:$F$116,Таблица3[[#This Row],[Астра]]) -> 0 | Y139: =Таблица3[[#This Row],[Ст19]]+Таблица3[[#This Row],[Ст20]] -> 0 | Z139: =Таблица3[[#This Row],[Ст21]]-Таблица3[[#This Row],[Столбец32]] -> 0 | AC139: листоц | AD139: Лист ОЦ | AE139: 7.888888 | AF139: =SUBSTITUTE(Таблица3[[#This Row],[Толщ]],",",".") -> 1 | AG139: =SUMIFS($AA$8:$AA$57,$H$8:$H$57,Таблица3[[#This Row],[Столбец28]],$G$8:$G$57,Таблица3[[#This Row],[Толщ]]) -> 0
A140: =IF(Таблица3[[#All],[Ст21]]=0,"z","") -> z | C140: 1250 | D140: 2500 | E140: 1 | G140: =SUMIFS($G$62:$G$116,$D$62:$D$116,Таблица3[[#This Row],[Дл]],$C$62:$C$116,Таблица3[[#This Row],[Шир]],$AC$62:$AC$116,Таблица3[[#This Row],[Толщ]],$F$62:$F$116,Таблица3[[#This Row],[Астра]]) -> 0 | I140: =CONCATENATE(Таблица3[[#This Row],[Столбец29]]," ",Таблица3[[#This Row],[Толщ]]) -> Сетка ПВЛ 1 | K140: =Таблица3[[#This Row],[Толщ]] -> 1 | M140: =SUMIFS($M$62:$M$116,$C$62:$C$116,Таблица3[[#This Row],[Шир]],$D$62:$D$116,Таблица3[[#This Row],[Дл]],$AC$62:$AC$116,Таблица3[[#This Row],[Толщ]],$F$62:$F$116,Таблица3[[#This Row],[Астра]]) -> 0 | N140: =SUMIFS($M$62:$M$116,$AC$62:$AC$116,Таблица3[[#This Row],[Толщ]],$C$62:$C$116,"<"&Таблица3[[#This Row],[Шир]],$D$62:$D$116,Таблица3[[#This Row],[Дл]],$F$62:$F$116,Таблица3[[#This Row],[Астра]])+SUMIFS($M$62:$M$116,$AC$62:$AC$116,Таблица3[[#This Row],[Толщ]],$C$62:$C$116,Таблица3[[#This Row],[Шир]],$D$62:$D$116,"<"&Таблица3[[#This Row],[Дл]],$F$62:$F$116,Таблица3[[#This Row],[Астра]])+SUMIFS($M$62:$M$116,$AC$62:$AC$116,Таблица3[[#This Row],[Толщ]],$C$62:$C$116,"<"&Таблица3[[#This Row],[Шир]],$D$62:$D$116,"<"&Таблица3[[#This Row],[Дл]],$F$62:$F$116,Таблица3[[#This Row],[Астра]]) -> 0 | O140: =Таблица3[[#This Row],[Ст10]]+Таблица3[[#This Row],[Ст11]] -> 0 | P140: =SUMIFS($P$62:$P$116,$C$62:$C$116,Таблица3[[#This Row],[Шир]],$D$62:$D$116,Таблица3[[#This Row],[Дл]],$AC$62:$AC$116,Таблица3[[#This Row],[Толщ]],$F$62:$F$116,Таблица3[[#This Row],[Астра]]) -> 0 | Q140: =SUMIFS($P$62:$P$116,$AC$62:$AC$116,Таблица3[[#This Row],[Толщ]],$C$62:$C$116,"<"&Таблица3[[#This Row],[Шир]],$D$62:$D$116,Таблица3[[#This Row],[Дл]],$F$62:$F$116,Таблица3[[#This Row],[Астра]])+SUMIFS($P$62:$P$116,$AC$62:$AC$116,Таблица3[[#This Row],[Толщ]],$C$62:$C$116,Таблица3[[#This Row],[Шир]],$D$62:$D$116,"<"&Таблица3[[#This Row],[Дл]],$F$62:$F$116,Таблица3[[#This Row],[Астра]])+SUMIFS($P$62:$P$116,$AC$62:$AC$116,Таблица3[[#This Row],[Толщ]],$C$62:$C$116,"<"&Таблица3[[#This Row],[Шир]],$D$62:$D$116,"<"&Таблица3[[#This Row],[Дл]],$F$62:$F$116,Таблица3[[#This Row],[Астра]]) -> 0 | R140: =Таблица3[[#This Row],[Ст13]]+Таблица3[[#This Row],[Ст14]] -> 0 | S140: =SUMIFS($S$62:$S$116,$C$62:$C$116,Таблица3[[#This Row],[Шир]],$D$62:$D$116,Таблица3[[#This Row],[Дл]],$AC$62:$AC$116,Таблица3[[#This Row],[Толщ]],$F$62:$F$116,Таблица3[[#This Row],[Астра]]) -> 0 | T140: =SUMIFS($S$62:$S$116,$AC$62:$AC$116,Таблица3[[#This Row],[Толщ]],$C$62:$C$116,"<"&Таблица3[[#This Row],[Шир]],$D$62:$D$116,Таблица3[[#This Row],[Дл]],$F$62:$F$116,Таблица3[[#This Row],[Астра]])+SUMIFS($S$62:$S$116,$AC$62:$AC$116,Таблица3[[#This Row],[Толщ]],$C$62:$C$116,Таблица3[[#This Row],[Шир]],$D$62:$D$116,"<"&Таблица3[[#This Row],[Дл]],$F$62:$F$116,Таблица3[[#This Row],[Астра]])+SUMIFS($S$62:$S$116,$AC$62:$AC$116,Таблица3[[#This Row],[Толщ]],$C$62:$C$116,"<"&Таблица3[[#This Row],[Шир]],$D$62:$D$116,"<"&Таблица3[[#This Row],[Дл]],$F$62:$F$116,Таблица3[[#This Row],[Астра]]) -> 0 | U140: =Таблица3[[#This Row],[Ст16]]+Таблица3[[#This Row],[Ст17]] -> 0 | V140: =Таблица3[[#This Row],[Ст18]]+Таблица3[[#This Row],[Столбец32]] -> 0 | W140: =SUMIFS($V$62:$V$116,$C$62:$C$116,Таблица3[[#This Row],[Шир]],$D$62:$D$116,Таблица3[[#This Row],[Дл]],$AC$62:$AC$116,Таблица3[[#This Row],[Толщ]],$F$62:$F$116,Таблица3[[#This Row],[Астра]]) -> 0 | X140: =SUMIFS($V$62:$V$116,$AC$62:$AC$116,Таблица3[[#This Row],[Толщ]],$C$62:$C$116,"<"&Таблица3[[#This Row],[Шир]],$D$62:$D$116,Таблица3[[#This Row],[Дл]],$F$62:$F$116,Таблица3[[#This Row],[Астра]])+SUMIFS($V$62:$V$116,$AC$62:$AC$116,Таблица3[[#This Row],[Толщ]],$C$62:$C$116,Таблица3[[#This Row],[Шир]],$D$62:$D$116,"<"&Таблица3[[#This Row],[Дл]],$F$62:$F$116,Таблица3[[#This Row],[Астра]])+SUMIFS($V$62:$V$116,$AC$62:$AC$116,Таблица3[[#This Row],[Толщ]],$C$62:$C$116,"<"&Таблица3[[#This Row],[Шир]],$D$62:$D$116,"<"&Таблица3[[#This Row],[Дл]],$F$62:$F$116,Таблица3[[#This Row],[Астра]]) -> 0 | Y140: =Таблица3[[#This Row],[Ст19]]+Таблица3[[#This Row],[Ст20]] -> 0 | Z140: =Таблица3[[#This Row],[Ст21]]-Таблица3[[#This Row],[Столбец32]] -> 0 | AC140: пвл1 | AD140: Сетка ПВЛ | AE140: 2.888888 | AF140: =SUBSTITUTE(Таблица3[[#This Row],[Толщ]],",",".") -> 1 | AG140: =SUMIFS($AA$8:$AA$57,$H$8:$H$57,Таблица3[[#This Row],[Столбец28]],$G$8:$G$57,Таблица3[[#This Row],[Толщ]]) -> 0
B148: Подпись | F148: Инженер-технолог
B149: Подпись | F149: Нач техотдела
B150: Подпись | F150: Генеральный директор

Sheet ПРОВОЛОКА
D1: z | E1: z | H1: z | L1: z | M1: z
A2: Согласовано: Нач.техотдела | O2: запуск | R2: =TODAY() -> 2023-07-27
F3: =CONCATENATE("Изделие из: ",IF(ТРУБА!M7>0,"ТРУБА, ",""),IF(ЛИСТ!L7>0,"ЛИСТ, ",""),IF(ПРОВОЛОКА!R83>0,"ПРОВОЛОКА, ",""),IF(ПВХ!I60>0,"ПВХ ","")) -> Изделие из: ТРУБА, ЛИСТ, ПРОВОЛОКА, ПВХ
A4: Технологическая ведомость материалов № _________по проволоке на | N4: =ТРУБА!C4 -> (19137.022.20.9016) Кронштейн 240
B5: 1500
B6: Наименование | D6: +10 | E6: План | F6: Ø проволоки,мм | G6: длина заготовки,мм | H6: вес метра проволоки | I6: Кол-во на изделие шт | J6: Кол-во на план шт | K6: время на заготовку | L6: время изготовления на 1 изделие, мин | M6: вес заготовки кг | N6: вес на изделие кг | O6: Время изготовления на план,мин | P6: Остаток проволоки с преды-дущего изделия (бухты), кг | Q6: Приход бухты прово-локи, кг | R6: Общий вес на план, кг | T6: Техноло-гический остаток обкуска в лом, кг | V6: Остаток бухты прово-локи, кг | W6: ОТК | X6: Принял | Y6: Дата передачи | Z6: Время передачи
B7: Øх | C7: Длина
R8: теория | S8: факт | T8: теория | U8: факт
A10: 2д | B10: Ø8,0х | C10: 1000 | D10: 10 | E10: =$B$5 -> 1500 | F10: 8 | G10: =C10+D10 -> 1010 | H10: 0.388 | I10: 1 | J10: =E10*I10 -> 1500 | K10: =G10/162 -> 6.234567901 | L10: =I10*K10/60 -> 0.103909465 | M10: =G10*H10/1000 -> 0.39188 | N10: =I10*M10 -> 0.39188 | O10: =L10*E10 -> 155.8641975 | R10: =M10*J10 -> 587.82 | T10: =H10*0.01*J10 -> 5.82
A11: гиб | B11: Ø8,0х | C11: 100 | D11: 15 | E11: =$B$5 -> 1500 | F11: 8 | G11: =C11+D11 -> 115 | H11: 0.388 | I11: 5 | J11: 7500 | K11: =G11/162 -> 0.7098765432 | L11: 0.0591563786 | M11: 0.04462 | N11: 0.2231 | O11: 88.7345679 | R11: =M11*J11 -> 334.65 | T11: =H11*0.01*J11 -> 29.1
A12: =IF(N12=0,"z"," ") -> z | B12: Ø8,0х | E12: 1500 | F12: 8 | G12: 0 | H12: 0.388 | I12: 0 | J12: 0 | K12: 0 | L12: 0 | M12: 0 | N12: 0 | O12: 0 | R12: 0 | T12: 0
A13: z | B13: Ø8,0х | E13: 1500 | F13: 8 | G13: 0 | H13: 0.388 | I13: 0 | J13: 0 | K13: 0 | L13: 0 | M13: 0 | N13: 0 | O13: 0 | R13: 0 | T13: 0
A14: z | B14: Ø8,0х | E14: 1500 | F14: 8 | G14: 0 | H14: 0.388 | I14: 0 | J14: 0 | K14: 0 | L14: 0 | M14: 0 | N14: 0 | O14: 0 | R14: 0 | T14: 0
N15: =SUM(N10:N14) -> 0.61498 | O15: =SUM(O10:O14) -> 244.5987654 | R15: =SUM(R10:R14) -> 922.47
A16: =IF(N16=0,"z"," ") -> z | B16: Ø6,0х | E16: =$B$5 -> 1500 | F16: 6 | G16: 0 | H16: 0.222 | I16: 0 | J16: =E16*I16 -> 0 | K16: =G16/162 -> 0 | L16: =I16*K16/60 -> 0 | M16: =G16*H16/1000 -> 0 | N16: =I16*M16 -> 0 | O16: =L16*E16 -> 0 | R16: =M16*J16 -> 0 | T16: =H16*0.01*J16 -> 0
A17: =IF(N17=0,"z"," ") -> z | B17: Ø6,0х | E17: 1500 | F17: 6 | G17: 0 | H17: 0.222 | I17: 0 | J17: 0 | K17: =G17/162 -> 0 | L17: 0 | M17: 0 | N17: 0 | O17: 0 | R17: =M17*J17 -> 0 | T17: =H17*0.01*J17 -> 0
A18: z | B18: Ø6,0х | E18: 1500 | F18: 6 | G18: 0 | H18: 0.222 | I18: 0 | J18: 0 | K18: 0 | L18: 0 | M18: 0 | N18: 0 | O18: 0 | R18: 0 | T18: 0
A19: z | B19: Ø6,0х | E19: 1500 | F19: 6 | G19: 0 | H19: 0.222 | I19: 0 | J19: 0 | K19: 0 | L19: 0 | M19: 0 | N19: 0 | O19: 0 | R19: 0 | T19: 0
A20: z | B20: Ø6,0х | E20: 1500 | F20: 6 | G20: 0 | H20: 0.222 | I20: 0 | J20: 0 | K20: 0 | L20: 0 | M20: 0 | N20: 0 | O20: 0 | R20: 0 | T20: 0
A21: z | N21: =SUM(N16:N20) -> 0 | O21: =SUM(O16:O20) -> 0 | R21: 0
A22: z | B22: Ø5,0х | E22: =$B$5 -> 1500 | F22: 4.8 | G22: 0 | H22: 0.142 | I22: 0 | J22: =E22*I22 -> 0 | K22: =G22/162 -> 0 | L22: =I22*K22/60 -> 0 | M22: =G22*H22/1000 -> 0 | N22: =I22*M22 -> 0 | O22: =L22*E22 -> 0 | R22: =M22*J22 -> 0 | T22: =H22*0.01*J22 -> 0
A23: z | B23: Ø5,0х | E23: 1500 | F23: 4.8 | G23: 0 | H23: 0.142 | I23: 0 | J23: 0 | K23: 0 | L23: 0 | M23: 0 | N23: 0 | O23: 0 | R23: 0 | T23: 0
A24: z | B24: Ø5,0х | E24: 1500 | F24: 4.8 | G24: 0 | H24: 0.142 | I24: 0 | J24: 0 | K24: 0 | L24: 0 | M24: 0 | N24: 0 | O24: 0 | R24: 0 | T24: 0
A25: z | B25: Ø5,0х | E25: 1500 | F25: 4.8 | G25: 0 | H25: 0.142 | I25: 0 | J25: 0 | K25: 0 | L25: 0 | M25: 0 | N25: 0 | O25: 0 | R25: 0 | T25: 0
A26: z | B26: Ø5,0х | E26: 1500 | F26: 4.8 | G26: 0 | H26: 0.142 | I26: 0 | J26: 0 | K26: 0 | L26: 0 | M26: 0 | N26: 0 | O26: 0 | R26: 0 | T26: 0
A27: z | B27: Ø5,0х | E27: 1500 | F27: 4.8 | G27: 0 | H27: 0.142 | I27: 0 | J27: 0 | K27: 0 | L27: 0 | M27: 0 | N27: 0 | O27: 0 | R27: 0 | T27: 0
A28: z | B28: Ø5,0х | E28: 1500 | F28: 4.8 | G28: 0 | H28: 0.142 | I28: 0 | J28: 0 | K28: 0 | L28: 0 | M28: 0 | N28: 0 | O28: 0 | R28: 0 | T28: 0
A29: z | B29: Ø5,0х | E29: 1500 | F29: 4.8 | G29: 0 | H29: 0.142 | I29: 0 | J29: 0 | K29: 0 | L29: 0 | M29: 0 | N29: 0 | O29: 0 | R29: 0 | T29: 0
A30: z | N30: =SUM(N22:N29) -> 0 | O30: =SUM(O22:O29) -> 0 | R30: =SUM(R22:R29) -> 0
A31: z | B31: Ø4,0х | E31: =$B$5 -> 1500 | F31: 3.8 | G31: 0 | H31: 0.091 | I31: 0 | J31: 0 | K31: 0 | L31: 0 | M31: 0 | N31: 0 | O31: 0 | R31: =M31*J31 -> 0 | T31: =H31*0.01*J31 -> 0
A32: z | B32: Ø4,0х | E32: 1500 | F32: 3.8 | G32: 0 | H32: 0.091 | I32: 0 | J32: 0 | K32: 0 | L32: 0 | M32: 0 | N32: 0 | O32: 0 | R32: 0 | T32: 0
A33: z | B33: Ø4,0х | E33: 1500 | F33: 3.8 | G33: 0 | H33: 0.091 | I33: 0 | J33: 0 | K33: 0 | L33: 0 | M33: 0 | N33: 0 | O33: 0 | R33: 0 | T33: 0
A34: z | B34: Ø4,0х | E34: 1500 | F34: 3.8 | G34: 0 | H34: 0.091 | I34: 0 | J34: 0 | K34: 0 | L34: 0 | M34: 0 | N34: 0 | O34: 0 | R34: 0 | T34: 0
A35: z | B35: Ø4,0х | E35: 1500 | F35: 3.8 | G35: 0 | H35: 0.091 | I35: 0 | J35: 0 | K35: 0 | L35: 0 | M35: 0 | N35: 0 | O35: 0 | R35: 0 | T35: 0
A36: z | B36: Ø4,0х | E36: 1500 | F36: 3.8 | G36: 0 | H36: 0.091 | I36: 0 | J36: 0 | K36: 0 | L36: 0 | M36: 0 | N36: 0 | O36: 0 | R36: 0 | T36: 0
A37: z | B37: Ø4,0х | E37: 1500 | F37: 3.8 | G37: 0 | H37: 0.091 | I37: 0 | J37: 0 | K37: 0 | L37: 0 | M37: 0 | N37: 0 | O37: 0 | R37: 0 | T37: 0
A38: z | B38: Ø4,0х | E38: 1500 | F38: 3.8 | G38: 0 | H38: 0.091 | I38: 0 | J38: 0 | K38: 0 | L38: 0 | M38: 0 | N38: 0 | O38: 0 | R38: 0 | T38: 0
A39: z | B39: Ø4,0х | E39: 1500 | F39: 3.8 | G39: 0 | H39: 0.091 | I39: 0 | J39: 0 | K39: 0 | L39: 0 | M39: 0 | N39: 0 | O39: 0 | R39: 0 | T39: 0
A40: z | B40: Ø4,0х | E40: 1500 | F40: 3.8 | G40: 0 | H40: 0.091 | I40: 0 | J40: 0 | K40: 0 | L40: 0 | M40: 0 | N40: 0 | O40: 0 | R40: 0 | T40: 0
A41: z | N41: =SUM(N31:N40) -> 0 | O41: =SUM(O31:O40) -> 0 | R41: 0
A42: z | B42: Ø3,5х | E42: =$B$5 -> 1500 | F42: 3.4 | G42: 0 | H42: 0.072 | I42: 0 | J42: =E42*I42 -> 0 | K42: 0 | L42: =I42*K42/60 -> 0 | M42: =G42*H42/1000 -> 0 | N42: =I42*M42 -> 0 | O42: =L42*E42 -> 0 | R42: =M42*J42 -> 0 | T42: =H42*0.01*J42 -> 0
A43: z | B43: Ø3,5х | E43: 1500 | F43: 3.4 | G43: 0 | H43: 0.072 | I43: 0 | J43: 0 | K43: 0 | L43: 0 | M43: 0 | N43: 0 | O43: 0 | R43: 0 | T43: 0
A44: z | B44: Ø3,5х | E44: 1500 | F44: 3.4 | G44: 0 | H44: 0.072 | I44: 0 | J44: 0 | K44: 0 | L44: 0 | M44: 0 | N44: 0 | O44: 0 | R44: 0 | T44: 0
A45: z | B45: Ø3,5х | E45: 1500 | F45: 3.4 | G45: 0 | H45: 0.072 | I45: 0 | J45: 0 | K45: 0 | L45: 0 | M45: 0 | N45: 0 | O45: 0 | R45: 0 | T45: 0
A46: z | B46: Ø3,5х | E46: 1500 | F46: 3.4 | G46: 0 | H46: 0.072 | I46: 0 | J46: 0 | K46: 0 | L46: 0 | M46: 0 | N46: 0 | O46: 0 | R46: 0 | T46: 0
A47: z | B47: Ø3,5х | E47: 1500 | F47: 3.4 | G47: 0 | H47: 0.072 | I47: 0 | J47: 0 | K47: 0 | L47: 0 | M47: 0 | N47: 0 | O47: 0 | R47: 0 | T47: 0
A48: z | B48: Ø3,5х | E48: 1500 | F48: 3.4 | G48: 0 | H48: 0.072 | I48: 0 | J48: 0 | K48: 0 | L48: 0 | M48: 0 | N48: 0 | O48: 0 | R48: 0 | T48: 0
A49: z | B49: Ø3,5х | E49: 1500 | F49: 3.4 | G49: 0 | H49: 0.072 | I49: 0 | J49: 0 | K49: 0 | L49: 0 | M49: 0 | N49: 0 | O49: 0 | R49: 0 | T49: 0
A50: z | B50: Ø3,5х | E50: 1500 | F50: 3.4 | G50: 0 | H50: 0.072 | I50: 0 | J50: 0 | K50: 0 | L50: 0 | M50: 0 | N50: 0 | O50: 0 | R50: 0 | T50: 0
A51: z | B51: Ø3,5х | E51: 1500 | F51: 3.4 | G51: 0 | H51: 0.072 | I51: 0 | J51: 0 | K51: 0 | L51: 0 | M51: 0 | N51: 0 | O51: 0 | R51: 0 | T51: 0
A52: z | N52: =SUM(N42:N51) -> 0 | O52: =SUM(O42:O51) -> 0 | R52: 0
A53: z | B53: Ø3,0х | E53: =$B$5 -> 1500 | F53: 2.9 | G53: 0 | H53: 0.052 | I53: 0 | J53: =E53*I53 -> 0 | K53: 0 | L53: =I53*K53/60 -> 0 | M53: =G53*H53/1000 -> 0 | N53: =I53*M53 -> 0 | O53: =L53*E53 -> 0 | R53: =M53*J53 -> 0 | T53: =H53*0.01*J53 -> 0
A54: z | B54: Ø3,0х | E54: 1500 | F54: 2.9 | G54: 0 | H54: 0.052 | I54: 0 | J54: 0 | K54: 0 | L54: 0 | M54: 0 | N54: 0 | O54: 0 | R54: 0 | T54: 0
A55: z | B55: Ø3,0х | E55: 1500 | F55: 2.9 | G55: 0 | H55: 0.052 | I55: 0 | J55: 0 | K55: 0 | L55: 0 | M55: 0 | N55: 0 | O55: 0 | R55: 0 | T55: 0
A56: z | B56: Ø3,0х | E56: 1500 | F56: 2.9 | G56: 0 | H56: 0.052 | I56: 0 | J56: 0 | K56: 0 | L56: 0 | M56: 0 | N56: 0 | O56: 0 | R56: 0 | T56: 0
A57: z | B57: Ø3,0х | E57: 1500 | F57: 2.9 | G57: 0 | H57: 0.052 | I57: 0 | J57: 0 | K57: 0 | L57: 0 | M57: 0 | N57: 0 | O57: 0 | R57: 0 | T57: 0
A58: z | B58: Ø3,0х | E58: 1500 | F58: 2.9 | G58: 0 | H58: 0.052 | I58: 0 | J58: 0 | K58: 0 | L58: 0 | M58: 0 | N58: 0 | O58: 0 | R58: 0 | T58: 0
A59: z | B59: Ø3,0х | E59: 1500 | F59: 2.9 | G59: 0 | H59: 0.052 | I59: 0 | J59: 0 | K59: 0 | L59: 0 | M59: 0 | N59: 0 | O59: 0 | R59: 0 | T59: 0
A60: z | B60: Ø3,0х | E60: 1500 | F60: 2.9 | G60: 0 | H60: 0.052 | I60: 0 | J60: 0 | K60: 0 | L60: 0 | M60: 0 | N60: 0 | O60: 0 | R60: 0 | T60: 0
A61: z | B61: Ø3,0х | E61: 1500 | F61: 2.9 | G61: 0 | H61: 0.052 | I61: 0 | J61: 0 | K61: 0 | L61: 0 | M61: 0 | N61: 0 | O61: 0 | R61: 0 | T61: 0
A62: z | B62: Ø3,0х | E62: 1500 | F62: 2.9 | G62: 0 | H62: 0.052 | I62: 0 | J62: 0 | K62: 0 | L62: 0 | M62: 0 | N62: 0 | O62: 0 | R62: 0 | T62: 0
A63: z | N63: =SUM(N53:N62) -> 0 | O63: =SUM(O53:O62) -> 0 | R63: =SUM(R53:R62) -> 0
A64: z | B64: Ø2,5х | E64: =$B$5 -> 1500 | F64: 2.5 | G64: 0 | H64: 0.0375 | I64: 0 | J64: 0 | K64: 0 | L64: 0 | M64: 0 | N64: 0 | O64: 0 | R64: =M64*J64 -> 0 | T64: =H64*0.01*J64 -> 0
A65: z | B65: Ø2,5х | E65: 1500 | F65: 2.5 | G65: 0 | H65: 0.0375 | I65: 0 | J65: 0 | K65: 0 | L65: 0 | M65: 0 | N65: 0 | O65: 0 | R65: 0 | T65: 0
A66: z | B66: Ø2,5х | E66: 1500 | F66: 2.5 | G66: 0 | H66: 0.0375 | I66: 0 | J66: 0 | K66: 0 | L66: 0 | M66: 0 | N66: 0 | O66: 0 | R66: 0 | T66: 0
A67: z | B67: Ø2,5х | E67: 1500 | F67: 2.5 | G67: 0 | H67: 0.0375 | I67: 0 | J67: 0 | K67: 0 | L67: 0 | M67: 0 | N67: 0 | O67: 0 | R67: 0 | T67: 0
A68: z | B68: Ø2,5х | E68: 1500 | F68: 2.5 | G68: 0 | H68: 0.0375 | I68: 0 | J68: 0 | K68: 0 | L68: 0 | M68: 0 | N68: 0 | O68: 0 | R68: 0 | T68: 0
A69: z | B69: Ø2,5х | E69: 1500 | F69: 2.5 | G69: 0 | H69: 0.0375 | I69: 0 | J69: 0 | K69: 0 | L69: 0 | M69: 0 | N69: 0 | O69: 0 | R69: 0 | T69: 0
A70: z | B70: Ø2,5х | E70: 1500 | F70: 2.5 | G70: 0 | H70: 0.0375 | I70: 0 | J70: 0 | K70: 0 | L70: 0 | M70: 0 | N70: 0 | O70: 0 | R70: 0 | T70: 0
A71: z | B71: Ø2,5х | E71: 1500 | F71: 2.5 | G71: 0 | H71: 0.0375 | I71: 0 | J71: 0 | K71: 0 | L71: 0 | M71: 0 | N71: 0 | O71: 0 | R71: 0 | T71: 0
A72: z | B72: Ø2,5х | E72: 1500 | F72: 2.5 | G72: 0 | H72: 0.0375 | I72: 0 | J72: 0 | K72: 0 | L72: 0 | M72: 0 | N72: 0 | O72: 0 | R72: 0 | T72: 0
A73: z | B73: Ø2,5х | E73: 1500 | F73: 2.5 | G73: 0 | H73: 0.0375 | I73: 0 | J73: 0 | K73: 0 | L73: 0 | M73: 0 | N73: 0 | O73: 0 | R73: 0 | T73: 0
A74: z | B74: Ø2,5х | E74: 1500 | F74: 2.5 | G74: 0 | H74: 0.0375 | I74: 0 | J74: 0 | K74: 0 | L74: 0 | M74: 0 | N74: 0 | O74: 0 | R74: 0 | T74: 0
A75: =IF(N75=0,"z"," ") -> z | N75: =SUM(N64:N74) -> 0 | O75: =SUM(O64:O74) -> 0 | R75: 0
A76: =IF(N76=0,"z"," ") ->  | B76: Ø2,0х | C76: 220 | E76: 1500 | F76: 2 | G76: =C76+D76 -> 220 | H76: 0.025 | I76: 1 | J76: =E76*I76 -> 1500 | K76: =G76/162 -> 1.358024691 | L76: =I76*K76/60 -> 0.02263374486 | M76: =G76*H76/1000 -> 0.0055 | N76: =I76*M76 -> 0.0055 | O76: =L76*E76 -> 33.95061728 | R76: =M76*J76 -> 8.25 | T76: =H76*0.01*J76 -> 0.375
A77: 2д | B77: Ø2,0х | C77: 150 | D77: 10 | E77: 1500 | F77: 2 | G77: 160 | H77: 0.0375 | I77: 8 | J77: 12000 | K77: 0.987654321 | L77: 0.1316872428 | M77: 0.006 | N77: 0.048 | O77: 197.5308642 | R77: 72 | T77: 4.5
A78: z | B78: Ø2,0х | E78: 1500 | F78: 2 | G78: 0 | H78: 0.0375 | I78: 0 | J78: 0 | K78: 0 | L78: 0 | M78: 0 | N78: 0 | O78: 0 | R78: 0 | T78: 0
A79: z | B79: Ø2,0х | E79: 1500 | F79: 2 | G79: 0 | H79: 0.0375 | I79: 0 | J79: 0 | K79: 0 | L79: 0 | M79: 0 | N79: 0 | O79: 0 | R79: 0 | T79: 0
A80: z | B80: Ø2,0х | E80: 1500 | F80: 2 | G80: 0 | H80: 0.0375 | I80: 0 | J80: 0 | K80: 0 | L80: 0 | M80: 0 | N80: 0 | O80: 0 | R80: 0 | T80: 0
N81: =SUM(N76:N80) -> 0.0535 | O81: =SUM(O76:O80) -> 231.4814815 | R81: =SUM(R76:R80) -> 80.25
R82: Всего | S82: лома | T82: =SUM(T16:T80) -> 4.875
P83: Суммарный общий | R83: =R21+R30+R41+R52+R63+R75+R15+R81 -> 1002.72
A84: Технолог | N84: Сдал: мастер заготовительного участка
A87: Мастер цеха | N87: Принял: мастер проволочного участка
A90: Бухгалтер

Sheet ПВХ
A1: z | L1: z
F2: Приложение № 3 к ЛЗК _____
J3: =TODAY() -> 2023-07-27
E4: =ТРУБА!C4 -> (19137.022.20.9016) Кронштейн 240
C5: =CONCATENATE("Изделие из: ",IF(ТРУБА!M7>0,"ТРУБА, ",""),IF(ЛИСТ!L7>0,"ЛИСТ, ",""),IF(ПРОВОЛОКА!R83>0,"ПРОВОЛОКА, ",""),IF(ПВХ!I60>0,"ПВХ ","")) -> Изделие из: ТРУБА, ЛИСТ, ПРОВОЛОКА, ПВХ
F7: План | G7: 1000
E8: Количество деталей на план | H8: =SUM(H10:H34) -> 12000 | I8: Общая
B9: № п/п | C9: длина | D9: ширина | E9: кол-во на изделие | F9: материал | G9: толщина | H9: кол-во на план | I9: Кол-во листов ПВХ шт | L9: автономерация
A10: =IF(E10=0,"z","") ->  | B10: =IF(H10=0,"",L10) -> 1 | C10: 105 | D10: 188 | E10: 1 | F10: ПВХ | G10: 0.4 | H10: =E10*$G$7 -> 1000 | I10: =SUMIFS($G$37:$G$59,$D$37:$D$59,$D$65,$C$37:$C$59,$C$65) -> 8 | K10: 1 | L10: =IF(H10=0,0,1) -> 1
A11: =IF(E11=0,"z","") ->  | B11: 2 | C11: 50 | D11: 100 | E11: 6 | F11: ПВХ | G11: 0.4 | H11: =E11*$G$7 -> 6000 | K11: 2 | L11: =IF(H11=0,L10,L10+1) -> 2
B12: 3 | C12: 654 | D12: 856 | E12: 5 | F12: ПВХ | G12: 0.4 | H12: 5000 | K12: 3 | L12: 3
A13: z | F13: ПВХ | G13: 0.4 | H13: 0 | K13: 4 | L13: 3
A14: z | F14: ПВХ | G14: 0.4 | H14: 0 | K14: 5 | L14: 3
A15: z | F15: ПВХ | G15: 0.4 | H15: 0 | K15: 6 | L15: 3
A16: z | F16: ПВХ | G16: 0.4 | H16: 0 | K16: 7 | L16: 3
A17: z | F17: ПВХ | G17: 0.4 | H17: 0 | K17: 8 | L17: 3
A18: z | F18: ПВХ | G18: 0.4 | H18: 0 | K18: 9 | L18: 3
A19: z | F19: ПВХ | G19: 0.4 | H19: 0 | K19: 10 | L19: 3
A20: z | F20: ПВХ | G20: 0.4 | H20: 0 | K20: 11 | L20: 3
A21: z | F21: ПВХ | G21: 0.4 | H21: 0 | K21: 12 | L21: 3
A22: z | F22: ПВХ | G22: 0.4 | H22: 0 | K22: 13 | L22: 3
A23: z | F23: ПВХ | G23: 0.4 | H23: 0 | K23: 14 | L23: 3
A24: z | F24: ПВХ | G24: 0.4 | H24: 0 | K24: 15 | L24: 3
A25: z | F25: ПВХ | G25: 0.4 | H25: 0 | K25: 16 | L25: 3
A26: =IF(E26=0,"z","") -> z | B26: =IF(H26=0,"",L26) ->  | F26: ПВХ | G26: 0.4 | H26: =E26*$G$7 -> 0 | K26: 17 | L26: =IF(H26=0,L25,L25+1) -> 3
A27: z | F27: ПВХ | G27: 0.4 | H27: 0 | K27: 18 | L27: 3
A28: z | F28: ПВХ | G28: 0.4 | H28: 0 | K28: 19 | L28: 3
A29: z | F29: ПВХ | G29: 0.4 | H29: 0 | K29: 20 | L29: 3
A30: z | F30: ПВХ | G30: 0.4 | H30: 0 | K30: 21 | L30: 3
A31: z | F31: ПВХ | G31: 0.4 | H31: 0 | K31: 22 | L31: 3
A32: z | F32: ПВХ | G32: 0.4 | H32: 0 | K32: 23 | L32: 3
A33: z | F33: ПВХ | G33: 0.4 | H33: 0 | K33: 24 | L33: 3
A34: z | F34: ПВХ | G34: 0.4 | H34: 0 | K34: 25 | L34: 3
K35: =G7 -> 1000
B36: Карта раскроя № | C36: Длина, мм | D36: Ширина, мм | E36: Толщина, мм | F36: Марка материала | G36: Кол-во | H36: Площадь остатков всего (м2) | I36: Площадь деталей всего (м2) | J36: Количество деталей | K36: Площадь листов/остатков со склада (м2) | L36: округление толщины
A37: =IF(G37=0,"z","") ->  | B37: 1 | C37: 917 | D37: 700 | E37: 0.4 | F37: ПВХ прозрачный, 0.4 мм, пвх | G37: 1 | H37: 0 | I37: 0.6299999859 | J37: 126 | K37: =C37*D37*G37/1000000 -> 0.6419 | L37: =ROUND(E37,2) -> 0.4
A38: =IF(G38=0,"z","") ->  | B38: 2 | C38: 410 | D38: 110 | E38: 0.4 | F38: ПВХ прозрачный, 0.4 мм, пвх | G38: 705 | H38: 0 | I38: 28.19999937 | J38: 8 | K38: =C38*D38*G38/1000000 -> 31.7955 | L38: =ROUND(E38,2) -> 0.4
A39: =IF(G39=0,"z","") ->  | B39: 2 | C39: 410 | D39: 110 | E39: 0.4 | F39: ПВХ прозрачный, 0.4 мм, пвх | G39: 705 | H39: 0 | I39: 28.19999937 | J39: 8 | K39: =C39*D39*G39/1000000 -> 31.7955 | L39: =ROUND(E39,2) -> 0.4
B40: 2 | C40: 410 | D40: 110 | E40: 0.4 | F40: ПВХ прозрачный, 0.4 мм, пвх | G40: 705 | H40: 0 | I40: 28.19999937 | J40: 8 | K40: 31.7955 | L40: 0.4
B41: 2 | C41: 410 | D41: 110 | E41: 0.4 | F41: ПВХ прозрачный, 0.4 мм, пвх | G41: 705 | H41: 0 | I41: 28.19999937 | J41: 8 | K41: 31.7955 | L41: 0.4
B42: 2 | C42: 410 | D42: 110 | E42: 0.4 | F42: ПВХ прозрачный, 0.4 мм, пвх | G42: 705 | H42: 0 | I42: 28.19999937 | J42: 8 | K42: 31.7955 | L42: 0.4
B43: 2 | C43: 410 | D43: 110 | E43: 0.4 | F43: ПВХ прозрачный, 0.4 мм, пвх | G43: 705 | H43: 0 | I43: 28.19999937 | J43: 8 | K43: 31.7955 | L43: 0.4
B44: 2 | C44: 410 | D44: 110 | E44: 0.4 | F44: ПВХ прозрачный, 0.4 мм, пвх | G44: 705 | H44: 0 | I44: 28.19999937 | J44: 8 | K44: 31.7955 | L44: 0.4
B45: 2 | C45: 410 | D45: 110 | E45: 0.4 | F45: ПВХ прозрачный, 0.4 мм, пвх | G45: 705 | H45: 0 | I45: 28.19999937 | J45: 8 | K45: 31.7955 | L45: 0.4
B46: 2 | C46: 410 | D46: 110 | E46: 0.4 | F46: ПВХ прозрачный, 0.4 мм, пвх | G46: 705 | H46: 0 | I46: 28.19999937 | J46: 8 | K46: 31.7955 | L46: 0.4
B47: 2 | C47: 410 | D47: 110 | E47: 0.4 | F47: ПВХ прозрачный, 0.4 мм, пвх | G47: 705 | H47: 0 | I47: 28.19999937 | J47: 8 | K47: 31.7955 | L47: 0.4
B48: 2 | C48: 410 | D48: 110 | E48: 0.4 | F48: ПВХ прозрачный, 0.4 мм, пвх | G48: 705 | H48: 0 | I48: 28.19999937 | J48: 8 | K48: 31.7955 | L48: 0.4
B49: 3 | C49: 1000 | D49: 620 | E49: 0.4 | F49: ПВХ прозрачный, 0.4 мм, пвх | G49: 1 | H49: 0 | I49: 0.5999999866 | J49: 120 | K49: 0.62 | L49: 0.4
B50: 4 | C50: 210 | D50: 215 | E50: 0.4 | F50: ПВХ прозрачный, 0.4 мм, пвх | G50: 1 | H50: 0 | I50: 0.03973999992 | J50: 5 | K50: 0.04515 | L50: 0.4
B51: 5 | C51: 210 | D51: 215 | E51: 0.4 | F51: ПВХ прозрачный, 0.4 мм, пвх | G51: 246 | H51: 0 | I51: 9.712080181 | J51: 2 | K51: 11.1069 | L51: 0.4
B52: 6 | C52: 605 | D52: 1160 | E52: 0.4 | F52: ПВХ прозрачный, 0.4 мм, пвх | G52: 1 | H52: 0.02999999933 | I52: 0.6684399899 | J52: 116 | K52: 0.7018 | L52: 0.4
B53: 7 | C53: 210 | D53: 240 | E53: 0.4 | F53: ПВХ прозрачный, 0.4 мм, пвх | G53: 1 | H53: 0.01092000026 | I53: 0.03948000073 | J53: 2 | K53: 0.0504 | L53: 0.4
B54: 8 | C54: 1000 | D54: 1400 | E54: 0.4 | F54: ПВХ прозрачный, 0.4 мм, пвх | G54: 7 | H54: 1.094659984 | I54: 8.705340162 | J54: 63 | K54: 9.8 | L54: 0.4
B55: 9 | C55: 1000 | D55: 1400 | E55: 0.4 | F55: ПВХ прозрачный, 0.4 мм, пвх | G55: 1 | H55: 0.2550799958 | I55: 1.144920021 | J55: 58 | K55: 1.4 | L55: 0.4
A56: z | K56: 0 | L56: 0
A57: z | K57: 0 | L57: 0
A58: z | K58: 0 | L58: 0
A59: z | K59: 0 | L59: 0
F60: Общая | H60: =SUM(H37:H59) -> 1.39065998 | I60: =SUM(I37:I59) -> 331.7399934 | J60: =SUM(J37:J59) -> 580 | K60: =SUM(K37:K59) -> 374.11665
C62: Стандартный р-р | G62: Общая | H62: Общая | I62: Общая | J62: Общая | K62: Общая
B63: Кол-во листов ПВХ шт | C63: Длина, мм | D63: Ширина, мм | E63: Толщина, мм | F63: Марка материала | G63: Площадь листов со склада (м2) | H63: Площ-дь остатков со склада (м2) | I63: Площадь остатков на склад м2 | J63: Площадь деталей | K63: ЛОМ ПВХ (м2)
A64: z | B64: кол | C64: Дл | D64: Шир | E64: Тол | F64: Мат | G64: Столбец6 | H64: Столбец7 | I64: Столбец8 | J64: Столбец9 | K64: Столбец10 | L64: АСТРА
A65: =IF(Таблица2[[#This Row],[Столбец9]]=0,"z","") ->  | B65: =SUMIFS($G$37:$G$59,$D$37:$D$59,Таблица2[[#This Row],[Шир]],$C$37:$C$59,Таблица2[[#This Row],[Дл]]) -> 8 | C65: 1000 | D65: 1400 | E65: 0.4 | F65: ПВХ прозрачный, 0,4 | G65: =SUMIFS($K$37:$K$59,$C$37:$C$59,Таблица2[[#This Row],[Дл]],$D$37:$D$59,Таблица2[[#This Row],[Шир]],$L$37:$L$59,Таблица2[[#This Row],[Тол]],$F$37:$F$59,Таблица2[[#This Row],[АСТРА]]) -> 11.2 | H65: =SUMIFS($K$37:$K$59,$C$37:$C$59,"<"&Таблица2[[#This Row],[Дл]],$D$37:$D$59,Таблица2[[#This Row],[Шир]],$L$37:$L$59,Таблица2[[#This Row],[Тол]],$F$37:$F$59,Таблица2[[#This Row],[АСТРА]])+SUMIFS($K$37:$K$59,$C$37:$C$59,Таблица2[[#This Row],[Дл]],$D$37:$D$59,"<"&Таблица2[[#This Row],[Шир]],$L$37:$L$59,Таблица2[[#This Row],[Тол]],$F$37:$F$59,Таблица2[[#This Row],[АСТРА]])+SUMIFS($K$37:$K$59,$C$37:$C$59,"<"&Таблица2[[#This Row],[Дл]],$D$37:$D$59,"<"&Таблица2[[#This Row],[Шир]],$L$37:$L$59,Таблица2[[#This Row],[Тол]],$F$37:$F$59,Таблица2[[#This Row],[АСТРА]]) -> 362.91665 | I65: =SUMIFS($H$37:$H$59,$F$37:$F$59,Таблица2[[#This Row],[АСТРА]]) -> 1.39065998 | J65: =SUMIFS($I$37:$I$59,$F$37:$F$59,Таблица2[[#This Row],[АСТРА]]) -> 331.7399934 | K65: =Таблица2[[#This Row],[Столбец6]]+Таблица2[[#This Row],[Столбец7]]-Таблица2[[#This Row],[Столбец8]]-Таблица2[[#This Row],[Столбец9]] -> 40.98599663 | L65: ПВХ прозрачный, 0.4 мм, пвх
A66: =IF(Таблица2[[#This Row],[Столбец9]]=0,"z","") -> z | B66: =SUMIFS($G$37:$G$59,$D$37:$D$59,Таблица2[[#This Row],[Шир]],$C$37:$C$59,Таблица2[[#This Row],[Дл]]) -> 0 | E66: 0.4 | F66: ПВХ тест, 0,4 | G66: =SUMIFS($K$37:$K$59,$C$37:$C$59,Таблица2[[#This Row],[Дл]],$D$37:$D$59,Таблица2[[#This Row],[Шир]],$L$37:$L$59,Таблица2[[#This Row],[Тол]],$F$37:$F$59,Таблица2[[#This Row],[АСТРА]]) -> 0 | H66: =SUMIFS($K$37:$K$59,$C$37:$C$59,"<"&Таблица2[[#This Row],[Дл]],$D$37:$D$59,Таблица2[[#This Row],[Шир]],$L$37:$L$59,Таблица2[[#This Row],[Тол]],$F$37:$F$59,Таблица2[[#This Row],[АСТРА]])+SUMIFS($K$37:$K$59,$C$37:$C$59,Таблица2[[#This Row],[Дл]],$D$37:$D$59,"<"&Таблица2[[#This Row],[Шир]],$L$37:$L$59,Таблица2[[#This Row],[Тол]],$F$37:$F$59,Таблица2[[#This Row],[АСТРА]])+SUMIFS($K$37:$K$59,$C$37:$C$59,"<"&Таблица2[[#This Row],[Дл]],$D$37:$D$59,"<"&Таблица2[[#This Row],[Шир]],$L$37:$L$59,Таблица2[[#This Row],[Тол]],$F$37:$F$59,Таблица2[[#This Row],[АСТРА]]) -> 0 | I66: =SUMIFS($H$37:$H$59,$F$37:$F$59,Таблица2[[#This Row],[АСТРА]]) -> 0 | J66: =SUMIFS($I$37:$I$59,$F$37:$F$59,Таблица2[[#This Row],[АСТРА]]) -> 0 | K66: =Таблица2[[#This Row],[Столбец6]]+Таблица2[[#This Row],[Столбец7]]-Таблица2[[#This Row],[Столбец8]]-Таблица2[[#This Row],[Столбец9]] -> 0
B68: Подпись | F68: Инженер-технолог
B69: Подпись | F69: Нач техотдела
B70: Подпись | F70: Генеральный директор

Sheet Д-труба
A1: z | D1: план | E1: на1кт | F1: кол.на.пл | G1: вес1кт | H1: вес.план
A2: =IF(ТРУБА!J8=0,"z","") ->  | B2: =VLOOKUP(ТРУБА!K8,Таблица1[[#All],[ГОСТ]:[Столбец33]],4,0) -> Труба | C2: =CONCATENATE(VLOOKUP(ТРУБА!K8,Таблица1[[#All],[ГОСТ]:[Столбец34]],5,0),"х",ТРУБА!C8) -> 10х10х1х425 | D2: =ТРУБА!$J$6 -> 110 | E2: =ТРУБА!E8 -> 2 | F2: =ТРУБА!J8 -> 220 | G2: =ТРУБА!M8/ТРУБА!$J$6 -> 0.2295 | H2: =ТРУБА!M8 -> 25.245
A3: =IF(ТРУБА!J9=0,"z","") ->  | B3: =VLOOKUP(ТРУБА!K9,Таблица1[[#All],[ГОСТ]:[Столбец33]],4,0) -> Круг | C3: =CONCATENATE(VLOOKUP(ТРУБА!K9,Таблица1[[#All],[ГОСТ]:[Столбец34]],5,0),"х",ТРУБА!C9) -> 12х280 | D3: =ТРУБА!$J$6 -> 110 | E3: =ТРУБА!E9 -> 2 | F3: =ТРУБА!J9 -> 220 | G3: =ТРУБА!M9/ТРУБА!$J$6 -> 0.49728 | H3: =ТРУБА!M9 -> 54.7008
A4: =IF(ТРУБА!J10=0,"z","") ->  | B4: =VLOOKUP(ТРУБА!K10,Таблица1[[#All],[ГОСТ]:[Столбец33]],4,0) -> Труба | C4: =CONCATENATE(VLOOKUP(ТРУБА!K10,Таблица1[[#All],[ГОСТ]:[Столбец34]],5,0),"х",ТРУБА!C10) -> 25х25х1.2х273 | D4: =ТРУБА!$J$6 -> 110 | E4: =ТРУБА!E10 -> 1 | F4: =ТРУБА!J10 -> 110 | G4: =ТРУБА!M10/ТРУБА!$J$6 -> 0.238875 | H4: =ТРУБА!M10 -> 26.27625
A5: =IF(ТРУБА!J11=0,"z","") -> z | B5: =VLOOKUP(ТРУБА!K11,Таблица1[[#All],[ГОСТ]:[Столбец33]],4,0) -> Труба | C5: =CONCATENATE(VLOOKUP(ТРУБА!K11,Таблица1[[#All],[ГОСТ]:[Столбец34]],5,0),"х",ТРУБА!C11) -> 25х25х1х | D5: =ТРУБА!$J$6 -> 110 | E5: =ТРУБА!E11 -> 0 | F5: =ТРУБА!J11 -> 0 | G5: =ТРУБА!M11/ТРУБА!$J$6 -> 0 | H5: =ТРУБА!M11 -> 0
A6: =IF(ТРУБА!J12=0,"z","") -> z | B6: =VLOOKUP(ТРУБА!K12,Таблица1[[#All],[ГОСТ]:[Столбец33]],4,0) ->  | C6: =CONCATENATE(VLOOKUP(ТРУБА!K12,Таблица1[[#All],[ГОСТ]:[Столбец34]],5,0),"х",ТРУБА!C12) ->  | D6: =ТРУБА!$J$6 -> 110 | E6: =ТРУБА!E12 -> 0 | F6: =ТРУБА!J12 -> 0 | G6: =ТРУБА!M12/ТРУБА!$J$6 ->  | H6: =ТРУБА!M12 -> 
A7: =IF(ТРУБА!J13=0,"z","") -> z | B7: =VLOOKUP(ТРУБА!K13,Таблица1[[#All],[ГОСТ]:[Столбец33]],4,0) ->  | C7: =CONCATENATE(VLOOKUP(ТРУБА!K13,Таблица1[[#All],[ГОСТ]:[Столбец34]],5,0),"х",ТРУБА!C13) ->  | D7: =ТРУБА!$J$6 -> 110 | E7: =ТРУБА!E13 -> 0 | F7: =ТРУБА!J13 -> 0 | G7: =ТРУБА!M13/ТРУБА!$J$6 ->  | H7: =ТРУБА!M13 -> 
A8: =IF(ТРУБА!J14=0,"z","") -> z | B8: =VLOOKUP(ТРУБА!K14,Таблица1[[#All],[ГОСТ]:[Столбец33]],4,0) ->  | C8: =CONCATENATE(VLOOKUP(ТРУБА!K14,Таблица1[[#All],[ГОСТ]:[Столбец34]],5,0),"х",ТРУБА!C14) ->  | D8: =ТРУБА!$J$6 -> 110 | E8: =ТРУБА!E14 -> 0 | F8: =ТРУБА!J14 -> 0 | G8: =ТРУБА!M14/ТРУБА!$J$6 ->  | H8: =ТРУБА!M14 -> 
A9: =IF(ТРУБА!J15=0,"z","") -> z | B9: =VLOOKUP(ТРУБА!K15,Таблица1[[#All],[ГОСТ]:[Столбец33]],4,0) ->  | C9: =CONCATENATE(VLOOKUP(ТРУБА!K15,Таблица1[[#All],[ГОСТ]:[Столбец34]],5,0),"х",ТРУБА!C15) ->  | D9: =ТРУБА!$J$6 -> 110 | E9: =ТРУБА!E15 -> 0 | F9: =ТРУБА!J15 -> 0 | G9: =ТРУБА!M15/ТРУБА!$J$6 ->  | H9: =ТРУБА!M15 -> 
A10: =IF(ТРУБА!J16=0,"z","") -> z | B10: =VLOOKUP(ТРУБА!K16,Таблица1[[#All],[ГОСТ]:[Столбец33]],4,0) ->  | C10: =CONCATENATE(VLOOKUP(ТРУБА!K16,Таблица1[[#All],[ГОСТ]:[Столбец34]],5,0),"х",ТРУБА!C16) ->  | D10: =ТРУБА!$J$6 -> 110 | E10: =ТРУБА!E16 -> 0 | F10: =ТРУБА!J16 -> 0 | G10: =ТРУБА!M16/ТРУБА!$J$6 ->  | H10: =ТРУБА!M16 -> 
A11: =IF(ТРУБА!J17=0,"z","") -> z | B11: =VLOOKUP(ТРУБА!K17,Таблица1[[#All],[ГОСТ]:[Столбец33]],4,0) ->  | C11: =CONCATENATE(VLOOKUP(ТРУБА!K17,Таблица1[[#All],[ГОСТ]:[Столбец34]],5,0),"х",ТРУБА!C17) ->  | D11: =ТРУБА!$J$6 -> 110 | E11: =ТРУБА!E17 -> 0 | F11: =ТРУБА!J17 -> 0 | G11: =ТРУБА!M17/ТРУБА!$J$6 ->  | H11: =ТРУБА!M17 -> 
A12: =IF(ТРУБА!J18=0,"z","") -> z | B12: =VLOOKUP(ТРУБА!K18,Таблица1[[#All],[ГОСТ]:[Столбец33]],4,0) ->  | C12: =CONCATENATE(VLOOKUP(ТРУБА!K18,Таблица1[[#All],[ГОСТ]:[Столбец34]],5,0),"х",ТРУБА!C18) ->  | D12: =ТРУБА!$J$6 -> 110 | E12: =ТРУБА!E18 -> 0 | F12: =ТРУБА!J18 -> 0 | G12: =ТРУБА!M18/ТРУБА!$J$6 ->  | H12: =ТРУБА!M18 -> 
A13: =IF(ТРУБА!J19=0,"z","") -> z | B13: =VLOOKUP(ТРУБА!K19,Таблица1[[#All],[ГОСТ]:[Столбец33]],4,0) ->  | C13: =CONCATENATE(VLOOKUP(ТРУБА!K19,Таблица1[[#All],[ГОСТ]:[Столбец34]],5,0),"х",ТРУБА!C19) ->  | D13: =ТРУБА!$J$6 -> 110 | E13: =ТРУБА!E19 -> 0 | F13: =ТРУБА!J19 -> 0 | G13: =ТРУБА!M19/ТРУБА!$J$6 ->  | H13: =ТРУБА!M19 -> 
A14: =IF(ТРУБА!J20=0,"z","") -> z | B14: =VLOOKUP(ТРУБА!K20,Таблица1[[#All],[ГОСТ]:[Столбец33]],4,0) ->  | C14: =CONCATENATE(VLOOKUP(ТРУБА!K20,Таблица1[[#All],[ГОСТ]:[Столбец34]],5,0),"х",ТРУБА!C20) ->  | D14: =ТРУБА!$J$6 -> 110 | E14: =ТРУБА!E20 -> 0 | F14: =ТРУБА!J20 -> 0 | G14: =ТРУБА!M20/ТРУБА!$J$6 ->  | H14: =ТРУБА!M20 -> 
A15: =IF(ТРУБА!J21=0,"z","") -> z | B15: =VLOOKUP(ТРУБА!K21,Таблица1[[#All],[ГОСТ]:[Столбец33]],4,0) ->  | C15: =CONCATENATE(VLOOKUP(ТРУБА!K21,Таблица1[[#All],[ГОСТ]:[Столбец34]],5,0),"х",ТРУБА!C21) ->  | D15: =ТРУБА!$J$6 -> 110 | E15: =ТРУБА!E21 -> 0 | F15: =ТРУБА!J21 -> 0 | G15: =ТРУБА!M21/ТРУБА!$J$6 ->  | H15: =ТРУБА!M21 -> 
A16: =IF(ТРУБА!J22=0,"z","") -> z | B16: =VLOOKUP(ТРУБА!K22,Таблица1[[#All],[ГОСТ]:[Столбец33]],4,0) ->  | C16: =CONCATENATE(VLOOKUP(ТРУБА!K22,Таблица1[[#All],[ГОСТ]:[Столбец34]],5,0),"х",ТРУБА!C22) ->  | D16: =ТРУБА!$J$6 -> 110 | E16: =ТРУБА!E22 -> 0 | F16: =ТРУБА!J22 -> 0 | G16: =ТРУБА!M22/ТРУБА!$J$6 ->  | H16: =ТРУБА!M22 -> 
A17: =IF(ТРУБА!J23=0,"z","") -> z | B17: =VLOOKUP(ТРУБА!K23,Таблица1[[#All],[ГОСТ]:[Столбец33]],4,0) ->  | C17: =CONCATENATE(VLOOKUP(ТРУБА!K23,Таблица1[[#All],[ГОСТ]:[Столбец34]],5,0),"х",ТРУБА!C23) ->  | D17: =ТРУБА!$J$6 -> 110 | E17: =ТРУБА!E23 -> 0 | F17: =ТРУБА!J23 -> 0 | G17: =ТРУБА!M23/ТРУБА!$J$6 ->  | H17: =ТРУБА!M23 -> 
A18: =IF(ТРУБА!J24=0,"z","") -> z | B18: =VLOOKUP(ТРУБА!K24,Таблица1[[#All],[ГОСТ]:[Столбец33]],4,0) ->  | C18: =CONCATENATE(VLOOKUP(ТРУБА!K24,Таблица1[[#All],[ГОСТ]:[Столбец34]],5,0),"х",ТРУБА!C24) ->  | D18: =ТРУБА!$J$6 -> 110 | E18: =ТРУБА!E24 -> 0 | F18: =ТРУБА!J24 -> 0 | G18: =ТРУБА!M24/ТРУБА!$J$6 ->  | H18: =ТРУБА!M24 -> 
A19: =IF(ТРУБА!J25=0,"z","") ->  | B19: =VLOOKUP(ТРУБА!K25,Таблица1[[#All],[ГОСТ]:[Столбец33]],4,0) -> Труба пл.ов. | C19: =CONCATENATE(VLOOKUP(ТРУБА!K25,Таблица1[[#All],[ГОСТ]:[Столбец34]],5,0),"х",ТРУБА!C25) -> 30х15х1.2х56 | D19: =ТРУБА!$J$6 -> 110 | E19: =ТРУБА!E25 -> 8 | F19: =ТРУБА!J25 -> 880 | G19: =ТРУБА!M25/ТРУБА!$J$6 -> 0.3136 | H19: =ТРУБА!M25 -> 34.496
A20: =IF(ТРУБА!J26=0,"z","") -> z | B20: =VLOOKUP(ТРУБА!K26,Таблица1[[#All],[ГОСТ]:[Столбец33]],4,0) ->  | C20: =CONCATENATE(VLOOKUP(ТРУБА!K26,Таблица1[[#All],[ГОСТ]:[Столбец34]],5,0),"х",ТРУБА!C26) ->  | D20: =ТРУБА!$J$6 -> 110 | E20: =ТРУБА!E26 -> 0 | F20: =ТРУБА!J26 -> 0 | G20: =ТРУБА!M26/ТРУБА!$J$6 ->  | H20: =ТРУБА!M26 -> 
A21: =IF(ТРУБА!J27=0,"z","") -> z | B21: =VLOOKUP(ТРУБА!K27,Таблица1[[#All],[ГОСТ]:[Столбец33]],4,0) ->  | C21: =CONCATENATE(VLOOKUP(ТРУБА!K27,Таблица1[[#All],[ГОСТ]:[Столбец34]],5,0),"х",ТРУБА!C27) ->  | D21: =ТРУБА!$J$6 -> 110 | E21: =ТРУБА!E27 -> 0 | F21: =ТРУБА!J27 -> 0 | G21: =ТРУБА!M27/ТРУБА!$J$6 ->  | H21: =ТРУБА!M27 -> 
A22: =IF(ТРУБА!J28=0,"z","") -> z | B22: =VLOOKUP(ТРУБА!K28,Таблица1[[#All],[ГОСТ]:[Столбец33]],4,0) ->  | C22: =CONCATENATE(VLOOKUP(ТРУБА!K28,Таблица1[[#All],[ГОСТ]:[Столбец34]],5,0),"х",ТРУБА!C28) ->  | D22: =ТРУБА!$J$6 -> 110 | E22: =ТРУБА!E28 -> 0 | F22: =ТРУБА!J28 -> 0 | G22: =ТРУБА!M28/ТРУБА!$J$6 ->  | H22: =ТРУБА!M28 -> 
A23: =IF(ТРУБА!J29=0,"z","") -> z | B23: =VLOOKUP(ТРУБА!K29,Таблица1[[#All],[ГОСТ]:[Столбец33]],4,0) ->  | C23: =CONCATENATE(VLOOKUP(ТРУБА!K29,Таблица1[[#All],[ГОСТ]:[Столбец34]],5,0),"х",ТРУБА!C29) ->  | D23: =ТРУБА!$J$6 -> 110 | E23: =ТРУБА!E29 -> 0 | F23: =ТРУБА!J29 -> 0 | G23: =ТРУБА!M29/ТРУБА!$J$6 ->  | H23: =ТРУБА!M29 -> 
A24: =IF(ТРУБА!J30=0,"z","") -> z | B24: =VLOOKUP(ТРУБА!K30,Таблица1[[#All],[ГОСТ]:[Столбец33]],4,0) ->  | C24: =CONCATENATE(VLOOKUP(ТРУБА!K30,Таблица1[[#All],[ГОСТ]:[Столбец34]],5,0),"х",ТРУБА!C30) ->  | D24: =ТРУБА!$J$6 -> 110 | E24: =ТРУБА!E30 -> 0 | F24: =ТРУБА!J30 -> 0 | G24: =ТРУБА!M30/ТРУБА!$J$6 ->  | H24: =ТРУБА!M30 -> 
A25: =IF(ТРУБА!J31=0,"z","") -> z | B25: =VLOOKUP(ТРУБА!K31,Таблица1[[#All],[ГОСТ]:[Столбец33]],4,0) ->  | C25: =CONCATENATE(VLOOKUP(ТРУБА!K31,Таблица1[[#All],[ГОСТ]:[Столбец34]],5,0),"х",ТРУБА!C31) ->  | D25: =ТРУБА!$J$6 -> 110 | E25: =ТРУБА!E31 -> 0 | F25: =ТРУБА!J31 -> 0 | G25: =ТРУБА!M31/ТРУБА!$J$6 ->  | H25: =ТРУБА!M31 -> 
A26: =IF(ТРУБА!J32=0,"z","") -> z | B26: =VLOOKUP(ТРУБА!K32,Таблица1[[#All],[ГОСТ]:[Столбец33]],4,0) ->  | C26: =CONCATENATE(VLOOKUP(ТРУБА!K32,Таблица1[[#All],[ГОСТ]:[Столбец34]],5,0),"х",ТРУБА!C32) ->  | D26: =ТРУБА!$J$6 -> 110 | E26: =ТРУБА!E32 -> 0 | F26: =ТРУБА!J32 -> 0 | G26: =ТРУБА!M32/ТРУБА!$J$6 ->  | H26: =ТРУБА!M32 -> 
A27: =IF(ТРУБА!J33=0,"z","") -> z | B27: =VLOOKUP(ТРУБА!K33,Таблица1[[#All],[ГОСТ]:[Столбец33]],4,0) ->  | C27: =CONCATENATE(VLOOKUP(ТРУБА!K33,Таблица1[[#All],[ГОСТ]:[Столбец34]],5,0),"х",ТРУБА!C33) ->  | D27: =ТРУБА!$J$6 -> 110 | E27: =ТРУБА!E33 -> 0 | F27: =ТРУБА!J33 -> 0 | G27: =ТРУБА!M33/ТРУБА!$J$6 ->  | H27: =ТРУБА!M33 -> 
A28: =IF(ТРУБА!J34=0,"z","") -> z | B28: =VLOOKUP(ТРУБА!K34,Таблица1[[#All],[ГОСТ]:[Столбец33]],4,0) ->  | C28: =CONCATENATE(VLOOKUP(ТРУБА!K34,Таблица1[[#All],[ГОСТ]:[Столбец34]],5,0),"х",ТРУБА!C34) ->  | D28: =ТРУБА!$J$6 -> 110 | E28: =ТРУБА!E34 -> 0 | F28: =ТРУБА!J34 -> 0 | G28: =ТРУБА!M34/ТРУБА!$J$6 ->  | H28: =ТРУБА!M34 -> 
A29: =IF(ТРУБА!J35=0,"z","") -> z | B29: =VLOOKUP(ТРУБА!K35,Таблица1[[#All],[ГОСТ]:[Столбец33]],4,0) ->  | C29: =CONCATENATE(VLOOKUP(ТРУБА!K35,Таблица1[[#All],[ГОСТ]:[Столбец34]],5,0),"х",ТРУБА!C35) ->  | D29: =ТРУБА!$J$6 -> 110 | E29: =ТРУБА!E35 -> 0 | F29: =ТРУБА!J35 -> 0 | G29: =ТРУБА!M35/ТРУБА!$J$6 ->  | H29: =ТРУБА!M35 -> 
A30: =IF(ТРУБА!J36=0,"z","") -> z | B30: =VLOOKUP(ТРУБА!K36,Таблица1[[#All],[ГОСТ]:[Столбец33]],4,0) ->  | C30: =CONCATENATE(VLOOKUP(ТРУБА!K36,Таблица1[[#All],[ГОСТ]:[Столбец34]],5,0),"х",ТРУБА!C36) ->  | D30: =ТРУБА!$J$6 -> 110 | E30: =ТРУБА!E36 -> 0 | F30: =ТРУБА!J36 -> 0 | G30: =ТРУБА!M36/ТРУБА!$J$6 ->  | H30: =ТРУБА!M36 -> 
A31: =IF(ТРУБА!J37=0,"z","") -> z | B31: =VLOOKUP(ТРУБА!K37,Таблица1[[#All],[ГОСТ]:[Столбец33]],4,0) ->  | C31: =CONCATENATE(VLOOKUP(ТРУБА!K37,Таблица1[[#All],[ГОСТ]:[Столбец34]],5,0),"х",ТРУБА!C37) ->  | D31: =ТРУБА!$J$6 -> 110 | E31: =ТРУБА!E37 -> 0 | F31: =ТРУБА!J37 -> 0 | G31: =ТРУБА!M37/ТРУБА!$J$6 ->  | H31: =ТРУБА!M37 -> 
A32: =IF(ТРУБА!J38=0,"z","") -> z | B32: =VLOOKUP(ТРУБА!K38,Таблица1[[#All],[ГОСТ]:[Столбец33]],4,0) -> Труба | C32: =CONCATENATE(VLOOKUP(ТРУБА!K38,Таблица1[[#All],[ГОСТ]:[Столбец34]],5,0),"х",ТРУБА!C38) -> 20х20х1х | D32: =ТРУБА!$J$6 -> 110 | E32: =ТРУБА!E38 -> 0 | F32: =ТРУБА!J38 -> 0 | G32: =ТРУБА!M38/ТРУБА!$J$6 -> 0 | H32: =ТРУБА!M38 -> 0
A33: =IF(ТРУБА!J39=0,"z","") -> z | B33: =VLOOKUP(ТРУБА!K39,Таблица1[[#All],[ГОСТ]:[Столбец33]],4,0) ->  | C33: =CONCATENATE(VLOOKUP(ТРУБА!K39,Таблица1[[#All],[ГОСТ]:[Столбец34]],5,0),"х",ТРУБА!C39) ->  | D33: =ТРУБА!$J$6 -> 110 | E33: =ТРУБА!E39 -> 0 | F33: =ТРУБА!J39 -> 0 | G33: =ТРУБА!M39/ТРУБА!$J$6 ->  | H33: =ТРУБА!M39 -> 
A34: =IF(ТРУБА!J40=0,"z","") -> z | B34: =VLOOKUP(ТРУБА!K40,Таблица1[[#All],[ГОСТ]:[Столбец33]],4,0) ->  | C34: =CONCATENATE(VLOOKUP(ТРУБА!K40,Таблица1[[#All],[ГОСТ]:[Столбец34]],5,0),"х",ТРУБА!C40) ->  | D34: =ТРУБА!$J$6 -> 110 | E34: =ТРУБА!E40 -> 0 | F34: =ТРУБА!J40 -> 0 | G34: =ТРУБА!M40/ТРУБА!$J$6 ->  | H34: =ТРУБА!M40 -> 
A35: =IF(ТРУБА!J41=0,"z","") -> z | B35: =VLOOKUP(ТРУБА!K41,Таблица1[[#All],[ГОСТ]:[Столбец33]],4,0) ->  | C35: =CONCATENATE(VLOOKUP(ТРУБА!K41,Таблица1[[#All],[ГОСТ]:[Столбец34]],5,0),"х",ТРУБА!C41) ->  | D35: =ТРУБА!$J$6 -> 110 | E35: =ТРУБА!E41 -> 0 | F35: =ТРУБА!J41 -> 0 | G35: =ТРУБА!M41/ТРУБА!$J$6 ->  | H35: =ТРУБА!M41 -> 
A36: =IF(ТРУБА!J42=0,"z","") -> z | B36: =VLOOKUP(ТРУБА!K42,Таблица1[[#All],[ГОСТ]:[Столбец33]],4,0) ->  | C36: =CONCATENATE(VLOOKUP(ТРУБА!K42,Таблица1[[#All],[ГОСТ]:[Столбец34]],5,0),"х",ТРУБА!C42) ->  | D36: =ТРУБА!$J$6 -> 110 | E36: =ТРУБА!E42 -> 0 | F36: =ТРУБА!J42 -> 0 | G36: =ТРУБА!M42/ТРУБА!$J$6 ->  | H36: =ТРУБА!M42 -> 
A37: =IF(ТРУБА!J43=0,"z","") -> z | B37: =VLOOKUP(ТРУБА!K43,Таблица1[[#All],[ГОСТ]:[Столбец33]],4,0) -> Труба | C37: =CONCATENATE(VLOOKUP(ТРУБА!K43,Таблица1[[#All],[ГОСТ]:[Столбец34]],5,0),"х",ТРУБА!C43) -> 25х25х1.2х | D37: =ТРУБА!$J$6 -> 110 | E37: =ТРУБА!E43 -> 0 | F37: =ТРУБА!J43 -> 0 | G37: =ТРУБА!M43/ТРУБА!$J$6 -> 0 | H37: =ТРУБА!M43 -> 0
A38: =IF(ТРУБА!J44=0,"z","") -> z | B38: =VLOOKUP(ТРУБА!K44,Таблица1[[#All],[ГОСТ]:[Столбец33]],4,0) ->  | C38: =CONCATENATE(VLOOKUP(ТРУБА!K44,Таблица1[[#All],[ГОСТ]:[Столбец34]],5,0),"х",ТРУБА!C44) ->  | D38: =ТРУБА!$J$6 -> 110 | E38: =ТРУБА!E44 -> 0 | F38: =ТРУБА!J44 -> 0 | G38: =ТРУБА!M44/ТРУБА!$J$6 ->  | H38: =ТРУБА!M44 -> 
A39: =IF(ТРУБА!J45=0,"z","") -> z | B39: =VLOOKUP(ТРУБА!K45,Таблица1[[#All],[ГОСТ]:[Столбец33]],4,0) ->  | C39: =CONCATENATE(VLOOKUP(ТРУБА!K45,Таблица1[[#All],[ГОСТ]:[Столбец34]],5,0),"х",ТРУБА!C45) ->  | D39: =ТРУБА!$J$6 -> 110 | E39: =ТРУБА!E45 -> 0 | F39: =ТРУБА!J45 -> 0 | G39: =ТРУБА!M45/ТРУБА!$J$6 ->  | H39: =ТРУБА!M45 -> 
A40: =IF(ТРУБА!J46=0,"z","") -> z | B40: =VLOOKUP(ТРУБА!K46,Таблица1[[#All],[ГОСТ]:[Столбец33]],4,0) ->  | C40: =CONCATENATE(VLOOKUP(ТРУБА!K46,Таблица1[[#All],[ГОСТ]:[Столбец34]],5,0),"х",ТРУБА!C46) ->  | D40: =ТРУБА!$J$6 -> 110 | E40: =ТРУБА!E46 -> 0 | F40: =ТРУБА!J46 -> 0 | G40: =ТРУБА!M46/ТРУБА!$J$6 ->  | H40: =ТРУБА!M46 -> 
A41: =IF(ТРУБА!J47=0,"z","") -> z | B41: =VLOOKUP(ТРУБА!K47,Таблица1[[#All],[ГОСТ]:[Столбец33]],4,0) ->  | C41: =CONCATENATE(VLOOKUP(ТРУБА!K47,Таблица1[[#All],[ГОСТ]:[Столбец34]],5,0),"х",ТРУБА!C47) ->  | D41: =ТРУБА!$J$6 -> 110 | E41: =ТРУБА!E47 -> 0 | F41: =ТРУБА!J47 -> 0 | G41: =ТРУБА!M47/ТРУБА!$J$6 ->  | H41: =ТРУБА!M47 -> 
A42: =IF(ТРУБА!J48=0,"z","") -> z | B42: =VLOOKUP(ТРУБА!K48,Таблица1[[#All],[ГОСТ]:[Столбец33]],4,0) ->  | C42: =CONCATENATE(VLOOKUP(ТРУБА!K48,Таблица1[[#All],[ГОСТ]:[Столбец34]],5,0),"х",ТРУБА!C48) ->  | D42: =ТРУБА!$J$6 -> 110 | E42: =ТРУБА!E48 -> 0 | F42: =ТРУБА!J48 -> 0 | G42: =ТРУБА!M48/ТРУБА!$J$6 ->  | H42: =ТРУБА!M48 -> 
A43: =IF(ТРУБА!J49=0,"z","") -> z | B43: =VLOOKUP(ТРУБА!K49,Таблица1[[#All],[ГОСТ]:[Столбец33]],4,0) ->  | C43: =CONCATENATE(VLOOKUP(ТРУБА!K49,Таблица1[[#All],[ГОСТ]:[Столбец34]],5,0),"х",ТРУБА!C49) ->  | D43: =ТРУБА!$J$6 -> 110 | E43: =ТРУБА!E49 -> 0 | F43: =ТРУБА!J49 -> 0 | G43: =ТРУБА!M49/ТРУБА!$J$6 ->  | H43: =ТРУБА!M49 -> 
A44: =IF(ТРУБА!J50=0,"z","") -> z | B44: =VLOOKUP(ТРУБА!K50,Таблица1[[#All],[ГОСТ]:[Столбец33]],4,0) ->  | C44: =CONCATENATE(VLOOKUP(ТРУБА!K50,Таблица1[[#All],[ГОСТ]:[Столбец34]],5,0),"х",ТРУБА!C50) ->  | D44: =ТРУБА!$J$6 -> 110 | E44: =ТРУБА!E50 -> 0 | F44: =ТРУБА!J50 -> 0 | G44: =ТРУБА!M50/ТРУБА!$J$6 ->  | H44: =ТРУБА!M50 -> 
A45: =IF(ТРУБА!J51=0,"z","") -> z | B45: =VLOOKUP(ТРУБА!K51,Таблица1[[#All],[ГОСТ]:[Столбец33]],4,0) ->  | C45: =CONCATENATE(VLOOKUP(ТРУБА!K51,Таблица1[[#All],[ГОСТ]:[Столбец34]],5,0),"х",ТРУБА!C51) ->  | D45: =ТРУБА!$J$6 -> 110 | E45: =ТРУБА!E51 -> 0 | F45: =ТРУБА!J51 -> 0 | G45: =ТРУБА!M51/ТРУБА!$J$6 ->  | H45: =ТРУБА!M51 -> 
A46: =IF(ТРУБА!J52=0,"z","") -> z | B46: =VLOOKUP(ТРУБА!K52,Таблица1[[#All],[ГОСТ]:[Столбец33]],4,0) ->  | C46: =CONCATENATE(VLOOKUP(ТРУБА!K52,Таблица1[[#All],[ГОСТ]:[Столбец34]],5,0),"х",ТРУБА!C52) ->  | D46: =ТРУБА!$J$6 -> 110 | E46: =ТРУБА!E52 -> 0 | F46: =ТРУБА!J52 -> 0 | G46: =ТРУБА!M52/ТРУБА!$J$6 ->  | H46: =ТРУБА!M52 -> 
A47: =IF(ТРУБА!J53=0,"z","") -> z | B47: =VLOOKUP(ТРУБА!K53,Таблица1[[#All],[ГОСТ]:[Столбец33]],4,0) ->  | C47: =CONCATENATE(VLOOKUP(ТРУБА!K53,Таблица1[[#All],[ГОСТ]:[Столбец34]],5,0),"х",ТРУБА!C53) ->  | D47: =ТРУБА!$J$6 -> 110 | E47: =ТРУБА!E53 -> 0 | F47: =ТРУБА!J53 -> 0 | G47: =ТРУБА!M53/ТРУБА!$J$6 ->  | H47: =ТРУБА!M53 -> 
A48: =IF(ТРУБА!J54=0,"z","") -> z | B48: =VLOOKUP(ТРУБА!K54,Таблица1[[#All],[ГОСТ]:[Столбец33]],4,0) ->  | C48: =CONCATENATE(VLOOKUP(ТРУБА!K54,Таблица1[[#All],[ГОСТ]:[Столбец34]],5,0),"х",ТРУБА!C54) ->  | D48: =ТРУБА!$J$6 -> 110 | E48: =ТРУБА!E54 -> 0 | F48: =ТРУБА!J54 -> 0 | G48: =ТРУБА!M54/ТРУБА!$J$6 ->  | H48: =ТРУБА!M54 -> 
A49: =IF(ТРУБА!J55=0,"z","") -> z | B49: =VLOOKUP(ТРУБА!K55,Таблица1[[#All],[ГОСТ]:[Столбец33]],4,0) ->  | C49: =CONCATENATE(VLOOKUP(ТРУБА!K55,Таблица1[[#All],[ГОСТ]:[Столбец34]],5,0),"х",ТРУБА!C55) ->  | D49: =ТРУБА!$J$6 -> 110 | E49: =ТРУБА!E55 -> 0 | F49: =ТРУБА!J55 -> 0 | G49: =ТРУБА!M55/ТРУБА!$J$6 ->  | H49: =ТРУБА!M55 -> 
A50: =IF(ТРУБА!J56=0,"z","") -> z | B50: =VLOOKUP(ТРУБА!K56,Таблица1[[#All],[ГОСТ]:[Столбец33]],4,0) ->  | C50: =CONCATENATE(VLOOKUP(ТРУБА!K56,Таблица1[[#All],[ГОСТ]:[Столбец34]],5,0),"х",ТРУБА!C56) ->  | D50: =ТРУБА!$J$6 -> 110 | E50: =ТРУБА!E56 -> 0 | F50: =ТРУБА!J56 -> 0 | G50: =ТРУБА!M56/ТРУБА!$J$6 ->  | H50: =ТРУБА!M56 -> 
A51: =IF(ТРУБА!J57=0,"z","") -> z | B51: =VLOOKUP(ТРУБА!K57,Таблица1[[#All],[ГОСТ]:[Столбец33]],4,0) ->  | C51: =CONCATENATE(VLOOKUP(ТРУБА!K57,Таблица1[[#All],[ГОСТ]:[Столбец34]],5,0),"х",ТРУБА!C57) ->  | D51: =ТРУБА!$J$6 -> 110 | E51: =ТРУБА!E57 -> 0 | F51: =ТРУБА!J57 -> 0 | G51: =ТРУБА!M57/ТРУБА!$J$6 ->  | H51: =ТРУБА!M57 -> 
A52: =IF(ТРУБА!J58=0,"z","") -> z | B52: =VLOOKUP(ТРУБА!K58,Таблица1[[#All],[ГОСТ]:[Столбец33]],4,0) ->  | C52: =CONCATENATE(VLOOKUP(ТРУБА!K58,Таблица1[[#All],[ГОСТ]:[Столбец34]],5,0),"х",ТРУБА!C58) ->  | D52: =ТРУБА!$J$6 -> 110 | E52: =ТРУБА!E58 -> 0 | F52: =ТРУБА!J58 -> 0 | G52: =ТРУБА!M58/ТРУБА!$J$6 -> 0 | H52: =ТРУБА!M58 -> 0

Sheet Д-лист
A1: z | D1: план | E1: на1кт | F1: кол.на.пл | G1: вес1кт | H1: вес.план
A2: =IF(ЛИСТ!J8=0,"z","") ->  | B2: =VLOOKUP(ЛИСТ!H8,Таблица3[[#All],[Столбец28]:[Столбец30]],2,0) -> Лист | C2: =CONCATENATE(ЛИСТ!C8,"х",ЛИСТ!D8,"х",ЛИСТ!G8) -> 970х520х1.5 | D2: =ЛИСТ!$H$6 -> 80 | E2: =ЛИСТ!E8 -> 1 | F2: =ЛИСТ!J8 -> 80 | G2: =H2/D2 -> 5.602949424 | H2: =ЛИСТ!L8 -> 448.2359539
A3: =IF(ЛИСТ!J9=0,"z","") ->  | B3: =VLOOKUP(ЛИСТ!H9,Таблица3[[#All],[Столбец28]:[Столбец30]],2,0) -> Лист | C3: =CONCATENATE(ЛИСТ!C9,"х",ЛИСТ!D9,"х",ЛИСТ!G9) -> 303х303х2 | D3: =ЛИСТ!$H$6 -> 80 | E3: =ЛИСТ!E9 -> 5 | F3: =ЛИСТ!J9 -> 400 | G3: =H3/D3 -> 5.67770518 | H3: =ЛИСТ!L9 -> 454.2164144
A4: =IF(ЛИСТ!J10=0,"z","") ->  | B4: =VLOOKUP(ЛИСТ!H10,Таблица3[[#All],[Столбец28]:[Столбец30]],2,0) -> Лист ОЦ | C4: =CONCATENATE(ЛИСТ!C10,"х",ЛИСТ!D10,"х",ЛИСТ!G10) -> 654х565х1 | D4: =ЛИСТ!$H$6 -> 80 | E4: =ЛИСТ!E10 -> 72 | F4: =ЛИСТ!J10 -> 5760 | G4: 209.8816564 | H4: =ЛИСТ!L10 -> 16790.53251
A5: =IF(ЛИСТ!J11=0,"z","") ->  | B5: =VLOOKUP(ЛИСТ!H11,Таблица3[[#All],[Столбец28]:[Столбец30]],2,0) -> Сетка ПВЛ | C5: =CONCATENATE(ЛИСТ!C11,"х",ЛИСТ!D11,"х",ЛИСТ!G11) -> 45х557х1 | D5: =ЛИСТ!$H$6 -> 80 | E5: =ЛИСТ!E11 -> 1 | F5: =ЛИСТ!J11 -> 80 | G5: =H5/D5 -> 0.07240997772 | H5: =ЛИСТ!L11 -> 5.792798218
A6: =IF(ЛИСТ!J12=0,"z","") -> z | B6: =VLOOKUP(ЛИСТ!H12,Таблица3[[#All],[Столбец28]:[Столбец30]],2,0) ->  | C6: =CONCATENATE(ЛИСТ!C12,"х",ЛИСТ!D12,"х",ЛИСТ!G12) -> хх | D6: =ЛИСТ!$H$6 -> 80 | E6: =ЛИСТ!E12 -> 0 | F6: =ЛИСТ!J12 -> 0 | H6: =ЛИСТ!L12 -> 
A7: =IF(ЛИСТ!J13=0,"z","") -> z | B7: =VLOOKUP(ЛИСТ!H13,Таблица3[[#All],[Столбец28]:[Столбец30]],2,0) -> Сетка ПВЛ | C7: =CONCATENATE(ЛИСТ!C13,"х",ЛИСТ!D13,"х",ЛИСТ!G13) -> хх1 | D7: =ЛИСТ!$H$6 -> 80 | E7: =ЛИСТ!E13 -> 0 | F7: =ЛИСТ!J13 -> 0 | G7: 0 | H7: =ЛИСТ!L13 -> 0
A8: =IF(ЛИСТ!J14=0,"z","") -> z | B8: =VLOOKUP(ЛИСТ!H14,Таблица3[[#All],[Столбец28]:[Столбец30]],2,0) ->  | C8: =CONCATENATE(ЛИСТ!C14,"х",ЛИСТ!D14,"х",ЛИСТ!G14) -> хх | D8: =ЛИСТ!$H$6 -> 80 | E8: =ЛИСТ!E14 -> 0 | F8: =ЛИСТ!J14 -> 0 | H8: =ЛИСТ!L14 -> 
A9: =IF(ЛИСТ!J15=0,"z","") -> z | B9: =VLOOKUP(ЛИСТ!H15,Таблица3[[#All],[Столбец28]:[Столбец30]],2,0) ->  | C9: =CONCATENATE(ЛИСТ!C15,"х",ЛИСТ!D15,"х",ЛИСТ!G15) -> хх | D9: =ЛИСТ!$H$6 -> 80 | E9: =ЛИСТ!E15 -> 0 | F9: =ЛИСТ!J15 -> 0 | H9: =ЛИСТ!L15 -> 
A10: =IF(ЛИСТ!J16=0,"z","") -> z | B10: =VLOOKUP(ЛИСТ!H16,Таблица3[[#All],[Столбец28]:[Столбец30]],2,0) ->  | C10: =CONCATENATE(ЛИСТ!C16,"х",ЛИСТ!D16,"х",ЛИСТ!G16) -> хх | D10: =ЛИСТ!$H$6 -> 80 | E10: =ЛИСТ!E16 -> 0 | F10: =ЛИСТ!J16 -> 0 | H10: =ЛИСТ!L16 -> 
A11: =IF(ЛИСТ!J17=0,"z","") -> z | B11: =VLOOKUP(ЛИСТ!H17,Таблица3[[#All],[Столбец28]:[Столбец30]],2,0) ->  | C11: =CONCATENATE(ЛИСТ!C17,"х",ЛИСТ!D17,"х",ЛИСТ!G17) -> хх | D11: =ЛИСТ!$H$6 -> 80 | E11: =ЛИСТ!E17 -> 0 | F11: =ЛИСТ!J17 -> 0 | H11: =ЛИСТ!L17 -> 
A12: =IF(ЛИСТ!J18=0,"z","") -> z | B12: =VLOOKUP(ЛИСТ!H18,Таблица3[[#All],[Столбец28]:[Столбец30]],2,0) -> Лист | C12: =CONCATENATE(ЛИСТ!C18,"х",ЛИСТ!D18,"х",ЛИСТ!G18) -> хх1.5 | D12: =ЛИСТ!$H$6 -> 80 | E12: =ЛИСТ!E18 -> 0 | F12: =ЛИСТ!J18 -> 0 | G12: 0 | H12: =ЛИСТ!L18 -> 0
A13: =IF(ЛИСТ!J19=0,"z","") -> z | B13: =VLOOKUP(ЛИСТ!H19,Таблица3[[#All],[Столбец28]:[Столбец30]],2,0) ->  | C13: =CONCATENATE(ЛИСТ!C19,"х",ЛИСТ!D19,"х",ЛИСТ!G19) -> хх | D13: =ЛИСТ!$H$6 -> 80 | E13: =ЛИСТ!E19 -> 0 | F13: =ЛИСТ!J19 -> 0 | H13: =ЛИСТ!L19 -> 
A14: =IF(ЛИСТ!J20=0,"z","") -> z | B14: =VLOOKUP(ЛИСТ!H20,Таблица3[[#All],[Столбец28]:[Столбец30]],2,0) ->  | C14: =CONCATENATE(ЛИСТ!C20,"х",ЛИСТ!D20,"х",ЛИСТ!G20) -> хх | D14: =ЛИСТ!$H$6 -> 80 | E14: =ЛИСТ!E20 -> 0 | F14: =ЛИСТ!J20 -> 0 | H14: =ЛИСТ!L20 -> 
A15: =IF(ЛИСТ!J21=0,"z","") -> z | B15: =VLOOKUP(ЛИСТ!H21,Таблица3[[#All],[Столбец28]:[Столбец30]],2,0) ->  | C15: =CONCATENATE(ЛИСТ!C21,"х",ЛИСТ!D21,"х",ЛИСТ!G21) -> хх | D15: =ЛИСТ!$H$6 -> 80 | E15: =ЛИСТ!E21 -> 0 | F15: =ЛИСТ!J21 -> 0 | H15: =ЛИСТ!L21 -> 
A16: =IF(ЛИСТ!J22=0,"z","") -> z | B16: =VLOOKUP(ЛИСТ!H22,Таблица3[[#All],[Столбец28]:[Столбец30]],2,0) ->  | C16: =CONCATENATE(ЛИСТ!C22,"х",ЛИСТ!D22,"х",ЛИСТ!G22) -> хх | D16: =ЛИСТ!$H$6 -> 80 | E16: =ЛИСТ!E22 -> 0 | F16: =ЛИСТ!J22 -> 0 | H16: =ЛИСТ!L22 -> 
A17: =IF(ЛИСТ!J23=0,"z","") -> z | B17: =VLOOKUP(ЛИСТ!H23,Таблица3[[#All],[Столбец28]:[Столбец30]],2,0) ->  | C17: =CONCATENATE(ЛИСТ!C23,"х",ЛИСТ!D23,"х",ЛИСТ!G23) -> хх | D17: =ЛИСТ!$H$6 -> 80 | E17: =ЛИСТ!E23 -> 0 | F17: =ЛИСТ!J23 -> 0 | H17: =ЛИСТ!L23 -> 
A18: =IF(ЛИСТ!J24=0,"z","") -> z | B18: =VLOOKUP(ЛИСТ!H24,Таблица3[[#All],[Столбец28]:[Столбец30]],2,0) ->  | C18: =CONCATENATE(ЛИСТ!C24,"х",ЛИСТ!D24,"х",ЛИСТ!G24) -> хх | D18: =ЛИСТ!$H$6 -> 80 | E18: =ЛИСТ!E24 -> 0 | F18: =ЛИСТ!J24 -> 0 | H18: =ЛИСТ!L24 -> 
A19: =IF(ЛИСТ!J25=0,"z","") -> z | B19: =VLOOKUP(ЛИСТ!H25,Таблица3[[#All],[Столбец28]:[Столбец30]],2,0) ->  | C19: =CONCATENATE(ЛИСТ!C25,"х",ЛИСТ!D25,"х",ЛИСТ!G25) -> хх | D19: =ЛИСТ!$H$6 -> 80 | E19: =ЛИСТ!E25 -> 0 | F19: =ЛИСТ!J25 -> 0 | H19: =ЛИСТ!L25 -> 
A20: =IF(ЛИСТ!J26=0,"z","") -> z | B20: =VLOOKUP(ЛИСТ!H26,Таблица3[[#All],[Столбец28]:[Столбец30]],2,0) ->  | C20: =CONCATENATE(ЛИСТ!C26,"х",ЛИСТ!D26,"х",ЛИСТ!G26) -> хх | D20: =ЛИСТ!$H$6 -> 80 | E20: =ЛИСТ!E26 -> 0 | F20: =ЛИСТ!J26 -> 0 | H20: =ЛИСТ!L26 -> 
A21: =IF(ЛИСТ!J27=0,"z","") -> z | B21: =VLOOKUP(ЛИСТ!H27,Таблица3[[#All],[Столбец28]:[Столбец30]],2,0) ->  | C21: =CONCATENATE(ЛИСТ!C27,"х",ЛИСТ!D27,"х",ЛИСТ!G27) -> хх | D21: =ЛИСТ!$H$6 -> 80 | E21: =ЛИСТ!E27 -> 0 | F21: =ЛИСТ!J27 -> 0 | H21: =ЛИСТ!L27 -> 
A22: =IF(ЛИСТ!J28=0,"z","") -> z | B22: =VLOOKUP(ЛИСТ!H28,Таблица3[[#All],[Столбец28]:[Столбец30]],2,0) ->  | C22: =CONCATENATE(ЛИСТ!C28,"х",ЛИСТ!D28,"х",ЛИСТ!G28) -> хх | D22: =ЛИСТ!$H$6 -> 80 | E22: =ЛИСТ!E28 -> 0 | F22: =ЛИСТ!J28 -> 0 | H22: =ЛИСТ!L28 -> 
A23: =IF(ЛИСТ!J29=0,"z","") -> z | B23: =VLOOKUP(ЛИСТ!H29,Таблица3[[#All],[Столбец28]:[Столбец30]],2,0) ->  | C23: =CONCATENATE(ЛИСТ!C29,"х",ЛИСТ!D29,"х",ЛИСТ!G29) -> хх | D23: =ЛИСТ!$H$6 -> 80 | E23: =ЛИСТ!E29 -> 0 | F23: =ЛИСТ!J29 -> 0 | H23: =ЛИСТ!L29 -> 
A24: =IF(ЛИСТ!J30=0,"z","") -> z | B24: =VLOOKUP(ЛИСТ!H30,Таблица3[[#All],[Столбец28]:[Столбец30]],2,0) ->  | C24: =CONCATENATE(ЛИСТ!C30,"х",ЛИСТ!D30,"х",ЛИСТ!G30) -> хх | D24: =ЛИСТ!$H$6 -> 80 | E24: =ЛИСТ!E30 -> 0 | F24: =ЛИСТ!J30 -> 0 | H24: =ЛИСТ!L30 -> 
A25: =IF(ЛИСТ!J31=0,"z","") -> z | B25: =VLOOKUP(ЛИСТ!H31,Таблица3[[#All],[Столбец28]:[Столбец30]],2,0) ->  | C25: =CONCATENATE(ЛИСТ!C31,"х",ЛИСТ!D31,"х",ЛИСТ!G31) -> хх | D25: =ЛИСТ!$H$6 -> 80 | E25: =ЛИСТ!E31 -> 0 | F25: =ЛИСТ!J31 -> 0 | H25: =ЛИСТ!L31 -> 
A26: =IF(ЛИСТ!J32=0,"z","") -> z | B26: =VLOOKUP(ЛИСТ!H32,Таблица3[[#All],[Столбец28]:[Столбец30]],2,0) ->  | C26: =CONCATENATE(ЛИСТ!C32,"х",ЛИСТ!D32,"х",ЛИСТ!G32) -> хх | D26: =ЛИСТ!$H$6 -> 80 | E26: =ЛИСТ!E32 -> 0 | F26: =ЛИСТ!J32 -> 0 | H26: =ЛИСТ!L32 -> 
A27: =IF(ЛИСТ!J33=0,"z","") -> z | B27: =VLOOKUP(ЛИСТ!H33,Таблица3[[#All],[Столбец28]:[Столбец30]],2,0) ->  | C27: =CONCATENATE(ЛИСТ!C33,"х",ЛИСТ!D33,"х",ЛИСТ!G33) -> хх | D27: =ЛИСТ!$H$6 -> 80 | E27: =ЛИСТ!E33 -> 0 | F27: =ЛИСТ!J33 -> 0 | H27: =ЛИСТ!L33 -> 
A28: =IF(ЛИСТ!J34=0,"z","") -> z | B28: =VLOOKUP(ЛИСТ!H34,Таблица3[[#All],[Столбец28]:[Столбец30]],2,0) ->  | C28: =CONCATENATE(ЛИСТ!C34,"х",ЛИСТ!D34,"х",ЛИСТ!G34) -> хх | D28: =ЛИСТ!$H$6 -> 80 | E28: =ЛИСТ!E34 -> 0 | F28: =ЛИСТ!J34 -> 0 | H28: =ЛИСТ!L34 -> 
A29: =IF(ЛИСТ!J35=0,"z","") -> z | B29: =VLOOKUP(ЛИСТ!H35,Таблица3[[#All],[Столбец28]:[Столбец30]],2,0) ->  | C29: =CONCATENATE(ЛИСТ!C35,"х",ЛИСТ!D35,"х",ЛИСТ!G35) -> хх | D29: =ЛИСТ!$H$6 -> 80 | E29: =ЛИСТ!E35 -> 0 | F29: =ЛИСТ!J35 -> 0 | H29: =ЛИСТ!L35 -> 
A30: =IF(ЛИСТ!J36=0,"z","") -> z | B30: =VLOOKUP(ЛИСТ!H36,Таблица3[[#All],[Столбец28]:[Столбец30]],2,0) ->  | C30: =CONCATENATE(ЛИСТ!C36,"х",ЛИСТ!D36,"х",ЛИСТ!G36) -> хх | D30: =ЛИСТ!$H$6 -> 80 | E30: =ЛИСТ!E36 -> 0 | F30: =ЛИСТ!J36 -> 0 | H30: =ЛИСТ!L36 -> 
A31: =IF(ЛИСТ!J37=0,"z","") -> z | B31: =VLOOKUP(ЛИСТ!H37,Таблица3[[#All],[Столбец28]:[Столбец30]],2,0) ->  | C31: =CONCATENATE(ЛИСТ!C37,"х",ЛИСТ!D37,"х",ЛИСТ!G37) -> хх | D31: =ЛИСТ!$H$6 -> 80 | E31: =ЛИСТ!E37 -> 0 | F31: =ЛИСТ!J37 -> 0 | G31: =H31/D31 ->  | H31: =ЛИСТ!L37 -> 
A32: =IF(ЛИСТ!J38=0,"z","") -> z | B32: =VLOOKUP(ЛИСТ!H38,Таблица3[[#All],[Столбец28]:[Столбец30]],2,0) ->  | C32: =CONCATENATE(ЛИСТ!C38,"х",ЛИСТ!D38,"х",ЛИСТ!G38) -> хх | D32: =ЛИСТ!$H$6 -> 80 | E32: =ЛИСТ!E38 -> 0 | F32: =ЛИСТ!J38 -> 0 | H32: =ЛИСТ!L38 -> 
A33: =IF(ЛИСТ!J39=0,"z","") -> z | B33: =VLOOKUP(ЛИСТ!H39,Таблица3[[#All],[Столбец28]:[Столбец30]],2,0) ->  | C33: =CONCATENATE(ЛИСТ!C39,"х",ЛИСТ!D39,"х",ЛИСТ!G39) -> хх | D33: =ЛИСТ!$H$6 -> 80 | E33: =ЛИСТ!E39 -> 0 | F33: =ЛИСТ!J39 -> 0 | H33: =ЛИСТ!L39 -> 
A34: =IF(ЛИСТ!J40=0,"z","") -> z | B34: =VLOOKUP(ЛИСТ!H40,Таблица3[[#All],[Столбец28]:[Столбец30]],2,0) ->  | C34: =CONCATENATE(ЛИСТ!C40,"х",ЛИСТ!D40,"х",ЛИСТ!G40) -> хх | D34: =ЛИСТ!$H$6 -> 80 | E34: =ЛИСТ!E40 -> 0 | F34: =ЛИСТ!J40 -> 0 | H34: =ЛИСТ!L40 -> 
A35: =IF(ЛИСТ!J41=0,"z","") -> z | B35: =VLOOKUP(ЛИСТ!H41,Таблица3[[#All],[Столбец28]:[Столбец30]],2,0) ->  | C35: =CONCATENATE(ЛИСТ!C41,"х",ЛИСТ!D41,"х",ЛИСТ!G41) -> хх | D35: =ЛИСТ!$H$6 -> 80 | E35: =ЛИСТ!E41 -> 0 | F35: =ЛИСТ!J41 -> 0 | H35: =ЛИСТ!L41 -> 
A36: =IF(ЛИСТ!J42=0,"z","") -> z | B36: =VLOOKUP(ЛИСТ!H42,Таблица3[[#All],[Столбец28]:[Столбец30]],2,0) ->  | C36: =CONCATENATE(ЛИСТ!C42,"х",ЛИСТ!D42,"х",ЛИСТ!G42) -> хх | D36: =ЛИСТ!$H$6 -> 80 | E36: =ЛИСТ!E42 -> 0 | F36: =ЛИСТ!J42 -> 0 | H36: =ЛИСТ!L42 -> 
A37: =IF(ЛИСТ!J43=0,"z","") -> z | B37: =VLOOKUP(ЛИСТ!H43,Таблица3[[#All],[Столбец28]:[Столбец30]],2,0) ->  | C37: =CONCATENATE(ЛИСТ!C43,"х",ЛИСТ!D43,"х",ЛИСТ!G43) -> хх | D37: =ЛИСТ!$H$6 -> 80 | E37: =ЛИСТ!E43 -> 0 | F37: =ЛИСТ!J43 -> 0 | H37: =ЛИСТ!L43 -> 
A38: =IF(ЛИСТ!J44=0,"z","") -> z | B38: =VLOOKUP(ЛИСТ!H44,Таблица3[[#All],[Столбец28]:[Столбец30]],2,0) ->  | C38: =CONCATENATE(ЛИСТ!C44,"х",ЛИСТ!D44,"х",ЛИСТ!G44) -> хх | D38: =ЛИСТ!$H$6 -> 80 | E38: =ЛИСТ!E44 -> 0 | F38: =ЛИСТ!J44 -> 0 | H38: =ЛИСТ!L44 -> 
A39: =IF(ЛИСТ!J45=0,"z","") -> z | B39: =VLOOKUP(ЛИСТ!H45,Таблица3[[#All],[Столбец28]:[Столбец30]],2,0) ->  | C39: =CONCATENATE(ЛИСТ!C45,"х",ЛИСТ!D45,"х",ЛИСТ!G45) -> хх | D39: =ЛИСТ!$H$6 -> 80 | E39: =ЛИСТ!E45 -> 0 | F39: =ЛИСТ!J45 -> 0 | H39: =ЛИСТ!L45 -> 
A40: =IF(ЛИСТ!J46=0,"z","") -> z | B40: =VLOOKUP(ЛИСТ!H46,Таблица3[[#All],[Столбец28]:[Столбец30]],2,0) ->  | C40: =CONCATENATE(ЛИСТ!C46,"х",ЛИСТ!D46,"х",ЛИСТ!G46) -> хх | D40: =ЛИСТ!$H$6 -> 80 | E40: =ЛИСТ!E46 -> 0 | F40: =ЛИСТ!J46 -> 0 | H40: =ЛИСТ!L46 -> 
A41: =IF(ЛИСТ!J47=0,"z","") -> z | B41: =VLOOKUP(ЛИСТ!H47,Таблица3[[#All],[Столбец28]:[Столбец30]],2,0) ->  | C41: =CONCATENATE(ЛИСТ!C47,"х",ЛИСТ!D47,"х",ЛИСТ!G47) -> хх | D41: =ЛИСТ!$H$6 -> 80 | E41: =ЛИСТ!E47 -> 0 | F41: =ЛИСТ!J47 -> 0 | H41: =ЛИСТ!L47 -> 
A42: =IF(ЛИСТ!J48=0,"z","") -> z | B42: =VLOOKUP(ЛИСТ!H48,Таблица3[[#All],[Столбец28]:[Столбец30]],2,0) ->  | C42: =CONCATENATE(ЛИСТ!C48,"х",ЛИСТ!D48,"х",ЛИСТ!G48) -> хх | D42: =ЛИСТ!$H$6 -> 80 | E42: =ЛИСТ!E48 -> 0 | F42: =ЛИСТ!J48 -> 0 | H42: =ЛИСТ!L48 -> 
A43: =IF(ЛИСТ!J49=0,"z","") -> z | B43: =VLOOKUP(ЛИСТ!H49,Таблица3[[#All],[Столбец28]:[Столбец30]],2,0) ->  | C43: =CONCATENATE(ЛИСТ!C49,"х",ЛИСТ!D49,"х",ЛИСТ!G49) -> хх | D43: =ЛИСТ!$H$6 -> 80 | E43: =ЛИСТ!E49 -> 0 | F43: =ЛИСТ!J49 -> 0 | H43: =ЛИСТ!L49 -> 
A44: =IF(ЛИСТ!J50=0,"z","") -> z | B44: =VLOOKUP(ЛИСТ!H50,Таблица3[[#All],[Столбец28]:[Столбец30]],2,0) ->  | C44: =CONCATENATE(ЛИСТ!C50,"х",ЛИСТ!D50,"х",ЛИСТ!G50) -> хх | D44: =ЛИСТ!$H$6 -> 80 | E44: =ЛИСТ!E50 -> 0 | F44: =ЛИСТ!J50 -> 0 | H44: =ЛИСТ!L50 -> 
A45: =IF(ЛИСТ!J51=0,"z","") -> z | B45: =VLOOKUP(ЛИСТ!H51,Таблица3[[#All],[Столбец28]:[Столбец30]],2,0) ->  | C45: =CONCATENATE(ЛИСТ!C51,"х",ЛИСТ!D51,"х",ЛИСТ!G51) -> хх | D45: =ЛИСТ!$H$6 -> 80 | E45: =ЛИСТ!E51 -> 0 | F45: =ЛИСТ!J51 -> 0 | H45: =ЛИСТ!L51 -> 
A46: =IF(ЛИСТ!J52=0,"z","") -> z | B46: =VLOOKUP(ЛИСТ!H52,Таблица3[[#All],[Столбец28]:[Столбец30]],2,0) ->  | C46: =CONCATENATE(ЛИСТ!C52,"х",ЛИСТ!D52,"х",ЛИСТ!G52) -> хх | D46: =ЛИСТ!$H$6 -> 80 | E46: =ЛИСТ!E52 -> 0 | F46: =ЛИСТ!J52 -> 0 | H46: =ЛИСТ!L52 -> 
A47: =IF(ЛИСТ!J53=0,"z","") -> z | B47: =VLOOKUP(ЛИСТ!H53,Таблица3[[#All],[Столбец28]:[Столбец30]],2,0) ->  | C47: =CONCATENATE(ЛИСТ!C53,"х",ЛИСТ!D53,"х",ЛИСТ!G53) -> хх | D47: =ЛИСТ!$H$6 -> 80 | E47: =ЛИСТ!E53 -> 0 | F47: =ЛИСТ!J53 -> 0 | H47: =ЛИСТ!L53 -> 
A48: =IF(ЛИСТ!J54=0,"z","") -> z | B48: =VLOOKUP(ЛИСТ!H54,Таблица3[[#All],[Столбец28]:[Столбец30]],2,0) ->  | C48: =CONCATENATE(ЛИСТ!C54,"х",ЛИСТ!D54,"х",ЛИСТ!G54) -> хх | D48: =ЛИСТ!$H$6 -> 80 | E48: =ЛИСТ!E54 -> 0 | F48: =ЛИСТ!J54 -> 0 | H48: =ЛИСТ!L54 -> 
A49: =IF(ЛИСТ!J55=0,"z","") -> z | B49: =VLOOKUP(ЛИСТ!H55,Таблица3[[#All],[Столбец28]:[Столбец30]],2,0) ->  | C49: =CONCATENATE(ЛИСТ!C55,"х",ЛИСТ!D55,"х",ЛИСТ!G55) -> хх | D49: =ЛИСТ!$H$6 -> 80 | E49: =ЛИСТ!E55 -> 0 | F49: =ЛИСТ!J55 -> 0 | H49: =ЛИСТ!L55 -> 
A50: =IF(ЛИСТ!J56=0,"z","") -> z | B50: =VLOOKUP(ЛИСТ!H56,Таблица3[[#All],[Столбец28]:[Столбец30]],2,0) ->  | C50: =CONCATENATE(ЛИСТ!C56,"х",ЛИСТ!D56,"х",ЛИСТ!G56) -> хх | D50: =ЛИСТ!$H$6 -> 80 | E50: =ЛИСТ!E56 -> 0 | F50: =ЛИСТ!J56 -> 0 | H50: =ЛИСТ!L56 -> 
A51: =IF(ЛИСТ!J57=0,"z","") -> z | B51: =VLOOKUP(ЛИСТ!H57,Таблица3[[#All],[Столбец28]:[Столбец30]],2,0) ->  | C51: =CONCATENATE(ЛИСТ!C57,"х",ЛИСТ!D57,"х",ЛИСТ!G57) -> хх | D51: =ЛИСТ!$H$6 -> 80 | E51: =ЛИСТ!E57 -> 0 | F51: =ЛИСТ!J57 -> 0 | H51: =ЛИСТ!L57 -> 

Sheet Д-проволока
D1: план | E1: на1кт | F1: кол.на.пл | G1: вес1кт | H1: вес.план
A2: =ПРОВОЛОКА!A10 -> 2д | B2: =IF(E2=0,"z","Проволока") -> Проволока | C2: =CONCATENATE(ПРОВОЛОКА!B10,ПРОВОЛОКА!C10) -> Ø8,0х1000 | D2: =ПРОВОЛОКА!E10 -> 1500 | E2: =ПРОВОЛОКА!I10 -> 1 | F2: =ПРОВОЛОКА!J10 -> 1500 | G2: =ПРОВОЛОКА!N10 -> 0.39188 | H2: =ПРОВОЛОКА!R10 -> 587.82
A3: =ПРОВОЛОКА!A11 -> гиб | B3: =IF(E3=0,"z","Проволока") -> Проволока | C3: =CONCATENATE(ПРОВОЛОКА!B11,ПРОВОЛОКА!C11) -> Ø8,0х100 | D3: =ПРОВОЛОКА!E11 -> 1500 | E3: =ПРОВОЛОКА!I11 -> 5 | F3: =ПРОВОЛОКА!J11 -> 7500 | G3: =ПРОВОЛОКА!N11 -> 0.2231 | H3: =ПРОВОЛОКА!R11 -> 334.65
A4: =ПРОВОЛОКА!A12 -> z | B4: z | C4: =CONCATENATE(ПРОВОЛОКА!B12,ПРОВОЛОКА!C12) -> Ø8,0х | D4: =ПРОВОЛОКА!E12 -> 1500 | E4: =ПРОВОЛОКА!I12 -> 0 | F4: =ПРОВОЛОКА!J12 -> 0 | G4: =ПРОВОЛОКА!N12 -> 0 | H4: =ПРОВОЛОКА!R12 -> 0
A5: =ПРОВОЛОКА!A13 -> z | B5: z | C5: =CONCATENATE(ПРОВОЛОКА!B13,ПРОВОЛОКА!C13) -> Ø8,0х | D5: =ПРОВОЛОКА!E13 -> 1500 | E5: =ПРОВОЛОКА!I13 -> 0 | F5: =ПРОВОЛОКА!J13 -> 0 | G5: =ПРОВОЛОКА!N13 -> 0 | H5: =ПРОВОЛОКА!R13 -> 0
A6: =ПРОВОЛОКА!A14 -> z | B6: z | C6: =CONCATENATE(ПРОВОЛОКА!B14,ПРОВОЛОКА!C14) -> Ø8,0х | D6: =ПРОВОЛОКА!E14 -> 1500 | E6: =ПРОВОЛОКА!I14 -> 0 | F6: =ПРОВОЛОКА!J14 -> 0 | G6: =ПРОВОЛОКА!N14 -> 0 | H6: =ПРОВОЛОКА!R14 -> 0
A7: z | B7: z | C7: =CONCATENATE(ПРОВОЛОКА!B15,ПРОВОЛОКА!C15) ->  | D7: =ПРОВОЛОКА!E15 -> 0 | E7: =ПРОВОЛОКА!I15 -> 0 | F7: =ПРОВОЛОКА!J15 -> 0 | G7: =ПРОВОЛОКА!N15 -> 0.61498 | H7: =ПРОВОЛОКА!R15 -> 922.47
A8: =ПРОВОЛОКА!A16 -> z | B8: z | C8: =CONCATENATE(ПРОВОЛОКА!B16,ПРОВОЛОКА!C16) -> Ø6,0х | D8: =ПРОВОЛОКА!E16 -> 1500 | E8: =ПРОВОЛОКА!I16 -> 0 | F8: =ПРОВОЛОКА!J16 -> 0 | G8: =ПРОВОЛОКА!N16 -> 0 | H8: =ПРОВОЛОКА!R16 -> 0
A9: =ПРОВОЛОКА!A17 -> z | B9: z | C9: =CONCATENATE(ПРОВОЛОКА!B17,ПРОВОЛОКА!C17) -> Ø6,0х | D9: =ПРОВОЛОКА!E17 -> 1500 | E9: =ПРОВОЛОКА!I17 -> 0 | F9: =ПРОВОЛОКА!J17 -> 0 | G9: =ПРОВОЛОКА!N17 -> 0 | H9: =ПРОВОЛОКА!R17 -> 0
A10: =ПРОВОЛОКА!A18 -> z | B10: z | C10: =CONCATENATE(ПРОВОЛОКА!B18,ПРОВОЛОКА!C18) -> Ø6,0х | D10: =ПРОВОЛОКА!E18 -> 1500 | E10: =ПРОВОЛОКА!I18 -> 0 | F10: =ПРОВОЛОКА!J18 -> 0 | G10: =ПРОВОЛОКА!N18 -> 0 | H10: =ПРОВОЛОКА!R18 -> 0
A11: =ПРОВОЛОКА!A19 -> z | B11: z | C11: =CONCATENATE(ПРОВОЛОКА!B19,ПРОВОЛОКА!C19) -> Ø6,0х | D11: =ПРОВОЛОКА!E19 -> 1500 | E11: =ПРОВОЛОКА!I19 -> 0 | F11: =ПРОВОЛОКА!J19 -> 0 | G11: =ПРОВОЛОКА!N19 -> 0 | H11: =ПРОВОЛОКА!R19 -> 0
A12: =ПРОВОЛОКА!A20 -> z | B12: z | C12: =CONCATENATE(ПРОВОЛОКА!B20,ПРОВОЛОКА!C20) -> Ø6,0х | D12: =ПРОВОЛОКА!E20 -> 1500 | E12: =ПРОВОЛОКА!I20 -> 0 | F12: =ПРОВОЛОКА!J20 -> 0 | G12: =ПРОВОЛОКА!N20 -> 0 | H12: =ПРОВОЛОКА!R20 -> 0
A13: z | B13: z | C13: =CONCATENATE(ПРОВОЛОКА!B21,ПРОВОЛОКА!C21) ->  | D13: =ПРОВОЛОКА!E21 -> 0 | E13: =ПРОВОЛОКА!I21 -> 0 | F13: =ПРОВОЛОКА!J21 -> 0 | G13: =ПРОВОЛОКА!N21 -> 0 | H13: =ПРОВОЛОКА!R21 -> 0
A14: =ПРОВОЛОКА!A22 -> z | B14: z | C14: =CONCATENATE(ПРОВОЛОКА!B22,ПРОВОЛОКА!C22) -> Ø5,0х | D14: =ПРОВОЛОКА!E22 -> 1500 | E14: =ПРОВОЛОКА!I22 -> 0 | F14: =ПРОВОЛОКА!J22 -> 0 | G14: =ПРОВОЛОКА!N22 -> 0 | H14: =ПРОВОЛОКА!R22 -> 0
A15: =ПРОВОЛОКА!A23 -> z | B15: z | C15: =CONCATENATE(ПРОВОЛОКА!B23,ПРОВОЛОКА!C23) -> Ø5,0х | D15: =ПРОВОЛОКА!E23 -> 1500 | E15: =ПРОВОЛОКА!I23 -> 0 | F15: =ПРОВОЛОКА!J23 -> 0 | G15: =ПРОВОЛОКА!N23 -> 0 | H15: =ПРОВОЛОКА!R23 -> 0
A16: =ПРОВОЛОКА!A24 -> z | B16: z | C16: =CONCATENATE(ПРОВОЛОКА!B24,ПРОВОЛОКА!C24) -> Ø5,0х | D16: =ПРОВОЛОКА!E24 -> 1500 | E16: =ПРОВОЛОКА!I24 -> 0 | F16: =ПРОВОЛОКА!J24 -> 0 | G16: =ПРОВОЛОКА!N24 -> 0 | H16: =ПРОВОЛОКА!R24 -> 0
A17: =ПРОВОЛОКА!A25 -> z | B17: z | C17: =CONCATENATE(ПРОВОЛОКА!B25,ПРОВОЛОКА!C25) -> Ø5,0х | D17: =ПРОВОЛОКА!E25 -> 1500 | E17: =ПРОВОЛОКА!I25 -> 0 | F17: =ПРОВОЛОКА!J25 -> 0 | G17: =ПРОВОЛОКА!N25 -> 0 | H17: =ПРОВОЛОКА!R25 -> 0
A18: =ПРОВОЛОКА!A26 -> z | B18: z | C18: =CONCATENATE(ПРОВОЛОКА!B26,ПРОВОЛОКА!C26) -> Ø5,0х | D18: =ПРОВОЛОКА!E26 -> 1500 | E18: =ПРОВОЛОКА!I26 -> 0 | F18: =ПРОВОЛОКА!J26 -> 0 | G18: =ПРОВОЛОКА!N26 -> 0 | H18: =ПРОВОЛОКА!R26 -> 0
A19: =ПРОВОЛОКА!A27 -> z | B19: z | C19: =CONCATENATE(ПРОВОЛОКА!B27,ПРОВОЛОКА!C27) -> Ø5,0х | D19: =ПРОВОЛОКА!E27 -> 1500 | E19: =ПРОВОЛОКА!I27 -> 0 | F19: =ПРОВОЛОКА!J27 -> 0 | G19: =ПРОВОЛОКА!N27 -> 0 | H19: =ПРОВОЛОКА!R27 -> 0
A20: =ПРОВОЛОКА!A28 -> z | B20: z | C20: =CONCATENATE(ПРОВОЛОКА!B28,ПРОВОЛОКА!C28) -> Ø5,0х | D20: =ПРОВОЛОКА!E28 -> 1500 | E20: =ПРОВОЛОКА!I28 -> 0 | F20: =ПРОВОЛОКА!J28 -> 0 | G20: =ПРОВОЛОКА!N28 -> 0 | H20: =ПРОВОЛОКА!R28 -> 0
A21: =ПРОВОЛОКА!A29 -> z | B21: z | C21: =CONCATENATE(ПРОВОЛОКА!B29,ПРОВОЛОКА!C29) -> Ø5,0х | D21: =ПРОВОЛОКА!E29 -> 1500 | E21: =ПРОВОЛОКА!I29 -> 0 | F21: =ПРОВОЛОКА!J29 -> 0 | G21: =ПРОВОЛОКА!N29 -> 0 | H21: =ПРОВОЛОКА!R29 -> 0
A22: z | B22: z | C22: =CONCATENATE(ПРОВОЛОКА!B30,ПРОВОЛОКА!C30) ->  | D22: =ПРОВОЛОКА!E30 -> 0 | E22: =ПРОВОЛОКА!I30 -> 0 | F22: =ПРОВОЛОКА!J30 -> 0 | G22: =ПРОВОЛОКА!N30 -> 0 | H22: =ПРОВОЛОКА!R30 -> 0
A23: =ПРОВОЛОКА!A31 -> z | B23: z | C23: =CONCATENATE(ПРОВОЛОКА!B31,ПРОВОЛОКА!C31) -> Ø4,0х | D23: =ПРОВОЛОКА!E31 -> 1500 | E23: =ПРОВОЛОКА!I31 -> 0 | F23: =ПРОВОЛОКА!J31 -> 0 | G23: =ПРОВОЛОКА!N31 -> 0 | H23: =ПРОВОЛОКА!R31 -> 0
A24: =ПРОВОЛОКА!A32 -> z | B24: z | C24: =CONCATENATE(ПРОВОЛОКА!B32,ПРОВОЛОКА!C32) -> Ø4,0х | D24: =ПРОВОЛОКА!E32 -> 1500 | E24: =ПРОВОЛОКА!I32 -> 0 | F24: =ПРОВОЛОКА!J32 -> 0 | G24: =ПРОВОЛОКА!N32 -> 0 | H24: =ПРОВОЛОКА!R32 -> 0
A25: =ПРОВОЛОКА!A33 -> z | B25: z | C25: =CONCATENATE(ПРОВОЛОКА!B33,ПРОВОЛОКА!C33) -> Ø4,0х | D25: =ПРОВОЛОКА!E33 -> 1500 | E25: =ПРОВОЛОКА!I33 -> 0 | F25: =ПРОВОЛОКА!J33 -> 0 | G25: =ПРОВОЛОКА!N33 -> 0 | H25: =ПРОВОЛОКА!R33 -> 0
A26: =ПРОВОЛОКА!A34 -> z | B26: z | C26: =CONCATENATE(ПРОВОЛОКА!B34,ПРОВОЛОКА!C34) -> Ø4,0х | D26: =ПРОВОЛОКА!E34 -> 1500 | E26: =ПРОВОЛОКА!I34 -> 0 | F26: =ПРОВОЛОКА!J34 -> 0 | G26: =ПРОВОЛОКА!N34 -> 0 | H26: =ПРОВОЛОКА!R34 -> 0
A27: =ПРОВОЛОКА!A35 -> z | B27: z | C27: =CONCATENATE(ПРОВОЛОКА!B35,ПРОВОЛОКА!C35) -> Ø4,0х | D27: =ПРОВОЛОКА!E35 -> 1500 | E27: =ПРОВОЛОКА!I35 -> 0 | F27: =ПРОВОЛОКА!J35 -> 0 | G27: =ПРОВОЛОКА!N35 -> 0 | H27: =ПРОВОЛОКА!R35 -> 0
A28: =ПРОВОЛОКА!A36 -> z | B28: z | C28: =CONCATENATE(ПРОВОЛОКА!B36,ПРОВОЛОКА!C36) -> Ø4,0х | D28: =ПРОВОЛОКА!E36 -> 1500 | E28: =ПРОВОЛОКА!I36 -> 0 | F28: =ПРОВОЛОКА!J36 -> 0 | G28: =ПРОВОЛОКА!N36 -> 0 | H28: =ПРОВОЛОКА!R36 -> 0
A29: =ПРОВОЛОКА!A37 -> z | B29: z | C29: =CONCATENATE(ПРОВОЛОКА!B37,ПРОВОЛОКА!C37) -> Ø4,0х | D29: =ПРОВОЛОКА!E37 -> 1500 | E29: =ПРОВОЛОКА!I37 -> 0 | F29: =ПРОВОЛОКА!J37 -> 0 | G29: =ПРОВОЛОКА!N37 -> 0 | H29: =ПРОВОЛОКА!R37 -> 0
A30: =ПРОВОЛОКА!A38 -> z | B30: z | C30: =CONCATENATE(ПРОВОЛОКА!B38,ПРОВОЛОКА!C38) -> Ø4,0х | D30: =ПРОВОЛОКА!E38 -> 1500 | E30: =ПРОВОЛОКА!I38 -> 0 | F30: =ПРОВОЛОКА!J38 -> 0 | G30: =ПРОВОЛОКА!N38 -> 0 | H30: =ПРОВОЛОКА!R38 -> 0
A31: =ПРОВОЛОКА!A39 -> z | B31: z | C31: =CONCATENATE(ПРОВОЛОКА!B39,ПРОВОЛОКА!C39) -> Ø4,0х | D31: =ПРОВОЛОКА!E39 -> 1500 | E31: =ПРОВОЛОКА!I39 -> 0 | F31: =ПРОВОЛОКА!J39 -> 0 | G31: =ПРОВОЛОКА!N39 -> 0 | H31: =ПРОВОЛОКА!R39 -> 0
A32: =ПРОВОЛОКА!A40 -> z | B32: z | C32: =CONCATENATE(ПРОВОЛОКА!B40,ПРОВОЛОКА!C40) -> Ø4,0х | D32: =ПРОВОЛОКА!E40 -> 1500 | E32: =ПРОВОЛОКА!I40 -> 0 | F32: =ПРОВОЛОКА!J40 -> 0 | G32: =ПРОВОЛОКА!N40 -> 0 | H32: =ПРОВОЛОКА!R40 -> 0
A33: z | B33: z | C33: =CONCATENATE(ПРОВОЛОКА!B41,ПРОВОЛОКА!C41) ->  | D33: =ПРОВОЛОКА!E41 -> 0 | E33: =ПРОВОЛОКА!I41 -> 0 | F33: =ПРОВОЛОКА!J41 -> 0 | G33: =ПРОВОЛОКА!N41 -> 0 | H33: =ПРОВОЛОКА!R41 -> 0
A34: =ПРОВОЛОКА!A42 -> z | B34: z | C34: =CONCATENATE(ПРОВОЛОКА!B42,ПРОВОЛОКА!C42) -> Ø3,5х | D34: =ПРОВОЛОКА!E42 -> 1500 | E34: =ПРОВОЛОКА!I42 -> 0 | F34: =ПРОВОЛОКА!J42 -> 0 | G34: =ПРОВОЛОКА!N42 -> 0 | H34: =ПРОВОЛОКА!R42 -> 0
A35: =ПРОВОЛОКА!A43 -> z | B35: z | C35: =CONCATENATE(ПРОВОЛОКА!B43,ПРОВОЛОКА!C43) -> Ø3,5х | D35: =ПРОВОЛОКА!E43 -> 1500 | E35: =ПРОВОЛОКА!I43 -> 0 | F35: =ПРОВОЛОКА!J43 -> 0 | G35: =ПРОВОЛОКА!N43 -> 0 | H35: =ПРОВОЛОКА!R43 -> 0
A36: =ПРОВОЛОКА!A44 -> z | B36: z | C36: =CONCATENATE(ПРОВОЛОКА!B44,ПРОВОЛОКА!C44) -> Ø3,5х | D36: =ПРОВОЛОКА!E44 -> 1500 | E36: =ПРОВОЛОКА!I44 -> 0 | F36: =ПРОВОЛОКА!J44 -> 0 | G36: =ПРОВОЛОКА!N44 -> 0 | H36: =ПРОВОЛОКА!R44 -> 0
A37: =ПРОВОЛОКА!A45 -> z | B37: z | C37: =CONCATENATE(ПРОВОЛОКА!B45,ПРОВОЛОКА!C45) -> Ø3,5х | D37: =ПРОВОЛОКА!E45 -> 1500 | E37: =ПРОВОЛОКА!I45 -> 0 | F37: =ПРОВОЛОКА!J45 -> 0 | G37: =ПРОВОЛОКА!N45 -> 0 | H37: =ПРОВОЛОКА!R45 -> 0
A38: =ПРОВОЛОКА!A46 -> z | B38: z | C38: =CONCATENATE(ПРОВОЛОКА!B46,ПРОВОЛОКА!C46) -> Ø3,5х | D38: =ПРОВОЛОКА!E46 -> 1500 | E38: =ПРОВОЛОКА!I46 -> 0 | F38: =ПРОВОЛОКА!J46 -> 0 | G38: =ПРОВОЛОКА!N46 -> 0 | H38: =ПРОВОЛОКА!R46 -> 0
A39: =ПРОВОЛОКА!A47 -> z | B39: z | C39: =CONCATENATE(ПРОВОЛОКА!B47,ПРОВОЛОКА!C47) -> Ø3,5х | D39: =ПРОВОЛОКА!E47 -> 1500 | E39: =ПРОВОЛОКА!I47 -> 0 | F39: =ПРОВОЛОКА!J47 -> 0 | G39: =ПРОВОЛОКА!N47 -> 0 | H39: =ПРОВОЛОКА!R47 -> 0
A40: =ПРОВОЛОКА!A48 -> z | B40: z | C40: =CONCATENATE(ПРОВОЛОКА!B48,ПРОВОЛОКА!C48) -> Ø3,5х | D40: =ПРОВОЛОКА!E48 -> 1500 | E40: =ПРОВОЛОКА!I48 -> 0 | F40: =ПРОВОЛОКА!J48 -> 0 | G40: =ПРОВОЛОКА!N48 -> 0 | H40: =ПРОВОЛОКА!R48 -> 0
A41: =ПРОВОЛОКА!A49 -> z | B41: z | C41: =CONCATENATE(ПРОВОЛОКА!B49,ПРОВОЛОКА!C49) -> Ø3,5х | D41: =ПРОВОЛОКА!E49 -> 1500 | E41: =ПРОВОЛОКА!I49 -> 0 | F41: =ПРОВОЛОКА!J49 -> 0 | G41: =ПРОВОЛОКА!N49 -> 0 | H41: =ПРОВОЛОКА!R49 -> 0
A42: =ПРОВОЛОКА!A50 -> z | B42: z | C42: =CONCATENATE(ПРОВОЛОКА!B50,ПРОВОЛОКА!C50) -> Ø3,5х | D42: =ПРОВОЛОКА!E50 -> 1500 | E42: =ПРОВОЛОКА!I50 -> 0 | F42: =ПРОВОЛОКА!J50 -> 0 | G42: =ПРОВОЛОКА!N50 -> 0 | H42: =ПРОВОЛОКА!R50 -> 0
A43: =ПРОВОЛОКА!A51 -> z | B43: z | C43: =CONCATENATE(ПРОВОЛОКА!B51,ПРОВОЛОКА!C51) -> Ø3,5х | D43: =ПРОВОЛОКА!E51 -> 1500 | E43: =ПРОВОЛОКА!I51 -> 0 | F43: =ПРОВОЛОКА!J51 -> 0 | G43: =ПРОВОЛОКА!N51 -> 0 | H43: =ПРОВОЛОКА!R51 -> 0
A44: z | B44: z | C44: =CONCATENATE(ПРОВОЛОКА!B52,ПРОВОЛОКА!C52) ->  | D44: =ПРОВОЛОКА!E52 -> 0 | E44: =ПРОВОЛОКА!I52 -> 0 | F44: =ПРОВОЛОКА!J52 -> 0 | G44: =ПРОВОЛОКА!N52 -> 0 | H44: =ПРОВОЛОКА!R52 -> 0
A45: =ПРОВОЛОКА!A53 -> z | B45: z | C45: =CONCATENATE(ПРОВОЛОКА!B53,ПРОВОЛОКА!C53) -> Ø3,0х | D45: =ПРОВОЛОКА!E53 -> 1500 | E45: =ПРОВОЛОКА!I53 -> 0 | F45: =ПРОВОЛОКА!J53 -> 0 | G45: =ПРОВОЛОКА!N53 -> 0 | H45: =ПРОВОЛОКА!R53 -> 0
A46: =ПРОВОЛОКА!A54 -> z | B46: z | C46: =CONCATENATE(ПРОВОЛОКА!B54,ПРОВОЛОКА!C54) -> Ø3,0х | D46: =ПРОВОЛОКА!E54 -> 1500 | E46: =ПРОВОЛОКА!I54 -> 0 | F46: =ПРОВОЛОКА!J54 -> 0 | G46: =ПРОВОЛОКА!N54 -> 0 | H46: =ПРОВОЛОКА!R54 -> 0
A47: =ПРОВОЛОКА!A55 -> z | B47: z | C47: =CONCATENATE(ПРОВОЛОКА!B55,ПРОВОЛОКА!C55) -> Ø3,0х | D47: =ПРОВОЛОКА!E55 -> 1500 | E47: =ПРОВОЛОКА!I55 -> 0 | F47: =ПРОВОЛОКА!J55 -> 0 | G47: =ПРОВОЛОКА!N55 -> 0 | H47: =ПРОВОЛОКА!R55 -> 0
A48: =ПРОВОЛОКА!A56 -> z | B48: z | C48: =CONCATENATE(ПРОВОЛОКА!B56,ПРОВОЛОКА!C56) -> Ø3,0х | D48: =ПРОВОЛОКА!E56 -> 1500 | E48: =ПРОВОЛОКА!I56 -> 0 | F48: =ПРОВОЛОКА!J56 -> 0 | G48: =ПРОВОЛОКА!N56 -> 0 | H48: =ПРОВОЛОКА!R56 -> 0
A49: =ПРОВОЛОКА!A57 -> z | B49: z | C49: =CONCATENATE(ПРОВОЛОКА!B57,ПРОВОЛОКА!C57) -> Ø3,0х | D49: =ПРОВОЛОКА!E57 -> 1500 | E49: =ПРОВОЛОКА!I57 -> 0 | F49: =ПРОВОЛОКА!J57 -> 0 | G49: =ПРОВОЛОКА!N57 -> 0 | H49: =ПРОВОЛОКА!R57 -> 0
A50: =ПРОВОЛОКА!A58 -> z | B50: z | C50: =CONCATENATE(ПРОВОЛОКА!B58,ПРОВОЛОКА!C58) -> Ø3,0х | D50: =ПРОВОЛОКА!E58 -> 1500 | E50: =ПРОВОЛОКА!I58 -> 0 | F50: =ПРОВОЛОКА!J58 -> 0 | G50: =ПРОВОЛОКА!N58 -> 0 | H50: =ПРОВОЛОКА!R58 -> 0
A51: =ПРОВОЛОКА!A59 -> z | B51: z | C51: =CONCATENATE(ПРОВОЛОКА!B59,ПРОВОЛОКА!C59) -> Ø3,0х | D51: =ПРОВОЛОКА!E59 -> 1500 | E51: =ПРОВОЛОКА!I59 -> 0 | F51: =ПРОВОЛОКА!J59 -> 0 | G51: =ПРОВОЛОКА!N59 -> 0 | H51: =ПРОВОЛОКА!R59 -> 0
A52: =ПРОВОЛОКА!A60 -> z | B52: z | C52: =CONCATENATE(ПРОВОЛОКА!B60,ПРОВОЛОКА!C60) -> Ø3,0х | D52: =ПРОВОЛОКА!E60 -> 1500 | E52: =ПРОВОЛОКА!I60 -> 0 | F52: =ПРОВОЛОКА!J60 -> 0 | G52: =ПРОВОЛОКА!N60 -> 0 | H52: =ПРОВОЛОКА!R60 -> 0
A53: =ПРОВОЛОКА!A61 -> z | B53: z | C53: =CONCATENATE(ПРОВОЛОКА!B61,ПРОВОЛОКА!C61) -> Ø3,0х | D53: =ПРОВОЛОКА!E61 -> 1500 | E53: =ПРОВОЛОКА!I61 -> 0 | F53: =ПРОВОЛОКА!J61 -> 0 | G53: =ПРОВОЛОКА!N61 -> 0 | H53: =ПРОВОЛОКА!R61 -> 0
A54: =ПРОВОЛОКА!A62 -> z | B54: z | C54: =CONCATENATE(ПРОВОЛОКА!B62,ПРОВОЛОКА!C62) -> Ø3,0х | D54: =ПРОВОЛОКА!E62 -> 1500 | E54: =ПРОВОЛОКА!I62 -> 0 | F54: =ПРОВОЛОКА!J62 -> 0 | G54: =ПРОВОЛОКА!N62 -> 0 | H54: =ПРОВОЛОКА!R62 -> 0
A55: z | B55: z | C55: =CONCATENATE(ПРОВОЛОКА!B63,ПРОВОЛОКА!C63) ->  | D55: =ПРОВОЛОКА!E63 -> 0 | E55: =ПРОВОЛОКА!I63 -> 0 | F55: =ПРОВОЛОКА!J63 -> 0 | G55: =ПРОВОЛОКА!N63 -> 0 | H55: =ПРОВОЛОКА!R63 -> 0
A56: =ПРОВОЛОКА!A64 -> z | B56: z | C56: =CONCATENATE(ПРОВОЛОКА!B64,ПРОВОЛОКА!C64) -> Ø2,5х | D56: =ПРОВОЛОКА!E64 -> 1500 | E56: =ПРОВОЛОКА!I64 -> 0 | F56: =ПРОВОЛОКА!J64 -> 0 | G56: =ПРОВОЛОКА!N64 -> 0 | H56: =ПРОВОЛОКА!R64 -> 0
A57: =ПРОВОЛОКА!A65 -> z | B57: z | C57: =CONCATENATE(ПРОВОЛОКА!B65,ПРОВОЛОКА!C65) -> Ø2,5х | D57: =ПРОВОЛОКА!E65 -> 1500 | E57: =ПРОВОЛОКА!I65 -> 0 | F57: =ПРОВОЛОКА!J65 -> 0 | G57: =ПРОВОЛОКА!N65 -> 0 | H57: =ПРОВОЛОКА!R65 -> 0
A58: =ПРОВОЛОКА!A66 -> z | B58: z | C58: =CONCATENATE(ПРОВОЛОКА!B66,ПРОВОЛОКА!C66) -> Ø2,5х | D58: =ПРОВОЛОКА!E66 -> 1500 | E58: =ПРОВОЛОКА!I66 -> 0 | F58: =ПРОВОЛОКА!J66 -> 0 | G58: =ПРОВОЛОКА!N66 -> 0 | H58: =ПРОВОЛОКА!R66 -> 0
A59: =ПРОВОЛОКА!A67 -> z | B59: z | C59: =CONCATENATE(ПРОВОЛОКА!B67,ПРОВОЛОКА!C67) -> Ø2,5х | D59: =ПРОВОЛОКА!E67 -> 1500 | E59: =ПРОВОЛОКА!I67 -> 0 | F59: =ПРОВОЛОКА!J67 -> 0 | G59: =ПРОВОЛОКА!N67 -> 0 | H59: =ПРОВОЛОКА!R67 -> 0
A60: =ПРОВОЛОКА!A68 -> z | B60: z | C60: =CONCATENATE(ПРОВОЛОКА!B68,ПРОВОЛОКА!C68) -> Ø2,5х | D60: =ПРОВОЛОКА!E68 -> 1500 | E60: =ПРОВОЛОКА!I68 -> 0 | F60: =ПРОВОЛОКА!J68 -> 0 | G60: =ПРОВОЛОКА!N68 -> 0 | H60: =ПРОВОЛОКА!R68 -> 0
A61: =ПРОВОЛОКА!A69 -> z | B61: z | C61: =CONCATENATE(ПРОВОЛОКА!B69,ПРОВОЛОКА!C69) -> Ø2,5х | D61: =ПРОВОЛОКА!E69 -> 1500 | E61: =ПРОВОЛОКА!I69 -> 0 | F61: =ПРОВОЛОКА!J69 -> 0 | G61: =ПРОВОЛОКА!N69 -> 0 | H61: =ПРОВОЛОКА!R69 -> 0
A62: =ПРОВОЛОКА!A70 -> z | B62: z | C62: =CONCATENATE(ПРОВОЛОКА!B70,ПРОВОЛОКА!C70) -> Ø2,5х | D62: =ПРОВОЛОКА!E70 -> 1500 | E62: =ПРОВОЛОКА!I70 -> 0 | F62: =ПРОВОЛОКА!J70 -> 0 | G62: =ПРОВОЛОКА!N70 -> 0 | H62: =ПРОВОЛОКА!R70 -> 0
A63: =ПРОВОЛОКА!A71 -> z | B63: z | C63: =CONCATENATE(ПРОВОЛОКА!B71,ПРОВОЛОКА!C71) -> Ø2,5х | D63: =ПРОВОЛОКА!E71 -> 1500 | E63: =ПРОВОЛОКА!I71 -> 0 | F63: =ПРОВОЛОКА!J71 -> 0 | G63: =ПРОВОЛОКА!N71 -> 0 | H63: =ПРОВОЛОКА!R71 -> 0
A64: =ПРОВОЛОКА!A72 -> z | B64: z | C64: =CONCATENATE(ПРОВОЛОКА!B72,ПРОВОЛОКА!C72) -> Ø2,5х | D64: =ПРОВОЛОКА!E72 -> 1500 | E64: =ПРОВОЛОКА!I72 -> 0 | F64: =ПРОВОЛОКА!J72 -> 0 | G64: =ПРОВОЛОКА!N72 -> 0 | H64: =ПРОВОЛОКА!R72 -> 0
A65: =ПРОВОЛОКА!A73 -> z | B65: z | C65: =CONCATENATE(ПРОВОЛОКА!B73,ПРОВОЛОКА!C73) -> Ø2,5х | D65: =ПРОВОЛОКА!E73 -> 1500 | E65: =ПРОВОЛОКА!I73 -> 0 | F65: =ПРОВОЛОКА!J73 -> 0 | G65: =ПРОВОЛОКА!N73 -> 0 | H65: =ПРОВОЛОКА!R73 -> 0
A66: =ПРОВОЛОКА!A74 -> z | B66: z | C66: =CONCATENATE(ПРОВОЛОКА!B74,ПРОВОЛОКА!C74) -> Ø2,5х | D66: =ПРОВОЛОКА!E74 -> 1500 | E66: =ПРОВОЛОКА!I74 -> 0 | F66: =ПРОВОЛОКА!J74 -> 0 | G66: =ПРОВОЛОКА!N74 -> 0 | H66: =ПРОВОЛОКА!R74 -> 0
A67: z | B67: =IF(E67=0,"z","Проволока") -> z | C67: =CONCATENATE(ПРОВОЛОКА!B75,ПРОВОЛОКА!C75) ->  | D67: =ПРОВОЛОКА!E75 -> 0 | E67: =ПРОВОЛОКА!I75 -> 0 | F67: =ПРОВОЛОКА!J75 -> 0 | G67: =ПРОВОЛОКА!N75 -> 0 | H67: =ПРОВОЛОКА!R75 -> 0
A68: =ПРОВОЛОКА!A76 ->  | B68: =IF(E68=0,"z","Проволока") -> Проволока | C68: =CONCATENATE(ПРОВОЛОКА!B76,ПРОВОЛОКА!C76) -> Ø2,0х220 | D68: =ПРОВОЛОКА!E76 -> 1500 | E68: =ПРОВОЛОКА!I76 -> 1 | F68: =ПРОВОЛОКА!J76 -> 1500 | G68: =ПРОВОЛОКА!N76 -> 0.0055 | H68: =ПРОВОЛОКА!R76 -> 8.25
A69: =ПРОВОЛОКА!A77 -> 2д | B69: Проволока | C69: =CONCATENATE(ПРОВОЛОКА!B77,ПРОВОЛОКА!C77) -> Ø2,0х150 | D69: =ПРОВОЛОКА!E77 -> 1500 | E69: =ПРОВОЛОКА!I77 -> 8 | F69: =ПРОВОЛОКА!J77 -> 12000 | G69: =ПРОВОЛОКА!N77 -> 0.048 | H69: =ПРОВОЛОКА!R77 -> 72
A70: =ПРОВОЛОКА!A78 -> z | B70: z | C70: =CONCATENATE(ПРОВОЛОКА!B78,ПРОВОЛОКА!C78) -> Ø2,0х | D70: =ПРОВОЛОКА!E78 -> 1500 | E70: =ПРОВОЛОКА!I78 -> 0 | F70: =ПРОВОЛОКА!J78 -> 0 | G70: =ПРОВОЛОКА!N78 -> 0 | H70: =ПРОВОЛОКА!R78 -> 0
A71: =ПРОВОЛОКА!A79 -> z | B71: z | C71: =CONCATENATE(ПРОВОЛОКА!B79,ПРОВОЛОКА!C79) -> Ø2,0х | D71: =ПРОВОЛОКА!E79 -> 1500 | E71: =ПРОВОЛОКА!I79 -> 0 | F71: =ПРОВОЛОКА!J79 -> 0 | G71: =ПРОВОЛОКА!N79 -> 0 | H71: =ПРОВОЛОКА!R79 -> 0
A72: =ПРОВОЛОКА!A80 -> z | B72: z | C72: =CONCATENATE(ПРОВОЛОКА!B80,ПРОВОЛОКА!C80) -> Ø2,0х | D72: =ПРОВОЛОКА!E80 -> 1500 | E72: =ПРОВОЛОКА!I80 -> 0 | F72: =ПРОВОЛОКА!J80 -> 0 | G72: =ПРОВОЛОКА!N80 -> 0 | H72: =ПРОВОЛОКА!R80 -> 0

Sheet Д-пвх
A1: z | D1: план | E1: на1кт | F1: кол.на.пл
A2: =IF(ПВХ!H10=0,"z","") ->  | B2: =CONCATENATE(ПВХ!F10," ",ПВХ!G10) -> ПВХ 0,4 | C2: =CONCATENATE(ПВХ!C10,"х",ПВХ!D10,"х",ПВХ!G10) -> 105х188х0,4 | D2: =ПВХ!$G$7 -> 1000 | E2: =ПВХ!E10 -> 1 | F2: =D2*E2 -> 1000
A3: =IF(ПВХ!H11=0,"z","") ->  | B3: =CONCATENATE(ПВХ!F11," ",ПВХ!G11) -> ПВХ 0,4 | C3: =CONCATENATE(ПВХ!C11,"х",ПВХ!D11,"х",ПВХ!G11) -> 50х100х0,4 | D3: =ПВХ!$G$7 -> 1000 | E3: =ПВХ!E11 -> 6 | F3: =D3*E3 -> 6000
A4: =IF(ПВХ!H12=0,"z","") ->  | B4: =CONCATENATE(ПВХ!F12," ",ПВХ!G12) -> ПВХ 0,4 | C4: =CONCATENATE(ПВХ!C12,"х",ПВХ!D12,"х",ПВХ!G12) -> 654х856х0,4 | D4: =ПВХ!$G$7 -> 1000 | E4: =ПВХ!E12 -> 5 | F4: 5000
A5: =IF(ПВХ!H13=0,"z","") -> z | B5: =CONCATENATE(ПВХ!F13," ",ПВХ!G13) -> ПВХ 0,4 | C5: =CONCATENATE(ПВХ!C13,"х",ПВХ!D13,"х",ПВХ!G13) -> хх0,4 | D5: =ПВХ!$G$7 -> 1000 | E5: =ПВХ!E13 -> 0 | F5: 0
A6: =IF(ПВХ!H14=0,"z","") -> z | B6: =CONCATENATE(ПВХ!F14," ",ПВХ!G14) -> ПВХ 0,4 | C6: =CONCATENATE(ПВХ!C14,"х",ПВХ!D14,"х",ПВХ!G14) -> хх0,4 | D6: =ПВХ!$G$7 -> 1000 | E6: =ПВХ!E14 -> 0 | F6: 0
A7: =IF(ПВХ!H15=0,"z","") -> z | B7: =CONCATENATE(ПВХ!F15," ",ПВХ!G15) -> ПВХ 0,4 | C7: =CONCATENATE(ПВХ!C15,"х",ПВХ!D15,"х",ПВХ!G15) -> хх0,4 | D7: =ПВХ!$G$7 -> 1000 | E7: =ПВХ!E15 -> 0 | F7: 0
A8: =IF(ПВХ!H16=0,"z","") -> z | B8: =CONCATENATE(ПВХ!F16," ",ПВХ!G16) -> ПВХ 0,4 | C8: =CONCATENATE(ПВХ!C16,"х",ПВХ!D16,"х",ПВХ!G16) -> хх0,4 | D8: =ПВХ!$G$7 -> 1000 | E8: =ПВХ!E16 -> 0 | F8: 0
A9: =IF(ПВХ!H17=0,"z","") -> z | B9: =CONCATENATE(ПВХ!F17," ",ПВХ!G17) -> ПВХ 0,4 | C9: =CONCATENATE(ПВХ!C17,"х",ПВХ!D17,"х",ПВХ!G17) -> хх0,4 | D9: =ПВХ!$G$7 -> 1000 | E9: =ПВХ!E17 -> 0 | F9: 0
A10: =IF(ПВХ!H18=0,"z","") -> z | B10: =CONCATENATE(ПВХ!F18," ",ПВХ!G18) -> ПВХ 0,4 | C10: =CONCATENATE(ПВХ!C18,"х",ПВХ!D18,"х",ПВХ!G18) -> хх0,4 | D10: =ПВХ!$G$7 -> 1000 | E10: =ПВХ!E18 -> 0 | F10: 0
A11: =IF(ПВХ!H19=0,"z","") -> z | B11: =CONCATENATE(ПВХ!F19," ",ПВХ!G19) -> ПВХ 0,4 | C11: =CONCATENATE(ПВХ!C19,"х",ПВХ!D19,"х",ПВХ!G19) -> хх0,4 | D11: =ПВХ!$G$7 -> 1000 | E11: =ПВХ!E19 -> 0 | F11: 0
A12: =IF(ПВХ!H20=0,"z","") -> z | B12: =CONCATENATE(ПВХ!F20," ",ПВХ!G20) -> ПВХ 0,4 | C12: =CONCATENATE(ПВХ!C20,"х",ПВХ!D20,"х",ПВХ!G20) -> хх0,4 | D12: =ПВХ!$G$7 -> 1000 | E12: =ПВХ!E20 -> 0 | F12: 0
A13: =IF(ПВХ!H21=0,"z","") -> z | B13: =CONCATENATE(ПВХ!F21," ",ПВХ!G21) -> ПВХ 0,4 | C13: =CONCATENATE(ПВХ!C21,"х",ПВХ!D21,"х",ПВХ!G21) -> хх0,4 | D13: =ПВХ!$G$7 -> 1000 | E13: =ПВХ!E21 -> 0 | F13: 0
A14: =IF(ПВХ!H22=0,"z","") -> z | B14: =CONCATENATE(ПВХ!F22," ",ПВХ!G22) -> ПВХ 0,4 | C14: =CONCATENATE(ПВХ!C22,"х",ПВХ!D22,"х",ПВХ!G22) -> хх0,4 | D14: =ПВХ!$G$7 -> 1000 | E14: =ПВХ!E22 -> 0 | F14: 0
A15: =IF(ПВХ!H23=0,"z","") -> z | B15: =CONCATENATE(ПВХ!F23," ",ПВХ!G23) -> ПВХ 0,4 | C15: =CONCATENATE(ПВХ!C23,"х",ПВХ!D23,"х",ПВХ!G23) -> хх0,4 | D15: =ПВХ!$G$7 -> 1000 | E15: =ПВХ!E23 -> 0 | F15: 0
A16: =IF(ПВХ!H24=0,"z","") -> z | B16: =CONCATENATE(ПВХ!F24," ",ПВХ!G24) -> ПВХ 0,4 | C16: =CONCATENATE(ПВХ!C24,"х",ПВХ!D24,"х",ПВХ!G24) -> хх0,4 | D16: =ПВХ!$G$7 -> 1000 | E16: =ПВХ!E24 -> 0 | F16: 0
A17: =IF(ПВХ!H25=0,"z","") -> z | B17: =CONCATENATE(ПВХ!F25," ",ПВХ!G25) -> ПВХ 0,4 | C17: =CONCATENATE(ПВХ!C25,"х",ПВХ!D25,"х",ПВХ!G25) -> хх0,4 | D17: =ПВХ!$G$7 -> 1000 | E17: =ПВХ!E25 -> 0 | F17: 0
A18: =IF(ПВХ!H26=0,"z","") -> z | B18: =CONCATENATE(ПВХ!F26," ",ПВХ!G26) -> ПВХ 0,4 | C18: =CONCATENATE(ПВХ!C26,"х",ПВХ!D26,"х",ПВХ!G26) -> хх0,4 | D18: =ПВХ!$G$7 -> 1000 | E18: =ПВХ!E26 -> 0 | F18: 0
A19: =IF(ПВХ!H27=0,"z","") -> z | B19: =CONCATENATE(ПВХ!F27," ",ПВХ!G27) -> ПВХ 0,4 | C19: =CONCATENATE(ПВХ!C27,"х",ПВХ!D27,"х",ПВХ!G27) -> хх0,4 | D19: =ПВХ!$G$7 -> 1000 | E19: =ПВХ!E27 -> 0 | F19: 0
A20: =IF(ПВХ!H28=0,"z","") -> z | B20: =CONCATENATE(ПВХ!F28," ",ПВХ!G28) -> ПВХ 0,4 | C20: =CONCATENATE(ПВХ!C28,"х",ПВХ!D28,"х",ПВХ!G28) -> хх0,4 | D20: =ПВХ!$G$7 -> 1000 | E20: =ПВХ!E28 -> 0 | F20: 0
A21: =IF(ПВХ!H29=0,"z","") -> z | B21: =CONCATENATE(ПВХ!F29," ",ПВХ!G29) -> ПВХ 0,4 | C21: =CONCATENATE(ПВХ!C29,"х",ПВХ!D29,"х",ПВХ!G29) -> хх0,4 | D21: =ПВХ!$G$7 -> 1000 | E21: =ПВХ!E29 -> 0 | F21: 0
A22: =IF(ПВХ!H30=0,"z","") -> z | B22: =CONCATENATE(ПВХ!F30," ",ПВХ!G30) -> ПВХ 0,4 | C22: =CONCATENATE(ПВХ!C30,"х",ПВХ!D30,"х",ПВХ!G30) -> хх0,4 | D22: =ПВХ!$G$7 -> 1000 | E22: =ПВХ!E30 -> 0 | F22: 0
A23: =IF(ПВХ!H31=0,"z","") -> z | B23: =CONCATENATE(ПВХ!F31," ",ПВХ!G31) -> ПВХ 0,4 | C23: =CONCATENATE(ПВХ!C31,"х",ПВХ!D31,"х",ПВХ!G31) -> хх0,4 | D23: =ПВХ!$G$7 -> 1000 | E23: =ПВХ!E31 -> 0 | F23: 0
A24: =IF(ПВХ!H32=0,"z","") -> z | B24: =CONCATENATE(ПВХ!F32," ",ПВХ!G32) -> ПВХ 0,4 | C24: =CONCATENATE(ПВХ!C32,"х",ПВХ!D32,"х",ПВХ!G32) -> хх0,4 | D24: =ПВХ!$G$7 -> 1000 | E24: =ПВХ!E32 -> 0 | F24: 0
A25: =IF(ПВХ!H33=0,"z","") -> z | B25: =CONCATENATE(ПВХ!F33," ",ПВХ!G33) -> ПВХ 0,4 | C25: =CONCATENATE(ПВХ!C33,"х",ПВХ!D33,"х",ПВХ!G33) -> хх0,4 | D25: =ПВХ!$G$7 -> 1000 | E25: =ПВХ!E33 -> 0 | F25: 0
A26: =IF(ПВХ!H34=0,"z","") -> z | B26: =CONCATENATE(ПВХ!F34," ",ПВХ!G34) -> ПВХ 0,4 | C26: =CONCATENATE(ПВХ!C34,"х",ПВХ!D34,"х",ПВХ!G34) -> хх0,4 | D26: =ПВХ!$G$7 -> 1000 | E26: =ПВХ!E34 -> 0 | F26: 0

Sheet "З"
A1: z
B2: Утверждено:
G3: Лимит установил
B5: Дата:
C7: Лимитно-заборная карта ЛЗК № | I7: 30272 (050.05.23) № 08 | L7: З
D8: на отпуск материалов на изделие | E8: =ТРУБА!C4 -> (19137.022.20.9016) Кронштейн 240
B10: Количество общее: | D10: =CONCATENATE(ТРУБА!J6," шт.") -> 110 шт.
B11: по комплектах | D11: 100+10
B13: Остаток с предыдущей ЛЗК | C13: Наименование | D13: Количество | L13: Примечание | M13: Дата выдачи | N13: Ф.И.О. получателя | O13: Подпись
D14: Необходимо по норме | E14: Получить со склада | F14: Получено факт | G14: Деловой остаток | I14: Вернуть лом
G15: Теор. | H15: ∑ | I15: Теор. | J15: ∑
A16: =IF(D16="","z","") ->  | C16: Проволока Ø 2 | D16: =IF(ПРОВОЛОКА!R81=0,"",ПРОВОЛОКА!R81) -> 80.25 | K16: кг
A17: =IF(D17="","z","") -> z | C17: Проволока Ø 2,5 | D17: =IF(ПРОВОЛОКА!R75=0,"",ПРОВОЛОКА!R75) ->  | K17: кг
A18: z | C18: Проволока Ø 2,9 | D18: =IF(ПРОВОЛОКА!R30=0,"",ПРОВОЛОКА!R30) ->  | K18: кг
A19: z | C19: Проволока Ø 3,4 | D19: =IF(ПРОВОЛОКА!R52=0,"",ПРОВОЛОКА!R34) ->  | K19: кг
A20: z | C20: Проволока Ø 3,8 | D20: =IF(ПРОВОЛОКА!R41=0,"",ПРОВОЛОКА!R41) ->  | K20: кг
A21: z | C21: Проволока Ø 4,8 | D21: =IF(ПРОВОЛОКА!R30=0,"",ПРОВОЛОКА!R30) ->  | K21: кг
A22: z | C22: Проволока Ø 6 | D22: =IF(ПРОВОЛОКА!R21=0,"",ПРОВОЛОКА!R21) ->  | K22: кг
C23: Проволока Ø 8 | D23: =IF(ПРОВОЛОКА!R15=0,"",ПРОВОЛОКА!R15) -> 922.47
A25: z | C25: =ЛИСТ!I124 -> Лист 0,6 | D25: =IF(ЛИСТ!Z124=0,"",ROUND(ЛИСТ!Z124,3)) ->  | E25: =CONCATENATE(IF(ЛИСТ!M124=0,"",ROUND(ЛИСТ!M124,3)),IF(AND(ЛИСТ!M124>0,ЛИСТ!N124>0),"+",""),IF(ЛИСТ!N124=0,"",CONCATENATE("(",ROUND(ЛИСТ!N124,3),")"))) ->  | G25: =IF(ЛИСТ!R124=0,"",ROUND(ЛИСТ!R124,3)) ->  | I25: =IF(ЛИСТ!V124=0,"",ROUND(ЛИСТ!V124,3)) ->  | K25: кг | L25: =IF(ЛИСТ!G124=0,"",CONCATENATE(ЛИСТ!G124," шт. ",ЛИСТ!C124,"х",ЛИСТ!D124)) -> 
A26: z | C26: =ЛИСТ!I125 -> Лист 0,7 | D26: =IF(ЛИСТ!Z125=0,"",ROUND(ЛИСТ!Z125,3)) ->  | E26: =CONCATENATE(IF(ЛИСТ!M125=0,"",ROUND(ЛИСТ!M125,3)),IF(AND(ЛИСТ!M125>0,ЛИСТ!N125>0),"+",""),IF(ЛИСТ!N125=0,"",CONCATENATE("(",ROUND(ЛИСТ!N125,3),")"))) ->  | G26: =IF(ЛИСТ!R125=0,"",ROUND(ЛИСТ!R125,3)) ->  | I26: =IF(ЛИСТ!V125=0,"",ROUND(ЛИСТ!V125,3)) ->  | K26: кг | L26: =IF(ЛИСТ!G125=0,"",CONCATENATE(ЛИСТ!G125," шт. ",ЛИСТ!C125,"х",ЛИСТ!D125)) -> 
C27: =ЛИСТ!I126 -> Лист 0,8 | D27: =IF(ЛИСТ!Z126=0,"",ROUND(ЛИСТ!Z126,3)) -> 300.451 | E27: =CONCATENATE(IF(ЛИСТ!M126=0,"",ROUND(ЛИСТ!M126,3)),IF(AND(ЛИСТ!M126>0,ЛИСТ!N126>0),"+",""),IF(ЛИСТ!N126=0,"",CONCATENATE("(",ROUND(ЛИСТ!N126,3),")"))) -> 393,7+(53,639) | G27: =IF(ЛИСТ!R126=0,"",ROUND(ЛИСТ!R126,3)) -> 140.672 | I27: =IF(ЛИСТ!V126=0,"",ROUND(ЛИСТ!V126,3)) -> 6.215 | K27: кг | L27: =IF(ЛИСТ!G126=0,"",CONCATENATE(ЛИСТ!G126," шт. ",ЛИСТ!C126,"х",ЛИСТ!D126)) -> 20 шт. 1250х2500
A28: z | C28: =ЛИСТ!I127 -> Лист 1 | D28: =IF(ЛИСТ!Z127=0,"",ROUND(ЛИСТ!Z127,3)) ->  | E28: =CONCATENATE(IF(ЛИСТ!M127=0,"",ROUND(ЛИСТ!M127,3)),IF(AND(ЛИСТ!M127>0,ЛИСТ!N127>0),"+",""),IF(ЛИСТ!N127=0,"",CONCATENATE("(",ROUND(ЛИСТ!N127,3),")"))) ->  | G28: =IF(ЛИСТ!R127=0,"",ROUND(ЛИСТ!R127,3)) ->  | I28: =IF(ЛИСТ!V127=0,"",ROUND(ЛИСТ!V127,3)) ->  | K28: кг | L28: =IF(ЛИСТ!G127=0,"",CONCATENATE(ЛИСТ!G127," шт. ",ЛИСТ!C127,"х",ЛИСТ!D127)) -> 
A29: z | C29: =ЛИСТ!I128 -> Лист 1,2 | D29: =IF(ЛИСТ!Z128=0,"",ROUND(ЛИСТ!Z128,3)) ->  | E29: =CONCATENATE(IF(ЛИСТ!M128=0,"",ROUND(ЛИСТ!M128,3)),IF(AND(ЛИСТ!M128>0,ЛИСТ!N128>0),"+",""),IF(ЛИСТ!N128=0,"",CONCATENATE("(",ROUND(ЛИСТ!N128,3),")"))) ->  | G29: =IF(ЛИСТ!R128=0,"",ROUND(ЛИСТ!R128,3)) ->  | I29: =IF(ЛИСТ!V128=0,"",ROUND(ЛИСТ!V128,3)) ->  | K29: кг | L29: =IF(ЛИСТ!G128=0,"",CONCATENATE(ЛИСТ!G128," шт. ",ЛИСТ!C128,"х",ЛИСТ!D128)) -> 
A30: z | C30: =ЛИСТ!I129 -> Лист 1,5 | D30: =IF(ЛИСТ!Z129=0,"",ROUND(ЛИСТ!Z129,3)) ->  | E30: =CONCATENATE(IF(ЛИСТ!M129=0,"",ROUND(ЛИСТ!M129,3)),IF(AND(ЛИСТ!M129>0,ЛИСТ!N129>0),"+",""),IF(ЛИСТ!N129=0,"",CONCATENATE("(",ROUND(ЛИСТ!N129,3),")"))) ->  | G30: =IF(ЛИСТ!R129=0,"",ROUND(ЛИСТ!R129,3)) ->  | I30: =IF(ЛИСТ!V129=0,"",ROUND(ЛИСТ!V129,3)) ->  | K30: кг | L30: =IF(ЛИСТ!G129=0,"",CONCATENATE(ЛИСТ!G129," шт. ",ЛИСТ!C129,"х",ЛИСТ!D129)) -> 
A31: z | C31: =ЛИСТ!I130 -> Лист 10 | D31: =IF(ЛИСТ!Z130=0,"",ROUND(ЛИСТ!Z130,3)) ->  | E31: =CONCATENATE(IF(ЛИСТ!M130=0,"",ROUND(ЛИСТ!M130,3)),IF(AND(ЛИСТ!M130>0,ЛИСТ!N130>0),"+",""),IF(ЛИСТ!N130=0,"",CONCATENATE("(",ROUND(ЛИСТ!N130,3),")"))) ->  | G31: =IF(ЛИСТ!R130=0,"",ROUND(ЛИСТ!R130,3)) ->  | I31: =IF(ЛИСТ!V130=0,"",ROUND(ЛИСТ!V130,3)) ->  | K31: кг | L31: =IF(ЛИСТ!G130=0,"",CONCATENATE(ЛИСТ!G130," шт. ",ЛИСТ!C130,"х",ЛИСТ!D130)) -> 
C32: =ЛИСТ!I131 -> Лист 2 | D32: =IF(ЛИСТ!Z131=0,"",ROUND(ЛИСТ!Z131,3)) -> -124.107 | E32: =CONCATENATE(IF(ЛИСТ!M131=0,"",ROUND(ЛИСТ!M131,3)),IF(AND(ЛИСТ!M131>0,ЛИСТ!N131>0),"+",""),IF(ЛИСТ!N131=0,"",CONCATENATE("(",ROUND(ЛИСТ!N131,3),")"))) ->  | G32: =IF(ЛИСТ!R131=0,"",ROUND(ЛИСТ!R131,3)) ->  | I32: =IF(ЛИСТ!V131=0,"",ROUND(ЛИСТ!V131,3)) -> 124.107 | K32: кг | L32: =IF(ЛИСТ!G131=0,"",CONCATENATE(ЛИСТ!G131," шт. ",ЛИСТ!C131,"х",ЛИСТ!D131)) -> 
A33: z | C33: =ЛИСТ!I132 -> Лист 2,5 | D33: =IF(ЛИСТ!Z132=0,"",ROUND(ЛИСТ!Z132,3)) ->  | E33: =CONCATENATE(IF(ЛИСТ!M132=0,"",ROUND(ЛИСТ!M132,3)),IF(AND(ЛИСТ!M132>0,ЛИСТ!N132>0),"+",""),IF(ЛИСТ!N132=0,"",CONCATENATE("(",ROUND(ЛИСТ!N132,3),")"))) ->  | G33: =IF(ЛИСТ!R132=0,"",ROUND(ЛИСТ!R132,3)) ->  | I33: =IF(ЛИСТ!V132=0,"",ROUND(ЛИСТ!V132,3)) ->  | K33: кг | L33: =IF(ЛИСТ!G132=0,"",CONCATENATE(ЛИСТ!G132," шт. ",ЛИСТ!C132,"х",ЛИСТ!D132)) -> 
A34: z | C34: =ЛИСТ!I133 -> Лист 3 | D34: =IF(ЛИСТ!Z133=0,"",ROUND(ЛИСТ!Z133,3)) ->  | E34: =CONCATENATE(IF(ЛИСТ!M133=0,"",ROUND(ЛИСТ!M133,3)),IF(AND(ЛИСТ!M133>0,ЛИСТ!N133>0),"+",""),IF(ЛИСТ!N133=0,"",CONCATENATE("(",ROUND(ЛИСТ!N133,3),")"))) ->  | G34: =IF(ЛИСТ!R133=0,"",ROUND(ЛИСТ!R133,3)) ->  | I34: =IF(ЛИСТ!V133=0,"",ROUND(ЛИСТ!V133,3)) ->  | K34: кг | L34: =IF(ЛИСТ!G133=0,"",CONCATENATE(ЛИСТ!G133," шт. ",ЛИСТ!C133,"х",ЛИСТ!D133)) -> 
A35: z | C35: =ЛИСТ!I134 -> Лист 4 | D35: =IF(ЛИСТ!Z134=0,"",ROUND(ЛИСТ!Z134,3)) ->  | E35: =CONCATENATE(IF(ЛИСТ!M134=0,"",ROUND(ЛИСТ!M134,3)),IF(AND(ЛИСТ!M134>0,ЛИСТ!N134>0),"+",""),IF(ЛИСТ!N134=0,"",CONCATENATE("(",ROUND(ЛИСТ!N134,3),")"))) ->  | G35: =IF(ЛИСТ!R134=0,"",ROUND(ЛИСТ!R134,3)) ->  | I35: =IF(ЛИСТ!V134=0,"",ROUND(ЛИСТ!V134,3)) ->  | K35: кг | L35: =IF(ЛИСТ!G134=0,"",CONCATENATE(ЛИСТ!G134," шт. ",ЛИСТ!C134,"х",ЛИСТ!D134)) -> 
A36: z | C36: =ЛИСТ!I135 -> Лист 5 | D36: =IF(ЛИСТ!Z135=0,"",ROUND(ЛИСТ!Z135,3)) ->  | E36: =CONCATENATE(IF(ЛИСТ!M135=0,"",ROUND(ЛИСТ!M135,3)),IF(AND(ЛИСТ!M135>0,ЛИСТ!N135>0),"+",""),IF(ЛИСТ!N135=0,"",CONCATENATE("(",ROUND(ЛИСТ!N135,3),")"))) ->  | G36: =IF(ЛИСТ!R135=0,"",ROUND(ЛИСТ!R135,3)) ->  | I36: =IF(ЛИСТ!V135=0,"",ROUND(ЛИСТ!V135,3)) ->  | K36: кг | L36: =IF(ЛИСТ!G135=0,"",CONCATENATE(ЛИСТ!G135," шт. ",ЛИСТ!C135,"х",ЛИСТ!D135)) -> 
A37: z | C37: =ЛИСТ!I136 -> Лист 6 | D37: =IF(ЛИСТ!Z136=0,"",ROUND(ЛИСТ!Z136,3)) ->  | E37: =CONCATENATE(IF(ЛИСТ!M136=0,"",ROUND(ЛИСТ!M136,3)),IF(AND(ЛИСТ!M136>0,ЛИСТ!N136>0),"+",""),IF(ЛИСТ!N136=0,"",CONCATENATE("(",ROUND(ЛИСТ!N136,3),")"))) ->  | G37: =IF(ЛИСТ!R136=0,"",ROUND(ЛИСТ!R136,3)) ->  | I37: =IF(ЛИСТ!V136=0,"",ROUND(ЛИСТ!V136,3)) ->  | K37: кг | L37: =IF(ЛИСТ!G136=0,"",CONCATENATE(ЛИСТ!G136," шт. ",ЛИСТ!C136,"х",ЛИСТ!D136)) -> 
A38: z | C38: =ЛИСТ!I137 -> Лист 7 | D38: =IF(ЛИСТ!Z137=0,"",ROUND(ЛИСТ!Z137,3)) ->  | E38: =CONCATENATE(IF(ЛИСТ!M137=0,"",ROUND(ЛИСТ!M137,3)),IF(AND(ЛИСТ!M137>0,ЛИСТ!N137>0),"+",""),IF(ЛИСТ!N137=0,"",CONCATENATE("(",ROUND(ЛИСТ!N137,3),")"))) ->  | G38: =IF(ЛИСТ!R137=0,"",ROUND(ЛИСТ!R137,3)) ->  | I38: =IF(ЛИСТ!V137=0,"",ROUND(ЛИСТ!V137,3)) ->  | K38: кг | L38: =IF(ЛИСТ!G137=0,"",CONCATENATE(ЛИСТ!G137," шт. ",ЛИСТ!C137,"х",ЛИСТ!D137)) -> 
A39: z | C39: =ЛИСТ!I138 -> Лист 8 | D39: =IF(ЛИСТ!Z138=0,"",ROUND(ЛИСТ!Z138,3)) ->  | E39: =CONCATENATE(IF(ЛИСТ!M138=0,"",ROUND(ЛИСТ!M138,3)),IF(AND(ЛИСТ!M138>0,ЛИСТ!N138>0),"+",""),IF(ЛИСТ!N138=0,"",CONCATENATE("(",ROUND(ЛИСТ!N138,3),")"))) ->  | G39: =IF(ЛИСТ!R138=0,"",ROUND(ЛИСТ!R138,3)) ->  | I39: =IF(ЛИСТ!V138=0,"",ROUND(ЛИСТ!V138,3)) ->  | K39: кг | L39: =IF(ЛИСТ!G138=0,"",CONCATENATE(ЛИСТ!G138," шт. ",ЛИСТ!C138,"х",ЛИСТ!D138)) -> 
A40: z | C40: =ЛИСТ!I139 -> Лист ОЦ 1 | D40: =IF(ЛИСТ!Z139=0,"",ROUND(ЛИСТ!Z139,3)) ->  | E40: =CONCATENATE(IF(ЛИСТ!M139=0,"",ROUND(ЛИСТ!M139,3)),IF(AND(ЛИСТ!M139>0,ЛИСТ!N139>0),"+",""),IF(ЛИСТ!N139=0,"",CONCATENATE("(",ROUND(ЛИСТ!N139,3),")"))) ->  | G40: =IF(ЛИСТ!R139=0,"",ROUND(ЛИСТ!R139,3)) ->  | I40: =IF(ЛИСТ!V139=0,"",ROUND(ЛИСТ!V139,3)) ->  | K40: кг | L40: =IF(ЛИСТ!G139=0,"",CONCATENATE(ЛИСТ!G139," шт. ",ЛИСТ!C139,"х",ЛИСТ!D139)) -> 
A41: z | C41: =ЛИСТ!I140 -> Сетка ПВЛ 1 | D41: =IF(ЛИСТ!Z140=0,"",ROUND(ЛИСТ!Z140,3)) ->  | E41: =CONCATENATE(IF(ЛИСТ!M140=0,"",ROUND(ЛИСТ!M140,3)),IF(AND(ЛИСТ!M140>0,ЛИСТ!N140>0),"+",""),IF(ЛИСТ!N140=0,"",CONCATENATE("(",ROUND(ЛИСТ!N140,3),")"))) ->  | G41: =IF(ЛИСТ!R140=0,"",ROUND(ЛИСТ!R140,3)) ->  | I41: =IF(ЛИСТ!V140=0,"",ROUND(ЛИСТ!V140,3)) ->  | K41: кг | L41: =IF(ЛИСТ!G140=0,"",CONCATENATE(ЛИСТ!G140," шт. ",ЛИСТ!C140,"х",ЛИСТ!D140)) -> 
A42: z | C42: =ЛИСТ!I141 -> 0 | D42: =ЛИСТ!Z141 -> 0 | L42: =CONCATENATE(ЛИСТ!G141," лист. ",ЛИСТ!C141,"х",ЛИСТ!D141) -> лист. х
L43: Заготовительный лист
A44: =IF(D44="","z","") -> z | K44: кг
A45: z | C45: =ТРУБА!H122 -> Круг 12 | D45: =IF(ТРУБА!U122 =0,"",ROUND(ТРУБА!U122,3)) ->  | E45: =CONCATENATE(IF(ТРУБА!I122=0,"",ROUND(ТРУБА!I122,3)),IF(AND(ТРУБА!I122>0,ТРУБА!J122>0),"+",""),IF(ТРУБА!J122=0,"",CONCATENATE("(",ROUND(ТРУБА!J122,3),")"))) ->  | G45: =IF(ТРУБА!Q122=0,"",ROUND(ТРУБА!Q122,3)) ->  | I45: =IF(ТРУБА!R122=0,"",ROUND(ТРУБА!R122,3)) -> -0.977 | K45: кг | L45: =IF(ТРУБА!F122=0,"",CONCATENATE(ТРУБА!F122," шт. ",ТРУБА!D122)) -> 
A46: z | C46: =ТРУБА!H123 -> Труба 10х10х1 | D46: =IF(ТРУБА!U123 =0,"",ROUND(ТРУБА!U123,3)) ->  | E46: =CONCATENATE(IF(ТРУБА!I123=0,"",ROUND(ТРУБА!I123,3)),IF(AND(ТРУБА!I123>0,ТРУБА!J123>0),"+",""),IF(ТРУБА!J123=0,"",CONCATENATE("(",ROUND(ТРУБА!J123,3),")"))) ->  | G46: =IF(ТРУБА!Q123=0,"",ROUND(ТРУБА!Q123,3)) ->  | I46: =IF(ТРУБА!R123=0,"",ROUND(ТРУБА!R123,3)) -> -0.297 | K46: кг | L46: =IF(ТРУБА!F123=0,"",CONCATENATE(ТРУБА!F123," шт. ",ТРУБА!D123)) -> 
A47: z | C47: =ТРУБА!H124 -> Труба 20х20х1 | D47: =IF(ТРУБА!U124 =0,"",ROUND(ТРУБА!U124,3)) ->  | E47: =CONCATENATE(IF(ТРУБА!I124=0,"",ROUND(ТРУБА!I124,3)),IF(AND(ТРУБА!I124>0,ТРУБА!J124>0),"+",""),IF(ТРУБА!J124=0,"",CONCATENATE("(",ROUND(ТРУБА!J124,3),")"))) ->  | G47: =IF(ТРУБА!Q124=0,"",ROUND(ТРУБА!Q124,3)) ->  | I47: =IF(ТРУБА!R124=0,"",ROUND(ТРУБА!R124,3)) ->  | K47: кг | L47: =IF(ТРУБА!F124=0,"",CONCATENATE(ТРУБА!F124," шт. ",ТРУБА!D124)) -> 
A48: z | C48: =ТРУБА!H125 -> Труба 20х20х1,5 | D48: =IF(ТРУБА!U125 =0,"",ROUND(ТРУБА!U125,3)) ->  | E48: =CONCATENATE(IF(ТРУБА!I125=0,"",ROUND(ТРУБА!I125,3)),IF(AND(ТРУБА!I125>0,ТРУБА!J125>0),"+",""),IF(ТРУБА!J125=0,"",CONCATENATE("(",ROUND(ТРУБА!J125,3),")"))) ->  | G48: =IF(ТРУБА!Q125=0,"",ROUND(ТРУБА!Q125,3)) ->  | I48: =IF(ТРУБА!R125=0,"",ROUND(ТРУБА!R125,3)) ->  | K48: кг | L48: =IF(ТРУБА!F125=0,"",CONCATENATE(ТРУБА!F125," шт. ",ТРУБА!D125)) -> 
A49: z | C49: =ТРУБА!H126 -> Труба 25х1,5 | D49: =IF(ТРУБА!U126 =0,"",ROUND(ТРУБА!U126,3)) ->  | E49: =CONCATENATE(IF(ТРУБА!I126=0,"",ROUND(ТРУБА!I126,3)),IF(AND(ТРУБА!I126>0,ТРУБА!J126>0),"+",""),IF(ТРУБА!J126=0,"",CONCATENATE("(",ROUND(ТРУБА!J126,3),")"))) ->  | G49: =IF(ТРУБА!Q126=0,"",ROUND(ТРУБА!Q126,3)) ->  | I49: =IF(ТРУБА!R126=0,"",ROUND(ТРУБА!R126,3)) ->  | K49: кг | L49: =IF(ТРУБА!F126=0,"",CONCATENATE(ТРУБА!F126," шт. ",ТРУБА!D126)) -> 
A50: z | C50: =ТРУБА!H127 -> Труба 25х25х0,8 | D50: =IF(ТРУБА!U127 =0,"",ROUND(ТРУБА!U127,3)) ->  | E50: =CONCATENATE(IF(ТРУБА!I127=0,"",ROUND(ТРУБА!I127,3)),IF(AND(ТРУБА!I127>0,ТРУБА!J127>0),"+",""),IF(ТРУБА!J127=0,"",CONCATENATE("(",ROUND(ТРУБА!J127,3),")"))) ->  | G50: =IF(ТРУБА!Q127=0,"",ROUND(ТРУБА!Q127,3)) ->  | I50: =IF(ТРУБА!R127=0,"",ROUND(ТРУБА!R127,3)) ->  | K50: кг | L50: =IF(ТРУБА!F127=0,"",CONCATENATE(ТРУБА!F127," шт. ",ТРУБА!D127)) -> 
A51: z | C51: =ТРУБА!H128 -> Труба 25х25х1 | D51: =IF(ТРУБА!U128 =0,"",ROUND(ТРУБА!U128,3)) ->  | E51: =CONCATENATE(IF(ТРУБА!I128=0,"",ROUND(ТРУБА!I128,3)),IF(AND(ТРУБА!I128>0,ТРУБА!J128>0),"+",""),IF(ТРУБА!J128=0,"",CONCATENATE("(",ROUND(ТРУБА!J128,3),")"))) ->  | G51: =IF(ТРУБА!Q128=0,"",ROUND(ТРУБА!Q128,3)) ->  | I51: =IF(ТРУБА!R128=0,"",ROUND(ТРУБА!R128,3)) ->  | K51: кг | L51: =IF(ТРУБА!F128=0,"",CONCATENATE(ТРУБА!F128," шт. ",ТРУБА!D128)) -> 
A52: z | C52: =ТРУБА!H129 -> Труба 25х25х1,2 | D52: =IF(ТРУБА!U129 =0,"",ROUND(ТРУБА!U129,3)) ->  | E52: =CONCATENATE(IF(ТРУБА!I129=0,"",ROUND(ТРУБА!I129,3)),IF(AND(ТРУБА!I129>0,ТРУБА!J129>0),"+",""),IF(ТРУБА!J129=0,"",CONCATENATE("(",ROUND(ТРУБА!J129,3),")"))) ->  | G52: =IF(ТРУБА!Q129=0,"",ROUND(ТРУБА!Q129,3)) ->  | I52: =IF(ТРУБА!R129=0,"",ROUND(ТРУБА!R129,3)) -> -0.481 | K52: кг | L52: =IF(ТРУБА!F129=0,"",CONCATENATE(ТРУБА!F129," шт. ",ТРУБА!D129)) -> 
A53: z | C53: =ТРУБА!H130 -> Труба 30х15х1,5 | D53: =IF(ТРУБА!U130 =0,"",ROUND(ТРУБА!U130,3)) ->  | E53: =CONCATENATE(IF(ТРУБА!I130=0,"",ROUND(ТРУБА!I130,3)),IF(AND(ТРУБА!I130>0,ТРУБА!J130>0),"+",""),IF(ТРУБА!J130=0,"",CONCATENATE("(",ROUND(ТРУБА!J130,3),")"))) ->  | G53: =IF(ТРУБА!Q130=0,"",ROUND(ТРУБА!Q130,3)) ->  | I53: =IF(ТРУБА!R130=0,"",ROUND(ТРУБА!R130,3)) ->  | K53: кг | L53: =IF(ТРУБА!F130=0,"",CONCATENATE(ТРУБА!F130," шт. ",ТРУБА!D130)) -> 
C54: =ТРУБА!H131 -> Труба 30х20х1,2 | D54: =IF(ТРУБА!U131 =0,"",ROUND(ТРУБА!U131,3)) -> 162.914 | E54: =CONCATENATE(IF(ТРУБА!I131=0,"",ROUND(ТРУБА!I131,3)),IF(AND(ТРУБА!I131>0,ТРУБА!J131>0),"+",""),IF(ТРУБА!J131=0,"",CONCATENATE("(",ROUND(ТРУБА!J131,3),")"))) -> 168,96+(1,316) | G54: =IF(ТРУБА!Q131=0,"",ROUND(ТРУБА!Q131,3)) -> 2.344 | I54: =IF(ТРУБА!R131=0,"",ROUND(ТРУБА!R131,3)) -> 5.017 | K54: кг | L54: =IF(ТРУБА!F131=0,"",CONCATENATE(ТРУБА!F131," шт. ",ТРУБА!D131)) -> 32 шт. 6000
A55: z | C55: =ТРУБА!H132 -> Труба 30х30х2 | D55: =IF(ТРУБА!U132 =0,"",ROUND(ТРУБА!U132,3)) ->  | E55: =CONCATENATE(IF(ТРУБА!I132=0,"",ROUND(ТРУБА!I132,3)),IF(AND(ТРУБА!I132>0,ТРУБА!J132>0),"+",""),IF(ТРУБА!J132=0,"",CONCATENATE("(",ROUND(ТРУБА!J132,3),")"))) ->  | G55: =IF(ТРУБА!Q132=0,"",ROUND(ТРУБА!Q132,3)) ->  | I55: =IF(ТРУБА!R132=0,"",ROUND(ТРУБА!R132,3)) ->  | K55: кг | L55: =IF(ТРУБА!F132=0,"",CONCATENATE(ТРУБА!F132," шт. ",ТРУБА!D132)) -> 
A56: z | C56: =ТРУБА!H133 -> Труба 30х80х2 | D56: =IF(ТРУБА!U133 =0,"",ROUND(ТРУБА!U133,3)) ->  | E56: =CONCATENATE(IF(ТРУБА!I133=0,"",ROUND(ТРУБА!I133,3)),IF(AND(ТРУБА!I133>0,ТРУБА!J133>0),"+",""),IF(ТРУБА!J133=0,"",CONCATENATE("(",ROUND(ТРУБА!J133,3),")"))) ->  | G56: =IF(ТРУБА!Q133=0,"",ROUND(ТРУБА!Q133,3)) ->  | I56: =IF(ТРУБА!R133=0,"",ROUND(ТРУБА!R133,3)) ->  | K56: кг | L56: =IF(ТРУБА!F133=0,"",CONCATENATE(ТРУБА!F133," шт. ",ТРУБА!D133)) -> 
A57: z | C57: =ТРУБА!H134 -> Труба 32.5х3 | D57: =IF(ТРУБА!U134 =0,"",ROUND(ТРУБА!U134,3)) ->  | E57: =CONCATENATE(IF(ТРУБА!I134=0,"",ROUND(ТРУБА!I134,3)),IF(AND(ТРУБА!I134>0,ТРУБА!J134>0),"+",""),IF(ТРУБА!J134=0,"",CONCATENATE("(",ROUND(ТРУБА!J134,3),")"))) ->  | G57: =IF(ТРУБА!Q134=0,"",ROUND(ТРУБА!Q134,3)) ->  | I57: =IF(ТРУБА!R134=0,"",ROUND(ТРУБА!R134,3)) ->  | K57: кг | L57: =IF(ТРУБА!F134=0,"",CONCATENATE(ТРУБА!F134," шт. ",ТРУБА!D134)) -> 
A58: z | C58: =ТРУБА!H135 -> Труба 40х20х1 | D58: =IF(ТРУБА!U135 =0,"",ROUND(ТРУБА!U135,3)) ->  | E58: =CONCATENATE(IF(ТРУБА!I135=0,"",ROUND(ТРУБА!I135,3)),IF(AND(ТРУБА!I135>0,ТРУБА!J135>0),"+",""),IF(ТРУБА!J135=0,"",CONCATENATE("(",ROUND(ТРУБА!J135,3),")"))) ->  | G58: =IF(ТРУБА!Q135=0,"",ROUND(ТРУБА!Q135,3)) ->  | I58: =IF(ТРУБА!R135=0,"",ROUND(ТРУБА!R135,3)) ->  | K58: кг | L58: =IF(ТРУБА!F135=0,"",CONCATENATE(ТРУБА!F135," шт. ",ТРУБА!D135)) -> 
A59: z | C59: =ТРУБА!H136 -> Труба 40х20х1,2 | D59: =IF(ТРУБА!U136 =0,"",ROUND(ТРУБА!U136,3)) ->  | E59: =CONCATENATE(IF(ТРУБА!I136=0,"",ROUND(ТРУБА!I136,3)),IF(AND(ТРУБА!I136>0,ТРУБА!J136>0),"+",""),IF(ТРУБА!J136=0,"",CONCATENATE("(",ROUND(ТРУБА!J136,3),")"))) ->  | G59: =IF(ТРУБА!Q136=0,"",ROUND(ТРУБА!Q136,3)) ->  | I59: =IF(ТРУБА!R136=0,"",ROUND(ТРУБА!R136,3)) ->  | K59: кг | L59: =IF(ТРУБА!F136=0,"",CONCATENATE(ТРУБА!F136," шт. ",ТРУБА!D136)) -> 
A60: z | C60: =ТРУБА!H137 -> Труба 60х30х2 | D60: =IF(ТРУБА!U137 =0,"",ROUND(ТРУБА!U137,3)) ->  | E60: =CONCATENATE(IF(ТРУБА!I137=0,"",ROUND(ТРУБА!I137,3)),IF(AND(ТРУБА!I137>0,ТРУБА!J137>0),"+",""),IF(ТРУБА!J137=0,"",CONCATENATE("(",ROUND(ТРУБА!J137,3),")"))) ->  | G60: =IF(ТРУБА!Q137=0,"",ROUND(ТРУБА!Q137,3)) ->  | I60: =IF(ТРУБА!R137=0,"",ROUND(ТРУБА!R137,3)) ->  | K60: кг | L60: =IF(ТРУБА!F137=0,"",CONCATENATE(ТРУБА!F137," шт. ",ТРУБА!D137)) -> 
